Workbook

Sheet READ ME
D2: California Air Resources Board
D3: Calculator for the
D4: Strategic Growth Council
D5: Affordable Housing and Sustainable Communities Program
D6: Greenhouse Gas Reduction Quantification Methodology
D7: Fiscal Year 2015-16
B10: The California Air Resources Board (ARB) is responsible for providing the quantification methodology to estimate greenhouse gas (GHG) emission reductions from projects receiving monies from the Greenhouse Gas Reduction Fund (GGRF). This GHG emission reduction calculator accompanies the quantification methodology for the fiscal year (FY) 2015-16 Strategic Growth Council's Affordable Housing and Sustainable Communities (AHSC) Program available at:
B12: http://www.arb.ca.gov/cc/capandtrade/auctionproceeds/quantification.htm
B14: NOTE: This calculator applies to Steps 4 through 7 of the CalEEMod Methods portion and the TAC Methods portion of the quantification methodology. Applicants must run CalEEMod, if applicable, and should refer to the quantification methodology document for complete quantification instructions.
B16: Instructions: Applicants must use this calculator to estimate the GHG reductions associated with the quantification methodology, as applicable. This Excel file must be submitted with other documentation requirements. Please use the following file naming convention: “[Project ID]_[Project Name]_calc” not to exceed 20 characters. The Project ID is the PIN number assigned by the FAAST system. For example, if the application ID is “12345” and the project name is “San Diego Mixed Use Project,” the file name may be “12345_SD_MU_calc.” Project names may be abbreviated. Additional documentation may be necessary to substantiate the inputs to this file. Fields highlighted in yellow indicate input is needed by the project applicant. Fields highlighted in green indicate selection from the drop-down menu is needed by the project applicant. The drop-down menu appears when the cell is activated. If some text within a cell is not visible, adjust the zoom level of the worksheet. Values pre-entered in the CalEEMod Steps 4-7 tab are default values.
B18: Read Me Tab Enter the Project Name, Project ID, and the contact information for person who can answer project specific questions on the quantification calculations.
B19: Project Name:
B20: Project ID:
B21: Contact Name:
B22: Contact Phone Number:
B23: Contact Email:
B24: Date Completed:
B26: CalEEMod Steps 4-7 Tab Applicants with housing-related project features must use CalEEMod according to Steps 1 through 3 of the quantification methodology and use the CalEEMod output in this tab. Additional benefits are calculated in this tab based on project-specific information. Inputs must be substantiated in the documentation provided to SGC and ARB. Applicants who did not use CalEEMod should skip this tab.
B28: TAC Inputs Tab Applicants must work from left to right and enter all relevant data. Some cells may turn black based on inputs and black cells should be left blank. Applicants should use as many rows as necessary to characterize all relevant features of the proposed project. Inputs must be substantiated in the documentation provided to SGC and ARB. Applicants without TAC project features should skip this tab.
B30: GHG Summary Tab Total Project GHG emissions reductions and emissions per dollar of funding requested are calculated in this tab. Applicants must provide the funding request in this tab and use the output as part of the Documentation as detailed in Section D of the quantification methodology.
B32: Definitions Tab Definitions are provided for many of the terms used in this calculator. Additional information is provided in the quantification methodology.
B34: Cells Formatting Guide
C35: User-input cells
C36: User-input cells with a drop-down menu (drop-down menu appears when the cell is activated)
C37: Cells with automated calculations
B39: Tabs Formatting Guide
B40: Green tabs: | C40: All applicants must enter data here
B41: Orange tabs: | C41: Some applicants will enter data here
B42: Black tabs: | C42: Information; no data are entered here
B45: Additional information specific to the quantification methodology may be found at: | G45: www.arb.ca.gov/cc/capandtrade/auctionproceeds/quantification.htm
B46: More information on ARB’s efforts to support implementation of GGRF investments may be found at: | G46: www.arb.ca.gov/auctionproceeds
B47: Questions on this calculator should be sent to: | G47: GGRFProgram@arb.ca.gov
B48: Questions on the AHSC program should be sent to: | G48: AHSC@sgc.ca.gov

Sheet CalEEMod Steps 4-7
C2: ='READ ME'!D2 -> California Air Resources Board
C3: ='READ ME'!D3 -> Calculator for the
C4: ='READ ME'!D4 -> Strategic Growth Council
C5: ='READ ME'!D5 -> Affordable Housing and Sustainable Communities Program
C6: ='READ ME'!D6 -> Greenhouse Gas Reduction Quantification Methodology
C7: ='READ ME'!D7 -> Fiscal Year 2015-16
B9: Project Name: | D9: ='READ ME'!C19 -> 0
B10: Project ID: | D10: ='READ ME'!C20 -> 0
B12: Project County
B13: Unmitigated VMT from the CalEEMod Report
B14: Mitigated VMT from the CalEEMod Report
B15: Project Type
B16: Project Setting (must match CalEEmod Project Setting)
B17: Year 1 (first operational year)
B19: Step 4: ICP/RIPA Adjustment | D19: =IF(D15="TOD","0",IF(D20="No","0",IF(D20="","0",(D13*0.025)))) -> 0 | F19: VMT
B20: Did you apply LUT-5 in CalEEMod (Increase Transit Accessibility)?
B22: Step 5: Calculate Additional Benefits
B23: A. LUT-1: Increase Density | D23: =IF(D24<7.6,0,(MIN(30,(0.07*100*((D24-7.6)/7.6))))) -> 0 | F23: %
B24: Number of dwelling units per acre for the Project If N/A, leave blank or enter "0"
B26: B. LUT-9: Improve Walkabililty Design | D26: =IF(D27<36,0,(MIN(21.3,(0.12*100*((D27-36)/36))))) -> 0 | F26: %
B27: Number of Intersections per square mile for the Project Area If N/A, leave blank or enter "0"
B29: C. LUT-4: Increase Destination Accessibility | D29: =IF(D30="",0,IF(D30>12,0,(MIN(20,(100*0.2*(D30-12)/-12))))) -> 0 | F29: %
B30: Distance to CBD (miles)1 If N/A, leave blank or enter "12"
B32: D. SDT-2: Provide Traffic Calming Measures | D32: =IF(D33="Yes",1,0) -> 0 | F32: %
B33: Yes/No
B35: E. TRT-4(residents): Transit Subsidy for Residents | D35: =IF(D36="",0,Defaults!L22*'CalEEMod Steps 4-7'!D37*('CalEEMod Steps 4-7'!D38/30)) -> 0 | F35: %
B36: Subsidy per eligible resident per Year If N/A, leave blank or select "$0 to $273.74"
B37: Percent of residents eligible for the subsidy (0-100)
B38: Number of years the subsidy is funded (0-30)
B40: Step 6: Calculate the CalEEMod Annual VMT Reductions
B41: Additional % VMT Reductions (A+B+C+D+E from Step 5) | D41: =SUM(D23,D26,D29,D32,D35) -> 0 | F41: %
B42: Additional VMT Reductions | D42: =D41/100*D13 -> 0 | F42: VMT
B43: Total Annual VMT Reductions | D43: =D13-D14+D42-D19 -> 0 | F43: VMT
B44: Percent VMT Reduction | D44: =IF(D13>0,D43/D13,0) -> 0 | F44: %
B46: Maximum Potential Annual Reductions | D46: =VLOOKUP(D16,Defaults!K7:L10,2,FALSE) ->  | F46: VMT
B48: Annual CalEEMod VMT Reductions | D48: =MIN(D46,D44)*D13 ->  | F48: VMT
B50: Step 7: Calculate the Total CalEEMod GHG Emission Reductions
B51: CalEEMod GHG Emission Reductions (Yr 1) | D51: =VLOOKUP(Defaults!L23,'Auto GHGs'!C:D,2,FALSE)*D48/1000000 ->  | F51: MT CO2e
B52: CalEEMod GHG Emission Reductions (Yr F) | D52: =VLOOKUP(Defaults!L24,'Auto GHGs'!C:D,2,FALSE)*D48/1000000 ->  | F52: MT CO2e
B54: Total CalEEMod GHG Emission Reductions | D54: =(D51+D52)/2*30 ->  | F54: MT CO2e
B56: 1: Applicants can estimate the Distance to CBD through this site:
B57: http://www.arb.ca.gov/cc/capandtrade/auctionproceeds/kml/jobcentermap.html

Sheet TAC Inputs
D2: ='READ ME'!D2 -> California Air Resources Board
D3: ='READ ME'!D3 -> Calculator for the
D4: ='READ ME'!D4 -> Strategic Growth Council
D5: ='READ ME'!D5 -> Affordable Housing and Sustainable Communities Program
D6: ='READ ME'!D6 -> Greenhouse Gas Reduction Quantification Methodology
D7: ='READ ME'!D7 -> Fiscal Year 2015-16
B10: Project Name: | C10: ='READ ME'!C19 -> 0
B11: Project ID: | C11: ='READ ME'!C20 -> 0
B14: Project Details | F14: GHGs of Displaced Autos | S14: GHGs of New Service Vehicle | V14: Net Benefits
B15: Transit and Connectivity Method | C15: County | D15: Year 1 (Yr 1) | E15: Year F (Yr F) | F15: Annual Days of Operation (D) | G15: Yr 1 Daily Ridership (R) | H15: Yr F Daily Ridership (R) | I15: Adjustment factor (A) | J15: Length (L) | K15: Adjustment (AA) | L15: Length (LL) | M15: Yr 1 Average Daily Traffic (ADT) | N15: Yr F Average Daily Traffic (ADT) | O15: Bicycle Paths/Lanes ADT Adjustment Factor (A) | P15: Bicycle Paths/Lanes Activity Center Credit (C) | Q15: Pedestrian Yr 1 Weekly Auto Trips Eliminated | R15: Pedestrian Yr F Weekly Auto Trips Eliminated | S15: Fuel Type | T15: Engine MY | U15: Annual VMT/ Units of Fuel | V15: Total GHG Emission Reductions (MTCO2e) | W15: Average Annual Auto VMT Reduced | X15: Error Checks
V16: ='GHG Calculations'!AX13 ->  | W16: ='GHG Calculations'!AZ13 ->  | X16: =IF(E16<D16,"Yr F cannot be earlier than Yr 1","") -> 
V17: ='GHG Calculations'!AX14 ->  | W17: ='GHG Calculations'!AZ14 ->  | X17: =IF(E17<D17,"Yr F cannot be earlier than Yr 1","") -> 
V18: ='GHG Calculations'!AX15 ->  | W18: ='GHG Calculations'!AZ15 -> 
V19: ='GHG Calculations'!AX16 ->  | W19: ='GHG Calculations'!AZ16 -> 
V20: ='GHG Calculations'!AX17 ->  | W20: ='GHG Calculations'!AZ17 -> 
V21: ='GHG Calculations'!AX18 ->  | W21: ='GHG Calculations'!AZ18 -> 
V22: ='GHG Calculations'!AX19 ->  | W22: ='GHG Calculations'!AZ19 -> 
V23: ='GHG Calculations'!AX20 ->  | W23: ='GHG Calculations'!AZ20 -> 
V24: ='GHG Calculations'!AX21 ->  | W24: ='GHG Calculations'!AZ21 -> 
V25: ='GHG Calculations'!AX22 ->  | W25: ='GHG Calculations'!AZ22 -> 
V26: ='GHG Calculations'!AX23 ->  | W26: ='GHG Calculations'!AZ23 -> 
V27: ='GHG Calculations'!AX24 ->  | W27: ='GHG Calculations'!AZ24 -> 
B28: Total TAC Methods GHG Emission Reductions | V28: =SUMIF(V16:V27,"<>#N/A") -> 0 | W28: =SUM(W16:W27) -> 0

Sheet GHG Summary
F2: ='READ ME'!D2 -> California Air Resources Board
F3: ='READ ME'!D3 -> Calculator for the
F4: ='READ ME'!D4 -> Strategic Growth Council
F5: ='READ ME'!D5 -> Affordable Housing and Sustainable Communities Program
F6: ='READ ME'!D6 -> Greenhouse Gas Reduction Quantification Methodology
F7: ='READ ME'!D7 -> Fiscal Year 2015-16
C9: Project Name: | E9: ='TAC Inputs'!C10 -> 0
C10: Project ID: | E10: ='TAC Inputs'!C11 -> 0
C13: GHG Emissions (MT CO2e) | D13: Description | J13: Troubleshooting Tips
B14: Total CalEEMod GHG Emission Reductions | C14: =SUMIF(CaleemodSum,"<>#N/A") -> 0 | D14: Total GHG emission reductions from CalEEMod component of project, if applicable. | J14: "-" may result from not entering information into all required cells in CalEEMod Steps 4-7 Tab.
B15: Total TAC Methods GHG Emission Reductions | C15: =TacSum -> 0 | D15: Total GHG emission reductions from TAC Methods component, if applicable. | J15: "-" may result from not entering information into all required cells in TAC Inputs Tab.
B16: Total Project Net GHG Benefit | C16: =SUM(C14:C15) -> 0 | D16: Total project GHG emission reductions in MT CO2e from the proposed project.
B17: AHSC Funds Requested ($) | D17: AHSC Funds Requested for the proposed project.
B18: Total GHG Emission Reductions AHSC Funds Requested ($) | C18: =C16/C17 ->  | D18: Emissions per AHSC funding requested. | J18: "#DIV/0!" results from not entering a value for AHSC Funds Requested. "#VALUE!" results from a non-numeric entry in AHSC Funds Requested.
B19: Total GGRF Funds Requested ($) | D19: Total GGRF Funds Requested for the proposed project. · If you are applying, have applied, or are planning to apply for additional GGRF funds for the proposed project, enter the combined funding request for all GGRF programs. · If you are applying only to AHSC for GGRF funding, re-enter the AHSC funds requested in the “Total GGRF Funds Requested ($)”.
B20: Total GHG Emission Reductions Total GGRF Funds Requested ($) | C20: =C16/C19 ->  | D20: Emissions per total GGRF funding requested. This may be the same as the program-specific funding requested UNLESS the same project and phase will seek or has sought funding from other GGRF programs. Applicants must provide details in this case. | J20: "#DIV/0!" results from not entering a value for Total GGRF Funds Requested. "#VALUE!" results from a non-numeric entry in Total GGRF Funds Requested.

Sheet Definitions
C2: ='READ ME'!D2 -> California Air Resources Board
C3: ='READ ME'!D3 -> Calculator for the
C4: ='READ ME'!D4 -> Strategic Growth Council
C5: ='READ ME'!D5 -> Affordable Housing and Sustainable Communities Program
C6: ='READ ME'!D6 -> Greenhouse Gas Reduction Quantification Methodology
C7: ='READ ME'!D7 -> Fiscal Year 2015-16
B9: CalEEMod Inputs Definitions
B10: Applicants are directed to the quantification methodology document for details on inputs
B11: TAC Inputs Definitions
B12: Project Details | C12: Transit and Connectivity Method | D12: Select the new service type
C13: County | D13: Select the county where the majority of the service occurs
C14: Year 1 (Yr 1) | D14: Select the first year of service
C15: Year F (Yr F)* | D15: Select the final year that the service with enforceable committed funds · Class 1 bicycle paths may use Year 1 + 20 years · Class 2 bicycle lanes may use Year 1 + 15 years · Pedestrian facilities may use Year 1 + 20 years
B16: GHGs of Displaced Autos | C16: Annual Days of Operation (D)* | D16: Enter the days of operation per year · 200 for bicycle paths and lanes · 260 for weekday transit service · 365 for daily transit service
C17: Yr 1 Daily Ridership (R) | D17: Enter the estimated daily ridership in Yr1
C18: Yr F Daily Ridership (R) | D18: Enter the estimated daily ridership in YrF
C19: Adjustment factor (A)* | D19: Adjustment factor to account for transit dependency · Local bus service uses 0.5 · Long distance commuter bus uses 0.83 · Shuttle and vanpool service use 0.83
C20: Length (L)* | D20: Length (miles) of average auto trip reduced · Bus service is calculated using 10.8 · Shuttle service is calculated using 16 · Vanpool service is calculated using 35 | E20: Adjustment factor (A) for bicycle paths and lanes
C21: Adjustment (AA)* | D21: Adjustment factor to account for auto trips used to access transit service · Local bus service uses 0.1 · Long distance commuter bus service uses 0.8 · Shuttle and vanpool service use 0.75
C22: Length (LL)* | D22: Length (miles) of average trip for auto access to transit · Local bus service uses 2 · Long distance commuter bus service uses 5 · Shuttle and vanpool service use 5 · Bicycle paths and lanes use 1.8 · Pedestrian facilities use 1
C23: Yr 1 Average Daily Traffic (ADT) | D23: Annual Average Daily Traffic (two-way traffic volume in trips/day on parallel road). Use applicable value from project data (Maximum = 30,000)
C24: Yr F Average Daily Traffic (ADT)
C25: Bicycle Paths/Lanes ADT Adjustment Factor (A)* | D25: Adjustment factor to account for bike use Use the appropriate factor from the table to the right
C26: Bicycle Paths/Lanes Activity Center Credit (C)* | D26: Activity Center Credit near project Use the appropriate factor from the table to the right
C27: Pedestrian Yr 1 Weekly Auto Trips Eliminated | D27: Auto trips eliminated Use: Total one-way trips per week based on project data | E27: Activity Center (C) for bicycle paths and lanes
C28: Pedestrian Yr F Weekly Auto Trips Eliminated
B29: GHGs of New Service Vehicle | C29: Fuel Type | D29: Select the fuel type of the vehicle proposed for service (e.g., Electric/BEV or PHEV)
C30: Engine MY | D30: Select the engine model year of the new/expanded vehicle proposed for service | E30: Activity Center examples: Bank, church, hospital or HMO, light rail station (park & ride), office park, post office, public library, shopping area or grocery store, university, or junior college. These metrics should be evaluated for the project location site and surrounding area which can extend a distance from the housing development not to exceed one-half (½) mile.
C31: Annual VMT or Units of Fuel | D31: Enter the annual vehicle miles traveled or units of fuel (e.g., gallons of diesel) of the proposed service. Units of fuel needed is only applicable for ferry service
B32: Net Benefits | C32: Total GHG Emission Reductions (MTCO2e) | D32: The estimated net GHG benefits from the proposed project
C33: Average Annual Auto VMT Reduced | D33: The estimated average annual average auto VMT displaced by the project
B34: GHG Summary Definitions
B35: Total GHG Emission Reductions | D35: Total GHG Emissions (MTCO2e) from the proposed project.
B36: AHSC Funds Requested ($) | D36: AHSC Funds Requested for the proposed project.
B37: Total GHG Emission Reductions AHSC Funds Requested ($) | D37: Emissions per AHSC funding requested.
B38: Total GGRF Funds Requested ($) | D38: Total GGRF Funds Requested for the proposed project and phase.
B39: Total GHG Emission Reductions Total GGRF Funds Requested ($) | D39: Emissions per total GGRF funding requested. This may be the same as the program-specific funding requested UNLESS the same project and phase will seek or has sought funding from other GGRF programs.
B40: * Refer to the quantification methodology for details on default data.
... 4 more rows

Sheet GHG Calculations (hidden)
G11: GHGs of Displaced Autos | AF11: New Vehicle Details
A12: Transit Service Type | B12: County | C12: Year 1 (Yr1) | D12: Year F (YrF) | E12: Project Life (Yrs) | F12: Annual Days of Operation | G12: Yr1 Annual Ridership Increase | H12: Yr1 Auto Vehicle Emission Factor (g/mi) | I12: YrF Annual Ridership Increase | J12: YrF Auto Vehicle Emission Factor (g/mi) | K12: Adjustment factor (A) transit dependecy | L12: Length of auto trip reduced (L) | M12: Adjustment for auto trips used to access transit service (AA) | N12: Length (miles) of average trip for auto access to transit (LL) | O12: Yr 1 Annual Average Daily Traffic | P12: YrF Annual Average Daily Traffic | Q12: Adjustment Factor | R12: Activity Center Credit | S12: Yr 1 Weekly Auto Trips Eliminated | T12: Yr F Weekly Auto Trips Eliminated | U12: Yr1 Annual Auto VMT Reduced from Transit (mi/yr) | V12: Transit Yr1 Annual GHG Emission Reductions (MTCO2e) | W12: Yr1 Annual Auto VMT Reduced from Bike/Ped | X12: Bike/Ped Yr1 Annual GHG Emission Reductions (MTCO2e) | Y12: YrF Annual Auto VMT Reduced from Transit (mi/yr) | Z12: YrF Annual GHG Emission Reductions (MTCO2e) | AA12: YrF Annual Auto VMT Reduced from Bike/Ped | AB12: Bike/Ped YrF Annual GHG Emission Reductions (MTCO2e) | AC12: Transit Total Emission Reductions (MTCO2e) | AD12: Bike/Ped Total Emission Reductions (MTCO2e) | AE12: Total Emission Reductions (MTCO2e) | AF12: Fuel Type | AG12: Engine MY | AH12: CY_MY | AI12: CY_MY | AJ12: VMT | AK12: Bus Yr1 | AL12: Bus YrF | AM12: Train | AN12: Ferry | AO12: Alt Yr1 | AP12: Alt YrF | AQ12: Yr1 Project EF | AR12: Yr1 Project GHGs | AS12: YrF Project EF | AT12: YrF Project GHGs | AU12: Project GHG Emissions (MTCO2e) | AV12: Project GHG Emissions (MTCO2e) | AW12: Net GHG Emission Reductions (MTCO2e) | AX12: Net GHG Emission Reductions (MTCO2e) | AY12: Annual Auto VMT Reduced | AZ12: Annual Auto VMT Reduced
A13: ='TAC Inputs'!B16 -> 0 | B13: ='TAC Inputs'!C16 -> 0 | C13: ='TAC Inputs'!D16 -> 0 | D13: ='TAC Inputs'!E16 -> 0 | E13: =D13-C13 -> 0 | F13: ='TAC Inputs'!F16 -> 0 | G13: ='TAC Inputs'!G16 -> 0 | H13: =VLOOKUP((CONCATENATE(B13,"_",C13)),'Auto GHGs'!C:D,2,) ->  | I13: ='TAC Inputs'!H16 -> 0 | J13: =VLOOKUP((CONCATENATE(B13,"_",D13)),'Auto GHGs'!C:D,2,) ->  | K13: =IF(A13="New Train Service",'TAC Inputs'!I16,IF(A13="New Ferry Service",'TAC Inputs'!I16,VLOOKUP(A13,Defaults!$E$47:$I$55,2,))) ->  | L13: =IF(A13="New Train Service",'TAC Inputs'!J16,IF(A13="New Ferry Service",'TAC Inputs'!J16,VLOOKUP(A13,Defaults!$E$47:$I$55,3,))) ->  | M13: =IF(A13="New Train Service",'TAC Inputs'!K16,IF(A13="New Ferry Service",'TAC Inputs'!K16,VLOOKUP(A13,Defaults!$E$47:$I$55,4,))) ->  | N13: =IF(A13="New Train Service",'TAC Inputs'!L16,IF(A13="New Ferry Service",'TAC Inputs'!L16,VLOOKUP(A13,Defaults!$E$47:$I$55,5,))) ->  | O13: ='TAC Inputs'!M16 -> 0 | P13: ='TAC Inputs'!N16 -> 0 | Q13: ='TAC Inputs'!O16 -> 0 | R13: ='TAC Inputs'!P16 -> 0 | S13: ='TAC Inputs'!Q16 -> 0 | T13: ='TAC Inputs'!R16 -> 0 | U13: =(((F13*G13*K13)*(L13-(M13*N13)))) ->  | V13: =(U13*H13)/1000000 ->  | W13: =IF(A13="Pedestrian Facilities",(52*L13*S13),(F13*O13*(Q13+R13)*L13)) ->  | X13: =(W13*H13)/1000000 ->  | Y13: =((F13*I13*K13)*(L13-(M13*N13))) ->  | Z13: =(Y13*J13)/1000000 ->  | AA13: =IF(A13="Pedestrian Facilities",(52*L13*T13),(F13*P13*(Q13+R13)*L13)) ->  | AB13: =(AA13*J13)/1000000 ->  | AC13: =((V13+Z13)/2)*E13 ->  | AD13: =((X13+AB13)/2)*E13 ->  | AE13: =IF(OR(A13="Pedestrian Facilities",A13="Bicycle Paths Class 1", A13="Bicycle Lanes Class 2"),AD13,AC13) ->  | AF13: ='TAC Inputs'!S16 -> 0 | AG13: ='TAC Inputs'!T16 -> 0 | AH13: =CONCATENATE(C13,"_",AG13) -> 0_0 | AI13: =CONCATENATE(D13,"_",AG13) -> 0_0 | AJ13: ='TAC Inputs'!U16 -> 0 | AK13: =(IF(AF13="CNG",VLOOKUP(AH13,'Bus EF'!$E$10:$S$1629,2,),(IF(AF13="LNG",VLOOKUP(AH13,'Bus EF'!$E$10:$S$1629,7,),(IF(AF13="Electric/BEV or PHEV",VLOOKUP(AH13,'Bus EF'!E10:$S$1629,4,),(IF(AF13="Hydrogen Fuel Cell",VLOOKUP(AH13,'Bus EF'!$E$10:$S$1629,5,),(IF(AF13="Diesel",VLOOKUP(AH13,'Bus EF'!$E$10:$S$1629,3,),(IF(AF13="Hydrogen Fuel Cell (SB 1505)",VLOOKUP(AH13,'Bus EF'!$E$10:$S$1629,6,),"")))))))))))) ->  | AL13: =(IF(AF13="CNG",VLOOKUP(AI13,'Bus EF'!$E$10:$S$1629,2,),(IF(AF13="LNG",VLOOKUP(AI13,'Bus EF'!$E$10:$S$1629,7,),(IF(AF13="Electric/BEV or PHEV",VLOOKUP(AI13,'Bus EF'!E10:$S$1629,4,),(IF(AF13="Hydrogen Fuel Cell",VLOOKUP(AI13,'Bus EF'!$E$10:$S$1629,5,),(IF(AF13="Diesel",VLOOKUP(AI13,'Bus EF'!$E$10:$S$1629,3,),(IF(AF13="Hydrogen Fuel Cell (SB 1505)",VLOOKUP(AH13,'Bus EF'!$E$10:$S$1629,6,),"")))))))))))) ->  | AM13: =IF(A13="New Train Service", VLOOKUP(AF13,Defaults!$E$11:$F$21,2,),"") ->  | AN13: =IF(A13="New Ferry Service", VLOOKUP(AF13,Defaults!$E$33:$F$38,2,),"") ->  | AO13: =(IF(AF13="CNG",VLOOKUP(AH13,'LDH EF'!$E$10:$L$2259,2,),(IF(AF13="LNG",VLOOKUP(AH13,'LDH EF'!$E$10:$L$2259,8,),(IF(AF13="Electric/BEV or PHEV",VLOOKUP(AH13,'LDH EF'!$E$10:$L$2259,4,),(IF(AF13="Gasoline",VLOOKUP(AH13,'LDH EF'!$E$10:$L$2259,5,),(IF(AF13="Hydrogen Fuel Cell",VLOOKUP(AH13,'LDH EF'!$E$10:$L$2259,6,),(IF(AF13="Diesel",VLOOKUP(AH13,'LDH EF'!$E$10:$L$2259,3,),(IF(AF13="Hydrogen Fuel Cell (SB 1505)",VLOOKUP(AH13,'LDH EF'!$E$10:$L$2259,7,),"")))))))))))))) ->  | AP13: =(IF(AF13="CNG",VLOOKUP(AI13,'LDH EF'!$E$10:$L$2259,2,),(IF(AF13="LNG",VLOOKUP(AI13,'LDH EF'!$E$10:$L$2259,8,),(IF(AF13="Electric/BEV or PHEV",VLOOKUP(AI13,'LDH EF'!$E$10:$L$2259,4,),(IF(AF13="Gasoline",VLOOKUP(AI13,'LDH EF'!$E$10:$L$2259,5,),(IF(AF13="Hydrogen Fuel Cell",VLOOKUP(AI13,'LDH EF'!$E$10:$L$2259,6,),(IF(AF13="Diesel",VLOOKUP(AI13,'LDH EF'!$E$10:$L$2259,3,),(IF(AF13="Hydrogen Fuel Cell (SB 1505)",VLOOKUP(AI13,'LDH EF'!$E$10:$L$2259,7,),"")))))))))))))) ->  | AQ13: =IF(A13="New Bus Service (local bus)",AK13,IF(A13="New Bus Service (long distance commuter)",AK13,IF(A13="New Train Service",AM13,IF(A13="New Ferry Service",AN13,AO13)))) ->  | AR13: =(AJ13*AQ13)/1000000 ->  | AS13: =IF(A13="New Bus Service (local bus)",AL13,IF(A13="New Bus Service (long distance commuter)",AL13,IF(A13="New Train Service",AM13,IF(A13="New Ferry Service",AN13,AP13)))) ->  | AT13: =(AJ13*AS13)/1000000 ->  | AU13: =((AR13+AT13)/2)*E13 ->  | AV13: =IF(OR(A13="Pedestrian Facilities",A13="Bicycle Paths Class 1", A13="Bicycle Lanes Class 2"),0,AU13) ->  | AW13: =AE13-AV13 ->  | AX13: =IF(OR(A13="New Bus Service (local bus)", A13="New Bus Service (long distance commuter)", A13= "New Train Service", A13="New Ferry Service", A13="Vanpool", A13="Shuttle", A13="Bicycle Paths Class 1", A13= "Bicycle Lanes Class 2", A13="Pedestrian Facilities"),AW13,"") ->  | AY13: =IF(OR(A13="Pedestrian Facilities",A13="Bicycle Paths Class 1", A13="Bicycle Lanes Class 2"),AVERAGE('GHG Calculations'!W13,'GHG Calculations'!AA13),AVERAGE('GHG Calculations'!U13,'GHG Calculations'!Y13)) ->  | AZ13: =IF(OR(A13="New Bus Service (local bus)", A13="New Bus Service (long distance commuter)", A13= "New Train Service", A13="New Ferry Service", A13="Vanpool", A13="Shuttle", A13="Bicycle Paths Class 1", A13= "Bicycle Lanes Class 2", A13="Pedestrian Facilities"),AY13,"") -> 
A14: ='TAC Inputs'!B17 -> 0 | B14: ='TAC Inputs'!C17 -> 0 | C14: ='TAC Inputs'!D17 -> 0 | D14: ='TAC Inputs'!E17 -> 0 | E14: =D14-C14 -> 0 | F14: ='TAC Inputs'!F17 -> 0 | G14: ='TAC Inputs'!G17 -> 0 | H14: =VLOOKUP((CONCATENATE(B14,"_",C14)),'Auto GHGs'!C:D,2,) ->  | I14: ='TAC Inputs'!H17 -> 0 | J14: =VLOOKUP((CONCATENATE(B14,"_",D14)),'Auto GHGs'!C:D,2,) ->  | K14: =IF(A14="New Train Service",'TAC Inputs'!I17,IF(A14="New Ferry Service",'TAC Inputs'!I17,VLOOKUP(A14,Defaults!$E$47:$I$55,2,))) ->  | L14: =IF(A14="New Train Service",'TAC Inputs'!J17,IF(A14="New Ferry Service",'TAC Inputs'!J17,VLOOKUP(A14,Defaults!$E$47:$I$55,3,))) ->  | M14: =IF(A14="New Train Service",'TAC Inputs'!K17,IF(A14="New Ferry Service",'TAC Inputs'!K17,VLOOKUP(A14,Defaults!$E$47:$I$55,4,))) ->  | N14: =IF(A14="New Train Service",'TAC Inputs'!L17,IF(A14="New Ferry Service",'TAC Inputs'!L17,VLOOKUP(A14,Defaults!$E$47:$I$55,5,))) ->  | O14: ='TAC Inputs'!M17 -> 0 | P14: ='TAC Inputs'!N17 -> 0 | Q14: ='TAC Inputs'!O17 -> 0 | R14: ='TAC Inputs'!P17 -> 0 | S14: ='TAC Inputs'!Q17 -> 0 | T14: ='TAC Inputs'!R17 -> 0 | U14: =(((F14*G14*K14)*(L14-(M14*N14)))) ->  | W14: =IF(A14="Pedestrian Facilities",(52*L14*S14),(F14*O14*(Q14+R14)*L14)) ->  | X14: =(W14*H14)/1000000 ->  | Y14: =((F14*I14*K14)*(L14-(M14*N14))) ->  | AA14: =IF(A14="Pedestrian Facilities",(52*L14*T14),(F14*P14*(Q14+R14)*L14)) ->  | AB14: =(AA14*J14)/1000000 ->  | AD14: =((X14+AB14)/2)*E14 ->  | AE14: =IF(OR(A14="Pedestrian Facilities",A14="Bicycle Paths Class 1", A14="Bicycle Lanes Class 2"),AD14,AC14) ->  | AF14: ='TAC Inputs'!S17 -> 0 | AG14: ='TAC Inputs'!T17 -> 0 | AH14: 0_0 | AI14: 0_0 | AJ14: ='TAC Inputs'!U17 -> 0 | AK14: =(IF(AF14="CNG",VLOOKUP(AH14,'Bus EF'!$E$10:$S$1629,2,),(IF(AF14="LNG",VLOOKUP(AH14,'Bus EF'!$E$10:$S$1629,7,),(IF(AF14="Electric/BEV or PHEV",VLOOKUP(AH14,'Bus EF'!E11:$S$1629,4,),(IF(AF14="Hydrogen Fuel Cell",VLOOKUP(AH14,'Bus EF'!$E$10:$S$1629,5,),(IF(AF14="Diesel",VLOOKUP(AH14,'Bus EF'!$E$10:$S$1629,3,),(IF(AF14="Hydrogen Fuel Cell (SB 1505)",VLOOKUP(AH14,'Bus EF'!$E$10:$S$1629,6,),"")))))))))))) ->  | AL14: =(IF(AF14="CNG",VLOOKUP(AI14,'Bus EF'!$E$10:$S$1629,2,),(IF(AF14="LNG",VLOOKUP(AI14,'Bus EF'!$E$10:$S$1629,7,),(IF(AF14="Electric/BEV or PHEV",VLOOKUP(AI14,'Bus EF'!E11:$S$1629,4,),(IF(AF14="Hydrogen Fuel Cell",VLOOKUP(AI14,'Bus EF'!$E$10:$S$1629,5,),(IF(AF14="Diesel",VLOOKUP(AI14,'Bus EF'!$E$10:$S$1629,3,),(IF(AF14="Hydrogen Fuel Cell (SB 1505)",VLOOKUP(AH14,'Bus EF'!$E$10:$S$1629,6,),"")))))))))))) ->  | AM14: =IF(A14="New Train Service", VLOOKUP(AF14,Defaults!$E$11:$F$21,2,),"") ->  | AN14: =IF(A14="New Ferry Service", VLOOKUP(AF14,Defaults!$E$33:$F$38,2,),"") ->  | AO14: =(IF(AF14="CNG",VLOOKUP(AH14,'LDH EF'!$E$10:$L$2259,2,),(IF(AF14="LNG",VLOOKUP(AH14,'LDH EF'!$E$10:$L$2259,8,),(IF(AF14="Electric/BEV or PHEV",VLOOKUP(AH14,'LDH EF'!$E$10:$L$2259,4,),(IF(AF14="Gasoline",VLOOKUP(AH14,'LDH EF'!$E$10:$L$2259,5,),(IF(AF14="Hydrogen Fuel Cell",VLOOKUP(AH14,'LDH EF'!$E$10:$L$2259,6,),(IF(AF14="Diesel",VLOOKUP(AH14,'LDH EF'!$E$10:$L$2259,3,),(IF(AF14="Hydrogen Fuel Cell (SB 1505)",VLOOKUP(AH14,'LDH EF'!$E$10:$L$2259,7,),"")))))))))))))) ->  | AP14: =(IF(AF14="CNG",VLOOKUP(AI14,'LDH EF'!$E$10:$L$2259,2,),(IF(AF14="LNG",VLOOKUP(AI14,'LDH EF'!$E$10:$L$2259,8,),(IF(AF14="Electric/BEV or PHEV",VLOOKUP(AI14,'LDH EF'!$E$10:$L$2259,4,),(IF(AF14="Gasoline",VLOOKUP(AI14,'LDH EF'!$E$10:$L$2259,5,),(IF(AF14="Hydrogen Fuel Cell",VLOOKUP(AI14,'LDH EF'!$E$10:$L$2259,6,),(IF(AF14="Diesel",VLOOKUP(AI14,'LDH EF'!$E$10:$L$2259,3,),(IF(AF14="Hydrogen Fuel Cell (SB 1505)",VLOOKUP(AI14,'LDH EF'!$E$10:$L$2259,7,),"")))))))))))))) ->  | AQ14: =IF(A14="New Bus Service (local bus)",AK14,IF(A14="New Bus Service (long distance commuter)",AK14,IF(A14="New Train Service",AM14,IF(A14="New Ferry Service",AN14,AO14)))) ->  | AR14: =(AJ14*AQ14)/1000000 ->  | AS14: =IF(A14="New Bus Service (local bus)",AL14,IF(A14="New Bus Service (long distance commuter)",AL14,IF(A14="New Train Service",AM14,IF(A14="New Ferry Service",AN14,AP14)))) ->  | AT14: =(AJ14*AS14)/1000000 ->  | AU14: =((AR14+AT14)/2)*E14 ->  | AV14: =IF(OR(A14="Pedestrian Facilities",A14="Bicycle Paths Class 1", A14="Bicycle Lanes Class 2"),0,AU14) ->  | AW14: =AE14-AV14 ->  | AX14: =IF(OR(A14="New Bus Service (local bus)", A14="New Bus Service (long distance commuter)", A14= "New Train Service", A14="New Ferry Service", A14="Vanpool", A14="Shuttle", A14="Bicycle Paths Class 1", A14= "Bicycle Lanes Class 2", A14="Pedestrian Facilities"),AW14,"") ->  | AY14: =IF(OR(A14="Pedestrian Facilities",A14="Bicycle Paths Class 1", A14="Bicycle Lanes Class 2"),AVERAGE('GHG Calculations'!W14,'GHG Calculations'!AA14),AVERAGE('GHG Calculations'!U14,'GHG Calculations'!Y14)) ->  | AZ14: =IF(OR(A14="New Bus Service (local bus)", A14="New Bus Service (long distance commuter)", A14= "New Train Service", A14="New Ferry Service", A14="Vanpool", A14="Shuttle", A14="Bicycle Paths Class 1", A14= "Bicycle Lanes Class 2", A14="Pedestrian Facilities"),AY14,"") -> 
A15: ='TAC Inputs'!B18 -> 0 | B15: ='TAC Inputs'!C18 -> 0 | C15: ='TAC Inputs'!D18 -> 0 | D15: ='TAC Inputs'!E18 -> 0 | E15: 0 | F15: ='TAC Inputs'!F18 -> 0 | G15: ='TAC Inputs'!G18 -> 0 | H15: =VLOOKUP((CONCATENATE(B15,"_",C15)),'Auto GHGs'!C:D,2,) ->  | I15: ='TAC Inputs'!H18 -> 0 | J15: =VLOOKUP((CONCATENATE(B15,"_",D15)),'Auto GHGs'!C:D,2,) ->  | K15: =IF(A15="New Train Service",'TAC Inputs'!I18,IF(A15="New Ferry Service",'TAC Inputs'!I18,VLOOKUP(A15,Defaults!$E$47:$I$55,2,))) ->  | L15: =IF(A15="New Train Service",'TAC Inputs'!J18,IF(A15="New Ferry Service",'TAC Inputs'!J18,VLOOKUP(A15,Defaults!$E$47:$I$55,3,))) ->  | M15: =IF(A15="New Train Service",'TAC Inputs'!K18,IF(A15="New Ferry Service",'TAC Inputs'!K18,VLOOKUP(A15,Defaults!$E$47:$I$55,4,))) ->  | N15: =IF(A15="New Train Service",'TAC Inputs'!L18,IF(A15="New Ferry Service",'TAC Inputs'!L18,VLOOKUP(A15,Defaults!$E$47:$I$55,5,))) ->  | O15: ='TAC Inputs'!M18 -> 0 | P15: ='TAC Inputs'!N18 -> 0 | Q15: ='TAC Inputs'!O18 -> 0 | R15: ='TAC Inputs'!P18 -> 0 | S15: ='TAC Inputs'!Q18 -> 0 | T15: ='TAC Inputs'!R18 -> 0 | AF15: ='TAC Inputs'!S18 -> 0 | AG15: ='TAC Inputs'!T18 -> 0 | AH15: 0_0 | AI15: 0_0 | AJ15: ='TAC Inputs'!U18 -> 0 | AK15: =(IF(AF15="CNG",VLOOKUP(AH15,'Bus EF'!$E$10:$S$1629,2,),(IF(AF15="LNG",VLOOKUP(AH15,'Bus EF'!$E$10:$S$1629,7,),(IF(AF15="Electric/BEV or PHEV",VLOOKUP(AH15,'Bus EF'!E12:$S$1629,4,),(IF(AF15="Hydrogen Fuel Cell",VLOOKUP(AH15,'Bus EF'!$E$10:$S$1629,5,),(IF(AF15="Diesel",VLOOKUP(AH15,'Bus EF'!$E$10:$S$1629,3,),(IF(AF15="Hydrogen Fuel Cell (SB 1505)",VLOOKUP(AH15,'Bus EF'!$E$10:$S$1629,6,),"")))))))))))) ->  | AL15: =(IF(AF15="CNG",VLOOKUP(AI15,'Bus EF'!$E$10:$S$1629,2,),(IF(AF15="LNG",VLOOKUP(AI15,'Bus EF'!$E$10:$S$1629,7,),(IF(AF15="Electric/BEV or PHEV",VLOOKUP(AI15,'Bus EF'!E12:$S$1629,4,),(IF(AF15="Hydrogen Fuel Cell",VLOOKUP(AI15,'Bus EF'!$E$10:$S$1629,5,),(IF(AF15="Diesel",VLOOKUP(AI15,'Bus EF'!$E$10:$S$1629,3,),(IF(AF15="Hydrogen Fuel Cell (SB 1505)",VLOOKUP(AH15,'Bus EF'!$E$10:$S$1629,6,),"")))))))))))) ->  | AM15: =IF(A15="New Train Service", VLOOKUP(AF15,Defaults!$E$11:$F$21,2,),"") ->  | AN15: =IF(A15="New Ferry Service", VLOOKUP(AF15,Defaults!$E$33:$F$38,2,),"") ->  | AO15: =(IF(AF15="CNG",VLOOKUP(AH15,'LDH EF'!$E$10:$L$2259,2,),(IF(AF15="LNG",VLOOKUP(AH15,'LDH EF'!$E$10:$L$2259,8,),(IF(AF15="Electric/BEV or PHEV",VLOOKUP(AH15,'LDH EF'!$E$10:$L$2259,4,),(IF(AF15="Gasoline",VLOOKUP(AH15,'LDH EF'!$E$10:$L$2259,5,),(IF(AF15="Hydrogen Fuel Cell",VLOOKUP(AH15,'LDH EF'!$E$10:$L$2259,6,),(IF(AF15="Diesel",VLOOKUP(AH15,'LDH EF'!$E$10:$L$2259,3,),(IF(AF15="Hydrogen Fuel Cell (SB 1505)",VLOOKUP(AH15,'LDH EF'!$E$10:$L$2259,7,),"")))))))))))))) ->  | AP15: =(IF(AF15="CNG",VLOOKUP(AI15,'LDH EF'!$E$10:$L$2259,2,),(IF(AF15="LNG",VLOOKUP(AI15,'LDH EF'!$E$10:$L$2259,8,),(IF(AF15="Electric/BEV or PHEV",VLOOKUP(AI15,'LDH EF'!$E$10:$L$2259,4,),(IF(AF15="Gasoline",VLOOKUP(AI15,'LDH EF'!$E$10:$L$2259,5,),(IF(AF15="Hydrogen Fuel Cell",VLOOKUP(AI15,'LDH EF'!$E$10:$L$2259,6,),(IF(AF15="Diesel",VLOOKUP(AI15,'LDH EF'!$E$10:$L$2259,3,),(IF(AF15="Hydrogen Fuel Cell (SB 1505)",VLOOKUP(AI15,'LDH EF'!$E$10:$L$2259,7,),"")))))))))))))) ->  | AY15: =IF(OR(A15="Pedestrian Facilities",A15="Bicycle Paths Class 1", A15="Bicycle Lanes Class 2"),AVERAGE('GHG Calculations'!W15,'GHG Calculations'!AA15),AVERAGE('GHG Calculations'!U15,'GHG Calculations'!Y15)) -> 
A16: ='TAC Inputs'!B19 -> 0 | B16: ='TAC Inputs'!C19 -> 0 | C16: ='TAC Inputs'!D19 -> 0 | D16: ='TAC Inputs'!E19 -> 0 | E16: 0 | F16: ='TAC Inputs'!F19 -> 0 | G16: ='TAC Inputs'!G19 -> 0 | H16: =VLOOKUP((CONCATENATE(B16,"_",C16)),'Auto GHGs'!C:D,2,) ->  | I16: ='TAC Inputs'!H19 -> 0 | J16: =VLOOKUP((CONCATENATE(B16,"_",D16)),'Auto GHGs'!C:D,2,) ->  | K16: =IF(A16="New Train Service",'TAC Inputs'!I19,IF(A16="New Ferry Service",'TAC Inputs'!I19,VLOOKUP(A16,Defaults!$E$47:$I$55,2,))) ->  | L16: =IF(A16="New Train Service",'TAC Inputs'!J19,IF(A16="New Ferry Service",'TAC Inputs'!J19,VLOOKUP(A16,Defaults!$E$47:$I$55,3,))) ->  | M16: =IF(A16="New Train Service",'TAC Inputs'!K19,IF(A16="New Ferry Service",'TAC Inputs'!K19,VLOOKUP(A16,Defaults!$E$47:$I$55,4,))) ->  | N16: =IF(A16="New Train Service",'TAC Inputs'!L19,IF(A16="New Ferry Service",'TAC Inputs'!L19,VLOOKUP(A16,Defaults!$E$47:$I$55,5,))) ->  | O16: ='TAC Inputs'!M19 -> 0 | P16: ='TAC Inputs'!N19 -> 0 | Q16: ='TAC Inputs'!O19 -> 0 | R16: ='TAC Inputs'!P19 -> 0 | S16: ='TAC Inputs'!Q19 -> 0 | T16: ='TAC Inputs'!R19 -> 0 | AF16: ='TAC Inputs'!S19 -> 0 | AG16: ='TAC Inputs'!T19 -> 0 | AH16: 0_0 | AI16: 0_0 | AJ16: ='TAC Inputs'!U19 -> 0 | AK16: =(IF(AF16="CNG",VLOOKUP(AH16,'Bus EF'!$E$10:$S$1629,2,),(IF(AF16="LNG",VLOOKUP(AH16,'Bus EF'!$E$10:$S$1629,7,),(IF(AF16="Electric/BEV or PHEV",VLOOKUP(AH16,'Bus EF'!E13:$S$1629,4,),(IF(AF16="Hydrogen Fuel Cell",VLOOKUP(AH16,'Bus EF'!$E$10:$S$1629,5,),(IF(AF16="Diesel",VLOOKUP(AH16,'Bus EF'!$E$10:$S$1629,3,),(IF(AF16="Hydrogen Fuel Cell (SB 1505)",VLOOKUP(AH16,'Bus EF'!$E$10:$S$1629,6,),"")))))))))))) ->  | AL16: =(IF(AF16="CNG",VLOOKUP(AI16,'Bus EF'!$E$10:$S$1629,2,),(IF(AF16="LNG",VLOOKUP(AI16,'Bus EF'!$E$10:$S$1629,7,),(IF(AF16="Electric/BEV or PHEV",VLOOKUP(AI16,'Bus EF'!E13:$S$1629,4,),(IF(AF16="Hydrogen Fuel Cell",VLOOKUP(AI16,'Bus EF'!$E$10:$S$1629,5,),(IF(AF16="Diesel",VLOOKUP(AI16,'Bus EF'!$E$10:$S$1629,3,),(IF(AF16="Hydrogen Fuel Cell (SB 1505)",VLOOKUP(AH16,'Bus EF'!$E$10:$S$1629,6,),"")))))))))))) ->  | AM16: =IF(A16="New Train Service", VLOOKUP(AF16,Defaults!$E$11:$F$21,2,),"") ->  | AN16: =IF(A16="New Ferry Service", VLOOKUP(AF16,Defaults!$E$33:$F$38,2,),"") ->  | AO16: =(IF(AF16="CNG",VLOOKUP(AH16,'LDH EF'!$E$10:$L$2259,2,),(IF(AF16="LNG",VLOOKUP(AH16,'LDH EF'!$E$10:$L$2259,8,),(IF(AF16="Electric/BEV or PHEV",VLOOKUP(AH16,'LDH EF'!$E$10:$L$2259,4,),(IF(AF16="Gasoline",VLOOKUP(AH16,'LDH EF'!$E$10:$L$2259,5,),(IF(AF16="Hydrogen Fuel Cell",VLOOKUP(AH16,'LDH EF'!$E$10:$L$2259,6,),(IF(AF16="Diesel",VLOOKUP(AH16,'LDH EF'!$E$10:$L$2259,3,),(IF(AF16="Hydrogen Fuel Cell (SB 1505)",VLOOKUP(AH16,'LDH EF'!$E$10:$L$2259,7,),"")))))))))))))) ->  | AP16: =(IF(AF16="CNG",VLOOKUP(AI16,'LDH EF'!$E$10:$L$2259,2,),(IF(AF16="LNG",VLOOKUP(AI16,'LDH EF'!$E$10:$L$2259,8,),(IF(AF16="Electric/BEV or PHEV",VLOOKUP(AI16,'LDH EF'!$E$10:$L$2259,4,),(IF(AF16="Gasoline",VLOOKUP(AI16,'LDH EF'!$E$10:$L$2259,5,),(IF(AF16="Hydrogen Fuel Cell",VLOOKUP(AI16,'LDH EF'!$E$10:$L$2259,6,),(IF(AF16="Diesel",VLOOKUP(AI16,'LDH EF'!$E$10:$L$2259,3,),(IF(AF16="Hydrogen Fuel Cell (SB 1505)",VLOOKUP(AI16,'LDH EF'!$E$10:$L$2259,7,),"")))))))))))))) ->  | AY16: =IF(OR(A16="Pedestrian Facilities",A16="Bicycle Paths Class 1", A16="Bicycle Lanes Class 2"),AVERAGE('GHG Calculations'!W16,'GHG Calculations'!AA16),AVERAGE('GHG Calculations'!U16,'GHG Calculations'!Y16)) -> 
A17: ='TAC Inputs'!B20 -> 0 | B17: ='TAC Inputs'!C20 -> 0 | C17: ='TAC Inputs'!D20 -> 0 | D17: ='TAC Inputs'!E20 -> 0 | E17: 0 | F17: ='TAC Inputs'!F20 -> 0 | G17: ='TAC Inputs'!G20 -> 0 | H17: =VLOOKUP((CONCATENATE(B17,"_",C17)),'Auto GHGs'!C:D,2,) ->  | I17: ='TAC Inputs'!H20 -> 0 | J17: =VLOOKUP((CONCATENATE(B17,"_",D17)),'Auto GHGs'!C:D,2,) ->  | K17: =IF(A17="New Train Service",'TAC Inputs'!I20,IF(A17="New Ferry Service",'TAC Inputs'!I20,VLOOKUP(A17,Defaults!$E$47:$I$55,2,))) ->  | L17: =IF(A17="New Train Service",'TAC Inputs'!J20,IF(A17="New Ferry Service",'TAC Inputs'!J20,VLOOKUP(A17,Defaults!$E$47:$I$55,3,))) ->  | M17: =IF(A17="New Train Service",'TAC Inputs'!K20,IF(A17="New Ferry Service",'TAC Inputs'!K20,VLOOKUP(A17,Defaults!$E$47:$I$55,4,))) ->  | N17: =IF(A17="New Train Service",'TAC Inputs'!L20,IF(A17="New Ferry Service",'TAC Inputs'!L20,VLOOKUP(A17,Defaults!$E$47:$I$55,5,))) ->  | O17: ='TAC Inputs'!M20 -> 0 | P17: ='TAC Inputs'!N20 -> 0 | Q17: ='TAC Inputs'!O20 -> 0 | R17: ='TAC Inputs'!P20 -> 0 | S17: ='TAC Inputs'!Q20 -> 0 | T17: ='TAC Inputs'!R20 -> 0 | AF17: ='TAC Inputs'!S20 -> 0 | AG17: ='TAC Inputs'!T20 -> 0 | AH17: 0_0 | AI17: 0_0 | AJ17: ='TAC Inputs'!U20 -> 0 | AK17: =(IF(AF17="CNG",VLOOKUP(AH17,'Bus EF'!$E$10:$S$1629,2,),(IF(AF17="LNG",VLOOKUP(AH17,'Bus EF'!$E$10:$S$1629,7,),(IF(AF17="Electric/BEV or PHEV",VLOOKUP(AH17,'Bus EF'!E14:$S$1629,4,),(IF(AF17="Hydrogen Fuel Cell",VLOOKUP(AH17,'Bus EF'!$E$10:$S$1629,5,),(IF(AF17="Diesel",VLOOKUP(AH17,'Bus EF'!$E$10:$S$1629,3,),(IF(AF17="Hydrogen Fuel Cell (SB 1505)",VLOOKUP(AH17,'Bus EF'!$E$10:$S$1629,6,),"")))))))))))) ->  | AL17: =(IF(AF17="CNG",VLOOKUP(AI17,'Bus EF'!$E$10:$S$1629,2,),(IF(AF17="LNG",VLOOKUP(AI17,'Bus EF'!$E$10:$S$1629,7,),(IF(AF17="Electric/BEV or PHEV",VLOOKUP(AI17,'Bus EF'!E14:$S$1629,4,),(IF(AF17="Hydrogen Fuel Cell",VLOOKUP(AI17,'Bus EF'!$E$10:$S$1629,5,),(IF(AF17="Diesel",VLOOKUP(AI17,'Bus EF'!$E$10:$S$1629,3,),(IF(AF17="Hydrogen Fuel Cell (SB 1505)",VLOOKUP(AH17,'Bus EF'!$E$10:$S$1629,6,),"")))))))))))) ->  | AM17: =IF(A17="New Train Service", VLOOKUP(AF17,Defaults!$E$11:$F$21,2,),"") ->  | AN17: =IF(A17="New Ferry Service", VLOOKUP(AF17,Defaults!$E$33:$F$38,2,),"") ->  | AO17: =(IF(AF17="CNG",VLOOKUP(AH17,'LDH EF'!$E$10:$L$2259,2,),(IF(AF17="LNG",VLOOKUP(AH17,'LDH EF'!$E$10:$L$2259,8,),(IF(AF17="Electric/BEV or PHEV",VLOOKUP(AH17,'LDH EF'!$E$10:$L$2259,4,),(IF(AF17="Gasoline",VLOOKUP(AH17,'LDH EF'!$E$10:$L$2259,5,),(IF(AF17="Hydrogen Fuel Cell",VLOOKUP(AH17,'LDH EF'!$E$10:$L$2259,6,),(IF(AF17="Diesel",VLOOKUP(AH17,'LDH EF'!$E$10:$L$2259,3,),(IF(AF17="Hydrogen Fuel Cell (SB 1505)",VLOOKUP(AH17,'LDH EF'!$E$10:$L$2259,7,),"")))))))))))))) ->  | AP17: =(IF(AF17="CNG",VLOOKUP(AI17,'LDH EF'!$E$10:$L$2259,2,),(IF(AF17="LNG",VLOOKUP(AI17,'LDH EF'!$E$10:$L$2259,8,),(IF(AF17="Electric/BEV or PHEV",VLOOKUP(AI17,'LDH EF'!$E$10:$L$2259,4,),(IF(AF17="Gasoline",VLOOKUP(AI17,'LDH EF'!$E$10:$L$2259,5,),(IF(AF17="Hydrogen Fuel Cell",VLOOKUP(AI17,'LDH EF'!$E$10:$L$2259,6,),(IF(AF17="Diesel",VLOOKUP(AI17,'LDH EF'!$E$10:$L$2259,3,),(IF(AF17="Hydrogen Fuel Cell (SB 1505)",VLOOKUP(AI17,'LDH EF'!$E$10:$L$2259,7,),"")))))))))))))) ->  | AY17: =IF(OR(A17="Pedestrian Facilities",A17="Bicycle Paths Class 1", A17="Bicycle Lanes Class 2"),AVERAGE('GHG Calculations'!W17,'GHG Calculations'!AA17),AVERAGE('GHG Calculations'!U17,'GHG Calculations'!Y17)) -> 
A18: ='TAC Inputs'!B21 -> 0 | B18: ='TAC Inputs'!C21 -> 0 | C18: ='TAC Inputs'!D21 -> 0 | D18: ='TAC Inputs'!E21 -> 0 | E18: 0 | F18: ='TAC Inputs'!F21 -> 0 | G18: ='TAC Inputs'!G21 -> 0 | H18: =VLOOKUP((CONCATENATE(B18,"_",C18)),'Auto GHGs'!C:D,2,) ->  | I18: ='TAC Inputs'!H21 -> 0 | J18: =VLOOKUP((CONCATENATE(B18,"_",D18)),'Auto GHGs'!C:D,2,) ->  | K18: =IF(A18="New Train Service",'TAC Inputs'!I21,IF(A18="New Ferry Service",'TAC Inputs'!I21,VLOOKUP(A18,Defaults!$E$47:$I$55,2,))) ->  | L18: =IF(A18="New Train Service",'TAC Inputs'!J21,IF(A18="New Ferry Service",'TAC Inputs'!J21,VLOOKUP(A18,Defaults!$E$47:$I$55,3,))) ->  | M18: =IF(A18="New Train Service",'TAC Inputs'!K21,IF(A18="New Ferry Service",'TAC Inputs'!K21,VLOOKUP(A18,Defaults!$E$47:$I$55,4,))) ->  | N18: =IF(A18="New Train Service",'TAC Inputs'!L21,IF(A18="New Ferry Service",'TAC Inputs'!L21,VLOOKUP(A18,Defaults!$E$47:$I$55,5,))) ->  | O18: ='TAC Inputs'!M21 -> 0 | P18: ='TAC Inputs'!N21 -> 0 | Q18: ='TAC Inputs'!O21 -> 0 | R18: ='TAC Inputs'!P21 -> 0 | S18: ='TAC Inputs'!Q21 -> 0 | T18: ='TAC Inputs'!R21 -> 0 | AF18: ='TAC Inputs'!S21 -> 0 | AG18: ='TAC Inputs'!T21 -> 0 | AH18: 0_0 | AI18: 0_0 | AJ18: ='TAC Inputs'!U21 -> 0 | AK18: =(IF(AF18="CNG",VLOOKUP(AH18,'Bus EF'!$E$10:$S$1629,2,),(IF(AF18="LNG",VLOOKUP(AH18,'Bus EF'!$E$10:$S$1629,7,),(IF(AF18="Electric/BEV or PHEV",VLOOKUP(AH18,'Bus EF'!E15:$S$1629,4,),(IF(AF18="Hydrogen Fuel Cell",VLOOKUP(AH18,'Bus EF'!$E$10:$S$1629,5,),(IF(AF18="Diesel",VLOOKUP(AH18,'Bus EF'!$E$10:$S$1629,3,),(IF(AF18="Hydrogen Fuel Cell (SB 1505)",VLOOKUP(AH18,'Bus EF'!$E$10:$S$1629,6,),"")))))))))))) ->  | AL18: =(IF(AF18="CNG",VLOOKUP(AI18,'Bus EF'!$E$10:$S$1629,2,),(IF(AF18="LNG",VLOOKUP(AI18,'Bus EF'!$E$10:$S$1629,7,),(IF(AF18="Electric/BEV or PHEV",VLOOKUP(AI18,'Bus EF'!E15:$S$1629,4,),(IF(AF18="Hydrogen Fuel Cell",VLOOKUP(AI18,'Bus EF'!$E$10:$S$1629,5,),(IF(AF18="Diesel",VLOOKUP(AI18,'Bus EF'!$E$10:$S$1629,3,),(IF(AF18="Hydrogen Fuel Cell (SB 1505)",VLOOKUP(AH18,'Bus EF'!$E$10:$S$1629,6,),"")))))))))))) ->  | AM18: =IF(A18="New Train Service", VLOOKUP(AF18,Defaults!$E$11:$F$21,2,),"") ->  | AN18: =IF(A18="New Ferry Service", VLOOKUP(AF18,Defaults!$E$33:$F$38,2,),"") ->  | AO18: =(IF(AF18="CNG",VLOOKUP(AH18,'LDH EF'!$E$10:$L$2259,2,),(IF(AF18="LNG",VLOOKUP(AH18,'LDH EF'!$E$10:$L$2259,8,),(IF(AF18="Electric/BEV or PHEV",VLOOKUP(AH18,'LDH EF'!$E$10:$L$2259,4,),(IF(AF18="Gasoline",VLOOKUP(AH18,'LDH EF'!$E$10:$L$2259,5,),(IF(AF18="Hydrogen Fuel Cell",VLOOKUP(AH18,'LDH EF'!$E$10:$L$2259,6,),(IF(AF18="Diesel",VLOOKUP(AH18,'LDH EF'!$E$10:$L$2259,3,),(IF(AF18="Hydrogen Fuel Cell (SB 1505)",VLOOKUP(AH18,'LDH EF'!$E$10:$L$2259,7,),"")))))))))))))) ->  | AP18: =(IF(AF18="CNG",VLOOKUP(AI18,'LDH EF'!$E$10:$L$2259,2,),(IF(AF18="LNG",VLOOKUP(AI18,'LDH EF'!$E$10:$L$2259,8,),(IF(AF18="Electric/BEV or PHEV",VLOOKUP(AI18,'LDH EF'!$E$10:$L$2259,4,),(IF(AF18="Gasoline",VLOOKUP(AI18,'LDH EF'!$E$10:$L$2259,5,),(IF(AF18="Hydrogen Fuel Cell",VLOOKUP(AI18,'LDH EF'!$E$10:$L$2259,6,),(IF(AF18="Diesel",VLOOKUP(AI18,'LDH EF'!$E$10:$L$2259,3,),(IF(AF18="Hydrogen Fuel Cell (SB 1505)",VLOOKUP(AI18,'LDH EF'!$E$10:$L$2259,7,),"")))))))))))))) ->  | AY18: =IF(OR(A18="Pedestrian Facilities",A18="Bicycle Paths Class 1", A18="Bicycle Lanes Class 2"),AVERAGE('GHG Calculations'!W18,'GHG Calculations'!AA18),AVERAGE('GHG Calculations'!U18,'GHG Calculations'!Y18)) -> 
A19: ='TAC Inputs'!B22 -> 0 | B19: ='TAC Inputs'!C22 -> 0 | C19: ='TAC Inputs'!D22 -> 0 | D19: ='TAC Inputs'!E22 -> 0 | E19: 0 | F19: ='TAC Inputs'!F22 -> 0 | G19: ='TAC Inputs'!G22 -> 0 | H19: =VLOOKUP((CONCATENATE(B19,"_",C19)),'Auto GHGs'!C:D,2,) ->  | I19: ='TAC Inputs'!H22 -> 0 | J19: =VLOOKUP((CONCATENATE(B19,"_",D19)),'Auto GHGs'!C:D,2,) ->  | K19: =IF(A19="New Train Service",'TAC Inputs'!I22,IF(A19="New Ferry Service",'TAC Inputs'!I22,VLOOKUP(A19,Defaults!$E$47:$I$55,2,))) ->  | L19: =IF(A19="New Train Service",'TAC Inputs'!J22,IF(A19="New Ferry Service",'TAC Inputs'!J22,VLOOKUP(A19,Defaults!$E$47:$I$55,3,))) ->  | M19: =IF(A19="New Train Service",'TAC Inputs'!K22,IF(A19="New Ferry Service",'TAC Inputs'!K22,VLOOKUP(A19,Defaults!$E$47:$I$55,4,))) ->  | N19: =IF(A19="New Train Service",'TAC Inputs'!L22,IF(A19="New Ferry Service",'TAC Inputs'!L22,VLOOKUP(A19,Defaults!$E$47:$I$55,5,))) ->  | O19: ='TAC Inputs'!M22 -> 0 | P19: ='TAC Inputs'!N22 -> 0 | Q19: ='TAC Inputs'!O22 -> 0 | R19: ='TAC Inputs'!P22 -> 0 | S19: ='TAC Inputs'!Q22 -> 0 | T19: ='TAC Inputs'!R22 -> 0 | AF19: ='TAC Inputs'!S22 -> 0 | AG19: ='TAC Inputs'!T22 -> 0 | AH19: 0_0 | AI19: 0_0 | AJ19: ='TAC Inputs'!U22 -> 0 | AK19: =(IF(AF19="CNG",VLOOKUP(AH19,'Bus EF'!$E$10:$S$1629,2,),(IF(AF19="LNG",VLOOKUP(AH19,'Bus EF'!$E$10:$S$1629,7,),(IF(AF19="Electric/BEV or PHEV",VLOOKUP(AH19,'Bus EF'!E16:$S$1629,4,),(IF(AF19="Hydrogen Fuel Cell",VLOOKUP(AH19,'Bus EF'!$E$10:$S$1629,5,),(IF(AF19="Diesel",VLOOKUP(AH19,'Bus EF'!$E$10:$S$1629,3,),(IF(AF19="Hydrogen Fuel Cell (SB 1505)",VLOOKUP(AH19,'Bus EF'!$E$10:$S$1629,6,),"")))))))))))) ->  | AL19: =(IF(AF19="CNG",VLOOKUP(AI19,'Bus EF'!$E$10:$S$1629,2,),(IF(AF19="LNG",VLOOKUP(AI19,'Bus EF'!$E$10:$S$1629,7,),(IF(AF19="Electric/BEV or PHEV",VLOOKUP(AI19,'Bus EF'!E16:$S$1629,4,),(IF(AF19="Hydrogen Fuel Cell",VLOOKUP(AI19,'Bus EF'!$E$10:$S$1629,5,),(IF(AF19="Diesel",VLOOKUP(AI19,'Bus EF'!$E$10:$S$1629,3,),(IF(AF19="Hydrogen Fuel Cell (SB 1505)",VLOOKUP(AH19,'Bus EF'!$E$10:$S$1629,6,),"")))))))))))) ->  | AM19: =IF(A19="New Train Service", VLOOKUP(AF19,Defaults!$E$11:$F$21,2,),"") ->  | AN19: =IF(A19="New Ferry Service", VLOOKUP(AF19,Defaults!$E$33:$F$38,2,),"") ->  | AO19: =(IF(AF19="CNG",VLOOKUP(AH19,'LDH EF'!$E$10:$L$2259,2,),(IF(AF19="LNG",VLOOKUP(AH19,'LDH EF'!$E$10:$L$2259,8,),(IF(AF19="Electric/BEV or PHEV",VLOOKUP(AH19,'LDH EF'!$E$10:$L$2259,4,),(IF(AF19="Gasoline",VLOOKUP(AH19,'LDH EF'!$E$10:$L$2259,5,),(IF(AF19="Hydrogen Fuel Cell",VLOOKUP(AH19,'LDH EF'!$E$10:$L$2259,6,),(IF(AF19="Diesel",VLOOKUP(AH19,'LDH EF'!$E$10:$L$2259,3,),(IF(AF19="Hydrogen Fuel Cell (SB 1505)",VLOOKUP(AH19,'LDH EF'!$E$10:$L$2259,7,),"")))))))))))))) ->  | AP19: =(IF(AF19="CNG",VLOOKUP(AI19,'LDH EF'!$E$10:$L$2259,2,),(IF(AF19="LNG",VLOOKUP(AI19,'LDH EF'!$E$10:$L$2259,8,),(IF(AF19="Electric/BEV or PHEV",VLOOKUP(AI19,'LDH EF'!$E$10:$L$2259,4,),(IF(AF19="Gasoline",VLOOKUP(AI19,'LDH EF'!$E$10:$L$2259,5,),(IF(AF19="Hydrogen Fuel Cell",VLOOKUP(AI19,'LDH EF'!$E$10:$L$2259,6,),(IF(AF19="Diesel",VLOOKUP(AI19,'LDH EF'!$E$10:$L$2259,3,),(IF(AF19="Hydrogen Fuel Cell (SB 1505)",VLOOKUP(AI19,'LDH EF'!$E$10:$L$2259,7,),"")))))))))))))) ->  | AY19: =IF(OR(A19="Pedestrian Facilities",A19="Bicycle Paths Class 1", A19="Bicycle Lanes Class 2"),AVERAGE('GHG Calculations'!W19,'GHG Calculations'!AA19),AVERAGE('GHG Calculations'!U19,'GHG Calculations'!Y19)) -> 
A20: ='TAC Inputs'!B23 -> 0 | B20: ='TAC Inputs'!C23 -> 0 | C20: ='TAC Inputs'!D23 -> 0 | D20: ='TAC Inputs'!E23 -> 0 | E20: 0 | F20: ='TAC Inputs'!F23 -> 0 | G20: ='TAC Inputs'!G23 -> 0 | H20: =VLOOKUP((CONCATENATE(B20,"_",C20)),'Auto GHGs'!C:D,2,) ->  | I20: ='TAC Inputs'!H23 -> 0 | J20: =VLOOKUP((CONCATENATE(B20,"_",D20)),'Auto GHGs'!C:D,2,) ->  | K20: =IF(A20="New Train Service",'TAC Inputs'!I23,IF(A20="New Ferry Service",'TAC Inputs'!I23,VLOOKUP(A20,Defaults!$E$47:$I$55,2,))) ->  | L20: =IF(A20="New Train Service",'TAC Inputs'!J23,IF(A20="New Ferry Service",'TAC Inputs'!J23,VLOOKUP(A20,Defaults!$E$47:$I$55,3,))) ->  | M20: =IF(A20="New Train Service",'TAC Inputs'!K23,IF(A20="New Ferry Service",'TAC Inputs'!K23,VLOOKUP(A20,Defaults!$E$47:$I$55,4,))) ->  | N20: =IF(A20="New Train Service",'TAC Inputs'!L23,IF(A20="New Ferry Service",'TAC Inputs'!L23,VLOOKUP(A20,Defaults!$E$47:$I$55,5,))) ->  | O20: ='TAC Inputs'!M23 -> 0 | P20: ='TAC Inputs'!N23 -> 0 | Q20: ='TAC Inputs'!O23 -> 0 | R20: ='TAC Inputs'!P23 -> 0 | S20: ='TAC Inputs'!Q23 -> 0 | T20: ='TAC Inputs'!R23 -> 0 | AF20: ='TAC Inputs'!S23 -> 0 | AG20: ='TAC Inputs'!T23 -> 0 | AH20: 0_0 | AI20: 0_0 | AJ20: ='TAC Inputs'!U23 -> 0 | AK20: =(IF(AF20="CNG",VLOOKUP(AH20,'Bus EF'!$E$10:$S$1629,2,),(IF(AF20="LNG",VLOOKUP(AH20,'Bus EF'!$E$10:$S$1629,7,),(IF(AF20="Electric/BEV or PHEV",VLOOKUP(AH20,'Bus EF'!E17:$S$1629,4,),(IF(AF20="Hydrogen Fuel Cell",VLOOKUP(AH20,'Bus EF'!$E$10:$S$1629,5,),(IF(AF20="Diesel",VLOOKUP(AH20,'Bus EF'!$E$10:$S$1629,3,),(IF(AF20="Hydrogen Fuel Cell (SB 1505)",VLOOKUP(AH20,'Bus EF'!$E$10:$S$1629,6,),"")))))))))))) ->  | AL20: =(IF(AF20="CNG",VLOOKUP(AI20,'Bus EF'!$E$10:$S$1629,2,),(IF(AF20="LNG",VLOOKUP(AI20,'Bus EF'!$E$10:$S$1629,7,),(IF(AF20="Electric/BEV or PHEV",VLOOKUP(AI20,'Bus EF'!E17:$S$1629,4,),(IF(AF20="Hydrogen Fuel Cell",VLOOKUP(AI20,'Bus EF'!$E$10:$S$1629,5,),(IF(AF20="Diesel",VLOOKUP(AI20,'Bus EF'!$E$10:$S$1629,3,),(IF(AF20="Hydrogen Fuel Cell (SB 1505)",VLOOKUP(AH20,'Bus EF'!$E$10:$S$1629,6,),"")))))))))))) ->  | AM20: =IF(A20="New Train Service", VLOOKUP(AF20,Defaults!$E$11:$F$21,2,),"") ->  | AN20: =IF(A20="New Ferry Service", VLOOKUP(AF20,Defaults!$E$33:$F$38,2,),"") ->  | AO20: =(IF(AF20="CNG",VLOOKUP(AH20,'LDH EF'!$E$10:$L$2259,2,),(IF(AF20="LNG",VLOOKUP(AH20,'LDH EF'!$E$10:$L$2259,8,),(IF(AF20="Electric/BEV or PHEV",VLOOKUP(AH20,'LDH EF'!$E$10:$L$2259,4,),(IF(AF20="Gasoline",VLOOKUP(AH20,'LDH EF'!$E$10:$L$2259,5,),(IF(AF20="Hydrogen Fuel Cell",VLOOKUP(AH20,'LDH EF'!$E$10:$L$2259,6,),(IF(AF20="Diesel",VLOOKUP(AH20,'LDH EF'!$E$10:$L$2259,3,),(IF(AF20="Hydrogen Fuel Cell (SB 1505)",VLOOKUP(AH20,'LDH EF'!$E$10:$L$2259,7,),"")))))))))))))) ->  | AP20: =(IF(AF20="CNG",VLOOKUP(AI20,'LDH EF'!$E$10:$L$2259,2,),(IF(AF20="LNG",VLOOKUP(AI20,'LDH EF'!$E$10:$L$2259,8,),(IF(AF20="Electric/BEV or PHEV",VLOOKUP(AI20,'LDH EF'!$E$10:$L$2259,4,),(IF(AF20="Gasoline",VLOOKUP(AI20,'LDH EF'!$E$10:$L$2259,5,),(IF(AF20="Hydrogen Fuel Cell",VLOOKUP(AI20,'LDH EF'!$E$10:$L$2259,6,),(IF(AF20="Diesel",VLOOKUP(AI20,'LDH EF'!$E$10:$L$2259,3,),(IF(AF20="Hydrogen Fuel Cell (SB 1505)",VLOOKUP(AI20,'LDH EF'!$E$10:$L$2259,7,),"")))))))))))))) ->  | AY20: =IF(OR(A20="Pedestrian Facilities",A20="Bicycle Paths Class 1", A20="Bicycle Lanes Class 2"),AVERAGE('GHG Calculations'!W20,'GHG Calculations'!AA20),AVERAGE('GHG Calculations'!U20,'GHG Calculations'!Y20)) -> 
A21: ='TAC Inputs'!B24 -> 0 | B21: ='TAC Inputs'!C24 -> 0 | C21: ='TAC Inputs'!D24 -> 0 | D21: ='TAC Inputs'!E24 -> 0 | E21: 0 | F21: ='TAC Inputs'!F24 -> 0 | G21: ='TAC Inputs'!G24 -> 0 | H21: =VLOOKUP((CONCATENATE(B21,"_",C21)),'Auto GHGs'!C:D,2,) ->  | I21: ='TAC Inputs'!H24 -> 0 | J21: =VLOOKUP((CONCATENATE(B21,"_",D21)),'Auto GHGs'!C:D,2,) ->  | K21: =IF(A21="New Train Service",'TAC Inputs'!I24,IF(A21="New Ferry Service",'TAC Inputs'!I24,VLOOKUP(A21,Defaults!$E$47:$I$55,2,))) ->  | L21: =IF(A21="New Train Service",'TAC Inputs'!J24,IF(A21="New Ferry Service",'TAC Inputs'!J24,VLOOKUP(A21,Defaults!$E$47:$I$55,3,))) ->  | M21: =IF(A21="New Train Service",'TAC Inputs'!K24,IF(A21="New Ferry Service",'TAC Inputs'!K24,VLOOKUP(A21,Defaults!$E$47:$I$55,4,))) ->  | N21: =IF(A21="New Train Service",'TAC Inputs'!L24,IF(A21="New Ferry Service",'TAC Inputs'!L24,VLOOKUP(A21,Defaults!$E$47:$I$55,5,))) ->  | O21: ='TAC Inputs'!M24 -> 0 | P21: ='TAC Inputs'!N24 -> 0 | Q21: ='TAC Inputs'!O24 -> 0 | R21: ='TAC Inputs'!P24 -> 0 | S21: ='TAC Inputs'!Q24 -> 0 | T21: ='TAC Inputs'!R24 -> 0 | AF21: ='TAC Inputs'!S24 -> 0 | AG21: ='TAC Inputs'!T24 -> 0 | AH21: 0_0 | AI21: 0_0 | AJ21: ='TAC Inputs'!U24 -> 0 | AK21: =(IF(AF21="CNG",VLOOKUP(AH21,'Bus EF'!$E$10:$S$1629,2,),(IF(AF21="LNG",VLOOKUP(AH21,'Bus EF'!$E$10:$S$1629,7,),(IF(AF21="Electric/BEV or PHEV",VLOOKUP(AH21,'Bus EF'!E18:$S$1629,4,),(IF(AF21="Hydrogen Fuel Cell",VLOOKUP(AH21,'Bus EF'!$E$10:$S$1629,5,),(IF(AF21="Diesel",VLOOKUP(AH21,'Bus EF'!$E$10:$S$1629,3,),(IF(AF21="Hydrogen Fuel Cell (SB 1505)",VLOOKUP(AH21,'Bus EF'!$E$10:$S$1629,6,),"")))))))))))) ->  | AL21: =(IF(AF21="CNG",VLOOKUP(AI21,'Bus EF'!$E$10:$S$1629,2,),(IF(AF21="LNG",VLOOKUP(AI21,'Bus EF'!$E$10:$S$1629,7,),(IF(AF21="Electric/BEV or PHEV",VLOOKUP(AI21,'Bus EF'!E18:$S$1629,4,),(IF(AF21="Hydrogen Fuel Cell",VLOOKUP(AI21,'Bus EF'!$E$10:$S$1629,5,),(IF(AF21="Diesel",VLOOKUP(AI21,'Bus EF'!$E$10:$S$1629,3,),(IF(AF21="Hydrogen Fuel Cell (SB 1505)",VLOOKUP(AH21,'Bus EF'!$E$10:$S$1629,6,),"")))))))))))) ->  | AM21: =IF(A21="New Train Service", VLOOKUP(AF21,Defaults!$E$11:$F$21,2,),"") ->  | AN21: =IF(A21="New Ferry Service", VLOOKUP(AF21,Defaults!$E$33:$F$38,2,),"") ->  | AO21: =(IF(AF21="CNG",VLOOKUP(AH21,'LDH EF'!$E$10:$L$2259,2,),(IF(AF21="LNG",VLOOKUP(AH21,'LDH EF'!$E$10:$L$2259,8,),(IF(AF21="Electric/BEV or PHEV",VLOOKUP(AH21,'LDH EF'!$E$10:$L$2259,4,),(IF(AF21="Gasoline",VLOOKUP(AH21,'LDH EF'!$E$10:$L$2259,5,),(IF(AF21="Hydrogen Fuel Cell",VLOOKUP(AH21,'LDH EF'!$E$10:$L$2259,6,),(IF(AF21="Diesel",VLOOKUP(AH21,'LDH EF'!$E$10:$L$2259,3,),(IF(AF21="Hydrogen Fuel Cell (SB 1505)",VLOOKUP(AH21,'LDH EF'!$E$10:$L$2259,7,),"")))))))))))))) ->  | AP21: =(IF(AF21="CNG",VLOOKUP(AI21,'LDH EF'!$E$10:$L$2259,2,),(IF(AF21="LNG",VLOOKUP(AI21,'LDH EF'!$E$10:$L$2259,8,),(IF(AF21="Electric/BEV or PHEV",VLOOKUP(AI21,'LDH EF'!$E$10:$L$2259,4,),(IF(AF21="Gasoline",VLOOKUP(AI21,'LDH EF'!$E$10:$L$2259,5,),(IF(AF21="Hydrogen Fuel Cell",VLOOKUP(AI21,'LDH EF'!$E$10:$L$2259,6,),(IF(AF21="Diesel",VLOOKUP(AI21,'LDH EF'!$E$10:$L$2259,3,),(IF(AF21="Hydrogen Fuel Cell (SB 1505)",VLOOKUP(AI21,'LDH EF'!$E$10:$L$2259,7,),"")))))))))))))) ->  | AY21: =IF(OR(A21="Pedestrian Facilities",A21="Bicycle Paths Class 1", A21="Bicycle Lanes Class 2"),AVERAGE('GHG Calculations'!W21,'GHG Calculations'!AA21),AVERAGE('GHG Calculations'!U21,'GHG Calculations'!Y21)) -> 
A22: ='TAC Inputs'!B25 -> 0 | B22: ='TAC Inputs'!C25 -> 0 | C22: ='TAC Inputs'!D25 -> 0 | D22: ='TAC Inputs'!E25 -> 0 | E22: 0 | F22: ='TAC Inputs'!F25 -> 0 | G22: ='TAC Inputs'!G25 -> 0 | H22: =VLOOKUP((CONCATENATE(B22,"_",C22)),'Auto GHGs'!C:D,2,) ->  | I22: ='TAC Inputs'!H25 -> 0 | J22: =VLOOKUP((CONCATENATE(B22,"_",D22)),'Auto GHGs'!C:D,2,) ->  | K22: =IF(A22="New Train Service",'TAC Inputs'!I25,IF(A22="New Ferry Service",'TAC Inputs'!I25,VLOOKUP(A22,Defaults!$E$47:$I$55,2,))) ->  | L22: =IF(A22="New Train Service",'TAC Inputs'!J25,IF(A22="New Ferry Service",'TAC Inputs'!J25,VLOOKUP(A22,Defaults!$E$47:$I$55,3,))) ->  | M22: =IF(A22="New Train Service",'TAC Inputs'!K25,IF(A22="New Ferry Service",'TAC Inputs'!K25,VLOOKUP(A22,Defaults!$E$47:$I$55,4,))) ->  | N22: =IF(A22="New Train Service",'TAC Inputs'!L25,IF(A22="New Ferry Service",'TAC Inputs'!L25,VLOOKUP(A22,Defaults!$E$47:$I$55,5,))) ->  | O22: ='TAC Inputs'!M25 -> 0 | P22: ='TAC Inputs'!N25 -> 0 | Q22: ='TAC Inputs'!O25 -> 0 | R22: ='TAC Inputs'!P25 -> 0 | S22: ='TAC Inputs'!Q25 -> 0 | T22: ='TAC Inputs'!R25 -> 0 | AF22: ='TAC Inputs'!S25 -> 0 | AG22: ='TAC Inputs'!T25 -> 0 | AH22: 0_0 | AI22: 0_0 | AJ22: ='TAC Inputs'!U25 -> 0 | AK22: =(IF(AF22="CNG",VLOOKUP(AH22,'Bus EF'!$E$10:$S$1629,2,),(IF(AF22="LNG",VLOOKUP(AH22,'Bus EF'!$E$10:$S$1629,7,),(IF(AF22="Electric/BEV or PHEV",VLOOKUP(AH22,'Bus EF'!E19:$S$1629,4,),(IF(AF22="Hydrogen Fuel Cell",VLOOKUP(AH22,'Bus EF'!$E$10:$S$1629,5,),(IF(AF22="Diesel",VLOOKUP(AH22,'Bus EF'!$E$10:$S$1629,3,),(IF(AF22="Hydrogen Fuel Cell (SB 1505)",VLOOKUP(AH22,'Bus EF'!$E$10:$S$1629,6,),"")))))))))))) ->  | AL22: =(IF(AF22="CNG",VLOOKUP(AI22,'Bus EF'!$E$10:$S$1629,2,),(IF(AF22="LNG",VLOOKUP(AI22,'Bus EF'!$E$10:$S$1629,7,),(IF(AF22="Electric/BEV or PHEV",VLOOKUP(AI22,'Bus EF'!E19:$S$1629,4,),(IF(AF22="Hydrogen Fuel Cell",VLOOKUP(AI22,'Bus EF'!$E$10:$S$1629,5,),(IF(AF22="Diesel",VLOOKUP(AI22,'Bus EF'!$E$10:$S$1629,3,),(IF(AF22="Hydrogen Fuel Cell (SB 1505)",VLOOKUP(AH22,'Bus EF'!$E$10:$S$1629,6,),"")))))))))))) ->  | AM22: =IF(A22="New Train Service", VLOOKUP(AF22,Defaults!$E$11:$F$21,2,),"") ->  | AN22: =IF(A22="New Ferry Service", VLOOKUP(AF22,Defaults!$E$33:$F$38,2,),"") ->  | AO22: =(IF(AF22="CNG",VLOOKUP(AH22,'LDH EF'!$E$10:$L$2259,2,),(IF(AF22="LNG",VLOOKUP(AH22,'LDH EF'!$E$10:$L$2259,8,),(IF(AF22="Electric/BEV or PHEV",VLOOKUP(AH22,'LDH EF'!$E$10:$L$2259,4,),(IF(AF22="Gasoline",VLOOKUP(AH22,'LDH EF'!$E$10:$L$2259,5,),(IF(AF22="Hydrogen Fuel Cell",VLOOKUP(AH22,'LDH EF'!$E$10:$L$2259,6,),(IF(AF22="Diesel",VLOOKUP(AH22,'LDH EF'!$E$10:$L$2259,3,),(IF(AF22="Hydrogen Fuel Cell (SB 1505)",VLOOKUP(AH22,'LDH EF'!$E$10:$L$2259,7,),"")))))))))))))) ->  | AP22: =(IF(AF22="CNG",VLOOKUP(AI22,'LDH EF'!$E$10:$L$2259,2,),(IF(AF22="LNG",VLOOKUP(AI22,'LDH EF'!$E$10:$L$2259,8,),(IF(AF22="Electric/BEV or PHEV",VLOOKUP(AI22,'LDH EF'!$E$10:$L$2259,4,),(IF(AF22="Gasoline",VLOOKUP(AI22,'LDH EF'!$E$10:$L$2259,5,),(IF(AF22="Hydrogen Fuel Cell",VLOOKUP(AI22,'LDH EF'!$E$10:$L$2259,6,),(IF(AF22="Diesel",VLOOKUP(AI22,'LDH EF'!$E$10:$L$2259,3,),(IF(AF22="Hydrogen Fuel Cell (SB 1505)",VLOOKUP(AI22,'LDH EF'!$E$10:$L$2259,7,),"")))))))))))))) ->  | AY22: =IF(OR(A22="Pedestrian Facilities",A22="Bicycle Paths Class 1", A22="Bicycle Lanes Class 2"),AVERAGE('GHG Calculations'!W22,'GHG Calculations'!AA22),AVERAGE('GHG Calculations'!U22,'GHG Calculations'!Y22)) -> 
A23: ='TAC Inputs'!B26 -> 0 | B23: ='TAC Inputs'!C26 -> 0 | C23: ='TAC Inputs'!D26 -> 0 | D23: ='TAC Inputs'!E26 -> 0 | E23: =D23-C23 -> 0 | F23: ='TAC Inputs'!F26 -> 0 | G23: ='TAC Inputs'!G26 -> 0 | H23: =VLOOKUP((CONCATENATE(B23,"_",C23)),'Auto GHGs'!C:D,2,) ->  | I23: ='TAC Inputs'!H26 -> 0 | J23: =VLOOKUP((CONCATENATE(B23,"_",D23)),'Auto GHGs'!C:D,2,) ->  | K23: =IF(A23="New Train Service",'TAC Inputs'!I26,IF(A23="New Ferry Service",'TAC Inputs'!I26,VLOOKUP(A23,Defaults!$E$47:$I$55,2,))) ->  | L23: =IF(A23="New Train Service",'TAC Inputs'!J26,IF(A23="New Ferry Service",'TAC Inputs'!J26,VLOOKUP(A23,Defaults!$E$47:$I$55,3,))) ->  | M23: =IF(A23="New Train Service",'TAC Inputs'!K26,IF(A23="New Ferry Service",'TAC Inputs'!K26,VLOOKUP(A23,Defaults!$E$47:$I$55,4,))) ->  | N23: =IF(A23="New Train Service",'TAC Inputs'!L26,IF(A23="New Ferry Service",'TAC Inputs'!L26,VLOOKUP(A23,Defaults!$E$47:$I$55,5,))) ->  | O23: ='TAC Inputs'!M26 -> 0 | P23: ='TAC Inputs'!N26 -> 0 | Q23: ='TAC Inputs'!O26 -> 0 | R23: ='TAC Inputs'!P26 -> 0 | S23: ='TAC Inputs'!Q26 -> 0 | T23: ='TAC Inputs'!R26 -> 0 | AF23: ='TAC Inputs'!S26 -> 0 | AG23: ='TAC Inputs'!T26 -> 0 | AH23: 0_0 | AI23: 0_0 | AJ23: ='TAC Inputs'!U26 -> 0 | AK23: =(IF(AF23="CNG",VLOOKUP(AH23,'Bus EF'!$E$10:$S$1629,2,),(IF(AF23="LNG",VLOOKUP(AH23,'Bus EF'!$E$10:$S$1629,7,),(IF(AF23="Electric/BEV or PHEV",VLOOKUP(AH23,'Bus EF'!E20:$S$1629,4,),(IF(AF23="Hydrogen Fuel Cell",VLOOKUP(AH23,'Bus EF'!$E$10:$S$1629,5,),(IF(AF23="Diesel",VLOOKUP(AH23,'Bus EF'!$E$10:$S$1629,3,),(IF(AF23="Hydrogen Fuel Cell (SB 1505)",VLOOKUP(AH23,'Bus EF'!$E$10:$S$1629,6,),"")))))))))))) ->  | AL23: =(IF(AF23="CNG",VLOOKUP(AI23,'Bus EF'!$E$10:$S$1629,2,),(IF(AF23="LNG",VLOOKUP(AI23,'Bus EF'!$E$10:$S$1629,7,),(IF(AF23="Electric/BEV or PHEV",VLOOKUP(AI23,'Bus EF'!E20:$S$1629,4,),(IF(AF23="Hydrogen Fuel Cell",VLOOKUP(AI23,'Bus EF'!$E$10:$S$1629,5,),(IF(AF23="Diesel",VLOOKUP(AI23,'Bus EF'!$E$10:$S$1629,3,),(IF(AF23="Hydrogen Fuel Cell (SB 1505)",VLOOKUP(AH23,'Bus EF'!$E$10:$S$1629,6,),"")))))))))))) ->  | AM23: =IF(A23="New Train Service", VLOOKUP(AF23,Defaults!$E$11:$F$21,2,),"") ->  | AN23: =IF(A23="New Ferry Service", VLOOKUP(AF23,Defaults!$E$33:$F$38,2,),"") ->  | AO23: =(IF(AF23="CNG",VLOOKUP(AH23,'LDH EF'!$E$10:$L$2259,2,),(IF(AF23="LNG",VLOOKUP(AH23,'LDH EF'!$E$10:$L$2259,8,),(IF(AF23="Electric/BEV or PHEV",VLOOKUP(AH23,'LDH EF'!$E$10:$L$2259,4,),(IF(AF23="Gasoline",VLOOKUP(AH23,'LDH EF'!$E$10:$L$2259,5,),(IF(AF23="Hydrogen Fuel Cell",VLOOKUP(AH23,'LDH EF'!$E$10:$L$2259,6,),(IF(AF23="Diesel",VLOOKUP(AH23,'LDH EF'!$E$10:$L$2259,3,),(IF(AF23="Hydrogen Fuel Cell (SB 1505)",VLOOKUP(AH23,'LDH EF'!$E$10:$L$2259,7,),"")))))))))))))) ->  | AP23: =(IF(AF23="CNG",VLOOKUP(AI23,'LDH EF'!$E$10:$L$2259,2,),(IF(AF23="LNG",VLOOKUP(AI23,'LDH EF'!$E$10:$L$2259,8,),(IF(AF23="Electric/BEV or PHEV",VLOOKUP(AI23,'LDH EF'!$E$10:$L$2259,4,),(IF(AF23="Gasoline",VLOOKUP(AI23,'LDH EF'!$E$10:$L$2259,5,),(IF(AF23="Hydrogen Fuel Cell",VLOOKUP(AI23,'LDH EF'!$E$10:$L$2259,6,),(IF(AF23="Diesel",VLOOKUP(AI23,'LDH EF'!$E$10:$L$2259,3,),(IF(AF23="Hydrogen Fuel Cell (SB 1505)",VLOOKUP(AI23,'LDH EF'!$E$10:$L$2259,7,),"")))))))))))))) ->  | AR23: =(AJ23*AQ23)/1000000 ->  | AT23: =(AJ23*AS23)/1000000 ->  | AY23: =IF(OR(A23="Pedestrian Facilities",A23="Bicycle Paths Class 1", A23="Bicycle Lanes Class 2"),AVERAGE('GHG Calculations'!W23,'GHG Calculations'!AA23),AVERAGE('GHG Calculations'!U23,'GHG Calculations'!Y23)) -> 
A24: ='TAC Inputs'!B27 -> 0 | B24: ='TAC Inputs'!C27 -> 0 | C24: ='TAC Inputs'!D27 -> 0 | D24: ='TAC Inputs'!E27 -> 0 | E24: 0 | F24: ='TAC Inputs'!F27 -> 0 | G24: ='TAC Inputs'!G27 -> 0 | H24: =VLOOKUP((CONCATENATE(B24,"_",C24)),'Auto GHGs'!C:D,2,) ->  | I24: ='TAC Inputs'!H27 -> 0 | J24: =VLOOKUP((CONCATENATE(B24,"_",D24)),'Auto GHGs'!C:D,2,) ->  | K24: =IF(A24="New Train Service",'TAC Inputs'!I27,IF(A24="New Ferry Service",'TAC Inputs'!I27,VLOOKUP(A24,Defaults!$E$47:$I$55,2,))) ->  | L24: =IF(A24="New Train Service",'TAC Inputs'!J27,IF(A24="New Ferry Service",'TAC Inputs'!J27,VLOOKUP(A24,Defaults!$E$47:$I$55,3,))) ->  | M24: =IF(A24="New Train Service",'TAC Inputs'!K27,IF(A24="New Ferry Service",'TAC Inputs'!K27,VLOOKUP(A24,Defaults!$E$47:$I$55,4,))) ->  | N24: =IF(A24="New Train Service",'TAC Inputs'!L27,IF(A24="New Ferry Service",'TAC Inputs'!L27,VLOOKUP(A24,Defaults!$E$47:$I$55,5,))) ->  | O24: ='TAC Inputs'!M27 -> 0 | P24: ='TAC Inputs'!N27 -> 0 | Q24: ='TAC Inputs'!O27 -> 0 | R24: ='TAC Inputs'!P27 -> 0 | S24: ='TAC Inputs'!Q27 -> 0 | T24: ='TAC Inputs'!R27 -> 0 | AF24: ='TAC Inputs'!S27 -> 0 | AG24: ='TAC Inputs'!T27 -> 0 | AH24: 0_0 | AI24: 0_0 | AJ24: ='TAC Inputs'!U27 -> 0 | AK24: =(IF(AF24="CNG",VLOOKUP(AH24,'Bus EF'!$E$10:$S$1629,2,),(IF(AF24="LNG",VLOOKUP(AH24,'Bus EF'!$E$10:$S$1629,7,),(IF(AF24="Electric/BEV or PHEV",VLOOKUP(AH24,'Bus EF'!E21:$S$1629,4,),(IF(AF24="Hydrogen Fuel Cell",VLOOKUP(AH24,'Bus EF'!$E$10:$S$1629,5,),(IF(AF24="Diesel",VLOOKUP(AH24,'Bus EF'!$E$10:$S$1629,3,),(IF(AF24="Hydrogen Fuel Cell (SB 1505)",VLOOKUP(AH24,'Bus EF'!$E$10:$S$1629,6,),"")))))))))))) ->  | AL24: =(IF(AF24="CNG",VLOOKUP(AI24,'Bus EF'!$E$10:$S$1629,2,),(IF(AF24="LNG",VLOOKUP(AI24,'Bus EF'!$E$10:$S$1629,7,),(IF(AF24="Electric/BEV or PHEV",VLOOKUP(AI24,'Bus EF'!E21:$S$1629,4,),(IF(AF24="Hydrogen Fuel Cell",VLOOKUP(AI24,'Bus EF'!$E$10:$S$1629,5,),(IF(AF24="Diesel",VLOOKUP(AI24,'Bus EF'!$E$10:$S$1629,3,),(IF(AF24="Hydrogen Fuel Cell (SB 1505)",VLOOKUP(AH24,'Bus EF'!$E$10:$S$1629,6,),"")))))))))))) ->  | AM24: =IF(A24="New Train Service", VLOOKUP(AF24,Defaults!$E$11:$F$21,2,),"") ->  | AN24: =IF(A24="New Ferry Service", VLOOKUP(AF24,Defaults!$E$33:$F$38,2,),"") ->  | AO24: =(IF(AF24="CNG",VLOOKUP(AH24,'LDH EF'!$E$10:$L$2259,2,),(IF(AF24="LNG",VLOOKUP(AH24,'LDH EF'!$E$10:$L$2259,8,),(IF(AF24="Electric/BEV or PHEV",VLOOKUP(AH24,'LDH EF'!$E$10:$L$2259,4,),(IF(AF24="Gasoline",VLOOKUP(AH24,'LDH EF'!$E$10:$L$2259,5,),(IF(AF24="Hydrogen Fuel Cell",VLOOKUP(AH24,'LDH EF'!$E$10:$L$2259,6,),(IF(AF24="Diesel",VLOOKUP(AH24,'LDH EF'!$E$10:$L$2259,3,),(IF(AF24="Hydrogen Fuel Cell (SB 1505)",VLOOKUP(AH24,'LDH EF'!$E$10:$L$2259,7,),"")))))))))))))) ->  | AP24: =(IF(AF24="CNG",VLOOKUP(AI24,'LDH EF'!$E$10:$L$2259,2,),(IF(AF24="LNG",VLOOKUP(AI24,'LDH EF'!$E$10:$L$2259,8,),(IF(AF24="Electric/BEV or PHEV",VLOOKUP(AI24,'LDH EF'!$E$10:$L$2259,4,),(IF(AF24="Gasoline",VLOOKUP(AI24,'LDH EF'!$E$10:$L$2259,5,),(IF(AF24="Hydrogen Fuel Cell",VLOOKUP(AI24,'LDH EF'!$E$10:$L$2259,6,),(IF(AF24="Diesel",VLOOKUP(AI24,'LDH EF'!$E$10:$L$2259,3,),(IF(AF24="Hydrogen Fuel Cell (SB 1505)",VLOOKUP(AI24,'LDH EF'!$E$10:$L$2259,7,),"")))))))))))))) ->  | AY24: =IF(OR(A24="Pedestrian Facilities",A24="Bicycle Paths Class 1", A24="Bicycle Lanes Class 2"),AVERAGE('GHG Calculations'!W24,'GHG Calculations'!AA24),AVERAGE('GHG Calculations'!U24,'GHG Calculations'!Y24)) -> 

Sheet Defaults (hidden)
A1: EMY | B1: CY | C1: Region | E1: Bus Fuel Type | F1: gCO2e/unit | H1: Adjustment Factor | I1: Activity Center Credit | K1: Project Type
A2: 1971 | B2: 2015 | C2: Alameda | E2: CNG | F2: 11872.20689 | H2: 0.001 | I2: 0.0005 | K2: TOD
A3: 1972 | B3: 2016 | C3: Alpine | E3: Diesel | F3: 13818.1372 | H3: 0.0014 | I3: 0.001 | K3: ICP
A4: 1973 | B4: 2017 | C4: Amador | E4: Electric/BEV or PHEV | F4: 3366.872667 | H4: 0.0019 | I4: 0.0015 | K4: RIPA
A5: 1974 | B5: 2018 | C5: Butte | E5: Hydrogen Fuel Cell | F5: 7477.239737 | H5: 0.002 | I5: 0.002
A6: 1975 | B6: 2019 | C6: Calaveras | E6: Hydrogen Fuel Cell (SB 1505) | F6: 6172.880737 | H6: 0.0027 | I6: 0.003 | K6: Project Setting | L6: Max Reduction
A7: 1976 | B7: 2020 | C7: Colusa | E7: LNG | F7: 12934.51989 | H7: 0.0029 | K7: Low Density Suburban | L7: 0.15
A8: 1977 | B8: 2021 | C8: Contra Costa | H8: 0.0038 | K8: Suburban Center | L8: 0.2
A9: 1978 | B9: 2022 | C9: Del Norte | H9: 0.0052 | K9: Urban Center | L9: 0.4
A10: 1979 | B10: 2023 | C10: El Dorado | E10: Train Fuel Type | F10: gCO2e/mile | H10: 0.0073 | K10: Urban | L10: 0.75
A11: 1980 | B11: 2024 | C11: Fresno | E11: CNG | F11: 21596 | H11: 0.0078
A12: 1981 | B12: 2025 | C12: Glenn | E12: Diesel | F12: 25136 | H12: 0.0104 | K12: Yes/No
A13: 1982 | B13: 2026 | C13: Humboldt | E13: Electric/BEV or PHEV | H13: 0.0109 | K13: Yes
A14: 1983 | B14: 2027 | C14: Imperial | E14: Electric (Heavy Rail) | F14: 5592 | H14: 0.0145 | K14: No
A15: 1984 | B15: 2028 | C15: Inyo | E15: Electric (Light Rail) | F15: 7795 | H15: 0.0155
A16: 1985 | B16: 2029 | C16: Kern | E16: Electric (Trolley Bus, Cable Car, Street Car) | F16: 8298 | H16: 0.0207 | K16: Transit Subsidy for Residents | L16: Low Density Suburban | M16: Suburban Center | N16: Urban Center | O16: Urban
A17: 1986 | B17: 2030 | C17: Kings | E17: Gasoline | K17: $0 to $273.74 | L17: 0 | M17: 0 | N17: 0 | O17: 0
A18: 1987 | B18: 2031 | C18: Lake | E18: Hydrogen Fuel Cell | F18: 13602 | K18: $273.75 to $543.84 | L18: 0.015 | M18: 0.034 | N18: 0.062 | O18: 0.062
A19: 1988 | B19: 2032 | C19: Lassen | E19: Hydrogen Fuel Cell (SB 1505) | F19: 11229 | K19: $543.85 to $1,087.69 | L19: 0.033 | M19: 0.073 | N19: 0.129 | O19: 0.129
A20: 1989 | B20: 2033 | C20: Los Angeles | E20: LNG | F20: 23529 | K20: $1,087.70 to $2,175.39 | L20: 0.079 | M20: 0.164 | N20: 0.2 | O20: 0.2
A21: 1990 | B21: 2034 | C21: Madera | E21: Renewable Diesel | F21: 8508 | K21: $2,175.40 or greater | L21: 0.2 | M21: 0.2 | N21: 0.2 | O21: 0.2
A22: 1991 | B22: 2035 | C22: Marin | K22: A | L22: =INDEX(K17:O21,MATCH(TRUE,(TransSub='CalEEMod Steps 4-7'!D36),0),MATCH(TRUE,K16:O16='CalEEMod Steps 4-7'!D16,0)) -> 
A23: 1992 | B23: 2036 | C23: Mariposa | E23: Shuttle/Van Fuel Type | F23: gCO2e/unit | K23: Auto Lookup Year 1 | L23: =CONCATENATE('CalEEMod Steps 4-7'!D12,"_",'CalEEMod Steps 4-7'!D17) -> _
A24: 1993 | B24: 2037 | C24: Mendocino | E24: CNG | F24: 11872.20689 | K24: Auto Lookup Year F | L24: =CONCATENATE('CalEEMod Steps 4-7'!D12,"_",M24) -> _30 | M24: =MIN(2050,('CalEEMod Steps 4-7'!D17+30)) -> 30
A25: 1994 | B25: 2038 | C25: Merced | E25: Diesel | F25: 13818.1372
A26: 1995 | B26: 2039 | C26: Modoc | E26: Electric/BEV or PHEV | F26: 5237.357481
A27: 1996 | B27: 2040 | C27: Mono | E27: Gasoline | F27: 14808.13522
A28: 1997 | B28: 2041 | C28: Monterey | E28: Hydrogen Fuel Cell | F28: 7477.239737
A29: 1998 | B29: 2042 | C29: Napa | E29: Hydrogen Fuel Cell (SB 1505) | F29: 6172.880737
A30: 1999 | B30: 2043 | C30: Nevada | E30: LNG | F30: 12934.51989
A31: 2000 | B31: 2044 | C31: Orange
A32: 2001 | B32: 2045 | C32: Placer | E32: Ferry Fuel Type | F32: gCO2e/unit
A33: 2002 | B33: 2046 | C33: Plumas | E33: CNG | F33: 77.8708
A34: 2003 | B34: 2047 | C34: Riverside | E34: Diesel | F34: 13818.1372
A35: 2004 | B35: 2048 | C35: Sacramento | E35: Electric/BEV or PHEV | F35: 378.576
A36: 2005 | B36: 2049 | C36: San Benito | E36: Hydrogen Fuel Cell | F36: 12678
A37: 2006 | B37: 2050 | C37: San Bernardino | E37: Hydrogen Fuel Cell (SB 1505) | F37: 10466.4
A38: 2007 | C38: San Diego | E38: LNG | F38: 6824.3131
A39: 2008 | C39: San Francisco
A40: 2009 | C40: San Joaquin
A41: 2010 | C41: San Luis Obispo
A42: 2011 | C42: San Mateo
A43: 2012 | C43: Santa Barbara
A44: 2013 | C44: Santa Clara
A45: 2014 | C45: Santa Cruz
A46: 2015 | C46: Shasta | E46: Project Type | F46: A | G46: L | H46: AA | I46: LL
A47: 2015 | C47: Sierra | E47: New Bus Service (local bus) | F47: 0.5 | G47: 10.8 | H47: 0.1 | I47: 2
A48: 2016 | C48: Siskiyou | E48: New Bus Service (long distance commuter) | F48: 0.83 | G48: 35 | H48: 0.8 | I48: 5
A49: 2017 | C49: Solano | E49: New Train Service
A50: 2018 | C50: Sonoma | E50: New Ferry Service
C51: Stanislaus | E51: Vanpool | F51: 0.83 | G51: 35 | H51: 0.8 | I51: 5
C52: Sutter | E52: Shuttle | F52: 0.83 | G52: 16 | H52: 0.75 | I52: 5
C53: Tehama | E53: Bicycle Paths Class 1 | F53: 1 | G53: 1.8 | H53: 1 | I53: 1
C54: Trinity | E54: Bicycle Lanes Class 2 | F54: 1 | G54: 1.8 | H54: 1 | I54: 1
C55: Tulare | E55: Pedestrian Facilities | F55: 1 | G55: 1 | H55: 1 | I55: 1
C56: Tuolumne
C57: Ventura
C58: Yolo
C59: Yuba
E61: Fuel Type | F61: gCO2e/unit
E62: CNG | F62: 11872.20689
E63: Diesel | F63: 13818.1372
E64: Electric/BEV or PHEV | F64: 3366.872667
E65: Electric (Heavy Rail) | F65: 3366.872667
E66: Electric (Light Rail) | F66: 3366.872667
E67: Electric (Trolley Bus, Cable Car, Street Car) | F67: 3366.872667
E68: Hydrogen Fuel Cell | F68: 7477.239737
E69: Hydrogen Fuel Cell (SB 1505) | F69: 6172.880737
E70: LNG | F70: 12934.51989

Sheet Auto GHGs (hidden)
A1: Region | B1: CalYr | C1: Ryr | D1: gCO2/mile
A2: Alameda | B2: 2015 | C2: Alameda_2015 | D2: 535.0636819
A3: Alameda | B3: 2016 | C3: Alameda_2016 | D3: 522.4863942
A4: Alameda | B4: 2017 | C4: =CONCATENATE(A4,"_",B4) -> Alameda_2017 | D4: 509.1566832
A5: Alameda | B5: 2018 | C5: Alameda_2018 | D5: 495.7010058
A6: Alameda | B6: 2019 | C6: Alameda_2019 | D6: 482.0600574
A7: Alameda | B7: 2020 | C7: Alameda_2020 | D7: 468.5541548
A8: Alameda | B8: 2021 | C8: Alameda_2021 | D8: 454.2171441
A9: Alameda | B9: 2022 | C9: Alameda_2022 | D9: 439.8873498
A10: Alameda | B10: 2023 | C10: Alameda_2023 | D10: 425.5706126
A11: Alameda | B11: 2024 | C11: Alameda_2024 | D11: 411.3613005
A12: Alameda | B12: 2025 | C12: Alameda_2025 | D12: 397.2950108
A13: Alameda | B13: 2026 | C13: Alameda_2026 | D13: 384.8812076
A14: Alameda | B14: 2027 | C14: Alameda_2027 | D14: 373.7015226
A15: Alameda | B15: 2028 | C15: Alameda_2028 | D15: 363.753391
A16: Alameda | B16: 2029 | C16: Alameda_2029 | D16: 354.9161965
A17: Alameda | B17: 2030 | C17: Alameda_2030 | D17: 347.1090775
A18: Alameda | B18: 2031 | C18: Alameda_2031 | D18: 340.2440901
A19: Alameda | B19: 2032 | C19: Alameda_2032 | D19: 334.2447789
A20: Alameda | B20: 2033 | C20: Alameda_2033 | D20: 329.0407108
A21: Alameda | B21: 2034 | C21: Alameda_2034 | D21: 324.542007
A22: Alameda | B22: 2035 | C22: Alameda_2035 | D22: 320.6865058
A23: Alameda | B23: 2036 | C23: Alameda_2036 | D23: 317.4215229
A24: Alameda | B24: 2037 | C24: Alameda_2037 | D24: 314.6826809
A25: Alameda | B25: 2038 | C25: Alameda_2038 | D25: 312.4115849
A26: Alameda | B26: 2039 | C26: Alameda_2039 | D26: 310.5273435
A27: Alameda | B27: 2040 | C27: Alameda_2040 | D27: 308.9780395
A28: Alameda | B28: 2041 | C28: Alameda_2041 | D28: 307.7282649
A29: Alameda | B29: 2042 | C29: Alameda_2042 | D29: 306.6888427
A30: Alameda | B30: 2043 | C30: Alameda_2043 | D30: 305.8406061
A31: Alameda | B31: 2044 | C31: Alameda_2044 | D31: 305.1262352
A32: Alameda | B32: 2045 | C32: Alameda_2045 | D32: 304.5075517
A33: Alameda | B33: 2046 | C33: Alameda_2046 | D33: 303.9778523
A34: Alameda | B34: 2047 | C34: Alameda_2047 | D34: 303.5190794
A35: Alameda | B35: 2048 | C35: Alameda_2048 | D35: 303.1477462
A36: Alameda | B36: 2049 | C36: Alameda_2049 | D36: 302.8398627
A37: Alameda | B37: 2050 | C37: Alameda_2050 | D37: 302.5822987
A38: Alpine | B38: 2015 | C38: Alpine_2015 | D38: 517.4579056
A39: Alpine | B39: 2016 | C39: Alpine_2016 | D39: 503.3993558
A40: Alpine | B40: 2017 | C40: =CONCATENATE(A40,"_",B40) -> Alpine_2017 | D40: 488.9740857
A41: Alpine | B41: 2018 | C41: Alpine_2018 | D41: 474.7913216
A42: Alpine | B42: 2019 | C42: Alpine_2019 | D42: 460.8054719
A43: Alpine | B43: 2020 | C43: Alpine_2020 | D43: 447.2438949
A44: Alpine | B44: 2021 | C44: Alpine_2021 | D44: 433.1088007
A45: Alpine | B45: 2022 | C45: Alpine_2022 | D45: 419.1897884
A46: Alpine | B46: 2023 | C46: Alpine_2023 | D46: 405.4304715
A47: Alpine | B47: 2024 | C47: Alpine_2024 | D47: 391.9136345
A48: Alpine | B48: 2025 | C48: Alpine_2025 | D48: 378.6510477
A49: Alpine | B49: 2026 | C49: Alpine_2026 | D49: 366.92437
A50: Alpine | B50: 2027 | C50: Alpine_2027 | D50: 356.3916842
A51: Alpine | B51: 2028 | C51: Alpine_2028 | D51: 347.0097546
A52: Alpine | B52: 2029 | C52: Alpine_2029 | D52: 338.6685428
A53: Alpine | B53: 2030 | C53: Alpine_2030 | D53: 331.2927105
A54: Alpine | B54: 2031 | C54: Alpine_2031 | D54: 324.774924
A55: Alpine | B55: 2032 | C55: Alpine_2032 | D55: 319.0659736
A56: Alpine | B56: 2033 | C56: Alpine_2033 | D56: 314.1036058
A57: Alpine | B57: 2034 | C57: Alpine_2034 | D57: 309.7917112
A58: Alpine | B58: 2035 | C58: Alpine_2035 | D58: 306.1163306
A59: Alpine | B59: 2036 | C59: Alpine_2036 | D59: 302.9803196
A60: Alpine | B60: 2037 | C60: Alpine_2037 | D60: 300.3560338
A61: Alpine | B61: 2038 | C61: Alpine_2038 | D61: 298.1789534
A62: Alpine | B62: 2039 | C62: Alpine_2039 | D62: 296.3654096
A63: Alpine | B63: 2040 | C63: Alpine_2040 | D63: 294.8955938
A64: Alpine | B64: 2041 | C64: Alpine_2041 | D64: 293.7160559
A65: Alpine | B65: 2042 | C65: Alpine_2042 | D65: 292.7416172
A66: Alpine | B66: 2043 | C66: Alpine_2043 | D66: 291.9645381
A67: Alpine | B67: 2044 | C67: Alpine_2044 | D67: 291.3104551
A68: Alpine | B68: 2045 | C68: Alpine_2045 | D68: 290.7492267
A69: Alpine | B69: 2046 | C69: Alpine_2046 | D69: 290.2846741
A70: Alpine | B70: 2047 | C70: Alpine_2047 | D70: 289.8787383
A71: Alpine | B71: 2048 | C71: Alpine_2048 | D71: 289.5803616
A72: Alpine | B72: 2049 | C72: Alpine_2049 | D72: 289.3237134
A73: Alpine | B73: 2050 | C73: Alpine_2050 | D73: 289.1083252
A74: Amador | B74: 2015 | C74: Amador_2015 | D74: 511.6913421
A75: Amador | B75: 2016 | C75: Amador_2016 | D75: 498.7138067
A76: Amador | B76: 2017 | C76: =CONCATENATE(A76,"_",B76) -> Amador_2017 | D76: 484.9074348
A77: Amador | B77: 2018 | C77: Amador_2018 | D77: 471.0021148
A78: Amador | B78: 2019 | C78: Amador_2019 | D78: 456.9698041
A79: Amador | B79: 2020 | C79: Amador_2020 | D79: 443.1235267
A80: Amador | B80: 2021 | C80: Amador_2021 | D80: 428.8366944
A81: Amador | B81: 2022 | C81: Amador_2022 | D81: 414.6261538
A82: Amador | B82: 2023 | C82: Amador_2023 | D82: 400.6023088
A83: Amador | B83: 2024 | C83: Amador_2024 | D83: 386.8287087
A84: Amador | B84: 2025 | C84: Amador_2025 | D84: 373.4116576
A85: Amador | B85: 2026 | C85: Amador_2026 | D85: 361.2905944
A86: Amador | B86: 2027 | C86: Amador_2027 | D86: 350.1702218
A87: Amador | B87: 2028 | C87: Amador_2028 | D87: 340.1105095
A88: Amador | B88: 2029 | C88: Amador_2029 | D88: 331.0392662
A89: Amador | B89: 2030 | C89: Amador_2030 | D89: 322.8856511
A90: Amador | B90: 2031 | C90: Amador_2031 | D90: 315.657719
A91: Amador | B91: 2032 | C91: Amador_2032 | D91: 309.2916916
A92: Amador | B92: 2033 | C92: Amador_2033 | D92: 303.6964452
A93: Amador | B93: 2034 | C93: Amador_2034 | D93: 298.7718054
A94: Amador | B94: 2035 | C94: Amador_2035 | D94: 294.4800626
A95: Amador | B95: 2036 | C95: Amador_2036 | D95: 290.7653858
A96: Amador | B96: 2037 | C96: Amador_2037 | D96: 287.5732213
A97: Amador | B97: 2038 | C97: Amador_2038 | D97: 284.8457088
A98: Amador | B98: 2039 | C98: Amador_2039 | D98: 282.4788662
A99: Amador | B99: 2040 | C99: Amador_2040 | D99: 280.4705791
A100: Amador | B100: 2041 | C100: Amador_2041 | D100: 278.7767187
A101: Amador | B101: 2042 | C101: Amador_2042 | D101: 277.2827919
A102: Amador | B102: 2043 | C102: Amador_2043 | D102: 275.9938479
A103: Amador | B103: 2044 | C103: Amador_2044 | D103: 274.8604752
A104: Amador | B104: 2045 | C104: Amador_2045 | D104: 273.821611
A105: Amador | B105: 2046 | C105: Amador_2046 | D105: 272.9053698
A106: Amador | B106: 2047 | C106: Amador_2047 | D106: 272.1153385
A107: Amador | B107: 2048 | C107: Amador_2048 | D107: 271.4278507
A108: Amador | B108: 2049 | C108: Amador_2049 | D108: 270.8448863
A109: Amador | B109: 2050 | C109: Amador_2050 | D109: 270.3195583
A110: Butte | B110: 2015 | C110: Butte_2015 | D110: 572.3441926
A111: Butte | B111: 2016 | C111: Butte_2016 | D111: 559.364925
A112: Butte | B112: 2017 | C112: =CONCATENATE(A112,"_",B112) -> Butte_2017 | D112: 542.7259356
A113: Butte | B113: 2018 | C113: Butte_2018 | D113: 525.6710719
A114: Butte | B114: 2019 | C114: Butte_2019 | D114: 508.4009506
A115: Butte | B115: 2020 | C115: Butte_2020 | D115: 491.5065218
A116: Butte | B116: 2021 | C116: Butte_2021 | D116: 475.0215666
A117: Butte | B117: 2022 | C117: Butte_2022 | D117: 458.051431
A118: Butte | B118: 2023 | C118: Butte_2023 | D118: 441.4429169
A119: Butte | B119: 2024 | C119: Butte_2024 | D119: 425.3173164
A120: Butte | B120: 2025 | C120: Butte_2025 | D120: 409.7507235
A121: Butte | B121: 2026 | C121: Butte_2026 | D121: 395.7464934
A122: Butte | B122: 2027 | C122: Butte_2027 | D122: 383.0189956
A123: Butte | B123: 2028 | C123: Butte_2028 | D123: 371.6105722
A124: Butte | B124: 2029 | C124: Butte_2029 | D124: 361.3828374
A125: Butte | B125: 2030 | C125: Butte_2030 | D125: 352.297252
A126: Butte | B126: 2031 | C126: Butte_2031 | D126: 344.2564559
A127: Butte | B127: 2032 | C127: Butte_2032 | D127: 337.2273336
A128: Butte | B128: 2033 | C128: Butte_2033 | D128: 331.0859232
A129: Butte | B129: 2034 | C129: Butte_2034 | D129: 325.7327367
A130: Butte | B130: 2035 | C130: Butte_2035 | D130: 321.1330769
A131: Butte | B131: 2036 | C131: Butte_2036 | D131: 317.2041036
A132: Butte | B132: 2037 | C132: Butte_2037 | D132: 313.8975616
A133: Butte | B133: 2038 | C133: Butte_2038 | D133: 311.1491741
A134: Butte | B134: 2039 | C134: Butte_2039 | D134: 308.8225346
A135: Butte | B135: 2040 | C135: Butte_2040 | D135: 306.9096862
A136: Butte | B136: 2041 | C136: Butte_2041 | D136: 305.3420828
A137: Butte | B137: 2042 | C137: Butte_2042 | D137: 304.0182631
A138: Butte | B138: 2043 | C138: Butte_2043 | D138: 302.9199188
A139: Butte | B139: 2044 | C139: Butte_2044 | D139: 301.9869928
A140: Butte | B140: 2045 | C140: Butte_2045 | D140: 301.19686
A141: Butte | B141: 2046 | C141: Butte_2046 | D141: 300.5198409
A142: Butte | B142: 2047 | C142: Butte_2047 | D142: 299.9416458
A143: Butte | B143: 2048 | C143: Butte_2048 | D143: 299.4614082
A144: Butte | B144: 2049 | C144: Butte_2049 | D144: 299.0413024
A145: Butte | B145: 2050 | C145: Butte_2050 | D145: 298.6820723
A146: Calaveras | B146: 2015 | C146: Calaveras_2015 | D146: 565.1076779
A147: Calaveras | B147: 2016 | C147: Calaveras_2016 | D147: 549.8804441
A148: Calaveras | B148: 2017 | C148: =CONCATENATE(A148,"_",B148) -> Calaveras_2017 | D148: 534.0231563
A149: Calaveras | B149: 2018 | C149: Calaveras_2018 | D149: 518.2439498
A150: Calaveras | B150: 2019 | C150: Calaveras_2019 | D150: 502.7015532
A151: Calaveras | B151: 2020 | C151: Calaveras_2020 | D151: 487.5158786
A152: Calaveras | B152: 2021 | C152: Calaveras_2021 | D152: 471.8962203
A153: Calaveras | B153: 2022 | C153: Calaveras_2022 | D153: 456.4853252
A154: Calaveras | B154: 2023 | C154: Calaveras_2023 | D154: 441.2663618
A155: Calaveras | B155: 2024 | C155: Calaveras_2024 | D155: 426.3071921
A156: Calaveras | B156: 2025 | C156: Calaveras_2025 | D156: 411.7290042
A157: Calaveras | B157: 2026 | C157: Calaveras_2026 | D157: 398.5932388
A158: Calaveras | B158: 2027 | C158: Calaveras_2027 | D158: 386.5533255
A159: Calaveras | B159: 2028 | C159: Calaveras_2028 | D159: 375.6829679
A160: Calaveras | B160: 2029 | C160: Calaveras_2029 | D160: 365.8825103
A161: Calaveras | B161: 2030 | C161: Calaveras_2030 | D161: 357.0769714
A162: Calaveras | B162: 2031 | C162: Calaveras_2031 | D162: 349.1884786
A163: Calaveras | B163: 2032 | C163: Calaveras_2032 | D163: 342.2031978
A164: Calaveras | B164: 2033 | C164: Calaveras_2033 | D164: 336.0493506
A165: Calaveras | B165: 2034 | C165: Calaveras_2034 | D165: 330.6025277
A166: Calaveras | B166: 2035 | C166: Calaveras_2035 | D166: 325.8469878
A167: Calaveras | B167: 2036 | C167: Calaveras_2036 | D167: 321.717232
A168: Calaveras | B168: 2037 | C168: Calaveras_2037 | D168: 318.1597352
A169: Calaveras | B169: 2038 | C169: Calaveras_2038 | D169: 315.1050076
A170: Calaveras | B170: 2039 | C170: Calaveras_2039 | D170: 312.4518814
A171: Calaveras | B171: 2040 | C171: Calaveras_2040 | D171: 310.1720216
A172: Calaveras | B172: 2041 | C172: Calaveras_2041 | D172: 308.2524285
A173: Calaveras | B173: 2042 | C173: Calaveras_2042 | D173: 306.5752856
A174: Calaveras | B174: 2043 | C174: Calaveras_2043 | D174: 305.1404013
A175: Calaveras | B175: 2044 | C175: Calaveras_2044 | D175: 303.8771129
A176: Calaveras | B176: 2045 | C176: Calaveras_2045 | D176: 302.7497871
A177: Calaveras | B177: 2046 | C177: Calaveras_2046 | D177: 301.7516269
A178: Calaveras | B178: 2047 | C178: Calaveras_2047 | D178: 300.9009131
A179: Calaveras | B179: 2048 | C179: Calaveras_2048 | D179: 300.1784307
A180: Calaveras | B180: 2049 | C180: Calaveras_2049 | D180: 299.5714391
A181: Calaveras | B181: 2050 | C181: Calaveras_2050 | D181: 299.0206013
A182: Colusa | B182: 2015 | C182: Colusa _2015 | D182: 551.7575479
A183: Colusa | B183: 2016 | C183: Colusa _2016 | D183: 535.6753251
A184: Colusa | B184: 2017 | C184: =CONCATENATE(A184,"_",B184) -> Colusa _2017 | D184: 519.2021889
A185: Colusa | B185: 2018 | C185: Colusa _2018 | D185: 502.9162927
A186: Colusa | B186: 2019 | C186: Colusa _2019 | D186: 486.8800731
A187: Colusa | B187: 2020 | C187: Colusa _2020 | D187: 471.3996563
A188: Colusa | B188: 2021 | C188: Colusa _2021 | D188: 455.5252695
A189: Colusa | B189: 2022 | C189: Colusa _2022 | D189: 439.9774066
A190: Colusa | B190: 2023 | C190: Colusa _2023 | D190: 424.7246918
A191: Colusa | B191: 2024 | C191: Colusa _2024 | D191: 409.8083951
A192: Colusa | B192: 2025 | C192: Colusa _2025 | D192: 395.2445834
A193: Colusa | B193: 2026 | C193: Colusa _2026 | D193: 382.3654124
A194: Colusa | B194: 2027 | C194: Colusa _2027 | D194: 370.8235887
A195: Colusa | B195: 2028 | C195: Colusa _2028 | D195: 360.586107
A196: Colusa | B196: 2029 | C196: Colusa _2029 | D196: 351.5149759
A197: Colusa | B197: 2030 | C197: Colusa _2030 | D197: 343.5010792
A198: Colusa | B198: 2031 | C198: Colusa _2031 | D198: 336.4587251
A199: Colusa | B199: 2032 | C199: Colusa _2032 | D199: 330.303972
A200: Colusa | B200: 2033 | C200: Colusa _2033 | D200: 324.9522909
... 1888 more rows

Sheet Bus EF (hidden)
A1: EMFAC2014 (v1.0.7) Emissions Inventory
A2: Region Type: Statewide
A3: Region: California
A4: Calendar Year: 2015, 2016, 2017, 2018, 2019, 2020, 2021, 2022, 2023, 2024, 2025, 2026, 2027, 2028, 2029, 2030, 2031, 2032, 2033, 2034, 2035, 2036, 2037, 2038, 2039, 2040, 2041, 2042, 2043, 2044, 2045, 2046, 2047, 2048, 2049, 2050
A5: Season: Annual
A6: Vehicle Classification: EMFAC2011 Categories
A7: Units: miles/day for VMT, trips/day for Trips, tons/day for Emissions, 1000 gallons/day for Fuel Consumption
A9: Region | B9: CalYr | C9: VehClass | D9: MdlYr | E9: CY_MY | F9: CNG | G9: Diesel | H9: Electric | I9: Hydrogen | J9: Hydrogen (SB 1505) | K9: LNG | L9: Speed | M9: Fuel | N9: Population | O9: VMT | P9: Fuel_Consumption | Q9: FC*1000 | R9: gal/mi | S9: mi/gal
A10: Statewide | B10: 2015 | C10: UBUS | D10: 1971 | E10: =CONCATENATE(B10,"_",D10) -> 2015_1971 | F10: =(1/$S10)*Defaults!$F$2 -> 3434.662434 | G10: =(1/$S10)*Defaults!$F$3 -> 3997.625479 | H10: =(1/$S10)*Defaults!$F$4 -> 974.0456157 | I10: =(1/$S10)*Defaults!$F$5 -> 2163.186228 | J10: =(1/$S10)*Defaults!$F$6 -> 1785.831545 | K10: =(1/$S10)*Defaults!$F$7 -> 3741.992536 | L10: Aggregated | M10: DSL | N10: 145.304629 | O10: 19286.75984 | P10: 5.5797132 | Q10: =(P10*1000) -> 5579.7132 | R10: =Q10/O10 -> 0.289302778 | S10: =O10/Q10 -> 3.456586234
A11: Statewide | B11: 2015 | C11: UBUS | D11: 1972 | E11: =CONCATENATE(B11,"_",D11) -> 2015_1972 | F11: =(1/$S11)*Defaults!$F$2 -> 3437.594335 | G11: =(1/$S11)*Defaults!$F$3 -> 4001.037936 | H11: =(1/$S11)*Defaults!$F$4 -> 974.8770816 | I11: =(1/$S11)*Defaults!$F$5 -> 2165.032769 | J11: =(1/$S11)*Defaults!$F$6 -> 1787.355969 | K11: =(1/$S11)*Defaults!$F$7 -> 3745.18678 | L11: Aggregated | M11: DSL | N11: 62.65123118 | O11: 9100.920252 | P11: 2.635169029 | Q11: =(P11*1000) -> 2635.169029 | R11: =Q11/O11 -> 0.289549733 | S11: =O11/Q11 -> 3.453638136
A12: Statewide | B12: 2015 | C12: UBUS | D12: 1973 | E12: 2015_1973 | F12: =(1/$S12)*Defaults!$F$2 -> 3431.190837 | G12: =(1/$S12)*Defaults!$F$3 -> 3993.584865 | H12: =(1/$S12)*Defaults!$F$4 -> 973.0610957 | I12: =(1/$S12)*Defaults!$F$5 -> 2160.99978 | J12: =(1/$S12)*Defaults!$F$6 -> 1784.02651 | K12: =(1/$S12)*Defaults!$F$7 -> 3738.210304 | L12: Aggregated | M12: DSL | N12: 176.3570312 | O12: 22210.98603 | P12: 6.419205162 | Q12: 6419.205162 | R12: 0.2890103642 | S12: 3.460083526
A13: Statewide | B13: 2015 | C13: UBUS | D13: 1974 | E13: 2015_1974 | F13: =(1/$S13)*Defaults!$F$2 -> 3430.805541 | G13: =(1/$S13)*Defaults!$F$3 -> 3993.136416 | H13: =(1/$S13)*Defaults!$F$4 -> 972.9518284 | I13: =(1/$S13)*Defaults!$F$5 -> 2160.757116 | J13: =(1/$S13)*Defaults!$F$6 -> 1783.826178 | K13: =(1/$S13)*Defaults!$F$7 -> 3737.790532 | L13: Aggregated | M13: DSL | N13: 85.5456156 | O13: 11536.24473 | P13: 3.333719898 | Q13: 3333.719898 | R13: 0.2889779106 | S13: 3.46047211
A14: Statewide | B14: 2015 | C14: UBUS | D14: 1975 | E14: 2015_1975 | F14: =(1/$S14)*Defaults!$F$2 -> 3428.744839 | G14: =(1/$S14)*Defaults!$F$3 -> 3990.737952 | H14: =(1/$S14)*Defaults!$F$4 -> 972.3674281 | I14: =(1/$S14)*Defaults!$F$5 -> 2159.459264 | J14: =(1/$S14)*Defaults!$F$6 -> 1782.754728 | K14: =(1/$S14)*Defaults!$F$7 -> 3735.54544 | L14: Aggregated | M14: DSL | N14: 77.10150083 | O14: 10328.85869 | P14: 2.983019184 | Q14: 2983.019184 | R14: 0.2888043369 | S14: 3.462551881
A15: Statewide | B15: 2015 | C15: UBUS | D15: 1976 | E15: 2015_1976 | F15: =(1/$S15)*Defaults!$F$2 -> 3430.918854 | G15: =(1/$S15)*Defaults!$F$3 -> 3993.268302 | H15: =(1/$S15)*Defaults!$F$4 -> 972.9839631 | I15: =(1/$S15)*Defaults!$F$5 -> 2160.828482 | J15: =(1/$S15)*Defaults!$F$6 -> 1783.885094 | K15: =(1/$S15)*Defaults!$F$7 -> 3737.913984 | L15: Aggregated | M15: DSL | N15: 23.67540296 | O15: 3265.117601 | P15: 0.9435780256 | Q15: 943.5780256 | R15: 0.288987455 | S15: 3.460357821
A16: Statewide | B16: 2015 | C16: UBUS | D16: 1977 | E16: 2015_1977 | F16: =(1/$S16)*Defaults!$F$2 -> 3413.710903 | G16: =(1/$S16)*Defaults!$F$3 -> 3973.239859 | H16: =(1/$S16)*Defaults!$F$4 -> 968.1039119 | I16: =(1/$S16)*Defaults!$F$5 -> 2149.990735 | J16: =(1/$S16)*Defaults!$F$6 -> 1774.937926 | K16: =(1/$S16)*Defaults!$F$7 -> 3719.166284 | L16: Aggregated | M16: DSL | N16: 9.425771099 | O16: 1675.180975 | P16: 0.4816782266 | Q16: 481.6782266 | R16: 0.2875380235 | S16: 3.477800911
A17: Statewide | B17: 2015 | C17: UBUS | D17: 1978 | E17: 2015_1978 | F17: =(1/$S17)*Defaults!$F$2 -> 3434.97731 | G17: =(1/$S17)*Defaults!$F$3 -> 3997.991965 | H17: =(1/$S17)*Defaults!$F$4 -> 974.1349123 | I17: =(1/$S17)*Defaults!$F$5 -> 2163.38454 | J17: =(1/$S17)*Defaults!$F$6 -> 1785.995263 | K17: =(1/$S17)*Defaults!$F$7 -> 3742.335587 | L17: Aggregated | M17: DSL | N17: 4.004057293 | O17: 568.9026337 | P17: 0.1646002009 | Q17: 164.6002009 | R17: 0.2893293001 | S17: 3.456269377
A18: Statewide | B18: 2015 | C18: UBUS | D18: 1979 | E18: 2015_1979 | F18: =(1/$S18)*Defaults!$F$2 -> 3431.70544 | G18: =(1/$S18)*Defaults!$F$3 -> 3994.183814 | H18: =(1/$S18)*Defaults!$F$4 -> 973.2070333 | I18: =(1/$S18)*Defaults!$F$5 -> 2161.323882 | J18: =(1/$S18)*Defaults!$F$6 -> 1784.294074 | K18: =(1/$S18)*Defaults!$F$7 -> 3738.770953 | L18: Aggregated | M18: DSL | N18: 9.973355561 | O18: 1397.777908 | P18: 0.4040328893 | Q18: 404.0328893 | R18: 0.2890537094 | S18: 3.459564668
A19: Statewide | B19: 2015 | C19: UBUS | D19: 1980 | E19: 2015_1980 | F19: =(1/$S19)*Defaults!$F$2 -> 3430.590794 | G19: =(1/$S19)*Defaults!$F$3 -> 3992.886472 | H19: =(1/$S19)*Defaults!$F$4 -> 972.8909279 | I19: =(1/$S19)*Defaults!$F$5 -> 2160.621867 | J19: =(1/$S19)*Defaults!$F$6 -> 1783.714522 | K19: =(1/$S19)*Defaults!$F$7 -> 3737.55657 | L19: Aggregated | M19: DSL | N19: 154.7243691 | O19: 18741.39023 | P19: 5.415508792 | Q19: 5415.508792 | R19: 0.2889598224 | S19: 3.460688727
A20: Statewide | B20: 2015 | C20: UBUS | D20: 1981 | E20: 2015_1981 | F20: =(1/$S20)*Defaults!$F$2 -> 3432.579532 | G20: =(1/$S20)*Defaults!$F$3 -> 3995.201176 | H20: =(1/$S20)*Defaults!$F$4 -> 973.4549196 | I20: =(1/$S20)*Defaults!$F$5 -> 2161.874394 | J20: =(1/$S20)*Defaults!$F$6 -> 1784.748553 | K20: =(1/$S20)*Defaults!$F$7 -> 3739.723258 | L20: Aggregated | M20: DSL | N20: 162.6386978 | O20: 20579.75358 | P20: 5.950169296 | Q20: 5950.169296 | R20: 0.2891273345 | S20: 3.458683704
A21: Statewide | B21: 2015 | C21: UBUS | D21: 1982 | E21: 2015_1982 | F21: =(1/$S21)*Defaults!$F$2 -> 3435.707744 | G21: =(1/$S21)*Defaults!$F$3 -> 3998.842122 | H21: =(1/$S21)*Defaults!$F$4 -> 974.3420581 | I21: =(1/$S21)*Defaults!$F$5 -> 2163.844575 | J21: =(1/$S21)*Defaults!$F$6 -> 1786.375048 | K21: =(1/$S21)*Defaults!$F$7 -> 3743.131379 | L21: Aggregated | M21: DSL | N21: 98.35037753 | O21: 14843.24357 | P21: 4.2954985 | Q21: 4295.4985 | R21: 0.2893908248 | S21: 3.455534572
A22: Statewide | B22: 2015 | C22: UBUS | D22: 1983 | E22: 2015_1983 | F22: =(1/$S22)*Defaults!$F$2 -> 3427.893719 | G22: =(1/$S22)*Defaults!$F$3 -> 3989.747328 | H22: =(1/$S22)*Defaults!$F$4 -> 972.1260566 | I22: =(1/$S22)*Defaults!$F$5 -> 2158.92322 | J22: =(1/$S22)*Defaults!$F$6 -> 1782.312194 | K22: =(1/$S22)*Defaults!$F$7 -> 3734.618163 | L22: Aggregated | M22: DSL | N22: 154.1386035 | O22: 20409.7535 | P22: 5.892962149 | Q22: 5892.962149 | R22: 0.2887326468 | S22: 3.463411606
A23: Statewide | B23: 2015 | C23: UBUS | D23: 1984 | E23: 2015_1984 | F23: =(1/$S23)*Defaults!$F$2 -> 3433.596283 | G23: =(1/$S23)*Defaults!$F$3 -> 3996.384578 | H23: =(1/$S23)*Defaults!$F$4 -> 973.7432628 | I23: =(1/$S23)*Defaults!$F$5 -> 2162.514754 | J23: =(1/$S23)*Defaults!$F$6 -> 1785.277207 | K23: =(1/$S23)*Defaults!$F$7 -> 3740.830986 | L23: Aggregated | M23: DSL | N23: 317.1136495 | O23: 41699.33702 | P23: 12.05998934 | Q23: 12059.98934 | R23: 0.2892129757 | S23: 3.457659524
A24: Statewide | B24: 2015 | C24: UBUS | D24: 1985 | E24: 2015_1985 | F24: =(1/$S24)*Defaults!$F$2 -> 3436.492538 | G24: =(1/$S24)*Defaults!$F$3 -> 3999.755549 | H24: =(1/$S24)*Defaults!$F$4 -> 974.56462 | I24: =(1/$S24)*Defaults!$F$5 -> 2164.338846 | J24: =(1/$S24)*Defaults!$F$6 -> 1786.783097 | K24: =(1/$S24)*Defaults!$F$7 -> 3743.986396 | L24: Aggregated | M24: DSL | N24: 57.17489821 | O24: 8513.323801 | P24: 2.464240557 | Q24: 2464.240557 | R24: 0.2894569283 | S24: 3.454745429
A25: Statewide | B25: 2015 | C25: UBUS | D25: 1986 | E25: 2015_1986 | F25: =(1/$S25)*Defaults!$F$2 -> 3434.203479 | G25: =(1/$S25)*Defaults!$F$3 -> 3997.091299 | H25: =(1/$S25)*Defaults!$F$4 -> 973.9154594 | I25: =(1/$S25)*Defaults!$F$5 -> 2162.897173 | J25: =(1/$S25)*Defaults!$F$6 -> 1785.592915 | K25: =(1/$S25)*Defaults!$F$7 -> 3741.492515 | L25: Aggregated | M25: DSL | N25: 71.5588934 | O25: 9857.340909 | P25: 2.851375045 | Q25: 2851.375045 | R25: 0.2892641201 | S25: 3.45704818
A26: Statewide | B26: 2015 | C26: UBUS | D26: 1987 | E26: 2015_1987 | F26: =(1/$S26)*Defaults!$F$2 -> 3359.99223 | G26: =(1/$S26)*Defaults!$F$3 -> 3910.716353 | H26: =(1/$S26)*Defaults!$F$4 -> 952.8696816 | I26: =(1/$S26)*Defaults!$F$5 -> 2116.158154 | J26: =(1/$S26)*Defaults!$F$6 -> 1747.007233 | K26: =(1/$S26)*Defaults!$F$7 -> 3660.640918 | L26: Aggregated | M26: DSL | N26: 56.1154538 | O26: 7399.194703 | P26: 2.094070373 | Q26: 2094.070373 | R26: 0.2830132815 | S26: 3.533403079
A27: Statewide | B27: 2015 | C27: UBUS | D27: 1988 | E27: 2015_1988 | F27: =(1/$S27)*Defaults!$F$2 -> 3360.327215 | G27: =(1/$S27)*Defaults!$F$3 -> 3911.106244 | H27: =(1/$S27)*Defaults!$F$4 -> 952.964681 | I27: =(1/$S27)*Defaults!$F$5 -> 2116.369131 | J27: =(1/$S27)*Defaults!$F$6 -> 1747.181407 | K27: =(1/$S27)*Defaults!$F$7 -> 3661.005877 | L27: Aggregated | M27: DSL | N27: 276.0846626 | O27: 35979.11245 | P27: 10.18358186 | Q27: 10183.58186 | R27: 0.2830414974 | S27: 3.53305084
A28: Statewide | B28: 2015 | C28: UBUS | D28: 1989 | E28: 2015_1989 | F28: =(1/$S28)*Defaults!$F$2 -> 3357.261683 | G28: =(1/$S28)*Defaults!$F$3 -> 3907.538251 | H28: =(1/$S28)*Defaults!$F$4 -> 952.0953181 | I28: =(1/$S28)*Defaults!$F$5 -> 2114.438427 | J28: =(1/$S28)*Defaults!$F$6 -> 1745.587502 | K28: =(1/$S28)*Defaults!$F$7 -> 3657.666044 | L28: Aggregated | M28: DSL | N28: 229.4967529 | O28: 30802.67897 | P28: 8.710482794 | Q28: 8710.482794 | R28: 0.2827832865 | S28: 3.536276886
A29: Statewide | B29: 2015 | C29: UBUS | D29: 1990 | E29: 2015_1990 | F29: =(1/$S29)*Defaults!$F$2 -> 3361.88856 | G29: =(1/$S29)*Defaults!$F$3 -> 3912.923504 | H29: =(1/$S29)*Defaults!$F$4 -> 953.4074673 | I29: =(1/$S29)*Defaults!$F$5 -> 2117.352483 | J29: =(1/$S29)*Defaults!$F$6 -> 1747.993219 | K29: =(1/$S29)*Defaults!$F$7 -> 3662.70693 | L29: Aggregated | M29: DSL | N29: 219.8596173 | O29: 30860.12197 | P29: 8.738753628 | Q29: 8738.753628 | R29: 0.28317301 | S29: 3.531410003
A30: Statewide | B30: 2015 | C30: UBUS | D30: 1991 | E30: 2015_1991 | F30: =(1/$S30)*Defaults!$F$2 -> 3057.566535 | G30: =(1/$S30)*Defaults!$F$3 -> 3558.721161 | H30: =(1/$S30)*Defaults!$F$4 -> 867.1039253 | I30: =(1/$S30)*Defaults!$F$5 -> 1925.687297 | J30: =(1/$S30)*Defaults!$F$6 -> 1589.762859 | K30: =(1/$S30)*Defaults!$F$7 -> 3331.15448 | L30: Aggregated | M30: DSL | N30: 200.8717255 | O30: 29226.87827 | P30: 7.527086226 | Q30: 7527.086226 | R30: 0.257539863 | S30: 3.882894044
A31: Statewide | B31: 2015 | C31: UBUS | D31: 1992 | E31: 2015_1992 | F31: =(1/$S31)*Defaults!$F$2 -> 3008.526737 | G31: =(1/$S31)*Defaults!$F$3 -> 3501.643428 | H31: =(1/$S31)*Defaults!$F$4 -> 853.1965905 | I31: =(1/$S31)*Defaults!$F$5 -> 1894.801521 | J31: =(1/$S31)*Defaults!$F$6 -> 1564.264919 | K31: =(1/$S31)*Defaults!$F$7 -> 3277.726651 | L31: Aggregated | M31: DSL | N31: 325.9326524 | O31: 42826.4626 | P31: 10.85262066 | Q31: 10852.62066 | R31: 0.2534092242 | S31: 3.946186265
A32: Statewide | B32: 2015 | C32: UBUS | D32: 1993 | E32: 2015_1993 | F32: =(1/$S32)*Defaults!$F$2 -> 2894.215817 | G32: =(1/$S32)*Defaults!$F$3 -> 3368.59622 | H32: =(1/$S32)*Defaults!$F$4 -> 820.7788339 | I32: =(1/$S32)*Defaults!$F$5 -> 1822.807311 | J32: =(1/$S32)*Defaults!$F$6 -> 1504.829661 | K32: =(1/$S32)*Defaults!$F$7 -> 3153.187306 | L32: Aggregated | M32: DSL | N32: 179.1609504 | O32: 26564.18379 | P32: 6.475837358 | Q32: 6475.837358 | R32: 0.2437807768 | S32: 4.102046163
A33: Statewide | B33: 2015 | C33: UBUS | D33: 1994 | E33: 2015_1994 | F33: =(1/$S33)*Defaults!$F$2 -> 2760.384985 | G33: =(1/$S33)*Defaults!$F$3 -> 3212.829662 | H33: =(1/$S33)*Defaults!$F$4 -> 782.8253704 | I33: =(1/$S33)*Defaults!$F$5 -> 1738.519257 | J33: =(1/$S33)*Defaults!$F$6 -> 1435.245145 | K33: =(1/$S33)*Defaults!$F$7 -> 3007.381427 | L33: Aggregated | M33: DSL | N33: 106.437383 | O33: 15692.01237 | P33: 3.64852093 | Q33: 3648.52093 | R33: 0.2325081605 | S33: 4.300924311
A34: Statewide | B34: 2015 | C34: UBUS | D34: 1995 | E34: 2015_1995 | F34: =(1/$S34)*Defaults!$F$2 -> 2581.045668 | G34: =(1/$S34)*Defaults!$F$3 -> 3004.095489 | H34: =(1/$S34)*Defaults!$F$4 -> 731.9660273 | I34: =(1/$S34)*Defaults!$F$5 -> 1625.569485 | J34: =(1/$S34)*Defaults!$F$6 -> 1341.998774 | K34: =(1/$S34)*Defaults!$F$7 -> 2811.99501 | L34: Aggregated | M34: DSL | N34: 213.981775 | O34: 28616.18611 | P34: 6.221226088 | Q34: 6221.226088 | R34: 0.2174023492 | S34: 4.599766302
A35: Statewide | B35: 2015 | C35: UBUS | D35: 1996 | E35: 2015_1996 | F35: =(1/$S35)*Defaults!$F$2 -> 2593.889342 | G35: =(1/$S35)*Defaults!$F$3 -> 3019.044323 | H35: =(1/$S35)*Defaults!$F$4 -> 735.6084009 | I35: =(1/$S35)*Defaults!$F$5 -> 1633.658564 | J35: =(1/$S35)*Defaults!$F$6 -> 1348.676763 | K35: =(1/$S35)*Defaults!$F$7 -> 2825.987922 | L35: Aggregated | M35: DSL | N35: 124.8116209 | O35: 18373.51294 | P35: 4.014321837 | Q35: 4014.321837 | R35: 0.2184841762 | S35: 4.576990505
A36: Statewide | B36: 2015 | C36: UBUS | D36: 1997 | E36: 2015_1997 | F36: =(1/$S36)*Defaults!$F$2 -> 2592.761354 | G36: =(1/$S36)*Defaults!$F$3 -> 3017.731451 | H36: =(1/$S36)*Defaults!$F$4 -> 735.2885118 | I36: =(1/$S36)*Defaults!$F$5 -> 1632.948146 | J36: =(1/$S36)*Defaults!$F$6 -> 1348.090272 | K36: =(1/$S36)*Defaults!$F$7 -> 2824.759004 | L36: Aggregated | M36: DSL | N36: 504.7999992 | O36: 68011.32467 | P36: 14.85293643 | Q36: 14852.93643 | R36: 0.2183891654 | S36: 4.578981737
A37: Statewide | B37: 2015 | C37: UBUS | D37: 1998 | E37: 2015_1998 | F37: =(1/$S37)*Defaults!$F$2 -> 2674.702865 | G37: =(1/$S37)*Defaults!$F$3 -> 3113.103697 | H37: =(1/$S37)*Defaults!$F$4 -> 758.5265362 | I37: =(1/$S37)*Defaults!$F$5 -> 1684.555764 | J37: =(1/$S37)*Defaults!$F$6 -> 1390.695256 | K37: =(1/$S37)*Defaults!$F$7 -> 2914.032558 | L37: Aggregated | M37: DSL | N37: 379.2939965 | O37: 55332.44426 | P37: 12.4659087 | Q37: 12465.9087 | R37: 0.2252911266 | S37: 4.438701227
A38: Statewide | B38: 2015 | C38: UBUS | D38: 1999 | E38: 2015_1999 | F38: =(1/$S38)*Defaults!$F$2 -> 2495.161948 | G38: =(1/$S38)*Defaults!$F$3 -> 2904.13488 | H38: =(1/$S38)*Defaults!$F$4 -> 707.6100205 | I38: =(1/$S38)*Defaults!$F$5 -> 1571.479021 | J38: =(1/$S38)*Defaults!$F$6 -> 1297.344063 | K38: =(1/$S38)*Defaults!$F$7 -> 2718.426501 | L38: Aggregated | M38: DSL | N38: 414.141773 | O38: 53061.96375 | P38: 11.15194454 | Q38: 11151.94454 | R38: 0.2101683344 | S38: 4.758090713
A39: Statewide | B39: 2015 | C39: UBUS | D39: 2000 | E39: 2015_2000 | F39: =(1/$S39)*Defaults!$F$2 -> 2553.429899 | G39: =(1/$S39)*Defaults!$F$3 -> 2971.953319 | H39: =(1/$S39)*Defaults!$F$4 -> 724.1343932 | I39: =(1/$S39)*Defaults!$F$5 -> 1608.176785 | J39: =(1/$S39)*Defaults!$F$6 -> 1327.640125 | K39: =(1/$S39)*Defaults!$F$7 -> 2781.908209 | L39: Aggregated | M39: DSL | N39: 663.6046101 | O39: 89579.67024 | P39: 19.26646077 | Q39: 19266.46077 | R39: 0.2150762636 | S39: 4.649513541
A40: Statewide | B40: 2015 | C40: UBUS | D40: 2001 | E40: 2015_2001 | F40: =(1/$S40)*Defaults!$F$2 -> 2470.115233 | G40: =(1/$S40)*Defaults!$F$3 -> 2874.98285 | H40: =(1/$S40)*Defaults!$F$4 -> 700.5069521 | I40: =(1/$S40)*Defaults!$F$5 -> 1555.70434 | J40: =(1/$S40)*Defaults!$F$6 -> 1284.321178 | K40: =(1/$S40)*Defaults!$F$7 -> 2691.138633 | L40: Aggregated | M40: DSL | N40: 1236.256094 | O40: 156250.5735 | P40: 32.50928201 | Q40: 32509.28201 | R40: 0.2080586412 | S40: 4.806337263
A41: Statewide | B41: 2015 | C41: UBUS | D41: 2002 | E41: 2015_2002 | F41: =(1/$S41)*Defaults!$F$2 -> 2507.517737 | G41: =(1/$S41)*Defaults!$F$3 -> 2918.515861 | H41: =(1/$S41)*Defaults!$F$4 -> 711.1140336 | I41: =(1/$S41)*Defaults!$F$5 -> 1579.260826 | J41: =(1/$S41)*Defaults!$F$6 -> 1303.768379 | K41: =(1/$S41)*Defaults!$F$7 -> 2731.887874 | L41: Aggregated | M41: DSL | N41: 472.0442379 | O41: 66523.91246 | P41: 14.05045346 | Q41: 14050.45346 | R41: 0.2112090667 | S41: 4.734645229
A42: Statewide | B42: 2015 | C42: UBUS | D42: 2003 | E42: 2015_2003 | F42: =(1/$S42)*Defaults!$F$2 -> 2631.712367 | G42: =(1/$S42)*Defaults!$F$3 -> 3063.066782 | H42: =(1/$S42)*Defaults!$F$4 -> 746.3347393 | I42: =(1/$S42)*Defaults!$F$5 -> 1657.4799 | J42: =(1/$S42)*Defaults!$F$6 -> 1368.342611 | K42: =(1/$S42)*Defaults!$F$7 -> 2867.195313 | L42: Aggregated | M42: DSL | N42: 526.7225058 | O42: 79808.35347 | P42: 17.6911195 | Q42: 17691.1195 | R42: 0.2216700224 | S42: 4.511209903
A43: Statewide | B43: 2015 | C43: UBUS | D43: 2004 | E43: 2015_2004 | F43: =(1/$S43)*Defaults!$F$2 -> 2527.076283 | G43: =(1/$S43)*Defaults!$F$3 -> 2941.280178 | H43: =(1/$S43)*Defaults!$F$4 -> 716.660697 | I43: =(1/$S43)*Defaults!$F$5 -> 1591.579003 | J43: =(1/$S43)*Defaults!$F$6 -> 1313.937725 | K43: =(1/$S43)*Defaults!$F$7 -> 2753.196499 | L43: Aggregated | M43: DSL | N43: 440.4076478 | O43: 60576.94482 | P43: 12.89419583 | Q43: 12894.19583 | R43: 0.2128564897 | S43: 4.698000994
A44: Statewide | B44: 2015 | C44: UBUS | D44: 2005 | E44: 2015_2005 | F44: =(1/$S44)*Defaults!$F$2 -> 2425.594757 | G44: =(1/$S44)*Defaults!$F$3 -> 2823.165184 | H44: =(1/$S44)*Defaults!$F$4 -> 687.8812646 | I44: =(1/$S44)*Defaults!$F$5 -> 1527.664879 | J44: =(1/$S44)*Defaults!$F$6 -> 1261.173032 | K44: =(1/$S44)*Defaults!$F$7 -> 2642.63451 | L44: Aggregated | M44: DSL | N44: 470.0883668 | O44: 61063.88144 | P44: 12.47588018 | Q44: 12475.88018 | R44: 0.2043086665 | S44: 4.894554976
A45: Statewide | B45: 2015 | C45: UBUS | D45: 2006 | E45: 2015_2006 | F45: =(1/$S45)*Defaults!$F$2 -> 2504.332932 | G45: =(1/$S45)*Defaults!$F$3 -> 2914.809047 | H45: =(1/$S45)*Defaults!$F$4 -> 710.210846 | I45: =(1/$S45)*Defaults!$F$5 -> 1577.255003 | J45: =(1/$S45)*Defaults!$F$6 -> 1302.11246 | K45: =(1/$S45)*Defaults!$F$7 -> 2728.418097 | L45: Aggregated | M45: DSL | N45: 277.1883789 | O45: 37118.89625 | P45: 7.829890025 | Q45: 7829.890025 | R45: 0.2109408096 | S45: 4.740666361
A46: Statewide | B46: 2015 | C46: UBUS | D46: 2007 | E46: 2015_2007 | F46: =(1/$S46)*Defaults!$F$2 -> 2485.986316 | G46: =(1/$S46)*Defaults!$F$3 -> 2893.455304 | H46: =(1/$S46)*Defaults!$F$4 -> 705.0078774 | I46: =(1/$S46)*Defaults!$F$5 -> 1565.700113 | J46: =(1/$S46)*Defaults!$F$6 -> 1292.57325 | K46: =(1/$S46)*Defaults!$F$7 -> 2708.429844 | L46: Aggregated | M46: DSL | N46: 474.0262697 | O46: 63474.13556 | P46: 13.29119632 | Q46: 13291.19632 | R46: 0.2093954679 | S46: 4.775652549
A47: Statewide | B47: 2015 | C47: UBUS | D47: 2008 | E47: 2015_2008 | F47: =(1/$S47)*Defaults!$F$2 -> 2377.389579 | G47: =(1/$S47)*Defaults!$F$3 -> 2767.05887 | H47: =(1/$S47)*Defaults!$F$4 -> 674.210622 | I47: =(1/$S47)*Defaults!$F$5 -> 1497.304755 | J47: =(1/$S47)*Defaults!$F$6 -> 1236.109046 | K47: =(1/$S47)*Defaults!$F$7 -> 2590.115981 | L47: Aggregated | M47: DSL | N47: 522.338141 | O47: 71168.0896 | P47: 14.25129095 | Q47: 14251.29095 | R47: 0.200248328 | S47: 4.993799499
A48: Statewide | B48: 2015 | C48: UBUS | D48: 2009 | E48: 2015_2009 | F48: =(1/$S48)*Defaults!$F$2 -> 2500.651978 | G48: =(1/$S48)*Defaults!$F$3 -> 2910.524761 | H48: =(1/$S48)*Defaults!$F$4 -> 709.1669537 | I48: =(1/$S48)*Defaults!$F$5 -> 1574.9367 | J48: =(1/$S48)*Defaults!$F$6 -> 1300.19857 | K48: =(1/$S48)*Defaults!$F$7 -> 2724.407774 | L48: Aggregated | M48: DSL | N48: 315.6785381 | O48: 46895.20447 | P48: 9.877572629 | Q48: 9877.572629 | R48: 0.2106307615 | S48: 4.747644612
A49: Statewide | B49: 2015 | C49: UBUS | D49: 2010 | E49: 2015_2010 | F49: =(1/$S49)*Defaults!$F$2 -> 2579.267501 | G49: =(1/$S49)*Defaults!$F$3 -> 3002.02587 | H49: =(1/$S49)*Defaults!$F$4 -> 731.461752 | I49: =(1/$S49)*Defaults!$F$5 -> 1624.449577 | J49: =(1/$S49)*Defaults!$F$6 -> 1341.074227 | K49: =(1/$S49)*Defaults!$F$7 -> 2810.057735 | L49: Aggregated | M49: DSL | N49: 413.6698711 | O49: 57684.8966 | P49: 12.53219225 | Q49: 12532.19225 | R49: 0.2172525736 | S49: 4.602937416
A50: Statewide | B50: 2015 | C50: UBUS | D50: 2011 | E50: 2015_2011 | F50: =(1/$S50)*Defaults!$F$2 -> 2497.851266 | G50: =(1/$S50)*Defaults!$F$3 -> 2907.264995 | H50: =(1/$S50)*Defaults!$F$4 -> 708.3726919 | I50: =(1/$S50)*Defaults!$F$5 -> 1573.172782 | J50: =(1/$S50)*Defaults!$F$6 -> 1298.742357 | K50: =(1/$S50)*Defaults!$F$7 -> 2721.356457 | L50: Aggregated | M50: DSL | N50: 221.5223391 | O50: 32502.49082 | P50: 6.838356894 | Q50: 6838.356894 | R50: 0.2103948566 | S50: 4.752967901
A51: Statewide | B51: 2015 | C51: UBUS | D51: 2012 | E51: 2015_2012 | F51: =(1/$S51)*Defaults!$F$2 -> 2368.171023 | G51: =(1/$S51)*Defaults!$F$3 -> 2756.329334 | H51: =(1/$S51)*Defaults!$F$4 -> 671.5963056 | I51: =(1/$S51)*Defaults!$F$5 -> 1491.498812 | J51: =(1/$S51)*Defaults!$F$6 -> 1231.315915 | K51: =(1/$S51)*Defaults!$F$7 -> 2580.072558 | L51: Aggregated | M51: DSL | N51: 394.1724904 | O51: 55264.88756 | P51: 11.02378913 | Q51: 11023.78913 | R51: 0.1994718459 | S51: 5.013238814
A52: Statewide | B52: 2015 | C52: UBUS | D52: 2013 | E52: 2015_2013 | F52: =(1/$S52)*Defaults!$F$2 -> 2380.319917 | G52: =(1/$S52)*Defaults!$F$3 -> 2770.469509 | H52: =(1/$S52)*Defaults!$F$4 -> 675.0416448 | I52: =(1/$S52)*Defaults!$F$5 -> 1499.150312 | J52: =(1/$S52)*Defaults!$F$6 -> 1237.632657 | K52: =(1/$S52)*Defaults!$F$7 -> 2593.308522 | L52: Aggregated | M52: DSL | N52: 268.0270858 | O52: 36600.93407 | P52: 7.338309815 | Q52: 7338.309815 | R52: 0.2004951513 | S52: 4.987651788
A53: Statewide | B53: 2015 | C53: UBUS | D53: 2014 | E53: 2015_2014 | F53: =(1/$S53)*Defaults!$F$2 -> 2284.924219 | G53: =(1/$S53)*Defaults!$F$3 -> 2659.437849 | H53: =(1/$S53)*Defaults!$F$4 -> 647.9881096 | I53: =(1/$S53)*Defaults!$F$5 -> 1439.069107 | J53: =(1/$S53)*Defaults!$F$6 -> 1188.032253 | K53: =(1/$S53)*Defaults!$F$7 -> 2489.376915 | L53: Aggregated | M53: DSL | N53: 286.6955677 | O53: 39157.09518 | P53: 7.536172167 | Q53: 7536.172167 | R53: 0.1924599395 | S53: 5.195886494
A54: Statewide | B54: 2015 | C54: UBUS | D54: 2015 | E54: 2015_2015 | F54: =(1/$S54)*Defaults!$F$2 -> 2284.806593 | G54: =(1/$S54)*Defaults!$F$3 -> 2659.300943 | H54: =(1/$S54)*Defaults!$F$4 -> 647.9547517 | I54: =(1/$S54)*Defaults!$F$5 -> 1438.995025 | J54: =(1/$S54)*Defaults!$F$6 -> 1187.971094 | K54: =(1/$S54)*Defaults!$F$7 -> 2489.248764 | L54: Aggregated | M54: DSL | N54: 284.2077825 | O54: 38824.00986 | P54: 7.471681931 | Q54: 7471.681931 | R54: 0.1924500318 | S54: 5.196153987
A55: Statewide | B55: 2016 | C55: UBUS | D55: 1972 | E55: 2016_1972 | F55: =(1/$S55)*Defaults!$F$2 -> 3437.602024 | G55: =(1/$S55)*Defaults!$F$3 -> 4001.046886 | H55: =(1/$S55)*Defaults!$F$4 -> 974.8792622 | I55: =(1/$S55)*Defaults!$F$5 -> 2165.037612 | J55: =(1/$S55)*Defaults!$F$6 -> 1787.359967 | K55: =(1/$S55)*Defaults!$F$7 -> 3745.195157 | L55: Aggregated | M55: DSL | N55: 56.04261029 | O55: 8209.979634 | P55: 2.377202728 | Q55: 2377.202728 | R55: 0.2895503806 | S55: 3.453630411
A56: Statewide | B56: 2016 | C56: UBUS | D56: 1973 | E56: 2016_1973 | F56: =(1/$S56)*Defaults!$F$2 -> 3431.222626 | G56: =(1/$S56)*Defaults!$F$3 -> 3993.621865 | H56: =(1/$S56)*Defaults!$F$4 -> 973.0701109 | I56: =(1/$S56)*Defaults!$F$5 -> 2161.019801 | J56: =(1/$S56)*Defaults!$F$6 -> 1784.043039 | K56: =(1/$S56)*Defaults!$F$7 -> 3738.244938 | L56: Aggregated | M56: DSL | N56: 168.8000916 | O56: 21410.00586 | P56: 6.187770919 | Q56: 6187.770919 | R56: 0.2890130418 | S56: 3.460051469
A57: Statewide | B57: 2016 | C57: UBUS | D57: 1974 | E57: 2016_1974 | F57: =(1/$S57)*Defaults!$F$2 -> 3430.828048 | G57: =(1/$S57)*Defaults!$F$3 -> 3993.162613 | H57: =(1/$S57)*Defaults!$F$4 -> 972.9582114 | I57: =(1/$S57)*Defaults!$F$5 -> 2160.771292 | J57: =(1/$S57)*Defaults!$F$6 -> 1783.83788 | K57: =(1/$S57)*Defaults!$F$7 -> 3737.815054 | L57: Aggregated | M57: DSL | N57: 79.82898478 | O57: 10813.39585 | P57: 3.124853038 | Q57: 3124.853038 | R57: 0.2889798064 | S57: 3.460449408
A58: Statewide | B58: 2016 | C58: UBUS | D58: 1975 | E58: 2016_1975 | F58: =(1/$S58)*Defaults!$F$2 -> 3428.759387 | G58: =(1/$S58)*Defaults!$F$3 -> 3990.754884 | H58: =(1/$S58)*Defaults!$F$4 -> 972.3715538 | I58: =(1/$S58)*Defaults!$F$5 -> 2159.468427 | J58: =(1/$S58)*Defaults!$F$6 -> 1782.762292 | K58: =(1/$S58)*Defaults!$F$7 -> 3735.56129 | L58: Aggregated | M58: DSL | N58: 73.46249432 | O58: 9881.130543 | P58: 2.853725463 | Q58: 2853.725463 | R58: 0.2888055623 | S58: 3.462537189
A59: Statewide | B59: 2016 | C59: UBUS | D59: 1976 | E59: 2016_1976 | F59: =(1/$S59)*Defaults!$F$2 -> 3430.971702 | G59: =(1/$S59)*Defaults!$F$3 -> 3993.329812 | H59: =(1/$S59)*Defaults!$F$4 -> 972.9989505 | I59: =(1/$S59)*Defaults!$F$5 -> 2160.861766 | J59: =(1/$S59)*Defaults!$F$6 -> 1783.912572 | K59: =(1/$S59)*Defaults!$F$7 -> 3737.971561 | L59: Aggregated | M59: DSL | N59: 22.28522003 | O59: 3101.410916 | P59: 0.8962826531 | Q59: 896.2826531 | R59: 0.2889919064 | S59: 3.46030452
A60: Statewide | B60: 2016 | C60: UBUS | D60: 1977 | E60: 2016_1977 | F60: =(1/$S60)*Defaults!$F$2 -> 3413.842663 | G60: =(1/$S60)*Defaults!$F$3 -> 3973.393214 | H60: =(1/$S60)*Defaults!$F$4 -> 968.1412779 | I60: =(1/$S60)*Defaults!$F$5 -> 2150.073718 | J60: =(1/$S60)*Defaults!$F$6 -> 1775.006434 | K60: =(1/$S60)*Defaults!$F$7 -> 3719.309833 | L60: Aggregated | M60: DSL | N60: 8.801664636 | O60: 1573.028996 | P60: 0.4523231061 | Q60: 452.3231061 | R60: 0.2875491216 | S60: 3.477666683
A61: Statewide | B61: 2016 | C61: UBUS | D61: 1978 | E61: 2016_1978 | F61: =(1/$S61)*Defaults!$F$2 -> 3434.99767 | G61: =(1/$S61)*Defaults!$F$3 -> 3998.015662 | H61: =(1/$S61)*Defaults!$F$4 -> 974.1406863 | I61: =(1/$S61)*Defaults!$F$5 -> 2163.397363 | J61: =(1/$S61)*Defaults!$F$6 -> 1786.00585 | K61: =(1/$S61)*Defaults!$F$7 -> 3742.357769 | L61: Aggregated | M61: DSL | N61: 3.914639214 | O61: 563.7154001 | P61: 0.1631003489 | Q61: 163.1003489 | R61: 0.2893310151 | S61: 3.456248891
A62: Statewide | B62: 2016 | C62: UBUS | D62: 1979 | E62: 2016_1979 | F62: =(1/$S62)*Defaults!$F$2 -> 3431.740502 | G62: =(1/$S62)*Defaults!$F$3 -> 3994.224624 | H62: =(1/$S62)*Defaults!$F$4 -> 973.2169768 | I62: =(1/$S62)*Defaults!$F$5 -> 2161.345965 | J62: =(1/$S62)*Defaults!$F$6 -> 1784.312305 | K62: =(1/$S62)*Defaults!$F$7 -> 3738.809153 | L62: Aggregated | M62: DSL | N62: 8.923399414 | O62: 1264.670455 | P62: 0.3655614212 | Q62: 365.5614212 | R62: 0.2890566627 | S62: 3.459529321
A63: Statewide | B63: 2016 | C63: UBUS | D63: 1980 | E63: 2016_1980 | F63: =(1/$S63)*Defaults!$F$2 -> 3430.594599 | G63: =(1/$S63)*Defaults!$F$3 -> 3992.8909 | H63: =(1/$S63)*Defaults!$F$4 -> 972.8920069 | I63: =(1/$S63)*Defaults!$F$5 -> 2160.624263 | J63: =(1/$S63)*Defaults!$F$6 -> 1783.7165 | K63: =(1/$S63)*Defaults!$F$7 -> 3737.560715 | L63: Aggregated | M63: DSL | N63: 142.0951413 | O63: 17297.28525 | P63: 4.998226017 | Q63: 4998.226017 | R63: 0.2889601429 | S63: 3.460684889
A64: Statewide | B64: 2016 | C64: UBUS | D64: 1981 | E64: 2016_1981 | F64: =(1/$S64)*Defaults!$F$2 -> 3432.595497 | G64: =(1/$S64)*Defaults!$F$3 -> 3995.219758 | H64: =(1/$S64)*Defaults!$F$4 -> 973.4594472 | I64: =(1/$S64)*Defaults!$F$5 -> 2161.884449 | J64: =(1/$S64)*Defaults!$F$6 -> 1784.756854 | K64: =(1/$S64)*Defaults!$F$7 -> 3739.740652 | L64: Aggregated | M64: DSL | N64: 160.7174111 | O64: 20470.28153 | P64: 5.918545463 | Q64: 5918.545463 | R64: 0.2891286792 | S64: 3.458667617
A65: Statewide | B65: 2016 | C65: UBUS | D65: 1982 | E65: 2016_1982 | F65: =(1/$S65)*Defaults!$F$2 -> 3435.747611 | G65: =(1/$S65)*Defaults!$F$3 -> 3998.888524 | H65: =(1/$S65)*Defaults!$F$4 -> 974.3533642 | I65: =(1/$S65)*Defaults!$F$5 -> 2163.869684 | J65: =(1/$S65)*Defaults!$F$6 -> 1786.395777 | K65: =(1/$S65)*Defaults!$F$7 -> 3743.174814 | L65: Aggregated | M65: DSL | N65: 93.39039941 | O65: 14284.19993 | P65: 4.133764367 | Q65: 4133.764367 | R65: 0.2893941829 | S65: 3.455494475
A66: Statewide | B66: 2016 | C66: UBUS | D66: 1983 | E66: 2016_1983 | F66: =(1/$S66)*Defaults!$F$2 -> 3427.881264 | G66: =(1/$S66)*Defaults!$F$3 -> 3989.732831 | H66: =(1/$S66)*Defaults!$F$4 -> 972.1225244 | I66: =(1/$S66)*Defaults!$F$5 -> 2158.915376 | J66: =(1/$S66)*Defaults!$F$6 -> 1782.305718 | K66: =(1/$S66)*Defaults!$F$7 -> 3734.604593 | L66: Aggregated | M66: DSL | N66: 141.9218877 | O66: 18911.64407 | P66: 5.460389209 | Q66: 5460.389209 | R66: 0.2887315977 | S66: 3.46342419
A67: Statewide | B67: 2016 | C67: UBUS | D67: 1984 | E67: 2016_1984 | F67: =(1/$S67)*Defaults!$F$2 -> 3433.596821 | G67: =(1/$S67)*Defaults!$F$3 -> 3996.385205 | H67: =(1/$S67)*Defaults!$F$4 -> 973.7434154 | I67: =(1/$S67)*Defaults!$F$5 -> 2162.515093 | J67: =(1/$S67)*Defaults!$F$6 -> 1785.277486 | K67: =(1/$S67)*Defaults!$F$7 -> 3740.831573 | L67: Aggregated | M67: DSL | N67: 269.6576064 | O67: 35624.52624 | P67: 10.30307686 | Q67: 10303.07686 | R67: 0.289213021 | S67: 3.457658982
A68: Statewide | B68: 2016 | C68: UBUS | D68: 1985 | E68: 2016_1985 | F68: =(1/$S68)*Defaults!$F$2 -> 3436.479688 | G68: =(1/$S68)*Defaults!$F$3 -> 3999.740593 | H68: =(1/$S68)*Defaults!$F$4 -> 974.5609759 | I68: =(1/$S68)*Defaults!$F$5 -> 2164.330753 | J68: =(1/$S68)*Defaults!$F$6 -> 1786.776416 | K68: =(1/$S68)*Defaults!$F$7 -> 3743.972396 | L68: Aggregated | M68: DSL | N68: 52.99794719 | O68: 7904.771157 | P68: 2.288082222 | Q68: 2288.082222 | R68: 0.2894558459 | S68: 3.454758347
A69: Statewide | B69: 2016 | C69: UBUS | D69: 1986 | E69: 2016_1986 | F69: =(1/$S69)*Defaults!$F$2 -> 3434.20761 | G69: =(1/$S69)*Defaults!$F$3 -> 3997.096106 | H69: =(1/$S69)*Defaults!$F$4 -> 973.9166307 | I69: =(1/$S69)*Defaults!$F$5 -> 2162.899775 | J69: =(1/$S69)*Defaults!$F$6 -> 1785.595062 | K69: =(1/$S69)*Defaults!$F$7 -> 3741.497014 | L69: Aggregated | M69: DSL | N69: 68.8637654 | O69: 9544.754469 | P69: 2.760958324 | Q69: 2760.958324 | R69: 0.289264468 | S69: 3.457044023
A70: Statewide | B70: 2016 | C70: UBUS | D70: 1987 | E70: 2016_1987 | F70: =(1/$S70)*Defaults!$F$2 -> 3360.001935 | G70: =(1/$S70)*Defaults!$F$3 -> 3910.727649 | H70: =(1/$S70)*Defaults!$F$4 -> 952.872434 | I70: =(1/$S70)*Defaults!$F$5 -> 2116.164267 | J70: =(1/$S70)*Defaults!$F$6 -> 1747.01228 | K70: =(1/$S70)*Defaults!$F$7 -> 3660.651492 | L70: Aggregated | M70: DSL | N70: 48.9500319 | O70: 6503.883718 | P70: 1.84069079 | Q70: 1840.69079 | R70: 0.2830140989 | S70: 3.533392872
A71: Statewide | B71: 2016 | C71: UBUS | D71: 1988 | E71: 2016_1988 | F71: =(1/$S71)*Defaults!$F$2 -> 3360.331483 | G71: =(1/$S71)*Defaults!$F$3 -> 3911.111212 | H71: =(1/$S71)*Defaults!$F$4 -> 952.9658915 | I71: =(1/$S71)*Defaults!$F$5 -> 2116.37182 | J71: =(1/$S71)*Defaults!$F$6 -> 1747.183626 | K71: =(1/$S71)*Defaults!$F$7 -> 3661.010527 | L71: Aggregated | M71: DSL | N71: 249.4932217 | O71: 32690.38222 | P71: 9.252746486 | Q71: 9252.746486 | R71: 0.2830418569 | S71: 3.533046352
A72: Statewide | B72: 2016 | C72: UBUS | D72: 1989 | E72: 2016_1989 | F72: =(1/$S72)*Defaults!$F$2 -> 3357.271157 | G72: =(1/$S72)*Defaults!$F$3 -> 3907.549279 | H72: =(1/$S72)*Defaults!$F$4 -> 952.0980049 | I72: =(1/$S72)*Defaults!$F$5 -> 2114.444394 | J72: =(1/$S72)*Defaults!$F$6 -> 1745.592428 | K72: =(1/$S72)*Defaults!$F$7 -> 3657.676366 | L72: Aggregated | M72: DSL | N72: 208.672696 | O72: 28173.28932 | P72: 7.96695783 | Q72: 7966.95783 | R72: 0.2827840846 | S72: 3.536266907
A73: Statewide | B73: 2016 | C73: UBUS | D73: 1990 | E73: 2016_1990 | F73: =(1/$S73)*Defaults!$F$2 -> 3361.887897 | G73: =(1/$S73)*Defaults!$F$3 -> 3912.922732 | H73: =(1/$S73)*Defaults!$F$4 -> 953.4072793 | I73: =(1/$S73)*Defaults!$F$5 -> 2117.352065 | J73: =(1/$S73)*Defaults!$F$6 -> 1747.992874 | K73: =(1/$S73)*Defaults!$F$7 -> 3662.706208 | L73: Aggregated | M73: DSL | N73: 186.7569859 | O73: 26360.97031 | P73: 7.464713838 | Q73: 7464.713838 | R73: 0.2831729542 | S73: 3.531410699
A74: Statewide | B74: 2016 | C74: UBUS | D74: 1991 | E74: 2016_1991 | F74: =(1/$S74)*Defaults!$F$2 -> 3057.570926 | G74: =(1/$S74)*Defaults!$F$3 -> 3558.726271 | H74: =(1/$S74)*Defaults!$F$4 -> 867.1051703 | I74: =(1/$S74)*Defaults!$F$5 -> 1925.690062 | J74: =(1/$S74)*Defaults!$F$6 -> 1589.765142 | K74: =(1/$S74)*Defaults!$F$7 -> 3331.159263 | L74: Aggregated | M74: DSL | N74: 181.6808397 | O74: 26610.91808 | P74: 6.853382037 | Q74: 6853.382037 | R74: 0.2575402328 | S74: 3.882888468
A75: Statewide | B75: 2016 | C75: UBUS | D75: 1992 | E75: =CONCATENATE(B75,"_",D75) -> 2016_1992 | F75: =(1/$S75)*Defaults!$F$2 -> 3008.35912 | G75: =(1/$S75)*Defaults!$F$3 -> 3501.448337 | H75: =(1/$S75)*Defaults!$F$4 -> 853.1490554 | I75: =(1/$S75)*Defaults!$F$5 -> 1894.695954 | J75: =(1/$S75)*Defaults!$F$6 -> 1564.177767 | K75: =(1/$S75)*Defaults!$F$7 -> 3277.544035 | L75: Aggregated | M75: DSL | N75: 304.6517483 | O75: 40287.949 | P75: 10.2087691 | Q75: =(P75*1000) -> 10208.7691 | R75: =Q75/O75 -> 0.2533951058 | S75: =O75/Q75 -> 3.946406135
A76: Statewide | B76: 2016 | C76: UBUS | D76: 1993 | E76: 2016_1993 | F76: =(1/$S76)*Defaults!$F$2 -> 2892.87231 | G76: =(1/$S76)*Defaults!$F$3 -> 3367.032503 | H76: =(1/$S76)*Defaults!$F$4 -> 820.3978248 | I76: =(1/$S76)*Defaults!$F$5 -> 1821.961156 | J76: =(1/$S76)*Defaults!$F$6 -> 1504.131112 | K76: =(1/$S76)*Defaults!$F$7 -> 3151.723582 | L76: Aggregated | M76: DSL | N76: 164.7159824 | O76: 24601.20659 | P76: 5.994517277 | Q76: 5994.517277 | R76: 0.2436676127 | S76: 4.103951236
A77: Statewide | B77: 2016 | C77: UBUS | D77: 1994 | E77: 2016_1994 | F77: =(1/$S77)*Defaults!$F$2 -> 2760.526267 | G77: =(1/$S77)*Defaults!$F$3 -> 3212.994101 | H77: =(1/$S77)*Defaults!$F$4 -> 782.865437 | I77: =(1/$S77)*Defaults!$F$5 -> 1738.608238 | J77: =(1/$S77)*Defaults!$F$6 -> 1435.318604 | K77: =(1/$S77)*Defaults!$F$7 -> 3007.535351 | L77: Aggregated | M77: DSL | N77: 96.00570764 | O77: 14270.88401 | P77: 3.318266818 | Q77: 3318.266818 | R77: 0.2325200608 | S77: 4.300704192
A78: Statewide | B78: 2016 | C78: UBUS | D78: 1995 | E78: 2016_1995 | F78: =(1/$S78)*Defaults!$F$2 -> 2581.472009 | G78: =(1/$S78)*Defaults!$F$3 -> 3004.59171 | H78: =(1/$S78)*Defaults!$F$4 -> 732.0869344 | I78: =(1/$S78)*Defaults!$F$5 -> 1625.837998 | J78: =(1/$S78)*Defaults!$F$6 -> 1342.220447 | K78: =(1/$S78)*Defaults!$F$7 -> 2812.459499 | L78: Aggregated | M78: DSL | N78: 197.2014221 | O78: 26555.73574 | P78: 5.774232974 | Q78: 5774.232974 | R78: 0.21743826 | S78: 4.599006632
A79: Statewide | B79: 2016 | C79: UBUS | D79: 1996 | E79: 2016_1996 | F79: =(1/$S79)*Defaults!$F$2 -> 2593.937392 | G79: =(1/$S79)*Defaults!$F$3 -> 3019.100248 | H79: =(1/$S79)*Defaults!$F$4 -> 735.6220275 | I79: =(1/$S79)*Defaults!$F$5 -> 1633.688826 | J79: =(1/$S79)*Defaults!$F$6 -> 1348.701746 | K79: =(1/$S79)*Defaults!$F$7 -> 2826.040272 | L79: Aggregated | M79: DSL | N79: 111.4912791 | O79: 16621.48962 | P79: 3.631599739 | Q79: 3631.599739 | R79: 0.2184882235 | S79: 4.576905721
A80: Statewide | B80: 2016 | C80: UBUS | D80: 1997 | E80: 2016_1997 | F80: =(1/$S80)*Defaults!$F$2 -> 2593.042103 | G80: =(1/$S80)*Defaults!$F$3 -> 3018.058216 | H80: =(1/$S80)*Defaults!$F$4 -> 735.36813 | I80: =(1/$S80)*Defaults!$F$5 -> 1633.124964 | J80: =(1/$S80)*Defaults!$F$6 -> 1348.236246 | K80: =(1/$S80)*Defaults!$F$7 -> 2825.064873 | L80: Aggregated | M80: DSL | N80: 461.6123729 | O80: 62613.68674 | P80: 13.67563145 | Q80: 13675.63145 | R80: 0.218412813 | S80: 4.578485971
A81: Statewide | B81: 2016 | C81: UBUS | D81: 1998 | E81: 2016_1998 | F81: =(1/$S81)*Defaults!$F$2 -> 2674.779212 | G81: =(1/$S81)*Defaults!$F$3 -> 3113.192557 | H81: =(1/$S81)*Defaults!$F$4 -> 758.5481875 | I81: =(1/$S81)*Defaults!$F$5 -> 1684.603848 | J81: =(1/$S81)*Defaults!$F$6 -> 1390.734951 | K81: =(1/$S81)*Defaults!$F$7 -> 2914.115736 | L81: Aggregated | M81: DSL | N81: 340.8667703 | O81: 50099.66164 | P81: 11.28733139 | Q81: 11287.33139 | R81: 0.2252975573 | S81: 4.438574532
A82: Statewide | B82: 2016 | C82: UBUS | D82: 1999 | E82: 2016_1999 | F82: =(1/$S82)*Defaults!$F$2 -> 2495.442433 | G82: =(1/$S82)*Defaults!$F$3 -> 2904.461338 | H82: =(1/$S82)*Defaults!$F$4 -> 707.6895641 | I82: =(1/$S82)*Defaults!$F$5 -> 1571.655674 | J82: =(1/$S82)*Defaults!$F$6 -> 1297.489899 | K82: =(1/$S82)*Defaults!$F$7 -> 2718.732084 | L82: Aggregated | M82: DSL | N82: 382.6316381 | O82: 49339.11171 | P82: 10.37068458 | Q82: 10370.68458 | R82: 0.2101919598 | S82: 4.757555908
A83: Statewide | B83: 2016 | C83: UBUS | D83: 2000 | E83: 2016_2000 | F83: =(1/$S83)*Defaults!$F$2 -> 2553.486343 | G83: =(1/$S83)*Defaults!$F$3 -> 2972.019015 | H83: =(1/$S83)*Defaults!$F$4 -> 724.1504003 | I83: =(1/$S83)*Defaults!$F$5 -> 1608.212334 | J83: =(1/$S83)*Defaults!$F$6 -> 1327.669472 | K83: =(1/$S83)*Defaults!$F$7 -> 2781.969704 | L83: Aggregated | M83: DSL | N83: 606.396548 | O83: 82274.41662 | P83: 17.69566528 | Q83: 17695.66528 | R83: 0.2150810179 | S83: 4.649410765
A84: Statewide | B84: 2016 | C84: UBUS | D84: 2001 | E84: 2016_2001 | F84: =(1/$S84)*Defaults!$F$2 -> 2470.279899 | G84: =(1/$S84)*Defaults!$F$3 -> 2875.174505 | H84: =(1/$S84)*Defaults!$F$4 -> 700.55365 | I84: =(1/$S84)*Defaults!$F$5 -> 1555.808047 | J84: =(1/$S84)*Defaults!$F$6 -> 1284.406795 | K84: =(1/$S84)*Defaults!$F$7 -> 2691.318032 | L84: Aggregated | M84: DSL | N84: 1145.790309 | O84: 145387.8853 | P84: 30.25122237 | Q84: 30251.22237 | R84: 0.208072511 | S84: 4.806016879
A85: Statewide | B85: 2016 | C85: UBUS | D85: 2002 | E85: 2016_2002 | F85: =(1/$S85)*Defaults!$F$2 -> 2506.837633 | G85: =(1/$S85)*Defaults!$F$3 -> 2917.724285 | H85: =(1/$S85)*Defaults!$F$4 -> 710.9211612 | I85: =(1/$S85)*Defaults!$F$5 -> 1578.83249 | J85: =(1/$S85)*Defaults!$F$6 -> 1303.414764 | K85: =(1/$S85)*Defaults!$F$7 -> 2731.146915 | L85: Aggregated | M85: DSL | N85: 432.2878522 | O85: 61257.14857 | P85: 12.93455604 | Q85: 12934.55604 | R85: 0.2111517814 | S85: 4.735929735
A86: Statewide | B86: 2016 | C86: UBUS | D86: 2003 | E86: 2016_2003 | F86: =(1/$S86)*Defaults!$F$2 -> 2631.815725 | G86: =(1/$S86)*Defaults!$F$3 -> 3063.187081 | H86: =(1/$S86)*Defaults!$F$4 -> 746.3640509 | I86: =(1/$S86)*Defaults!$F$5 -> 1657.544996 | J86: =(1/$S86)*Defaults!$F$6 -> 1368.396351 | K86: =(1/$S86)*Defaults!$F$7 -> 2867.30792 | L86: Aggregated | M86: DSL | N86: 476.4114818 | O86: 72864.76402 | P86: 16.15256822 | Q86: 16152.56822 | R86: 0.2216787283 | S86: 4.511032736
A87: Statewide | B87: 2016 | C87: UBUS | D87: 2004 | E87: 2016_2004 | F87: =(1/$S87)*Defaults!$F$2 -> 2527.576891 | G87: =(1/$S87)*Defaults!$F$3 -> 2941.862838 | H87: =(1/$S87)*Defaults!$F$4 -> 716.8026657 | I87: =(1/$S87)*Defaults!$F$5 -> 1591.894291 | J87: =(1/$S87)*Defaults!$F$6 -> 1314.198013 | K87: =(1/$S87)*Defaults!$F$7 -> 2753.741901 | L87: Aggregated | M87: DSL | N87: 416.0185136 | O87: 57658.30774 | P87: 12.27537622 | Q87: 12275.37622 | R87: 0.212898656 | S87: 4.697070516
A88: Statewide | B88: 2016 | C88: UBUS | D88: 2005 | E88: 2016_2005 | F88: =(1/$S88)*Defaults!$F$2 -> 2425.687207 | G88: =(1/$S88)*Defaults!$F$3 -> 2823.272786 | H88: =(1/$S88)*Defaults!$F$4 -> 687.9074826 | I88: =(1/$S88)*Defaults!$F$5 -> 1527.723105 | J88: =(1/$S88)*Defaults!$F$6 -> 1261.2211 | K88: =(1/$S88)*Defaults!$F$7 -> 2642.735231 | L88: Aggregated | M88: DSL | N88: 431.6241853 | O88: 56360.51565 | P88: 11.51538067 | Q88: 11515.38067 | R88: 0.2043164535 | S88: 4.894368432
A89: Statewide | B89: 2016 | C89: UBUS | D89: 2006 | E89: 2016_2006 | F89: =(1/$S89)*Defaults!$F$2 -> 2504.701282 | G89: =(1/$S89)*Defaults!$F$3 -> 2915.237772 | H89: =(1/$S89)*Defaults!$F$4 -> 710.3153074 | I89: =(1/$S89)*Defaults!$F$5 -> 1577.486994 | J89: =(1/$S89)*Defaults!$F$6 -> 1302.303981 | K89: =(1/$S89)*Defaults!$F$7 -> 2728.819406 | L89: Aggregated | M89: DSL | N89: 259.8581623 | O89: 35103.88785 | P89: 7.405931664 | Q89: 7405.931664 | R89: 0.2109718358 | S89: 4.739969182
A90: Statewide | B90: 2016 | C90: UBUS | D90: 2007 | E90: 2016_2007 | F90: =(1/$S90)*Defaults!$F$2 -> 2486.292279 | G90: =(1/$S90)*Defaults!$F$3 -> 2893.811417 | H90: =(1/$S90)*Defaults!$F$4 -> 705.0946463 | I90: =(1/$S90)*Defaults!$F$5 -> 1565.892812 | J90: =(1/$S90)*Defaults!$F$6 -> 1292.732334 | K90: =(1/$S90)*Defaults!$F$7 -> 2708.763184 | L90: Aggregated | M90: DSL | N90: 456.4155166 | O90: 61267.86279 | P90: 12.83079175 | Q90: 12830.79175 | R90: 0.2094212393 | S90: 4.775064858
A91: Statewide | B91: 2016 | C91: UBUS | D91: 2008 | E91: 2016_2008 | F91: =(1/$S91)*Defaults!$F$2 -> 2377.924434 | G91: =(1/$S91)*Defaults!$F$3 -> 2767.681391 | H91: =(1/$S91)*Defaults!$F$4 -> 674.3623031 | I91: =(1/$S91)*Defaults!$F$5 -> 1497.641612 | J91: =(1/$S91)*Defaults!$F$6 -> 1236.387141 | K91: =(1/$S91)*Defaults!$F$7 -> 2590.698694 | L91: Aggregated | M91: DSL | N91: 497.8620732 | O91: 68392.81508 | P91: 13.69862803 | Q91: 13698.62803 | R91: 0.200293379 | S91: 4.992676268
A92: Statewide | B92: 2016 | C92: UBUS | D92: 2009 | E92: 2016_2009 | F92: =(1/$S92)*Defaults!$F$2 -> 2500.23946 | G92: =(1/$S92)*Defaults!$F$3 -> 2910.044628 | H92: =(1/$S92)*Defaults!$F$4 -> 709.0499665 | I92: =(1/$S92)*Defaults!$F$5 -> 1574.676891 | J92: =(1/$S92)*Defaults!$F$6 -> 1299.984084 | K92: =(1/$S92)*Defaults!$F$7 -> 2723.958344 | L92: Aggregated | M92: DSL | N92: 305.1333351 | O92: 45516.89178 | P92: 9.585676022 | Q92: 9585.676022 | R92: 0.210596015 | S92: 4.748427933
A93: Statewide | B93: 2016 | C93: UBUS | D93: 2010 | E93: 2016_2010 | F93: =(1/$S93)*Defaults!$F$2 -> 2578.870955 | G93: =(1/$S93)*Defaults!$F$3 -> 3001.564327 | H93: =(1/$S93)*Defaults!$F$4 -> 731.3492943 | I93: =(1/$S93)*Defaults!$F$5 -> 1624.199828 | J93: =(1/$S93)*Defaults!$F$6 -> 1340.868045 | K93: =(1/$S93)*Defaults!$F$7 -> 2809.625706 | L93: Aggregated | M93: DSL | N93: 395.7629964 | O93: 55380.769 | P93: 12.02976481 | Q93: 12029.76481 | R93: 0.2172191724 | S93: 4.603645198
A94: Statewide | B94: 2016 | C94: UBUS | D94: 2011 | E94: 2016_2011 | F94: =(1/$S94)*Defaults!$F$2 -> 2498.736233 | G94: =(1/$S94)*Defaults!$F$3 -> 2908.295014 | H94: =(1/$S94)*Defaults!$F$4 -> 708.6236623 | I94: =(1/$S94)*Defaults!$F$5 -> 1573.730144 | J94: =(1/$S94)*Defaults!$F$6 -> 1299.202491 | K94: =(1/$S94)*Defaults!$F$7 -> 2722.32061 | L94: Aggregated | M94: DSL | N94: 215.2800454 | O94: 31866.77748 | P94: 6.706981463 | Q94: 6706.981463 | R94: 0.2104693977 | S94: 4.751284562
A95: Statewide | B95: 2016 | C95: UBUS | D95: 2012 | E95: 2016_2012 | F95: =(1/$S95)*Defaults!$F$2 -> 2368.296334 | G95: =(1/$S95)*Defaults!$F$3 -> 2756.475184 | H95: =(1/$S95)*Defaults!$F$4 -> 671.6318429 | I95: =(1/$S95)*Defaults!$F$5 -> 1491.577734 | J95: =(1/$S95)*Defaults!$F$6 -> 1231.38107 | K95: =(1/$S95)*Defaults!$F$7 -> 2580.209081 | L95: Aggregated | M95: DSL | N95: 392.1834616 | O95: 55285.41325 | P95: 11.02846697 | Q95: 11028.46697 | R95: 0.1994824009 | S95: 5.012973554
A96: Statewide | B96: 2016 | C96: UBUS | D96: 2013 | E96: 2016_2013 | F96: =(1/$S96)*Defaults!$F$2 -> 2380.491025 | G96: =(1/$S96)*Defaults!$F$3 -> 2770.668663 | H96: =(1/$S96)*Defaults!$F$4 -> 675.0901699 | I96: =(1/$S96)*Defaults!$F$5 -> 1499.258078 | J96: =(1/$S96)*Defaults!$F$6 -> 1237.721624 | K96: =(1/$S96)*Defaults!$F$7 -> 2593.494941 | L96: Aggregated | M96: DSL | N96: 266.8277447 | O96: 36642.35783 | P96: 7.347143187 | Q96: 7347.143187 | R96: 0.2005095638 | S96: 4.987293278
A97: Statewide | B97: 2016 | C97: UBUS | D97: 2014 | E97: 2016_2014 | F97: =(1/$S97)*Defaults!$F$2 -> 2285.089304 | G97: =(1/$S97)*Defaults!$F$3 -> 2659.629992 | H97: =(1/$S97)*Defaults!$F$4 -> 648.0349264 | I97: =(1/$S97)*Defaults!$F$5 -> 1439.173079 | J97: =(1/$S97)*Defaults!$F$6 -> 1188.118088 | K97: =(1/$S97)*Defaults!$F$7 -> 2489.556771 | L97: Aggregated | M97: DSL | N97: 287.0900782 | O97: 39432.0943 | P97: 7.589646789 | Q97: 7589.646789 | R97: 0.1924738446 | S97: 5.195511121
A98: Statewide | B98: 2016 | C98: UBUS | D98: 2015 | E98: 2016_2015 | F98: =(1/$S98)*Defaults!$F$2 -> 2284.972535 | G98: =(1/$S98)*Defaults!$F$3 -> 2659.494085 | H98: =(1/$S98)*Defaults!$F$4 -> 648.0018117 | I98: =(1/$S98)*Defaults!$F$5 -> 1439.099537 | J98: =(1/$S98)*Defaults!$F$6 -> 1188.057375 | K98: =(1/$S98)*Defaults!$F$7 -> 2489.429554 | L98: Aggregated | M98: DSL | N98: 306.9762338 | O98: 42171.07926 | P98: 8.116414984 | Q98: 8116.414984 | R98: 0.1924640092 | S98: 5.195776626
A99: Statewide | B99: 2016 | C99: UBUS | D99: 2016 | E99: 2016_2016 | F99: =(1/$S99)*Defaults!$F$2 -> 2284.849272 | G99: =(1/$S99)*Defaults!$F$3 -> 2659.350617 | H99: =(1/$S99)*Defaults!$F$4 -> 647.9668551 | I99: =(1/$S99)*Defaults!$F$5 -> 1439.021905 | J99: =(1/$S99)*Defaults!$F$6 -> 1187.993285 | K99: =(1/$S99)*Defaults!$F$7 -> 2489.295261 | L99: Aggregated | M99: DSL | N99: 301.2168358 | O99: 41387.35075 | P99: 7.965145749 | Q99: 7965.145749 | R99: 0.1924536266 | S99: 5.196056928
A100: Statewide | B100: 2017 | C100: UBUS | D100: 1973 | E100: 2017_1973 | F100: =(1/$S100)*Defaults!$F$2 -> 3431.250567 | G100: =(1/$S100)*Defaults!$F$3 -> 3993.654385 | H100: =(1/$S100)*Defaults!$F$4 -> 973.0780346 | I100: =(1/$S100)*Defaults!$F$5 -> 2161.037398 | J100: =(1/$S100)*Defaults!$F$6 -> 1784.057566 | K100: =(1/$S100)*Defaults!$F$7 -> 3738.275379 | L100: Aggregated | M100: DSL | N100: 151.9348405 | O100: 19323.63241 | P100: 5.58482726 | Q100: 5584.82726 | R100: 0.2890153953 | S100: 3.460023294
A101: Statewide | B101: 2017 | C101: UBUS | D101: 1974 | E101: 2017_1974 | F101: =(1/$S101)*Defaults!$F$2 -> 3430.844437 | G101: =(1/$S101)*Defaults!$F$3 -> 3993.181688 | H101: =(1/$S101)*Defaults!$F$4 -> 972.9628592 | I101: =(1/$S101)*Defaults!$F$5 -> 2160.781614 | J101: =(1/$S101)*Defaults!$F$6 -> 1783.846402 | K101: =(1/$S101)*Defaults!$F$7 -> 3737.832909 | L101: Aggregated | M101: DSL | N101: 77.37097796 | O101: 10479.15082 | P101: 3.028277442 | Q101: 3028.277442 | R101: 0.2889811869 | S101: 3.460432878
A102: Statewide | B102: 2017 | C102: UBUS | D102: 1975 | E102: 2017_1975 | F102: =(1/$S102)*Defaults!$F$2 -> 3428.769507 | G102: =(1/$S102)*Defaults!$F$3 -> 3990.766664 | H102: =(1/$S102)*Defaults!$F$4 -> 972.374424 | I102: =(1/$S102)*Defaults!$F$5 -> 2159.474801 | J102: =(1/$S102)*Defaults!$F$6 -> 1782.767555 | K102: =(1/$S102)*Defaults!$F$7 -> 3735.572316 | L102: Aggregated | M102: DSL | N102: 68.37877063 | O102: 9193.947766 | P102: 2.655271092 | Q102: 2655.271092 | R102: 0.2888064148 | S102: 3.462526969
A103: Statewide | B103: 2017 | C103: UBUS | D103: 1976 | E103: 2017_1976 | F103: =(1/$S103)*Defaults!$F$2 -> 3431.016466 | G103: =(1/$S103)*Defaults!$F$3 -> 3993.381914 | H103: =(1/$S103)*Defaults!$F$4 -> 973.0116454 | I103: =(1/$S103)*Defaults!$F$5 -> 2160.889959 | J103: =(1/$S103)*Defaults!$F$6 -> 1783.935847 | K103: =(1/$S103)*Defaults!$F$7 -> 3738.020331 | L103: Aggregated | M103: DSL | N103: 21.39263677 | O103: 2988.976976 | P103: 0.8638014246 | Q103: 863.8014246 | R103: 0.2889956769 | S103: 3.460259374
A104: Statewide | B104: 2017 | C104: UBUS | D104: 1977 | E104: 2017_1977 | F104: =(1/$S104)*Defaults!$F$2 -> 3413.946177 | G104: =(1/$S104)*Defaults!$F$3 -> 3973.513695 | H104: =(1/$S104)*Defaults!$F$4 -> 968.1706339 | I104: =(1/$S104)*Defaults!$F$5 -> 2150.138913 | J104: =(1/$S104)*Defaults!$F$6 -> 1775.060255 | K104: =(1/$S104)*Defaults!$F$7 -> 3719.422609 | L104: Aggregated | M104: DSL | N104: 8.283038194 | O104: 1481.610372 | P104: 0.4260486792 | Q104: 426.0486792 | R104: 0.2875578407 | S104: 3.477561237
A105: Statewide | B105: 2017 | C105: UBUS | D105: 1978 | E105: 2017_1978 | F105: =(1/$S105)*Defaults!$F$2 -> 3435.014052 | G105: =(1/$S105)*Defaults!$F$3 -> 3998.03473 | H105: =(1/$S105)*Defaults!$F$4 -> 974.1453321 | I105: =(1/$S105)*Defaults!$F$5 -> 2163.407681 | J105: =(1/$S105)*Defaults!$F$6 -> 1786.014367 | K105: =(1/$S105)*Defaults!$F$7 -> 3742.375617 | L105: Aggregated | M105: DSL | N105: 3.687781593 | O105: 534.977805 | P105: 0.1547864096 | Q105: 154.7864096 | R105: 0.2893323949 | S105: 3.456232408
A106: Statewide | B106: 2017 | C106: UBUS | D106: 1979 | E106: 2017_1979 | F106: =(1/$S106)*Defaults!$F$2 -> 3431.768593 | G106: =(1/$S106)*Defaults!$F$3 -> 3994.257319 | H106: =(1/$S106)*Defaults!$F$4 -> 973.2249432 | I106: =(1/$S106)*Defaults!$F$5 -> 2161.363657 | J106: =(1/$S106)*Defaults!$F$6 -> 1784.326911 | K106: =(1/$S106)*Defaults!$F$7 -> 3738.839757 | L106: Aggregated | M106: DSL | N106: 8.706864722 | O106: 1240.682491 | P106: 0.3586304759 | Q106: 358.6304759 | R106: 0.2890590288 | S106: 3.459501002
A107: Statewide | B107: 2017 | C107: UBUS | D107: 1980 | E107: 2017_1980 | F107: =(1/$S107)*Defaults!$F$2 -> 3430.59742 | G107: =(1/$S107)*Defaults!$F$3 -> 3992.894183 | H107: =(1/$S107)*Defaults!$F$4 -> 972.8928068 | I107: =(1/$S107)*Defaults!$F$5 -> 2160.626039 | J107: =(1/$S107)*Defaults!$F$6 -> 1783.717966 | K107: =(1/$S107)*Defaults!$F$7 -> 3737.563788 | L107: Aggregated | M107: DSL | N107: 127.6490852 | O107: 15551.22228 | P107: 4.493687106 | Q107: 4493.687106 | R107: 0.2889603805 | S107: 3.460682044
A108: Statewide | B108: 2017 | C108: UBUS | D108: 1981 | E108: 2017_1981 | F108: =(1/$S108)*Defaults!$F$2 -> 3432.608786 | G108: =(1/$S108)*Defaults!$F$3 -> 3995.235225 | H108: =(1/$S108)*Defaults!$F$4 -> 973.4632158 | I108: =(1/$S108)*Defaults!$F$5 -> 2161.892819 | J108: =(1/$S108)*Defaults!$F$6 -> 1784.763764 | K108: =(1/$S108)*Defaults!$F$7 -> 3739.755129 | L108: Aggregated | M108: DSL | N108: 148.2610277 | O108: 18925.10291 | P108: 5.471811191 | Q108: 5471.811191 | R108: 0.2891297985 | S108: 3.458654228
A109: Statewide | B109: 2017 | C109: UBUS | D109: 1982 | E109: 2017_1982 | F109: =(1/$S109)*Defaults!$F$2 -> 3435.782768 | G109: =(1/$S109)*Defaults!$F$3 -> 3998.929443 | H109: =(1/$S109)*Defaults!$F$4 -> 974.3633345 | I109: =(1/$S109)*Defaults!$F$5 -> 2163.891826 | J109: =(1/$S109)*Defaults!$F$6 -> 1786.414056 | K109: =(1/$S109)*Defaults!$F$7 -> 3743.213117 | L109: Aggregated | M109: DSL | N109: 92.06388281 | O109: 14193.47352 | P109: 4.107550702 | Q109: 4107.550702 | R109: 0.2893971442 | S109: 3.455459116
A110: Statewide | B110: 2017 | C110: UBUS | D110: 1983 | E110: 2017_1983 | F110: =(1/$S110)*Defaults!$F$2 -> 3427.870322 | G110: =(1/$S110)*Defaults!$F$3 -> 3989.720096 | H110: =(1/$S110)*Defaults!$F$4 -> 972.1194214 | I110: =(1/$S110)*Defaults!$F$5 -> 2158.908485 | J110: =(1/$S110)*Defaults!$F$6 -> 1782.300029 | K110: =(1/$S110)*Defaults!$F$7 -> 3734.592672 | L110: Aggregated | M110: DSL | N110: 133.7115092 | O110: 17847.94114 | P110: 5.153248112 | Q110: 5153.248112 | R110: 0.2887306761 | S110: 3.463435245
A111: Statewide | B111: 2017 | C111: UBUS | D111: 1984 | E111: 2017_1984 | F111: =(1/$S111)*Defaults!$F$2 -> 3433.59641 | G111: =(1/$S111)*Defaults!$F$3 -> 3996.384726 | H111: =(1/$S111)*Defaults!$F$4 -> 973.7432988 | I111: =(1/$S111)*Defaults!$F$5 -> 2162.514834 | J111: =(1/$S111)*Defaults!$F$6 -> 1785.277273 | K111: =(1/$S111)*Defaults!$F$7 -> 3740.831125 | L111: Aggregated | M111: DSL | N111: 246.778497 | O111: 32616.38583 | P111: 9.433082352 | Q111: 9433.082352 | R111: 0.2892129864 | S111: 3.457659396
A112: Statewide | B112: 2017 | C112: UBUS | D112: 1985 | E112: 2017_1985 | F112: =(1/$S112)*Defaults!$F$2 -> 3436.470369 | G112: =(1/$S112)*Defaults!$F$3 -> 3999.729746 | H112: =(1/$S112)*Defaults!$F$4 -> 974.558333 | I112: =(1/$S112)*Defaults!$F$5 -> 2164.324884 | J112: =(1/$S112)*Defaults!$F$6 -> 1786.77157 | K112: =(1/$S112)*Defaults!$F$7 -> 3743.962243 | L112: Aggregated | M112: DSL | N112: 45.32078525 | O112: 6746.484917 | P112: 1.952804203 | Q112: 1952.804203 | R112: 0.289455061 | S112: 3.454767716
A113: Statewide | B113: 2017 | C113: UBUS | D113: 1986 | E113: 2017_1986 | F113: =(1/$S113)*Defaults!$F$2 -> 3434.210242 | G113: =(1/$S113)*Defaults!$F$3 -> 3997.099169 | H113: =(1/$S113)*Defaults!$F$4 -> 973.9173772 | I113: =(1/$S113)*Defaults!$F$5 -> 2162.901432 | J113: =(1/$S113)*Defaults!$F$6 -> 1785.596431 | K113: =(1/$S113)*Defaults!$F$7 -> 3741.499882 | L113: Aggregated | M113: DSL | N113: 63.75371064 | O113: 8848.42729 | P113: 2.559537574 | Q113: 2559.537574 | R113: 0.2892646897 | S113: 3.457041373
A114: Statewide | B114: 2017 | C114: UBUS | D114: 1987 | E114: 2017_1987 | F114: =(1/$S114)*Defaults!$F$2 -> 3360.008676 | G114: =(1/$S114)*Defaults!$F$3 -> 3910.735495 | H114: =(1/$S114)*Defaults!$F$4 -> 952.8743457 | I114: =(1/$S114)*Defaults!$F$5 -> 2116.168512 | J114: =(1/$S114)*Defaults!$F$6 -> 1747.015785 | K114: =(1/$S114)*Defaults!$F$7 -> 3660.658836 | L114: Aggregated | M114: DSL | N114: 46.79510549 | O114: 6235.373076 | P114: 1.764702033 | Q114: 1764.702033 | R114: 0.2830146667 | S114: 3.533385784
A115: Statewide | B115: 2017 | C115: UBUS | D115: 1988 | E115: 2017_1988 | F115: =(1/$S115)*Defaults!$F$2 -> 3360.333628 | G115: =(1/$S115)*Defaults!$F$3 -> 3911.113708 | H115: =(1/$S115)*Defaults!$F$4 -> 952.9664996 | I115: =(1/$S115)*Defaults!$F$5 -> 2116.37317 | J115: =(1/$S115)*Defaults!$F$6 -> 1747.184741 | K115: =(1/$S115)*Defaults!$F$7 -> 3661.012864 | L115: Aggregated | M115: DSL | N115: 217.6489176 | O115: 28545.94671 | P115: 8.079702919 | Q115: 8079.702919 | R115: 0.2830420375 | S115: 3.533044098
A116: Statewide | B116: 2017 | C116: UBUS | D116: 1989 | E116: 2017_1989 | F116: =(1/$S116)*Defaults!$F$2 -> 3357.276061 | G116: =(1/$S116)*Defaults!$F$3 -> 3907.554986 | H116: =(1/$S116)*Defaults!$F$4 -> 952.0993956 | I116: =(1/$S116)*Defaults!$F$5 -> 2114.447483 | J116: =(1/$S116)*Defaults!$F$6 -> 1745.594978 | K116: =(1/$S116)*Defaults!$F$7 -> 3657.681709 | L116: Aggregated | M116: DSL | N116: 186.4494975 | O116: 25204.17431 | P116: 7.127349769 | Q116: 7127.349769 | R116: 0.2827844976 | S116: 3.536261742
A117: Statewide | B117: 2017 | C117: UBUS | D117: 1990 | E117: 2017_1990 | F117: =(1/$S117)*Defaults!$F$2 -> 3361.887713 | G117: =(1/$S117)*Defaults!$F$3 -> 3912.922518 | H117: =(1/$S117)*Defaults!$F$4 -> 953.4072272 | I117: =(1/$S117)*Defaults!$F$5 -> 2117.35195 | J117: =(1/$S117)*Defaults!$F$6 -> 1747.992778 | K117: =(1/$S117)*Defaults!$F$7 -> 3662.706007 | L117: Aggregated | M117: DSL | N117: 168.9458003 | O117: 23876.31675 | P117: 6.761126778 | Q117: 6761.126778 | R117: 0.2831729387 | S117: 3.531410892
A118: Statewide | B118: 2017 | C118: UBUS | D118: 1991 | E118: 2017_1991 | F118: =(1/$S118)*Defaults!$F$2 -> 3057.574174 | G118: =(1/$S118)*Defaults!$F$3 -> 3558.730052 | H118: =(1/$S118)*Defaults!$F$4 -> 867.1060915 | I118: =(1/$S118)*Defaults!$F$5 -> 1925.692108 | J118: =(1/$S118)*Defaults!$F$6 -> 1589.766831 | K118: =(1/$S118)*Defaults!$F$7 -> 3331.162802 | L118: Aggregated | M118: DSL | N118: 154.5705968 | O118: 22678.34305 | P118: 5.840591953 | Q118: 5840.591953 | R118: 0.2575405064 | S118: 3.882884343
A119: Statewide | B119: 2017 | C119: UBUS | D119: 1992 | E119: 2017_1992 | F119: =(1/$S119)*Defaults!$F$2 -> 3008.232885 | G119: =(1/$S119)*Defaults!$F$3 -> 3501.301412 | H119: =(1/$S119)*Defaults!$F$4 -> 853.1132562 | I119: =(1/$S119)*Defaults!$F$5 -> 1894.61645 | J119: =(1/$S119)*Defaults!$F$6 -> 1564.112132 | K119: =(1/$S119)*Defaults!$F$7 -> 3277.406505 | L119: Aggregated | M119: DSL | N119: 273.2860831 | O119: 36207.51367 | P119: 9.174421769 | Q119: 9174.421769 | R119: 0.253384473 | S119: 3.946571739
A120: Statewide | B120: 2017 | C120: UBUS | D120: 1993 | E120: 2017_1993 | F120: =(1/$S120)*Defaults!$F$2 -> 2891.74344 | G120: =(1/$S120)*Defaults!$F$3 -> 3365.718604 | H120: =(1/$S120)*Defaults!$F$4 -> 820.0776854 | I120: =(1/$S120)*Defaults!$F$5 -> 1821.250182 | J120: =(1/$S120)*Defaults!$F$6 -> 1503.544163 | K120: =(1/$S120)*Defaults!$F$7 -> 3150.493702 | L120: Aggregated | M120: DSL | N120: 153.3005532 | O120: 22947.25183 | P120: 5.589320129 | Q120: 5589.320129 | R120: 0.2435725276 | S120: 4.105553323
A121: Statewide | B121: 2017 | C121: UBUS | D121: 1994 | E121: 2017_1994 | F121: =(1/$S121)*Defaults!$F$2 -> 2760.627075 | G121: =(1/$S121)*Defaults!$F$3 -> 3213.111433 | H121: =(1/$S121)*Defaults!$F$4 -> 782.8940255 | I121: =(1/$S121)*Defaults!$F$5 -> 1738.671728 | J121: =(1/$S121)*Defaults!$F$6 -> 1435.371019 | K121: =(1/$S121)*Defaults!$F$7 -> 3007.645179 | L121: Aggregated | M121: DSL | N121: 87.56418979 | O121: 13054.36605 | P121: 3.035512832 | Q121: 3035.512832 | R121: 0.2325285519 | S121: 4.300547145
A122: Statewide | B122: 2017 | C122: UBUS | D122: 1995 | E122: 2017_1995 | F122: =(1/$S122)*Defaults!$F$2 -> 2581.803216 | G122: =(1/$S122)*Defaults!$F$3 -> 3004.977204 | H122: =(1/$S122)*Defaults!$F$4 -> 732.1808624 | I122: =(1/$S122)*Defaults!$F$5 -> 1626.046596 | J122: =(1/$S122)*Defaults!$F$6 -> 1342.392656 | K122: =(1/$S122)*Defaults!$F$7 -> 2812.820342 | L122: Aggregated | M122: DSL | N122: 177.0399227 | O122: 23891.57435 | P122: 5.195608876 | Q122: 5195.608876 | R122: 0.2174661577 | S122: 4.598416648
A123: Statewide | B123: 2017 | C123: UBUS | D123: 1996 | E123: 2017_1996 | F123: =(1/$S123)*Defaults!$F$2 -> 2593.997391 | G123: =(1/$S123)*Defaults!$F$3 -> 3019.170082 | H123: =(1/$S123)*Defaults!$F$4 -> 735.639043 | I123: =(1/$S123)*Defaults!$F$5 -> 1633.726615 | J123: =(1/$S123)*Defaults!$F$6 -> 1348.732942 | K123: =(1/$S123)*Defaults!$F$7 -> 2826.10564 | L123: Aggregated | M123: DSL | N123: 102.1441148 | O123: 15336.64288 | P123: 3.350953365 | Q123: 3350.953365 | R123: 0.2184932772 | S123: 4.576799857
A124: Statewide | B124: 2017 | C124: UBUS | D124: 1997 | E124: 2017_1997 | F124: =(1/$S124)*Defaults!$F$2 -> 2593.269164 | G124: =(1/$S124)*Defaults!$F$3 -> 3018.322494 | H124: =(1/$S124)*Defaults!$F$4 -> 735.432523 | I124: =(1/$S124)*Defaults!$F$5 -> 1633.26797 | J124: =(1/$S124)*Defaults!$F$6 -> 1348.354305 | K124: =(1/$S124)*Defaults!$F$7 -> 2825.312252 | L124: Aggregated | M124: DSL | N124: 411.7027538 | O124: 55959.0739 | P124: 12.22324898 | Q124: 12223.24898 | R124: 0.2184319384 | S124: 4.578085088
A125: Statewide | B125: 2017 | C125: UBUS | D125: 1998 | E125: 2017_1998 | F125: =(1/$S125)*Defaults!$F$2 -> 2674.853856 | G125: =(1/$S125)*Defaults!$F$3 -> 3113.279437 | H125: =(1/$S125)*Defaults!$F$4 -> 758.5693561 | I125: =(1/$S125)*Defaults!$F$5 -> 1684.65086 | J125: =(1/$S125)*Defaults!$F$6 -> 1390.773762 | K125: =(1/$S125)*Defaults!$F$7 -> 2914.197059 | L125: Aggregated | M125: DSL | N125: 308.9632399 | O125: 45548.95596 | P125: 10.2623549 | Q125: 10262.3549 | R125: 0.2253038446 | S125: 4.43845067
A126: Statewide | B126: 2017 | C126: UBUS | D126: 1999 | E126: 2017_1999 | F126: =(1/$S126)*Defaults!$F$2 -> 2495.630092 | G126: =(1/$S126)*Defaults!$F$3 -> 2904.679756 | H126: =(1/$S126)*Defaults!$F$4 -> 707.7427829 | I126: =(1/$S126)*Defaults!$F$5 -> 1571.773864 | J126: =(1/$S126)*Defaults!$F$6 -> 1297.587472 | K126: =(1/$S126)*Defaults!$F$7 -> 2718.936535 | L126: Aggregated | M126: DSL | N126: 343.4432173 | O126: 44368.14017 | P126: 9.326527644 | Q126: 9326.527644 | R126: 0.2102077664 | S126: 4.757198163
A127: Statewide | B127: 2017 | C127: UBUS | D127: 2000 | E127: 2017_2000 | F127: =(1/$S127)*Defaults!$F$2 -> 2553.496983 | G127: =(1/$S127)*Defaults!$F$3 -> 2972.031399 | H127: =(1/$S127)*Defaults!$F$4 -> 724.1534179 | I127: =(1/$S127)*Defaults!$F$5 -> 1608.219035 | J127: =(1/$S127)*Defaults!$F$6 -> 1327.675005 | K127: =(1/$S127)*Defaults!$F$7 -> 2781.981297 | L127: Aggregated | M127: DSL | N127: 557.3121242 | O127: 75651.39428 | P127: 16.27124669 | Q127: 16271.24669 | R127: 0.2150819142 | S127: 4.64939139
A128: Statewide | B128: 2017 | C128: UBUS | D128: 2001 | E128: 2017_2001 | F128: =(1/$S128)*Defaults!$F$2 -> 2470.3858 | G128: =(1/$S128)*Defaults!$F$3 -> 2875.297764 | H128: =(1/$S128)*Defaults!$F$4 -> 700.5836829 | I128: =(1/$S128)*Defaults!$F$5 -> 1555.874745 | J128: =(1/$S128)*Defaults!$F$6 -> 1284.461858 | K128: =(1/$S128)*Defaults!$F$7 -> 2691.433409 | L128: Aggregated | M128: DSL | N128: 1045.452283 | O128: 132617.9262 | P128: 27.59532788 | Q128: 27595.32788 | R128: 0.2080814311 | S128: 4.805810853
A129: Statewide | B129: 2017 | C129: UBUS | D129: 2002 | E129: 2017_2002 | F129: =(1/$S129)*Defaults!$F$2 -> 2506.270477 | G129: =(1/$S129)*Defaults!$F$3 -> 2917.064168 | H129: =(1/$S129)*Defaults!$F$4 -> 710.7603197 | I129: =(1/$S129)*Defaults!$F$5 -> 1578.475289 | J129: =(1/$S129)*Defaults!$F$6 -> 1303.119874 | K129: =(1/$S129)*Defaults!$F$7 -> 2730.529011 | L129: Aggregated | M129: DSL | N129: 402.5870819 | O129: 57103.51407 | P129: 12.05478078 | Q129: 12054.78078 | R129: 0.2111040096 | S129: 4.737001452
A130: Statewide | B130: 2017 | C130: UBUS | D130: 2003 | E130: 2017_2003 | F130: =(1/$S130)*Defaults!$F$2 -> 2631.912663 | G130: =(1/$S130)*Defaults!$F$3 -> 3063.299908 | H130: =(1/$S130)*Defaults!$F$4 -> 746.3915419 | I130: =(1/$S130)*Defaults!$F$5 -> 1657.606048 | J130: =(1/$S130)*Defaults!$F$6 -> 1368.446754 | K130: =(1/$S130)*Defaults!$F$7 -> 2867.413532 | L130: Aggregated | M130: DSL | N130: 438.7199776 | O130: 67394.25063 | P130: 14.94042205 | Q130: 14940.42205 | R130: 0.2216868934 | S130: 4.510866586
A131: Statewide | B131: 2017 | C131: UBUS | D131: 2004 | E131: 2017_2004 | F131: =(1/$S131)*Defaults!$F$2 -> 2528.009628 | G131: =(1/$S131)*Defaults!$F$3 -> 2942.366504 | H131: =(1/$S131)*Defaults!$F$4 -> 716.9253869 | I131: =(1/$S131)*Defaults!$F$5 -> 1592.166833 | J131: =(1/$S131)*Defaults!$F$6 -> 1314.423012 | K131: =(1/$S131)*Defaults!$F$7 -> 2754.213359 | L131: Aggregated | M131: DSL | N131: 375.7627754 | O131: 52232.55023 | P131: 11.1221436 | Q131: 11122.1436 | R131: 0.2129351056 | S131: 4.696266485
A132: Statewide | B132: 2017 | C132: UBUS | D132: 2005 | E132: 2017_2005 | F132: =(1/$S132)*Defaults!$F$2 -> 2425.758806 | G132: =(1/$S132)*Defaults!$F$3 -> 2823.356121 | H132: =(1/$S132)*Defaults!$F$4 -> 687.9277877 | I132: =(1/$S132)*Defaults!$F$5 -> 1527.768199 | J132: =(1/$S132)*Defaults!$F$6 -> 1261.258328 | K132: =(1/$S132)*Defaults!$F$7 -> 2642.813237 | L132: Aggregated | M132: DSL | N132: 408.2674251 | O132: 53354.57152 | P132: 10.9015386 | Q132: 10901.5386 | R132: 0.2043224843 | S132: 4.894223968
A133: Statewide | B133: 2017 | C133: UBUS | D133: 2006 | E133: 2017_2006 | F133: =(1/$S133)*Defaults!$F$2 -> 2504.97755 | G133: =(1/$S133)*Defaults!$F$3 -> 2915.559322 | H133: =(1/$S133)*Defaults!$F$4 -> 710.3936549 | I133: =(1/$S133)*Defaults!$F$5 -> 1577.66099 | J133: =(1/$S133)*Defaults!$F$6 -> 1302.447625 | K133: =(1/$S133)*Defaults!$F$7 -> 2729.120394 | L133: Aggregated | M133: DSL | N133: 239.2176289 | O133: 32437.43739 | P133: 6.844140537 | Q133: 6844.140537 | R133: 0.2109951059 | S133: 4.739446423
A134: Statewide | B134: 2017 | C134: UBUS | D134: 2007 | E134: 2017_2007 | F134: =(1/$S134)*Defaults!$F$2 -> 2486.510561 | G134: =(1/$S134)*Defaults!$F$3 -> 2894.065476 | H134: =(1/$S134)*Defaults!$F$4 -> 705.1565493 | I134: =(1/$S134)*Defaults!$F$5 -> 1566.030288 | J134: =(1/$S134)*Defaults!$F$6 -> 1292.845828 | K134: =(1/$S134)*Defaults!$F$7 -> 2709.000997 | L134: Aggregated | M134: DSL | N134: 428.1959883 | O134: 57378.1077 | P134: 12.01724937 | Q134: 12017.24937 | R134: 0.2094396252 | S134: 4.774645673
A135: Statewide | B135: 2017 | C135: UBUS | D135: 2008 | E135: 2017_2008 | F135: =(1/$S135)*Defaults!$F$2 -> 2378.371393 | G135: =(1/$S135)*Defaults!$F$3 -> 2768.201609 | H135: =(1/$S135)*Defaults!$F$4 -> 674.4890573 | I135: =(1/$S135)*Defaults!$F$5 -> 1497.923112 | J135: =(1/$S135)*Defaults!$F$6 -> 1236.619534 | K135: =(1/$S135)*Defaults!$F$7 -> 2591.185646 | L135: Aggregated | M135: DSL | N135: 480.3825988 | O135: 66207.62608 | P135: 13.26344169 | Q135: 13263.44169 | R135: 0.2003310265 | S135: 4.991738013
A136: Statewide | B136: 2017 | C136: UBUS | D136: 2009 | E136: 2017_2009 | F136: =(1/$S136)*Defaults!$F$2 -> 2499.941261 | G136: =(1/$S136)*Defaults!$F$3 -> 2909.697553 | H136: =(1/$S136)*Defaults!$F$4 -> 708.9653995 | I136: =(1/$S136)*Defaults!$F$5 -> 1574.489083 | J136: =(1/$S136)*Defaults!$F$6 -> 1299.829038 | K136: =(1/$S136)*Defaults!$F$7 -> 2723.633463 | L136: Aggregated | M136: DSL | N136: 290.5474472 | O136: 43346.15699 | P136: 9.127439185 | Q136: 9127.439185 | R136: 0.2105708976 | S136: 4.748994336
A137: Statewide | B137: 2017 | C137: UBUS | D137: 2010 | E137: 2017_2010 | F137: =(1/$S137)*Defaults!$F$2 -> 2578.51171 | G137: =(1/$S137)*Defaults!$F$3 -> 3001.146199 | H137: =(1/$S137)*Defaults!$F$4 -> 731.2474149 | I137: =(1/$S137)*Defaults!$F$5 -> 1623.973571 | J137: =(1/$S137)*Defaults!$F$6 -> 1340.681258 | K137: =(1/$S137)*Defaults!$F$7 -> 2809.234316 | L137: Aggregated | M137: DSL | N137: 382.0965725 | O137: 53436.81464 | P137: 11.60588369 | Q137: 11605.88369 | R137: 0.2171889131 | S137: 4.60428659
A138: Statewide | B138: 2017 | C138: UBUS | D138: 2011 | E138: 2017_2011 | F138: =(1/$S138)*Defaults!$F$2 -> 2499.445427 | G138: =(1/$S138)*Defaults!$F$3 -> 2909.120449 | H138: =(1/$S138)*Defaults!$F$4 -> 708.8247847 | I138: =(1/$S138)*Defaults!$F$5 -> 1574.176802 | J138: =(1/$S138)*Defaults!$F$6 -> 1299.571232 | K138: =(1/$S138)*Defaults!$F$7 -> 2723.093263 | L138: Aggregated | M138: DSL | N138: 205.7771392 | O138: 30571.67458 | P138: 6.436228155 | Q138: 6436.228155 | R138: 0.2105291334 | S138: 4.749936429
A139: Statewide | B139: 2017 | C139: UBUS | D139: 2012 | E139: =CONCATENATE(B139,"_",D139) -> 2017_2012 | F139: =(1/$S139)*Defaults!$F$2 -> 2368.346669 | G139: =(1/$S139)*Defaults!$F$3 -> 2756.53377 | H139: =(1/$S139)*Defaults!$F$4 -> 671.6461178 | I139: =(1/$S139)*Defaults!$F$5 -> 1491.609436 | J139: =(1/$S139)*Defaults!$F$6 -> 1231.407241 | K139: =(1/$S139)*Defaults!$F$7 -> 2580.263921 | L139: Aggregated | M139: DSL | N139: 381.1565208 | O139: 53770.15392 | P139: 10.72642737 | Q139: =(P139*1000) -> 10726.42737 | R139: =Q139/O139 -> 0.1994866406 | S139: =O139/Q139 -> 5.012867011
A140: Statewide | B140: 2017 | C140: UBUS | D140: 2013 | E140: 2017_2013 | F140: =(1/$S140)*Defaults!$F$2 -> 2380.628125 | G140: =(1/$S140)*Defaults!$F$3 -> 2770.828234 | H140: =(1/$S140)*Defaults!$F$4 -> 675.1290503 | I140: =(1/$S140)*Defaults!$F$5 -> 1499.344425 | J140: =(1/$S140)*Defaults!$F$6 -> 1237.792908 | K140: =(1/$S140)*Defaults!$F$7 -> 2593.644308 | L140: Aggregated | M140: DSL | N140: 266.1810627 | O140: 36593.07792 | P140: 7.337684667 | Q140: 7337.684667 | R140: 0.2005211118 | S140: 4.987006062
A141: Statewide | B141: 2017 | C141: UBUS | D141: 2014 | E141: 2017_2014 | F141: =(1/$S141)*Defaults!$F$2 -> 2285.221575 | G141: =(1/$S141)*Defaults!$F$3 -> 2659.783943 | H141: =(1/$S141)*Defaults!$F$4 -> 648.0724375 | I141: =(1/$S141)*Defaults!$F$5 -> 1439.256385 | J141: =(1/$S141)*Defaults!$F$6 -> 1188.186861 | K141: =(1/$S141)*Defaults!$F$7 -> 2489.700877 | L141: Aggregated | M141: DSL | N141: 285.9742407 | O141: 39321.51155 | P141: 7.568800594 | Q141: 7568.800594 | R141: 0.1924849858 | S141: 5.195210399
A142: Statewide | B142: 2017 | C142: UBUS | D142: 2015 | E142: 2017_2015 | F142: =(1/$S142)*Defaults!$F$2 -> 2285.105487 | G142: =(1/$S142)*Defaults!$F$3 -> 2659.648828 | H142: =(1/$S142)*Defaults!$F$4 -> 648.039516 | I142: =(1/$S142)*Defaults!$F$5 -> 1439.183272 | J142: =(1/$S142)*Defaults!$F$6 -> 1188.126502 | K142: =(1/$S142)*Defaults!$F$7 -> 2489.574403 | L142: Aggregated | M142: DSL | N142: 308.3010105 | O142: 42399.32264 | P142: 8.160818434 | Q142: 8160.818434 | R142: 0.1924752078 | S142: 5.195474325
A143: Statewide | B143: 2017 | C143: UBUS | D143: 2016 | E143: 2017_2016 | F143: =(1/$S143)*Defaults!$F$2 -> 2284.982918 | G143: =(1/$S143)*Defaults!$F$3 -> 2659.50617 | H143: =(1/$S143)*Defaults!$F$4 -> 648.0047563 | I143: =(1/$S143)*Defaults!$F$5 -> 1439.106077 | J143: =(1/$S143)*Defaults!$F$6 -> 1188.062773 | K143: =(1/$S143)*Defaults!$F$7 -> 2489.440867 | L143: Aggregated | M143: DSL | N143: 323.5733567 | O143: 44507.95346 | P143: 8.566218088 | Q143: 8566.218088 | R143: 0.1924648837 | S143: 5.195753015
A144: Statewide | B144: 2017 | C144: UBUS | D144: 2017 | E144: 2017_2017 | F144: =(1/$S144)*Defaults!$F$2 -> 2196.977666 | G144: =(1/$S144)*Defaults!$F$3 -> 2557.076295 | H144: =(1/$S144)*Defaults!$F$4 -> 623.0470982 | I144: =(1/$S144)*Defaults!$F$5 -> 1383.67945 | J144: =(1/$S144)*Defaults!$F$6 -> 1142.304985 | K144: =(1/$S144)*Defaults!$F$7 -> 2393.560993 | L144: Aggregated | M144: DSL | N144: 309.3055918 | O144: 42553.43736 | P144: 7.87460599 | Q144: 7874.60599 | R144: 0.1850521715 | S144: 5.403881466
A145: Statewide | B145: 2018 | C145: UBUS | D145: 1974 | E145: 2018_1974 | F145: =(1/$S145)*Defaults!$F$2 -> 3430.855403 | G145: =(1/$S145)*Defaults!$F$3 -> 3993.194451 | H145: =(1/$S145)*Defaults!$F$4 -> 972.965969 | I145: =(1/$S145)*Defaults!$F$5 -> 2160.78852 | J145: =(1/$S145)*Defaults!$F$6 -> 1783.852103 | K145: =(1/$S145)*Defaults!$F$7 -> 3737.844856 | L145: Aggregated | M145: DSL | N145: 70.07161084 | O145: 9386.544448 | P145: 2.712543425 | Q145: 2712.543425 | R145: 0.2889821105 | S145: 3.460421817
A146: Statewide | B146: 2018 | C146: UBUS | D146: 1975 | E146: 2018_1975 | F146: =(1/$S146)*Defaults!$F$2 -> 3428.775341 | G146: =(1/$S146)*Defaults!$F$3 -> 3990.773454 | H146: =(1/$S146)*Defaults!$F$4 -> 972.3760783 | I146: =(1/$S146)*Defaults!$F$5 -> 2159.478475 | J146: =(1/$S146)*Defaults!$F$6 -> 1782.770588 | K146: =(1/$S146)*Defaults!$F$7 -> 3735.578672 | L146: Aggregated | M146: DSL | N146: 67.09792806 | O146: 8921.863548 | P146: 2.576695808 | Q146: 2576.695808 | R146: 0.2888069062 | S146: 3.462521078
A147: Statewide | B147: 2018 | C147: UBUS | D147: 1976 | E147: 2018_1976 | F147: =(1/$S147)*Defaults!$F$2 -> 3431.053226 | G147: =(1/$S147)*Defaults!$F$3 -> 3993.424699 | H147: =(1/$S147)*Defaults!$F$4 -> 973.0220703 | I147: =(1/$S147)*Defaults!$F$5 -> 2160.913111 | J147: =(1/$S147)*Defaults!$F$6 -> 1783.95496 | K147: =(1/$S147)*Defaults!$F$7 -> 3738.06038 | L147: Aggregated | M147: DSL | N147: 19.8614007 | O147: 2754.387664 | P147: 0.7960146558 | Q147: 796.0146558 | R147: 0.2889987732 | S147: 3.460222301
A148: Statewide | B148: 2018 | C148: UBUS | D148: 1977 | E148: 2018_1977 | F148: =(1/$S148)*Defaults!$F$2 -> 3414.0227 | G148: =(1/$S148)*Defaults!$F$3 -> 3973.60276 | H148: =(1/$S148)*Defaults!$F$4 -> 968.1923351 | I148: =(1/$S148)*Defaults!$F$5 -> 2150.187108 | J148: =(1/$S148)*Defaults!$F$6 -> 1775.100043 | K148: =(1/$S148)*Defaults!$F$7 -> 3719.505979 | L148: Aggregated | M148: DSL | N148: 8.010461685 | O148: 1418.531453 | P148: 0.4079189846 | Q148: 407.9189846 | R148: 0.2875642862 | S148: 3.47748329
A149: Statewide | B149: 2018 | C149: UBUS | D149: 1978 | E149: 2018_1978 | F149: =(1/$S149)*Defaults!$F$2 -> 3435.026986 | G149: =(1/$S149)*Defaults!$F$3 -> 3998.049784 | H149: =(1/$S149)*Defaults!$F$4 -> 974.1490001 | I149: =(1/$S149)*Defaults!$F$5 -> 2163.415827 | J149: =(1/$S149)*Defaults!$F$6 -> 1786.021092 | K149: =(1/$S149)*Defaults!$F$7 -> 3742.389708 | L149: Aggregated | M149: DSL | N149: 3.469727106 | O149: 500.8941512 | P149: 0.1449254501 | Q149: 144.9254501 | R149: 0.2893334844 | S149: 3.456219394
A150: Statewide | B150: 2018 | C150: UBUS | D150: 1979 | E150: 2018_1979 | F150: =(1/$S150)*Defaults!$F$2 -> 3431.79018 | G150: =(1/$S150)*Defaults!$F$3 -> 3994.282444 | H150: =(1/$S150)*Defaults!$F$4 -> 973.2310651 | I150: =(1/$S150)*Defaults!$F$5 -> 2161.377252 | J150: =(1/$S150)*Defaults!$F$6 -> 1784.338135 | K150: =(1/$S150)*Defaults!$F$7 -> 3738.863276 | L150: Aggregated | M150: DSL | N150: 8.274225745 | O150: 1171.444796 | P150: 0.3386188252 | Q150: 338.6188252 | R150: 0.2890608471 | S150: 3.459479241
A151: Statewide | B151: 2018 | C151: UBUS | D151: 1980 | E151: 2018_1980 | F151: =(1/$S151)*Defaults!$F$2 -> 3430.599529 | G151: =(1/$S151)*Defaults!$F$3 -> 3992.896638 | H151: =(1/$S151)*Defaults!$F$4 -> 972.893405 | I151: =(1/$S151)*Defaults!$F$5 -> 2160.627368 | J151: =(1/$S151)*Defaults!$F$6 -> 1783.719063 | K151: =(1/$S151)*Defaults!$F$7 -> 3737.566087 | L151: Aggregated | M151: DSL | N151: 124.3046771 | O151: 14994.34836 | P151: 4.332775272 | Q151: 4332.775272 | R151: 0.2889605582 | S151: 3.460679915
A152: Statewide | B152: 2018 | C152: UBUS | D152: 1981 | E152: 2018_1981 | F152: =(1/$S152)*Defaults!$F$2 -> 3432.619921 | G152: =(1/$S152)*Defaults!$F$3 -> 3995.248184 | H152: =(1/$S152)*Defaults!$F$4 -> 973.4663735 | I152: =(1/$S152)*Defaults!$F$5 -> 2161.899831 | J152: =(1/$S152)*Defaults!$F$6 -> 1784.769553 | K152: =(1/$S152)*Defaults!$F$7 -> 3739.76726 | L152: Aggregated | M152: DSL | N152: 133.723555 | O152: 16920.98375 | P152: 4.892376493 | Q152: 4892.376493 | R152: 0.2891307364 | S152: 3.458643008
A153: Statewide | B153: 2018 | C153: UBUS | D153: 1982 | E153: 2018_1982 | F153: =(1/$S153)*Defaults!$F$2 -> 3435.813042 | G153: =(1/$S153)*Defaults!$F$3 -> 3998.964678 | H153: =(1/$S153)*Defaults!$F$4 -> 974.3719197 | I153: =(1/$S153)*Defaults!$F$5 -> 2163.910892 | J153: =(1/$S153)*Defaults!$F$6 -> 1786.429797 | K153: =(1/$S153)*Defaults!$F$7 -> 3743.246099 | L153: Aggregated | M153: DSL | N153: 85.30770861 | O153: 13101.9027 | P153: 3.791686634 | Q153: 3791.686634 | R153: 0.2893996941 | S153: 3.45542867
A154: Statewide | B154: 2018 | C154: UBUS | D154: 1983 | E154: 2018_1983 | F154: =(1/$S154)*Defaults!$F$2 -> 3427.860222 | G154: =(1/$S154)*Defaults!$F$3 -> 3989.708341 | H154: =(1/$S154)*Defaults!$F$4 -> 972.1165573 | I154: =(1/$S154)*Defaults!$F$5 -> 2158.902124 | J154: =(1/$S154)*Defaults!$F$6 -> 1782.294778 | K154: =(1/$S154)*Defaults!$F$7 -> 3734.581669 | L154: Aggregated | M154: DSL | N154: 131.492598 | O154: 17389.02349 | P154: 5.020729717 | Q154: 5020.729717 | R154: 0.2887298254 | S154: 3.463445449
A155: Statewide | B155: 2018 | C155: UBUS | D155: 1984 | E155: 2018_1984 | F155: =(1/$S155)*Defaults!$F$2 -> 3433.595631 | G155: =(1/$S155)*Defaults!$F$3 -> 3996.38382 | H155: =(1/$S155)*Defaults!$F$4 -> 973.7430779 | I155: =(1/$S155)*Defaults!$F$5 -> 2162.514344 | J155: =(1/$S155)*Defaults!$F$6 -> 1785.276868 | K155: =(1/$S155)*Defaults!$F$7 -> 3740.830276 | L155: Aggregated | M155: DSL | N155: 230.6710013 | O155: 30176.26383 | P155: 8.727365401 | Q155: 8727.365401 | R155: 0.2892129208 | S155: 3.457660181
A156: Statewide | B156: 2018 | C156: UBUS | D156: 1985 | E156: 2018_1985 | F156: =(1/$S156)*Defaults!$F$2 -> 3436.463402 | G156: =(1/$S156)*Defaults!$F$3 -> 3999.721637 | H156: =(1/$S156)*Defaults!$F$4 -> 974.5563573 | I156: =(1/$S156)*Defaults!$F$5 -> 2164.320496 | J156: =(1/$S156)*Defaults!$F$6 -> 1786.767948 | K156: =(1/$S156)*Defaults!$F$7 -> 3743.954653 | L156: Aggregated | M156: DSL | N156: 41.2223322 | O156: 6061.534104 | P156: 1.754538167 | Q156: 1754.538167 | R156: 0.2894544742 | S156: 3.45477472
A157: Statewide | B157: 2018 | C157: UBUS | D157: 1986 | E157: 2018_1986 | F157: =(1/$S157)*Defaults!$F$2 -> 3434.212141 | G157: =(1/$S157)*Defaults!$F$3 -> 3997.10138 | H157: =(1/$S157)*Defaults!$F$4 -> 973.9179159 | I157: =(1/$S157)*Defaults!$F$5 -> 2162.902629 | J157: =(1/$S157)*Defaults!$F$6 -> 1785.597419 | K157: =(1/$S157)*Defaults!$F$7 -> 3741.501952 | L157: Aggregated | M157: DSL | N157: 54.82401583 | O157: 7535.972146 | P157: 2.17989185 | Q157: 2179.89185 | R157: 0.2892648497 | S157: 3.457039461
A158: Statewide | B158: 2018 | C158: UBUS | D158: 1987 | E158: 2018_1987 | F158: =(1/$S158)*Defaults!$F$2 -> 3360.013137 | G158: =(1/$S158)*Defaults!$F$3 -> 3910.740686 | H158: =(1/$S158)*Defaults!$F$4 -> 952.8756106 | I158: =(1/$S158)*Defaults!$F$5 -> 2116.171321 | J158: =(1/$S158)*Defaults!$F$6 -> 1747.018104 | K158: =(1/$S158)*Defaults!$F$7 -> 3660.663695 | L158: Aggregated | M158: DSL | N158: 43.26886621 | O158: 5717.328137 | P158: 1.618089865 | Q158: 1618.089865 | R158: 0.2830150424 | S158: 3.533381093
A159: Statewide | B159: 2018 | C159: UBUS | D159: 1988 | E159: 2018_1988 | F159: =(1/$S159)*Defaults!$F$2 -> 3360.334748 | G159: =(1/$S159)*Defaults!$F$3 -> 3911.115011 | H159: =(1/$S159)*Defaults!$F$4 -> 952.9668173 | I159: =(1/$S159)*Defaults!$F$5 -> 2116.373876 | J159: =(1/$S159)*Defaults!$F$6 -> 1747.185324 | K159: =(1/$S159)*Defaults!$F$7 -> 3661.014084 | L159: Aggregated | M159: DSL | N159: 206.6831361 | O159: 26841.82851 | P159: 7.597368364 | Q159: 7597.368364 | R159: 0.2830421319 | S159: 3.53304292
A160: Statewide | B160: 2018 | C160: UBUS | D160: 1989 | E160: 2018_1989 | F160: =(1/$S160)*Defaults!$F$2 -> 3357.278309 | G160: =(1/$S160)*Defaults!$F$3 -> 3907.557603 | H160: =(1/$S160)*Defaults!$F$4 -> 952.1000332 | I160: =(1/$S160)*Defaults!$F$5 -> 2114.448898 | J160: =(1/$S160)*Defaults!$F$6 -> 1745.596147 | K160: =(1/$S160)*Defaults!$F$7 -> 3657.684158 | L160: Aggregated | M160: DSL | N160: 162.6620483 | O160: 21775.01532 | P160: 6.157640891 | Q160: 6157.640891 | R160: 0.282784687 | S160: 3.536259373
A161: Statewide | B161: 2018 | C161: UBUS | D161: 1990 | E161: 2018_1990 | F161: =(1/$S161)*Defaults!$F$2 -> 3361.887764 | G161: =(1/$S161)*Defaults!$F$3 -> 3912.922577 | H161: =(1/$S161)*Defaults!$F$4 -> 953.4072415 | I161: =(1/$S161)*Defaults!$F$5 -> 2117.351981 | J161: =(1/$S161)*Defaults!$F$6 -> 1747.992805 | K161: =(1/$S161)*Defaults!$F$7 -> 3662.706063 | L161: Aggregated | M161: DSL | N161: 149.2332901 | O161: 20888.1836 | P161: 5.914968423 | Q161: 5914.968423 | R161: 0.2831729429 | S161: 3.531410839
A162: Statewide | B162: 2018 | C162: UBUS | D162: 1991 | E162: 2018_1991 | F162: =(1/$S162)*Defaults!$F$2 -> 3057.576624 | G162: =(1/$S162)*Defaults!$F$3 -> 3558.732903 | H162: =(1/$S162)*Defaults!$F$4 -> 867.1067862 | I162: =(1/$S162)*Defaults!$F$5 -> 1925.693651 | J162: =(1/$S162)*Defaults!$F$6 -> 1589.768104 | K162: =(1/$S162)*Defaults!$F$7 -> 3331.165471 | L162: Aggregated | M162: DSL | N162: 139.1129305 | O162: 20217.18075 | P162: 5.20674714 | Q162: 5206.74714 | R162: 0.2575407127 | S162: 3.882881233
A163: Statewide | B163: 2018 | C163: UBUS | D163: 1992 | E163: 2018_1992 | F163: =(1/$S163)*Defaults!$F$2 -> 3008.140116 | G163: =(1/$S163)*Defaults!$F$3 -> 3501.193437 | H163: =(1/$S163)*Defaults!$F$4 -> 853.0869475 | I163: =(1/$S163)*Defaults!$F$5 -> 1894.558023 | J163: =(1/$S163)*Defaults!$F$6 -> 1564.063897 | K163: =(1/$S163)*Defaults!$F$7 -> 3277.305435 | L163: Aggregated | M163: DSL | N163: 232.87376 | O163: 30573.75696 | P163: 7.74667639 | Q163: 7746.67639 | R163: 0.253376659 | S163: 3.946693448
A164: Statewide | B164: 2018 | C164: UBUS | D164: 1993 | E164: 2018_1993 | F164: =(1/$S164)*Defaults!$F$2 -> 2890.798244 | G164: =(1/$S164)*Defaults!$F$3 -> 3364.618485 | H164: =(1/$S164)*Defaults!$F$4 -> 819.8096348 | I164: =(1/$S164)*Defaults!$F$5 -> 1820.654888 | J164: =(1/$S164)*Defaults!$F$6 -> 1503.052715 | K164: =(1/$S164)*Defaults!$F$7 -> 3149.463932 | L164: Aggregated | M164: DSL | N164: 136.3802207 | O164: 20230.01477 | P164: 4.925865235 | Q164: 4925.865235 | R164: 0.2434929134 | S164: 4.106895704
A165: Statewide | B165: 2018 | C165: UBUS | D165: 1994 | E165: 2018_1994 | F165: =(1/$S165)*Defaults!$F$2 -> 2760.695217 | G165: =(1/$S165)*Defaults!$F$3 -> 3213.190743 | H165: =(1/$S165)*Defaults!$F$4 -> 782.9133499 | I165: =(1/$S165)*Defaults!$F$5 -> 1738.714644 | J165: =(1/$S165)*Defaults!$F$6 -> 1435.406448 | K165: =(1/$S165)*Defaults!$F$7 -> 3007.719418 | L165: Aggregated | M165: DSL | N165: 81.14441325 | O165: 11995.69498 | P165: 2.789410433 | Q165: 2789.410433 | R165: 0.2325342914 | S165: 4.300440996
A166: Statewide | B166: 2018 | C166: UBUS | D166: 1995 | E166: 2018_1995 | F166: =(1/$S166)*Defaults!$F$2 -> 2582.06066 | G166: =(1/$S166)*Defaults!$F$3 -> 3005.276844 | H166: =(1/$S166)*Defaults!$F$4 -> 732.2538716 | I166: =(1/$S166)*Defaults!$F$5 -> 1626.208737 | J166: =(1/$S166)*Defaults!$F$6 -> 1342.526512 | K166: =(1/$S166)*Defaults!$F$7 -> 2813.100822 | L166: Aggregated | M166: DSL | N166: 160.1806144 | O166: 21421.67129 | P166: 4.658953067 | Q166: 4658.953067 | R166: 0.2174878423 | S166: 4.597958163
A167: Statewide | B167: 2018 | C167: UBUS | D167: 1996 | E167: 2018_1996 | F167: =(1/$S167)*Defaults!$F$2 -> 2594.06215 | G167: =(1/$S167)*Defaults!$F$3 -> 3019.245455 | H167: =(1/$S167)*Defaults!$F$4 -> 735.6574081 | I167: =(1/$S167)*Defaults!$F$5 -> 1633.7674 | J167: =(1/$S167)*Defaults!$F$6 -> 1348.766613 | K167: =(1/$S167)*Defaults!$F$7 -> 2826.176193 | L167: Aggregated | M167: DSL | N167: 91.26897587 | O167: 13639.41276 | P167: 2.980194392 | Q167: 2980.194392 | R167: 0.2184987319 | S167: 4.576685601
A168: Statewide | B168: 2018 | C168: UBUS | D168: 1997 | E168: 2018_1997 | F168: =(1/$S168)*Defaults!$F$2 -> 2593.458034 | G168: =(1/$S168)*Defaults!$F$3 -> 3018.542321 | H168: =(1/$S168)*Defaults!$F$4 -> 735.4860852 | I168: =(1/$S168)*Defaults!$F$5 -> 1633.386922 | J168: =(1/$S168)*Defaults!$F$6 -> 1348.452507 | K168: =(1/$S168)*Defaults!$F$7 -> 2825.518022 | L168: Aggregated | M168: DSL | N168: 374.9559308 | O168: 50508.68294 | P168: 11.03351304 | Q168: 11033.51304 | R168: 0.218447847 | S168: 4.577751686
A169: Statewide | B169: 2018 | C169: UBUS | D169: 1998 | E169: 2018_1998 | F169: =(1/$S169)*Defaults!$F$2 -> 2674.924016 | G169: =(1/$S169)*Defaults!$F$3 -> 3113.361096 | H169: =(1/$S169)*Defaults!$F$4 -> 758.5892529 | I169: =(1/$S169)*Defaults!$F$5 -> 1684.695047 | J169: =(1/$S169)*Defaults!$F$6 -> 1390.810241 | K169: =(1/$S169)*Defaults!$F$7 -> 2914.273497 | L169: Aggregated | M169: DSL | N169: 275.1265693 | O169: 40240.22404 | P169: 9.066514987 | Q169: 9066.514987 | R169: 0.2253097542 | S169: 4.438334255
A170: Statewide | B170: 2018 | C170: UBUS | D170: 1999 | E170: 2018_1999 | F170: =(1/$S170)*Defaults!$F$2 -> 2495.758997 | G170: =(1/$S170)*Defaults!$F$3 -> 2904.829789 | H170: =(1/$S170)*Defaults!$F$4 -> 707.7793393 | I170: =(1/$S170)*Defaults!$F$5 -> 1571.855049 | J170: =(1/$S170)*Defaults!$F$6 -> 1297.654495 | K170: =(1/$S170)*Defaults!$F$7 -> 2719.076974 | L170: Aggregated | M170: DSL | N170: 308.5367886 | O170: 39495.18864 | P170: 8.302624211 | Q170: 8302.624211 | R170: 0.210218624 | S170: 4.756952456
A171: Statewide | B171: 2018 | C171: UBUS | D171: 2000 | E171: 2018_2000 | F171: =(1/$S171)*Defaults!$F$2 -> 2553.48622 | G171: =(1/$S171)*Defaults!$F$3 -> 2972.018872 | H171: =(1/$S171)*Defaults!$F$4 -> 724.1503656 | I171: =(1/$S171)*Defaults!$F$5 -> 1608.212257 | J171: =(1/$S171)*Defaults!$F$6 -> 1327.669409 | K171: =(1/$S171)*Defaults!$F$7 -> 2781.969571 | L171: Aggregated | M171: DSL | N171: 499.6170706 | O171: 67115.57186 | P171: 14.43528482 | Q171: 14435.28482 | R171: 0.2150810076 | S171: 4.649410988
A172: Statewide | B172: 2018 | C172: UBUS | D172: 2001 | E172: 2018_2001 | F172: =(1/$S172)*Defaults!$F$2 -> 2470.454145 | G172: =(1/$S172)*Defaults!$F$3 -> 2875.377311 | H172: =(1/$S172)*Defaults!$F$4 -> 700.6030651 | I172: =(1/$S172)*Defaults!$F$5 -> 1555.91779 | J172: =(1/$S172)*Defaults!$F$6 -> 1284.497394 | K172: =(1/$S172)*Defaults!$F$7 -> 2691.50787 | L172: Aggregated | M172: DSL | N172: 955.7488376 | O172: 119915.5714 | P172: 24.95289403 | Q172: 24952.89403 | R172: 0.2080871879 | S172: 4.8056779
A173: Statewide | B173: 2018 | C173: UBUS | D173: 2002 | E173: 2018_2002 | F173: =(1/$S173)*Defaults!$F$2 -> 2505.803995 | G173: =(1/$S173)*Defaults!$F$3 -> 2916.521227 | H173: =(1/$S173)*Defaults!$F$4 -> 710.6280289 | I173: =(1/$S173)*Defaults!$F$5 -> 1578.181494 | J173: =(1/$S173)*Defaults!$F$6 -> 1302.87733 | K173: =(1/$S173)*Defaults!$F$7 -> 2730.020789 | L173: Aggregated | M173: DSL | N173: 366.7834077 | O173: 51509.86655 | P173: 10.87191544 | Q173: 10871.91544 | R173: 0.2110647177 | S173: 4.737883295
A174: Statewide | B174: 2018 | C174: UBUS | D174: 2003 | E174: 2018_2003 | F174: =(1/$S174)*Defaults!$F$2 -> 2632.004034 | G174: =(1/$S174)*Defaults!$F$3 -> 3063.406256 | H174: =(1/$S174)*Defaults!$F$4 -> 746.4174542 | I174: =(1/$S174)*Defaults!$F$5 -> 1657.663595 | J174: =(1/$S174)*Defaults!$F$6 -> 1368.494262 | K174: =(1/$S174)*Defaults!$F$7 -> 2867.513079 | L174: Aggregated | M174: DSL | N174: 410.5388943 | O174: 62625.25043 | P174: 13.88367919 | Q174: 13883.67919 | R174: 0.2216945896 | S174: 4.510709989
A175: Statewide | B175: 2018 | C175: UBUS | D175: 2004 | E175: 2018_2004 | F175: =(1/$S175)*Defaults!$F$2 -> 2528.380109 | G175: =(1/$S175)*Defaults!$F$3 -> 2942.797709 | H175: =(1/$S175)*Defaults!$F$4 -> 717.0304527 | I175: =(1/$S175)*Defaults!$F$5 -> 1592.400166 | J175: =(1/$S175)*Defaults!$F$6 -> 1314.615641 | K175: =(1/$S175)*Defaults!$F$7 -> 2754.61699 | L175: Aggregated | M175: DSL | N175: 347.9528942 | O175: 47972.47633 | P175: 10.21652133 | Q175: 10216.52133 | R175: 0.2129663114 | S175: 4.695578346
A176: Statewide | B176: 2018 | C176: UBUS | D176: 2005 | E176: 2018_2005 | F176: =(1/$S176)*Defaults!$F$2 -> 2425.810108 | G176: =(1/$S176)*Defaults!$F$3 -> 2823.415832 | H176: =(1/$S176)*Defaults!$F$4 -> 687.9423364 | I176: =(1/$S176)*Defaults!$F$5 -> 1527.800509 | J176: =(1/$S176)*Defaults!$F$6 -> 1261.285002 | K176: =(1/$S176)*Defaults!$F$7 -> 2642.869129 | L176: Aggregated | M176: DSL | N176: 368.2525401 | O176: 47642.8311 | P176: 9.734707483 | Q176: 9734.707483 | R176: 0.2043268055 | S176: 4.894120464
A177: Statewide | B177: 2018 | C177: UBUS | D177: 2006 | E177: 2018_2006 | F177: =(1/$S177)*Defaults!$F$2 -> 2505.18894 | G177: =(1/$S177)*Defaults!$F$3 -> 2915.805361 | H177: =(1/$S177)*Defaults!$F$4 -> 710.4536037 | I177: =(1/$S177)*Defaults!$F$5 -> 1577.794126 | J177: =(1/$S177)*Defaults!$F$6 -> 1302.557536 | K177: =(1/$S177)*Defaults!$F$7 -> 2729.350699 | L177: Aggregated | M177: DSL | N177: 226.5752745 | O177: 30489.43147 | P177: 6.433663701 | Q177: 6433.663701 | R177: 0.2110129114 | S177: 4.739046504
A178: Statewide | B178: 2018 | C178: UBUS | D178: 2007 | E178: 2018_2007 | F178: =(1/$S178)*Defaults!$F$2 -> 2486.664533 | G178: =(1/$S178)*Defaults!$F$3 -> 2894.244685 | H178: =(1/$S178)*Defaults!$F$4 -> 705.2002148 | I178: =(1/$S178)*Defaults!$F$5 -> 1566.127261 | J178: =(1/$S178)*Defaults!$F$6 -> 1292.925885 | K178: =(1/$S178)*Defaults!$F$7 -> 2709.168747 | L178: Aggregated | M178: DSL | N178: 395.2091839 | O178: 52309.07415 | P178: 10.95627129 | Q178: 10956.27129 | R178: 0.2094525943 | S178: 4.77435003
A179: Statewide | B179: 2018 | C179: UBUS | D179: 2008 | E179: 2018_2008 | F179: =(1/$S179)*Defaults!$F$2 -> 2378.738085 | G179: =(1/$S179)*Defaults!$F$3 -> 2768.628405 | H179: =(1/$S179)*Defaults!$F$4 -> 674.5930487 | I179: =(1/$S179)*Defaults!$F$5 -> 1498.154058 | J179: =(1/$S179)*Defaults!$F$6 -> 1236.810194 | K179: =(1/$S179)*Defaults!$F$7 -> 2591.58515 | L179: Aggregated | M179: DSL | N179: 451.0140523 | O179: 61662.4463 | P179: 12.35480571 | Q179: 12354.80571 | R179: 0.2003619131 | S179: 4.990968515
A180: Statewide | B180: 2018 | C180: UBUS | D180: 2009 | E180: 2018_2009 | F180: =(1/$S180)*Defaults!$F$2 -> 2499.716026 | G180: =(1/$S180)*Defaults!$F$3 -> 2909.435401 | H180: =(1/$S180)*Defaults!$F$4 -> 708.9015246 | I180: =(1/$S180)*Defaults!$F$5 -> 1574.347228 | J180: =(1/$S180)*Defaults!$F$6 -> 1299.711928 | K180: =(1/$S180)*Defaults!$F$7 -> 2723.388075 | L180: Aggregated | M180: DSL | N180: 280.9399985 | O180: 41473.47054 | P180: 8.732319101 | Q180: 8732.319101 | R180: 0.210551926 | S180: 4.74942224
A181: Statewide | B181: 2018 | C181: UBUS | D181: 2010 | E181: 2018_2010 | F181: =(1/$S181)*Defaults!$F$2 -> 2578.188933 | G181: =(1/$S181)*Defaults!$F$3 -> 3000.770517 | H181: =(1/$S181)*Defaults!$F$4 -> 731.1558778 | I181: =(1/$S181)*Defaults!$F$5 -> 1623.770283 | J181: =(1/$S181)*Defaults!$F$6 -> 1340.513432 | K181: =(1/$S181)*Defaults!$F$7 -> 2808.882657 | L181: Aggregated | M181: DSL | N181: 363.4713868 | O181: 50264.10166 | P181: 10.91543905 | Q181: 10915.43905 | R181: 0.2171617255 | S181: 4.604863025
A182: Statewide | B182: 2018 | C182: UBUS | D182: 2011 | E182: 2018_2011 | F182: =(1/$S182)*Defaults!$F$2 -> 2500.006694 | G182: =(1/$S182)*Defaults!$F$3 -> 2909.773712 | H182: =(1/$S182)*Defaults!$F$4 -> 708.9839559 | I182: =(1/$S182)*Defaults!$F$5 -> 1574.530293 | J182: =(1/$S182)*Defaults!$F$6 -> 1299.863059 | K182: =(1/$S182)*Defaults!$F$7 -> 2723.704751 | L182: Aggregated | M182: DSL | N182: 198.4393734 | O182: 29251.69828 | P182: 6.159717583 | Q182: 6159.717583 | R182: 0.2105764091 | S182: 4.748870039
A183: Statewide | B183: 2018 | C183: UBUS | D183: 2012 | E183: 2018_2012 | F183: =(1/$S183)*Defaults!$F$2 -> 2368.346609 | G183: =(1/$S183)*Defaults!$F$3 -> 2756.5337 | H183: =(1/$S183)*Defaults!$F$4 -> 671.6461006 | I183: =(1/$S183)*Defaults!$F$5 -> 1491.609398 | J183: =(1/$S183)*Defaults!$F$6 -> 1231.40721 | K183: =(1/$S183)*Defaults!$F$7 -> 2580.263855 | L183: Aggregated | M183: DSL | N183: 364.0058892 | O183: 50824.44974 | P183: 10.13879848 | Q183: 10138.79848 | R183: 0.1994866356 | S183: 5.012867139
A184: Statewide | B184: 2018 | C184: UBUS | D184: 2013 | E184: 2018_2013 | F184: =(1/$S184)*Defaults!$F$2 -> 2380.733325 | G184: =(1/$S184)*Defaults!$F$3 -> 2770.950677 | H184: =(1/$S184)*Defaults!$F$4 -> 675.1588844 | I184: =(1/$S184)*Defaults!$F$5 -> 1499.410681 | J184: =(1/$S184)*Defaults!$F$6 -> 1237.847606 | K184: =(1/$S184)*Defaults!$F$7 -> 2593.758922 | L184: Aggregated | M184: DSL | N184: 258.7134826 | O184: 35217.83348 | P184: 7.062231191 | Q184: 7062.231191 | R184: 0.2005299728 | S184: 4.986785695
A185: Statewide | B185: 2018 | C185: UBUS | D185: 2014 | E185: 2018_2014 | F185: =(1/$S185)*Defaults!$F$2 -> 2285.323071 | G185: =(1/$S185)*Defaults!$F$3 -> 2659.902076 | H185: =(1/$S185)*Defaults!$F$4 -> 648.1012212 | I185: =(1/$S185)*Defaults!$F$5 -> 1439.320308 | J185: =(1/$S185)*Defaults!$F$6 -> 1188.239634 | K185: =(1/$S185)*Defaults!$F$7 -> 2489.811456 | L185: Aggregated | M185: DSL | N185: 286.0311212 | O185: 38943.94676 | P185: 7.496457974 | Q185: 7496.457974 | R185: 0.1924935349 | S185: 5.194979667
A186: Statewide | B186: 2018 | C186: UBUS | D186: 2015 | E186: 2018_2015 | F186: =(1/$S186)*Defaults!$F$2 -> 2285.207504 | G186: =(1/$S186)*Defaults!$F$3 -> 2659.767566 | H186: =(1/$S186)*Defaults!$F$4 -> 648.0684471 | I186: =(1/$S186)*Defaults!$F$5 -> 1439.247523 | J186: =(1/$S186)*Defaults!$F$6 -> 1188.179545 | K186: =(1/$S186)*Defaults!$F$7 -> 2489.685547 | L186: Aggregated | M186: DSL | N186: 307.2840086 | O186: 41845.52307 | P186: 8.054585319 | Q186: 8054.585319 | R186: 0.1924838006 | S186: 5.195242388
A187: Statewide | B187: 2018 | C187: UBUS | D187: 2016 | E187: 2018_2016 | F187: =(1/$S187)*Defaults!$F$2 -> 2285.085462 | G187: =(1/$S187)*Defaults!$F$3 -> 2659.62552 | H187: =(1/$S187)*Defaults!$F$4 -> 648.0338368 | I187: =(1/$S187)*Defaults!$F$5 -> 1439.170659 | J187: =(1/$S187)*Defaults!$F$6 -> 1188.11609 | K187: =(1/$S187)*Defaults!$F$7 -> 2489.552585 | L187: Aggregated | M187: DSL | N187: 325.9209055 | O187: 44391.91928 | P187: 8.544269007 | Q187: 8544.269007 | R187: 0.192473521 | S187: 5.195519856
A188: Statewide | B188: 2018 | C188: UBUS | D188: 2017 | E188: 2018_2017 | F188: =(1/$S188)*Defaults!$F$2 -> 2197.076774 | G188: =(1/$S188)*Defaults!$F$3 -> 2557.191648 | H188: =(1/$S188)*Defaults!$F$4 -> 623.0752047 | I188: =(1/$S188)*Defaults!$F$5 -> 1383.74187 | J188: =(1/$S188)*Defaults!$F$6 -> 1142.356516 | K188: =(1/$S188)*Defaults!$F$7 -> 2393.66897 | L188: Aggregated | M188: DSL | N188: 330.4402528 | O188: 45016.16408 | P188: 8.330714709 | Q188: 8330.714709 | R188: 0.1850605195 | S188: 5.403637701
A189: Statewide | B189: 2018 | C189: UBUS | D189: 2018 | E189: 2018_2018 | F189: =(1/$S189)*Defaults!$F$2 -> 2196.954946 | G189: =(1/$S189)*Defaults!$F$3 -> 2557.049851 | H189: =(1/$S189)*Defaults!$F$4 -> 623.040655 | I189: =(1/$S189)*Defaults!$F$5 -> 1383.665141 | J189: =(1/$S189)*Defaults!$F$6 -> 1142.293172 | K189: =(1/$S189)*Defaults!$F$7 -> 2393.53624 | L189: Aggregated | M189: DSL | N189: 315.7898484 | O189: 43028.82244 | P189: 7.962494685 | Q189: 7962.494685 | R189: 0.1850502578 | S189: 5.403937351
A190: Statewide | B190: 2019 | C190: UBUS | D190: 1975 | E190: 2019_1975 | F190: =(1/$S190)*Defaults!$F$2 -> 3427.98598 | G190: =(1/$S190)*Defaults!$F$3 -> 3989.854711 | H190: =(1/$S190)*Defaults!$F$4 -> 972.1522211 | I190: =(1/$S190)*Defaults!$F$5 -> 2158.981327 | J190: =(1/$S190)*Defaults!$F$6 -> 1782.360164 | K190: =(1/$S190)*Defaults!$F$7 -> 3734.718679 | L190: Aggregated | M190: DSL | N190: 61.14148955 | O190: 8041.166039 | P190: 2.321809643 | Q190: 2321.809643 | R190: 0.288740418 | S190: 3.463318392
A191: Statewide | B191: 2019 | C191: UBUS | D191: 1976 | E191: 2019_1976 | F191: =(1/$S191)*Defaults!$F$2 -> 3431.211933 | G191: =(1/$S191)*Defaults!$F$3 -> 3993.609419 | H191: =(1/$S191)*Defaults!$F$4 -> 973.0670783 | I191: =(1/$S191)*Defaults!$F$5 -> 2161.013066 | J191: =(1/$S191)*Defaults!$F$6 -> 1784.037479 | K191: =(1/$S191)*Defaults!$F$7 -> 3738.233288 | L191: Aggregated | M191: DSL | N191: 19.72888032 | O191: 2714.692441 | P191: 0.7845790748 | Q191: 784.5790748 | R191: 0.2890121411 | S191: 3.460062252
A192: Statewide | B192: 2019 | C192: UBUS | D192: 1977 | E192: 2019_1977 | F192: =(1/$S192)*Defaults!$F$2 -> 3414.094285 | G192: =(1/$S192)*Defaults!$F$3 -> 3973.686079 | H192: =(1/$S192)*Defaults!$F$4 -> 968.2126363 | I192: =(1/$S192)*Defaults!$F$5 -> 2150.232193 | J192: =(1/$S192)*Defaults!$F$6 -> 1775.137263 | K192: =(1/$S192)*Defaults!$F$7 -> 3719.58397 | L192: Aggregated | M192: DSL | N192: 7.418057526 | O192: 1300.507238 | P192: 0.3739872772 | Q192: 373.9872772 | R192: 0.2875703159 | S192: 3.477410375
A193: Statewide | B193: 2019 | C193: UBUS | D193: 1978 | E193: 2019_1978 | F193: =(1/$S193)*Defaults!$F$2 -> 3434.674136 | G193: =(1/$S193)*Defaults!$F$3 -> 3997.639099 | H193: =(1/$S193)*Defaults!$F$4 -> 974.0489343 | I193: =(1/$S193)*Defaults!$F$5 -> 2163.193598 | J193: =(1/$S193)*Defaults!$F$6 -> 1785.83763 | K193: =(1/$S193)*Defaults!$F$7 -> 3742.005285 | L193: Aggregated | M193: DSL | N193: 3.380336924 | O193: 485.071615 | P193: 0.1403330439 | Q193: 140.3330439 | R193: 0.2893037637 | S193: 3.456574458
A194: Statewide | B194: 2019 | C194: UBUS | D194: 1979 | E194: 2019_1979 | F194: =(1/$S194)*Defaults!$F$2 -> 3430.800429 | G194: =(1/$S194)*Defaults!$F$3 -> 3993.130467 | H194: =(1/$S194)*Defaults!$F$4 -> 972.9503787 | I194: =(1/$S194)*Defaults!$F$5 -> 2160.753897 | J194: =(1/$S194)*Defaults!$F$6 -> 1783.82352 | K194: =(1/$S194)*Defaults!$F$7 -> 3737.784963 | L194: Aggregated | M194: DSL | N194: 7.783281733 | O194: 1094.050919 | P194: 0.3161560777 | Q194: 316.1560777 | R194: 0.28897748 | S194: 3.460477266
A195: Statewide | B195: 2019 | C195: UBUS | D195: 1980 | E195: 2019_1980 | F195: =(1/$S195)*Defaults!$F$2 -> 3428.862038 | G195: =(1/$S195)*Defaults!$F$3 -> 3990.874361 | H195: =(1/$S195)*Defaults!$F$4 -> 972.400665 | I195: =(1/$S195)*Defaults!$F$5 -> 2159.533078 | J195: =(1/$S195)*Defaults!$F$6 -> 1782.815665 | K195: =(1/$S195)*Defaults!$F$7 -> 3735.673126 | L195: Aggregated | M195: DSL | N195: 119.1550167 | O195: 14232.33429 | P195: 4.110500366 | Q195: 4110.500366 | R195: 0.2888142087 | S195: 3.46243353
A196: Statewide | B196: 2019 | C196: UBUS | D196: 1981 | E196: 2019_1981 | F196: =(1/$S196)*Defaults!$F$2 -> 3431.318681 | G196: =(1/$S196)*Defaults!$F$3 -> 3993.733663 | H196: =(1/$S196)*Defaults!$F$4 -> 973.0973513 | I196: =(1/$S196)*Defaults!$F$5 -> 2161.080297 | J196: =(1/$S196)*Defaults!$F$6 -> 1784.092982 | K196: =(1/$S196)*Defaults!$F$7 -> 3738.349587 | L196: Aggregated | M196: DSL | N196: 129.9613645 | O196: 16300.06294 | P196: 4.711062651 | Q196: 4711.062651 | R196: 0.2890211326 | S196: 3.45995461
A197: Statewide | B197: 2019 | C197: UBUS | D197: 1982 | E197: 2019_1982 | F197: =(1/$S197)*Defaults!$F$2 -> 3435.689107 | G197: =(1/$S197)*Defaults!$F$3 -> 3998.82043 | H197: =(1/$S197)*Defaults!$F$4 -> 974.3367727 | I197: =(1/$S197)*Defaults!$F$5 -> 2163.832837 | J197: =(1/$S197)*Defaults!$F$6 -> 1786.365358 | K197: =(1/$S197)*Defaults!$F$7 -> 3743.111075 | L197: Aggregated | M197: DSL | N197: 77.25109614 | O197: 11811.10641 | P197: 3.418007284 | Q197: 3418.007284 | R197: 0.289389255 | S197: 3.455553317
A198: Statewide | B198: 2019 | C198: UBUS | D198: 1983 | E198: 2019_1983 | F198: =(1/$S198)*Defaults!$F$2 -> 3427.321553 | G198: =(1/$S198)*Defaults!$F$3 -> 3989.081381 | H198: =(1/$S198)*Defaults!$F$4 -> 971.9637945 | I198: =(1/$S198)*Defaults!$F$5 -> 2158.562864 | J198: =(1/$S198)*Defaults!$F$6 -> 1782.0147 | K198: =(1/$S198)*Defaults!$F$7 -> 3733.9948 | L198: Aggregated | M198: DSL | N198: 122.3845581 | O198: 16033.66297 | P198: 4.628669227 | Q198: 4628.669227 | R198: 0.2886844531 | S198: 3.463989797
A199: Statewide | B199: 2019 | C199: UBUS | D199: 1984 | E199: 2019_1984 | F199: =(1/$S199)*Defaults!$F$2 -> 3432.564391 | G199: =(1/$S199)*Defaults!$F$3 -> 3995.183554 | H199: =(1/$S199)*Defaults!$F$4 -> 973.4506258 | I199: =(1/$S199)*Defaults!$F$5 -> 2161.864859 | J199: =(1/$S199)*Defaults!$F$6 -> 1784.740681 | K199: =(1/$S199)*Defaults!$F$7 -> 3739.706763 | L199: Aggregated | M199: DSL | N199: 226.2915878 | O199: 29305.98667 | P199: 8.473124436 | Q199: 8473.124436 | R199: 0.2891260592 | S199: 3.45869896
A200: Statewide | B200: 2019 | C200: UBUS | D200: 1985 | E200: 2019_1985 | F200: =(1/$S200)*Defaults!$F$2 -> 3436.255156 | G200: =(1/$S200)*Defaults!$F$3 -> 3999.479259 | H200: =(1/$S200)*Defaults!$F$4 -> 974.4973003 | I200: =(1/$S200)*Defaults!$F$5 -> 2164.189341 | J200: =(1/$S200)*Defaults!$F$6 -> 1786.659672 | K200: =(1/$S200)*Defaults!$F$7 -> 3743.727774 | L200: Aggregated | M200: DSL | N200: 38.22585026 | O200: 5555.858682 | P200: 1.6080707 | Q200: 1608.0707 | R200: 0.2894369336 | S200: 3.454984088
A201: Statewide | B201: 2019 | C201: UBUS | D201: 1986 | E201: 2019_1986 | F201: =(1/$S201)*Defaults!$F$2 -> 3433.679504 | G201: =(1/$S201)*Defaults!$F$3 -> 3996.48144 | H201: =(1/$S201)*Defaults!$F$4 -> 973.7668636 | I201: =(1/$S201)*Defaults!$F$5 -> 2162.567168 | J201: =(1/$S201)*Defaults!$F$6 -> 1785.320477 | K201: =(1/$S201)*Defaults!$F$7 -> 3740.921654 | L201: Aggregated | M201: DSL | N201: 49.55986145 | O201: 6747.562586 | P201: 1.951529953 | Q201: 1951.529953 | R201: 0.2892199854 | S201: 3.457575722
... 1428 more rows

Sheet LDH EF (hidden)
A1: EMFAC2014 (v1.0.7) Emissions Inventory
A2: Region Type: Statewide
A3: Region: California
A4: Calendar Year: 2000, 2001, 2002, 2003, 2004, 2005, 2006, 2007, 2008, 2009, 2010, 2011, 2012, 2013, 2014, 2015, 2016, 2017, 2018, 2019, 2020, 2021, 2022, 2023, 2024, 2025, 2026, 2027, 2028, 2029, 2030, 2031, 2032, 2033, 2034, 2035, 2036, 2037, 2038, 2039, 2040, 2041, 2042, 2043, 2044, 2045, 2046, 2047, 2048, 2049, 2050
A5: Season: Annual
A6: Vehicle Classification: EMFAC2011 Categories
A7: Units: miles/day for VMT, trips/day for Trips, tons/day for Emissions, 1000 gallons/day for Fuel Consumption
A9: Region | B9: CalYr | C9: VehClass | D9: MdlYr | E9: CY_MY | F9: CNG | G9: Diesel | H9: Electric | I9: Gas | J9: Hydrogen | K9: Hydrogen (SB 1505) | L9: LNG | M9: Speed | N9: Fuel | O9: Population | P9: VMT | Q9: Fuel_Consumption | R9: FC*1000 | S9: gal/mi | T9: mi/gal
A10: Statewide | B10: 2000 | C10: LHD1 | D10: 1965 | E10: =CONCATENATE(B10,"_",D10) -> 2000_1965 | F10: =(1/$T10)*Defaults!$F$24 -> 690.7687961 | G10: =(1/$T10)*Defaults!$F$25 -> 803.9902005 | H10: =(1/$T10)*Defaults!$F$26 -> 304.7287801 | I10: =(1/$T10)*Defaults!$F$27 -> 861.5919378 | J10: =(1/$T10)*Defaults!$F$28 -> 435.0533931 | K10: =(1/$T10)*Defaults!$F$29 -> 359.1609744 | L10: =(1/$T10)*Defaults!$F$30 -> 752.5780855 | M10: Aggregated | N10: DSL | O10: 66.1339821 | P10: 1128.610805 | Q10: 0.06566674036 | R10: =(Q10*1000) -> 65.66674036 | S10: =R10/P10 -> 0.05818368923 | T10: =P10/R10 -> 17.18694729
A11: Statewide | B11: 2000 | C11: LHD1 | D11: 1966 | E11: =CONCATENATE(B11,"_",D11) -> 2000_1966 | F11: =(1/$T11)*Defaults!$F$24 -> 669.7529329 | G11: =(1/$T11)*Defaults!$F$25 -> 779.5297036 | H11: =(1/$T11)*Defaults!$F$26 -> 295.4577499 | I11: =(1/$T11)*Defaults!$F$27 -> 835.3789728 | J11: =(1/$T11)*Defaults!$F$28 -> 421.8173833 | K11: =(1/$T11)*Defaults!$F$29 -> 348.233906 | L11: =(1/$T11)*Defaults!$F$30 -> 729.6817443 | M11: Aggregated | N11: DSL | O11: 10.03851462 | P11: 185.8233809 | Q11: 0.01048295027 | R11: =(Q11*1000) -> 10.48295027 | S11: =R11/P11 -> 0.05641351597 | T11: =P11/R11 -> 17.72624845
A12: Statewide | B12: 2000 | C12: LHD1 | D12: 1967 | E12: 2000_1967 | F12: =(1/$T12)*Defaults!$F$24 -> 681.3131244 | G12: =(1/$T12)*Defaults!$F$25 -> 792.9846841 | H12: =(1/$T12)*Defaults!$F$26 -> 300.5574636 | I12: =(1/$T12)*Defaults!$F$27 -> 849.797933 | J12: =(1/$T12)*Defaults!$F$28 -> 429.0981125 | K12: =(1/$T12)*Defaults!$F$29 -> 354.2445563 | L12: =(1/$T12)*Defaults!$F$30 -> 742.27633 | M12: Aggregated | N12: DSL | O12: 21.27187282 | P12: 403.3388789 | Q12: 0.02314650295 | R12: 23.14650295 | S12: 0.05738723481 | T12: 17.42547804
A13: Statewide | B13: 2000 | C13: LHD1 | D13: 1968 | E13: 2000_1968 | F13: =(1/$T13)*Defaults!$F$24 -> 681.6234296 | G13: =(1/$T13)*Defaults!$F$25 -> 793.3458502 | H13: =(1/$T13)*Defaults!$F$26 -> 300.6943529 | I13: =(1/$T13)*Defaults!$F$27 -> 850.1849749 | J13: =(1/$T13)*Defaults!$F$28 -> 429.2935459 | K13: =(1/$T13)*Defaults!$F$29 -> 354.4058975 | L13: =(1/$T13)*Defaults!$F$30 -> 742.6144009 | M13: Aggregated | N13: DSL | O13: 31.15828418 | P13: 605.2392808 | Q13: 0.03474882793 | R13: 34.74882793 | S13: 0.05741337192 | T13: 17.41754519
A14: Statewide | B14: 2000 | C14: LHD1 | D14: 1969 | E14: 2000_1969 | F14: =(1/$T14)*Defaults!$F$24 -> 671.4955823 | G14: =(1/$T14)*Defaults!$F$25 -> 781.5579844 | H14: =(1/$T14)*Defaults!$F$26 -> 296.2265099 | I14: =(1/$T14)*Defaults!$F$27 -> 837.5525694 | J14: =(1/$T14)*Defaults!$F$28 -> 422.9149221 | K14: =(1/$T14)*Defaults!$F$29 -> 349.1399858 | L14: =(1/$T14)*Defaults!$F$30 -> 731.5803242 | M14: Aggregated | N14: DSL | O14: 43.36442974 | P14: 863.0588957 | Q14: 0.04881486999 | R14: 48.81486999 | S14: 0.05656029992 | T14: 17.68024571
A15: Statewide | B15: 2000 | C15: LHD1 | D15: 1970 | E15: 2000_1970 | F15: =(1/$T15)*Defaults!$F$24 -> 674.8414911 | G15: =(1/$T15)*Defaults!$F$25 -> 785.4523089 | H15: =(1/$T15)*Defaults!$F$26 -> 297.7025388 | I15: =(1/$T15)*Defaults!$F$27 -> 841.7259022 | J15: =(1/$T15)*Defaults!$F$28 -> 425.0222103 | K15: =(1/$T15)*Defaults!$F$29 -> 350.8796705 | L15: =(1/$T15)*Defaults!$F$30 -> 735.2256215 | M15: Aggregated | N15: DSL | O15: 31.59835351 | P15: 644.4619172 | Q15: 0.03663258611 | R15: 36.63258611 | S15: 0.05684212695 | T15: 17.59258588
A16: Statewide | B16: 2000 | C16: LHD1 | D16: 1971 | E16: 2000_1971 | F16: =(1/$T16)*Defaults!$F$24 -> 675.6615197 | G16: =(1/$T16)*Defaults!$F$25 -> 786.4067454 | H16: =(1/$T16)*Defaults!$F$26 -> 298.0642898 | I16: =(1/$T16)*Defaults!$F$27 -> 842.7487191 | J16: =(1/$T16)*Defaults!$F$28 -> 425.5386729 | K16: =(1/$T16)*Defaults!$F$29 -> 351.3060393 | L16: =(1/$T16)*Defaults!$F$30 -> 736.1190254 | M16: Aggregated | N16: DSL | O16: 26.36681278 | P16: 551.186578 | Q16: 0.0313686886 | R16: 31.3686886 | S16: 0.05691119823 | T16: 17.57123433
A17: Statewide | B17: 2000 | C17: LHD1 | D17: 1972 | E17: 2000_1972 | F17: =(1/$T17)*Defaults!$F$24 -> 681.1330273 | G17: =(1/$T17)*Defaults!$F$25 -> 792.7750679 | H17: =(1/$T17)*Defaults!$F$26 -> 300.4780147 | I17: =(1/$T17)*Defaults!$F$27 -> 849.573299 | J17: =(1/$T17)*Defaults!$F$28 -> 428.9846855 | K17: =(1/$T17)*Defaults!$F$29 -> 354.1509159 | L17: =(1/$T17)*Defaults!$F$30 -> 742.080118 | M17: Aggregated | N17: DSL | O17: 40.8782573 | P17: 876.0599541 | Q17: 0.05026136878 | R17: 50.26136878 | S17: 0.05737206517 | T17: 17.43008548
A18: Statewide | B18: 2000 | C18: LHD1 | D18: 1973 | E18: 2000_1973 | F18: =(1/$T18)*Defaults!$F$24 -> 680.9254428 | G18: =(1/$T18)*Defaults!$F$25 -> 792.533459 | H18: =(1/$T18)*Defaults!$F$26 -> 300.38644 | I18: =(1/$T18)*Defaults!$F$27 -> 849.31438 | J18: =(1/$T18)*Defaults!$F$28 -> 428.8539466 | K18: =(1/$T18)*Defaults!$F$29 -> 354.0429836 | L18: =(1/$T18)*Defaults!$F$30 -> 741.853959 | M18: Aggregated | N18: DSL | O18: 60.87570659 | P18: 1337.793477 | Q18: 0.07672858335 | R18: 76.72858335 | S18: 0.05735458025 | T18: 17.43539915
A19: Statewide | B19: 2000 | C19: LHD1 | D19: 1974 | E19: 2000_1974 | F19: =(1/$T19)*Defaults!$F$24 -> 670.1271752 | G19: =(1/$T19)*Defaults!$F$25 -> 779.9652865 | H19: =(1/$T19)*Defaults!$F$26 -> 295.6228448 | I19: =(1/$T19)*Defaults!$F$27 -> 835.845763 | J19: =(1/$T19)*Defaults!$F$28 -> 422.053085 | K19: =(1/$T19)*Defaults!$F$29 -> 348.428491 | L19: =(1/$T19)*Defaults!$F$30 -> 730.0894734 | M19: Aggregated | N19: DSL | O19: 72.87143491 | P19: 1642.558794 | Q19: 0.09271429442 | R19: 92.71429442 | S19: 0.05644503852 | T19: 17.71634897
A20: Statewide | B20: 2000 | C20: LHD1 | D20: 1975 | E20: 2000_1975 | F20: =(1/$T20)*Defaults!$F$24 -> 668.9887246 | G20: =(1/$T20)*Defaults!$F$25 -> 778.6402367 | H20: =(1/$T20)*Defaults!$F$26 -> 295.1206237 | I20: =(1/$T20)*Defaults!$F$27 -> 834.4257802 | J20: =(1/$T20)*Defaults!$F$28 -> 421.336077 | K20: =(1/$T20)*Defaults!$F$29 -> 347.8365606 | L20: =(1/$T20)*Defaults!$F$30 -> 728.8491554 | M20: Aggregated | N20: DSL | O20: 44.31022437 | P20: 1024.74046 | Q20: 0.05774325025 | R20: 57.74325025 | S20: 0.05634914645 | T20: 17.74649774
A21: Statewide | B21: 2000 | C21: LHD1 | D21: 1976 | E21: 2000_1976 | F21: =(1/$T21)*Defaults!$F$24 -> 672.960111 | G21: =(1/$T21)*Defaults!$F$25 -> 783.2625586 | H21: =(1/$T21)*Defaults!$F$26 -> 296.8725785 | I21: =(1/$T21)*Defaults!$F$27 -> 839.3792676 | J21: =(1/$T21)*Defaults!$F$28 -> 423.8372975 | K21: =(1/$T21)*Defaults!$F$29 -> 349.9014585 | L21: =(1/$T21)*Defaults!$F$30 -> 733.1758974 | M21: Aggregated | N21: DSL | O21: 57.14816132 | P21: 1356.439365 | Q21: 0.07688794459 | R21: 76.88794459 | S21: 0.05668365766 | T21: 17.6417691
A22: Statewide | B22: 2000 | C22: LHD1 | D22: 1977 | E22: 2000_1977 | F22: =(1/$T22)*Defaults!$F$24 -> 670.4112214 | G22: =(1/$T22)*Defaults!$F$25 -> 780.2958898 | H22: =(1/$T22)*Defaults!$F$26 -> 295.7481502 | I22: =(1/$T22)*Defaults!$F$27 -> 836.2000523 | J22: =(1/$T22)*Defaults!$F$28 -> 422.2319803 | K22: =(1/$T22)*Defaults!$F$29 -> 348.5761791 | L22: =(1/$T22)*Defaults!$F$30 -> 730.3989358 | M22: Aggregated | N22: DSL | O22: 63.52484416 | P22: 1548.058105 | Q22: 0.08741723712 | R22: 87.41723712 | S22: 0.05646896383 | T22: 17.70884274
A23: Statewide | B23: 2000 | C23: LHD1 | D23: 1978 | E23: 2000_1978 | F23: =(1/$T23)*Defaults!$F$24 -> 667.9710228 | G23: =(1/$T23)*Defaults!$F$25 -> 777.4557271 | H23: =(1/$T23)*Defaults!$F$26 -> 294.6716703 | I23: =(1/$T23)*Defaults!$F$27 -> 833.1564066 | J23: =(1/$T23)*Defaults!$F$28 -> 420.6951177 | K23: =(1/$T23)*Defaults!$F$29 -> 347.3074129 | L23: =(1/$T23)*Defaults!$F$30 -> 727.7403907 | M23: Aggregated | N23: DSL | O23: 76.43895736 | P23: 1913.279431 | Q23: 0.1076476539 | R23: 107.6476539 | S23: 0.05626342508 | T23: 17.7735358
A24: Statewide | B24: 2000 | C24: LHD1 | D24: 1979 | E24: 2000_1979 | F24: =(1/$T24)*Defaults!$F$24 -> 674.3264382 | G24: =(1/$T24)*Defaults!$F$25 -> 784.8528356 | H24: =(1/$T24)*Defaults!$F$26 -> 297.4753261 | I24: =(1/$T24)*Defaults!$F$27 -> 841.0834796 | J24: =(1/$T24)*Defaults!$F$28 -> 424.6978247 | K24: =(1/$T24)*Defaults!$F$29 -> 350.6118719 | L24: =(1/$T24)*Defaults!$F$30 -> 734.6644822 | M24: Aggregated | N24: DSL | O24: 113.2162136 | P24: 2911.962766 | Q24: 0.1653958273 | R24: 165.3958273 | S24: 0.05679874387 | T24: 17.60602316
A25: Statewide | B25: 2000 | C25: LHD1 | D25: 1980 | E25: 2000_1980 | F25: =(1/$T25)*Defaults!$F$24 -> 665.6259912 | G25: =(1/$T25)*Defaults!$F$25 -> 774.7263299 | H25: =(1/$T25)*Defaults!$F$26 -> 293.6371727 | I25: =(1/$T25)*Defaults!$F$27 -> 830.2314623 | J25: =(1/$T25)*Defaults!$F$28 -> 419.2181924 | K25: =(1/$T25)*Defaults!$F$29 -> 346.0881282 | L25: =(1/$T25)*Defaults!$F$30 -> 725.1855281 | M25: Aggregated | N25: DSL | O25: 185.4067133 | P25: 4902.652296 | Q25: 0.2748716245 | R25: 274.8716245 | S25: 0.05606590228 | T25: 17.8361528
A26: Statewide | B26: 2000 | C26: LHD1 | D26: 1981 | E26: 2000_1981 | F26: =(1/$T26)*Defaults!$F$24 -> 667.463812 | G26: =(1/$T26)*Defaults!$F$25 -> 776.8653812 | H26: =(1/$T26)*Defaults!$F$26 -> 294.4479171 | I26: =(1/$T26)*Defaults!$F$27 -> 832.5237656 | J26: =(1/$T26)*Defaults!$F$28 -> 420.3756711 | K26: =(1/$T26)*Defaults!$F$29 -> 347.0436917 | L26: =(1/$T26)*Defaults!$F$30 -> 727.1877952 | M26: Aggregated | N26: DSL | O26: 154.4647927 | P26: 4201.482619 | Q26: 0.2362103046 | R26: 236.2103046 | S26: 0.05622070254 | T26: 17.78704205
A27: Statewide | B27: 2000 | C27: LHD1 | D27: 1982 | E27: 2000_1982 | F27: =(1/$T27)*Defaults!$F$24 -> 669.3613707 | G27: =(1/$T27)*Defaults!$F$25 -> 779.0739618 | H27: =(1/$T27)*Defaults!$F$26 -> 295.2850144 | I27: =(1/$T27)*Defaults!$F$27 -> 834.8905795 | J27: =(1/$T27)*Defaults!$F$28 -> 421.5707733 | K27: =(1/$T27)*Defaults!$F$29 -> 348.0303157 | L27: =(1/$T27)*Defaults!$F$30 -> 729.2551455 | M27: Aggregated | N27: DSL | O27: 2739.35201 | P27: 76692.80921 | Q27: 4.32398158 | R27: 4323.98158 | S27: 0.05638053455 | T27: 17.73661793
A28: Statewide | B28: 2000 | C28: LHD1 | D28: 1983 | E28: 2000_1983 | F28: =(1/$T28)*Defaults!$F$24 -> 679.2680851 | G28: =(1/$T28)*Defaults!$F$25 -> 790.6044499 | H28: =(1/$T28)*Defaults!$F$26 -> 299.655306 | I28: =(1/$T28)*Defaults!$F$27 -> 847.2471673 | J28: =(1/$T28)*Defaults!$F$28 -> 427.8101254 | K28: =(1/$T28)*Defaults!$F$29 -> 353.1812507 | L28: =(1/$T28)*Defaults!$F$30 -> 740.0483027 | M28: Aggregated | N28: DSL | O28: 4503.946112 | P28: 129876.7142 | Q28: 7.430893666 | R28: 7430.893666 | S28: 0.05721498046 | T28: 17.47794008
A29: Statewide | B29: 2000 | C29: LHD1 | D29: 1984 | E29: 2000_1984 | F29: =(1/$T29)*Defaults!$F$24 -> 679.7625165 | G29: =(1/$T29)*Defaults!$F$25 -> 791.1799217 | H29: =(1/$T29)*Defaults!$F$26 -> 299.8734216 | I29: =(1/$T29)*Defaults!$F$27 -> 847.8638688 | J29: =(1/$T29)*Defaults!$F$28 -> 428.1215235 | K29: =(1/$T29)*Defaults!$F$29 -> 353.4383273 | L29: =(1/$T29)*Defaults!$F$30 -> 740.5869753 | M29: Aggregated | N29: DSL | O29: 7173.165501 | P29: 213213.0932 | Q29: 12.20786246 | R29: 12207.86246 | S29: 0.05725662658 | T29: 17.46522734
A30: Statewide | B30: 2000 | C30: LHD1 | D30: 1985 | E30: 2000_1985 | F30: =(1/$T30)*Defaults!$F$24 -> 681.0742663 | G30: =(1/$T30)*Defaults!$F$25 -> 792.7066756 | H30: =(1/$T30)*Defaults!$F$26 -> 300.4520926 | I30: =(1/$T30)*Defaults!$F$27 -> 849.5000067 | J30: =(1/$T30)*Defaults!$F$28 -> 428.9476771 | K30: =(1/$T30)*Defaults!$F$29 -> 354.1203635 | L30: =(1/$T30)*Defaults!$F$30 -> 742.016099 | M30: Aggregated | N30: DSL | O30: 7887.674046 | P30: 241875.8053 | Q30: 13.87571731 | R30: 13875.71731 | S30: 0.0573671157 | T30: 17.4315893
A31: Statewide | B31: 2000 | C31: LHD1 | D31: 1986 | E31: 2000_1986 | F31: =(1/$T31)*Defaults!$F$24 -> 681.5493289 | G31: =(1/$T31)*Defaults!$F$25 -> 793.2596041 | H31: =(1/$T31)*Defaults!$F$26 -> 300.6616639 | I31: =(1/$T31)*Defaults!$F$27 -> 850.0925496 | J31: =(1/$T31)*Defaults!$F$28 -> 429.2468766 | K31: =(1/$T31)*Defaults!$F$29 -> 354.3673694 | L31: =(1/$T31)*Defaults!$F$30 -> 742.5336699 | M31: Aggregated | N31: DSL | O31: 9179.845722 | P31: 290699.3903 | Q31: 16.68821781 | R31: 16688.21781 | S31: 0.05740713039 | T31: 17.41943889
A32: Statewide | B32: 2000 | C32: LHD1 | D32: 1987 | E32: 2000_1987 | F32: =(1/$T32)*Defaults!$F$24 -> 677.1222059 | G32: =(1/$T32)*Defaults!$F$25 -> 788.1068473 | H32: =(1/$T32)*Defaults!$F$26 -> 298.7086633 | I32: =(1/$T32)*Defaults!$F$27 -> 844.5706245 | J32: =(1/$T32)*Defaults!$F$28 -> 426.4586283 | K32: =(1/$T32)*Defaults!$F$29 -> 352.065514 | L32: =(1/$T32)*Defaults!$F$30 -> 737.7104123 | M32: Aggregated | N32: DSL | O32: 4974.288711 | P32: 162850.2162 | Q32: 9.288037067 | R32: 9288.037067 | S32: 0.05703423232 | T32: 17.53332971
A33: Statewide | B33: 2000 | C33: LHD1 | D33: 1988 | E33: 2000_1988 | F33: =(1/$T33)*Defaults!$F$24 -> 677.4837762 | G33: =(1/$T33)*Defaults!$F$25 -> 788.5276813 | H33: =(1/$T33)*Defaults!$F$26 -> 298.8681681 | I33: =(1/$T33)*Defaults!$F$27 -> 845.0216091 | J33: =(1/$T33)*Defaults!$F$28 -> 426.686349 | K33: =(1/$T33)*Defaults!$F$29 -> 352.2535103 | L33: =(1/$T33)*Defaults!$F$30 -> 738.1043356 | M33: Aggregated | N33: DSL | O33: 3957.712865 | P33: 134123.2293 | Q33: 7.653700167 | R33: 7653.700167 | S33: 0.05706468751 | T33: 17.52397224
A34: Statewide | B34: 2000 | C34: LHD1 | D34: 1989 | E34: 2000_1989 | F34: =(1/$T34)*Defaults!$F$24 -> 679.0719251 | G34: =(1/$T34)*Defaults!$F$25 -> 790.3761379 | H34: =(1/$T34)*Defaults!$F$26 -> 299.568771 | I34: =(1/$T34)*Defaults!$F$27 -> 847.002498 | J34: =(1/$T34)*Defaults!$F$28 -> 427.6865818 | K34: =(1/$T34)*Defaults!$F$29 -> 353.0792585 | L34: =(1/$T34)*Defaults!$F$30 -> 739.8345904 | M34: Aggregated | N34: DSL | O34: 5859.464646 | P34: 205854.1693 | Q34: 11.77454102 | R34: 11774.54102 | S34: 0.05719845783 | T34: 17.48298884
A35: Statewide | B35: 2000 | C35: LHD1 | D35: 1990 | E35: 2000_1990 | F35: =(1/$T35)*Defaults!$F$24 -> 681.2410267 | G35: =(1/$T35)*Defaults!$F$25 -> 792.9007691 | H35: =(1/$T35)*Defaults!$F$26 -> 300.525658 | I35: =(1/$T35)*Defaults!$F$27 -> 849.708006 | J35: =(1/$T35)*Defaults!$F$28 -> 429.0527046 | K35: =(1/$T35)*Defaults!$F$29 -> 354.2070695 | L35: =(1/$T35)*Defaults!$F$30 -> 742.197781 | M35: Aggregated | N35: DSL | O35: 6796.037444 | P35: 247939.4454 | Q35: 14.22705348 | R35: 14227.05348 | S35: 0.05738116199 | T35: 17.42732223
A36: Statewide | B36: 2000 | C36: LHD1 | D36: 1991 | E36: 2000_1991 | F36: =(1/$T36)*Defaults!$F$24 -> 683.0665079 | G36: =(1/$T36)*Defaults!$F$25 -> 795.0254583 | H36: =(1/$T36)*Defaults!$F$26 -> 301.3309589 | I36: =(1/$T36)*Defaults!$F$27 -> 851.9849182 | J36: =(1/$T36)*Defaults!$F$28 -> 430.2024117 | K36: =(1/$T36)*Defaults!$F$29 -> 355.1562172 | L36: =(1/$T36)*Defaults!$F$30 -> 744.1866044 | M36: Aggregated | N36: DSL | O36: 5978.860638 | P36: 226974.4979 | Q36: 13.05896023 | R36: 13058.96023 | S36: 0.05753492289 | T36: 17.38074807
A37: Statewide | B37: 2000 | C37: LHD1 | D37: 1992 | E37: 2000_1992 | F37: =(1/$T37)*Defaults!$F$24 -> 683.6408808 | G37: =(1/$T37)*Defaults!$F$25 -> 795.6939746 | H37: =(1/$T37)*Defaults!$F$26 -> 301.5843403 | I37: =(1/$T37)*Defaults!$F$27 -> 852.7013302 | J37: =(1/$T37)*Defaults!$F$28 -> 430.5641578 | K37: =(1/$T37)*Defaults!$F$29 -> 355.4548589 | L37: =(1/$T37)*Defaults!$F$30 -> 744.8123717 | M37: Aggregated | N37: DSL | O37: 5633.47733 | P37: 223078.825 | Q37: 12.84561547 | R37: 12845.61547 | S37: 0.05758330252 | T37: 17.36614533
A38: Statewide | B38: 2000 | C38: LHD1 | D38: 1993 | E38: 2000_1993 | F38: =(1/$T38)*Defaults!$F$24 -> 682.6658242 | G38: =(1/$T38)*Defaults!$F$25 -> 794.5591 | H38: =(1/$T38)*Defaults!$F$26 -> 301.1541995 | I38: =(1/$T38)*Defaults!$F$27 -> 851.4851477 | J38: =(1/$T38)*Defaults!$F$28 -> 429.9500569 | K38: =(1/$T38)*Defaults!$F$29 -> 354.9478842 | L38: =(1/$T38)*Defaults!$F$30 -> 743.750068 | M38: Aggregated | N38: DSL | O38: 7100.022779 | P38: 294136.972 | Q38: 16.91322096 | R38: 16913.22096 | S38: 0.05750117317 | T38: 17.39094952
A39: Statewide | B39: 2000 | C39: LHD1 | D39: 1994 | E39: 2000_1994 | F39: =(1/$T39)*Defaults!$F$24 -> 677.9593721 | G39: =(1/$T39)*Defaults!$F$25 -> 789.0812304 | H39: =(1/$T39)*Defaults!$F$26 -> 299.0779745 | I39: =(1/$T39)*Defaults!$F$27 -> 845.6148171 | J39: =(1/$T39)*Defaults!$F$28 -> 426.9858843 | K39: =(1/$T39)*Defaults!$F$29 -> 352.5007935 | L39: =(1/$T39)*Defaults!$F$30 -> 738.6224873 | M39: Aggregated | N39: DSL | O39: 7002.404793 | P39: 304611.3765 | Q39: 17.39475563 | R39: 17394.75563 | S39: 0.05710474712 | T39: 17.51167898
A40: Statewide | B40: 2000 | C40: LHD1 | D40: 1995 | E40: 2000_1995 | F40: =(1/$T40)*Defaults!$F$24 -> 674.1462553 | G40: =(1/$T40)*Defaults!$F$25 -> 784.6431194 | H40: =(1/$T40)*Defaults!$F$26 -> 297.3958394 | I40: =(1/$T40)*Defaults!$F$27 -> 840.8587385 | J40: =(1/$T40)*Defaults!$F$28 -> 424.5843435 | K40: =(1/$T40)*Defaults!$F$29 -> 350.5181869 | L40: =(1/$T40)*Defaults!$F$30 -> 734.4681767 | M40: Aggregated | N40: DSL | O40: 10236.05406 | P40: 469778.3928 | Q40: 26.67569284 | R40: 26675.69284 | S40: 0.056783567 | T40: 17.61072882
A41: Statewide | B41: 2000 | C41: LHD1 | D41: 1996 | E41: 2000_1996 | F41: =(1/$T41)*Defaults!$F$24 -> 675.630167 | G41: =(1/$T41)*Defaults!$F$25 -> 786.3702537 | H41: =(1/$T41)*Defaults!$F$26 -> 298.0504588 | I41: =(1/$T41)*Defaults!$F$27 -> 842.709613 | J41: =(1/$T41)*Defaults!$F$28 -> 425.5189266 | K41: =(1/$T41)*Defaults!$F$29 -> 351.2897376 | L41: =(1/$T41)*Defaults!$F$30 -> 736.0848673 | M41: Aggregated | N41: DSL | O41: 9560.528925 | P41: 465840.6792 | Q41: 26.51032102 | R41: 26510.32102 | S41: 0.05690855738 | T41: 17.57204972
A42: Statewide | B42: 2000 | C42: LHD1 | D42: 1997 | E42: 2000_1997 | F42: =(1/$T42)*Defaults!$F$24 -> 678.1937817 | G42: =(1/$T42)*Defaults!$F$25 -> 789.3540612 | H42: =(1/$T42)*Defaults!$F$26 -> 299.181383 | I42: =(1/$T42)*Defaults!$F$27 -> 845.9071949 | J42: =(1/$T42)*Defaults!$F$28 -> 427.1335179 | K42: =(1/$T42)*Defaults!$F$29 -> 352.6226733 | L42: =(1/$T42)*Defaults!$F$30 -> 738.8778716 | M42: Aggregated | N42: DSL | O42: 12909.5491 | P42: 673751.7384 | Q42: 38.48772546 | R42: 38487.72546 | S42: 0.05712449152 | T42: 17.50562628
A43: Statewide | B43: 2000 | C43: LHD1 | D43: 1998 | E43: 2000_1998 | F43: =(1/$T43)*Defaults!$F$24 -> 674.3710809 | G43: =(1/$T43)*Defaults!$F$25 -> 784.9047954 | H43: =(1/$T43)*Defaults!$F$26 -> 297.49502 | I43: =(1/$T43)*Defaults!$F$27 -> 841.1391622 | J43: =(1/$T43)*Defaults!$F$28 -> 424.7259411 | K43: =(1/$T43)*Defaults!$F$29 -> 350.6350836 | L43: =(1/$T43)*Defaults!$F$30 -> 734.7131194 | M43: Aggregated | N43: DSL | O43: 4643.9884 | P43: 263114.7084 | Q43: 14.94557431 | R43: 14945.57431 | S43: 0.05680250413 | T43: 17.60485766
A44: Statewide | B44: 2000 | C44: LHD1 | D44: 1999 | E44: 2000_1999 | F44: =(1/$T44)*Defaults!$F$24 -> 676.333632 | G44: =(1/$T44)*Defaults!$F$25 -> 787.1890211 | H44: =(1/$T44)*Defaults!$F$26 -> 298.3607884 | I44: =(1/$T44)*Defaults!$F$27 -> 843.5870408 | J44: =(1/$T44)*Defaults!$F$28 -> 425.9619762 | K44: =(1/$T44)*Defaults!$F$29 -> 351.6554999 | L44: =(1/$T44)*Defaults!$F$30 -> 736.8512776 | M44: Aggregated | N44: DSL | O44: 17274.00086 | P44: 1087445.99 | Q44: 61.94941707 | R44: 61949.41707 | S44: 0.05696781047 | T44: 17.55377277
A45: Statewide | B45: 2000 | C45: LHD1 | D45: 2000 | E45: 2000_2000 | F45: =(1/$T45)*Defaults!$F$24 -> 674.4678998 | G45: =(1/$T45)*Defaults!$F$25 -> 785.0174835 | H45: =(1/$T45)*Defaults!$F$26 -> 297.5377311 | I45: =(1/$T45)*Defaults!$F$27 -> 841.2599238 | J45: =(1/$T45)*Defaults!$F$28 -> 424.7869186 | K45: =(1/$T45)*Defaults!$F$29 -> 350.685424 | L45: =(1/$T45)*Defaults!$F$30 -> 734.8186016 | M45: Aggregated | N45: DSL | O45: 13726.6625 | P45: 1011865.48 | Q45: 57.48474493 | R45: 57484.74493 | S45: 0.05681065922 | T45: 17.60233051
A46: Statewide | B46: 2001 | C46: LHD1 | D46: 1965 | E46: 2001_1965 | F46: =(1/$T46)*Defaults!$F$24 -> 688.8989786 | G46: =(1/$T46)*Defaults!$F$25 -> 801.8139081 | H46: =(1/$T46)*Defaults!$F$26 -> 303.9039206 | I46: =(1/$T46)*Defaults!$F$27 -> 859.2597252 | J46: =(1/$T46)*Defaults!$F$28 -> 433.8757626 | K46: =(1/$T46)*Defaults!$F$29 -> 358.1887744 | L46: =(1/$T46)*Defaults!$F$30 -> 750.5409587 | M46: Aggregated | N46: DSL | O46: 57.16273309 | P46: 913.5541002 | Q46: 0.05301006733 | R46: 53.01006733 | S46: 0.05802619387 | T46: 17.2335963
A47: Statewide | B47: 2001 | C47: LHD1 | D47: 1966 | E47: 2001_1966 | F47: =(1/$T47)*Defaults!$F$24 -> 686.6234344 | G47: =(1/$T47)*Defaults!$F$25 -> 799.1653877 | H47: =(1/$T47)*Defaults!$F$26 -> 302.900077 | I47: =(1/$T47)*Defaults!$F$27 -> 856.4214521 | J47: =(1/$T47)*Defaults!$F$28 -> 432.4426011 | K47: =(1/$T47)*Defaults!$F$29 -> 357.0056192 | L47: =(1/$T47)*Defaults!$F$30 -> 748.0618011 | M47: Aggregated | N47: DSL | O47: 9.322988789 | P47: 160.787102 | Q47: 0.009299045513 | R47: 9.299045513 | S47: 0.05783452401 | T47: 17.2907103
A48: Statewide | B48: 2001 | C48: LHD1 | D48: 1967 | E48: 2001_1967 | F48: =(1/$T48)*Defaults!$F$24 -> 684.2310772 | G48: =(1/$T48)*Defaults!$F$25 -> 796.3809079 | H48: =(1/$T48)*Defaults!$F$26 -> 301.8447021 | I48: =(1/$T48)*Defaults!$F$27 -> 853.4374787 | J48: =(1/$T48)*Defaults!$F$28 -> 430.9358696 | K48: =(1/$T48)*Defaults!$F$29 -> 355.7617278 | L48: =(1/$T48)*Defaults!$F$30 -> 745.4553782 | M48: Aggregated | N48: DSL | O48: 19.82743531 | P48: 350.2257503 | Q48: 0.0201845659 | R48: 20.1845659 | S48: 0.05763301495 | T48: 17.35116583
A49: Statewide | B49: 2001 | C49: LHD1 | D49: 1968 | E49: 2001_1968 | F49: =(1/$T49)*Defaults!$F$24 -> 678.0269473 | G49: =(1/$T49)*Defaults!$F$25 -> 789.1598816 | H49: =(1/$T49)*Defaults!$F$26 -> 299.1077849 | I49: =(1/$T49)*Defaults!$F$27 -> 845.6991033 | J49: =(1/$T49)*Defaults!$F$28 -> 427.0284438 | K49: =(1/$T49)*Defaults!$F$29 -> 352.5359288 | L49: =(1/$T49)*Defaults!$F$30 -> 738.6961091 | M49: Aggregated | N49: DSL | O49: 30.4852838 | P49: 551.5758366 | Q49: 0.03150073817 | R49: 31.50073817 | S49: 0.057110439 | T49: 17.50993369
A50: Statewide | B50: 2001 | C50: LHD1 | D50: 1969 | E50: 2001_1969 | F50: =(1/$T50)*Defaults!$F$24 -> 664.9327189 | G50: =(1/$T50)*Defaults!$F$25 -> 773.9194258 | H50: =(1/$T50)*Defaults!$F$26 -> 293.3313395 | I50: =(1/$T50)*Defaults!$F$27 -> 829.3667476 | J50: =(1/$T50)*Defaults!$F$28 -> 418.7815622 | K50: =(1/$T50)*Defaults!$F$29 -> 345.7276655 | L50: =(1/$T50)*Defaults!$F$30 -> 724.4302224 | M50: Aggregated | N50: DSL | O50: 39.03526839 | P50: 723.5380469 | Q50: 0.04052356274 | R50: 40.52356274 | S50: 0.05600750771 | T50: 17.85474914
A51: Statewide | B51: 2001 | C51: LHD1 | D51: 1970 | E51: 2001_1970 | F51: =(1/$T51)*Defaults!$F$24 -> 681.3048374 | G51: =(1/$T51)*Defaults!$F$25 -> 792.9750387 | H51: =(1/$T51)*Defaults!$F$26 -> 300.5538078 | I51: =(1/$T51)*Defaults!$F$27 -> 849.7875967 | J51: =(1/$T51)*Defaults!$F$28 -> 429.0928932 | K51: =(1/$T51)*Defaults!$F$29 -> 354.2402475 | L51: =(1/$T51)*Defaults!$F$30 -> 742.2673014 | M51: Aggregated | N51: DSL | O51: 35.10060706 | P51: 666.6103498 | Q51: 0.03825445936 | R51: 38.25445936 | S51: 0.05738653679 | T51: 17.42569
A52: Statewide | B52: 2001 | C52: LHD1 | D52: 1971 | E52: 2001_1971 | F52: =(1/$T52)*Defaults!$F$24 -> 684.1641213 | G52: =(1/$T52)*Defaults!$F$25 -> 796.3029775 | H52: =(1/$T52)*Defaults!$F$26 -> 301.8151648 | I52: =(1/$T52)*Defaults!$F$27 -> 853.353965 | J52: =(1/$T52)*Defaults!$F$28 -> 430.8937001 | K52: =(1/$T52)*Defaults!$F$29 -> 355.7269145 | L52: =(1/$T52)*Defaults!$F$30 -> 745.3824312 | M52: Aggregated | N52: DSL | O52: 23.7015651 | P52: 461.2755776 | Q52: 0.0265821008 | R52: 26.5821008 | S52: 0.05762737524 | T52: 17.35286391
A53: Statewide | B53: 2001 | C53: LHD1 | D53: 1972 | E53: 2001_1972 | F53: =(1/$T53)*Defaults!$F$24 -> 681.9838001 | G53: =(1/$T53)*Defaults!$F$25 -> 793.7652878 | H53: =(1/$T53)*Defaults!$F$26 -> 300.8533284 | I53: =(1/$T53)*Defaults!$F$27 -> 850.634463 | J53: =(1/$T53)*Defaults!$F$28 -> 429.520511 | K53: =(1/$T53)*Defaults!$F$29 -> 354.59327 | L53: =(1/$T53)*Defaults!$F$30 -> 743.0070171 | M53: Aggregated | N53: DSL | O53: 40.5831783 | P53: 809.5388304 | Q53: 0.0465029268 | R53: 46.5029268 | S53: 0.05744372605 | T53: 17.4083415
A54: Statewide | B54: 2001 | C54: LHD1 | D54: 1973 | E54: 2001_1973 | F54: =(1/$T54)*Defaults!$F$24 -> 682.2453456 | G54: =(1/$T54)*Defaults!$F$25 -> 794.0697023 | H54: =(1/$T54)*Defaults!$F$26 -> 300.9687077 | I54: =(1/$T54)*Defaults!$F$27 -> 850.9606872 | J54: =(1/$T54)*Defaults!$F$28 -> 429.6852351 | K54: =(1/$T54)*Defaults!$F$29 -> 354.729259 | L54: =(1/$T54)*Defaults!$F$30 -> 743.2919654 | M54: Aggregated | N54: DSL | O54: 52.07866192 | P54: 1065.00563 | Q54: 0.06120135382 | R54: 61.20135382 | S54: 0.05746575612 | T54: 17.40166784
A55: Statewide | B55: 2001 | C55: LHD1 | D55: 1974 | E55: 2001_1974 | F55: =(1/$T55)*Defaults!$F$24 -> 666.5596129 | G55: =(1/$T55)*Defaults!$F$25 -> 775.8129781 | H55: =(1/$T55)*Defaults!$F$26 -> 294.0490347 | I55: =(1/$T55)*Defaults!$F$27 -> 831.3959632 | J55: =(1/$T55)*Defaults!$F$28 -> 419.8061971 | K55: =(1/$T55)*Defaults!$F$29 -> 346.573559 | L55: =(1/$T55)*Defaults!$F$30 -> 726.2026893 | M55: Aggregated | N55: DSL | O55: 68.96502769 | P55: 1446.187505 | Q55: 0.08119553444 | R55: 81.19553444 | S55: 0.05614454155 | T55: 17.81117046
A56: Statewide | B56: 2001 | C56: LHD1 | D56: 1975 | E56: 2001_1975 | F56: =(1/$T56)*Defaults!$F$24 -> 665.5385901 | G56: =(1/$T56)*Defaults!$F$25 -> 774.6246032 | H56: =(1/$T56)*Defaults!$F$26 -> 293.5986162 | I56: =(1/$T56)*Defaults!$F$27 -> 830.1224474 | J56: =(1/$T56)*Defaults!$F$28 -> 419.1631462 | K56: =(1/$T56)*Defaults!$F$29 -> 346.0426845 | L56: =(1/$T56)*Defaults!$F$30 -> 725.0903064 | M56: Aggregated | N56: DSL | O56: 37.57328962 | P56: 808.1527471 | Q56: 0.04530386346 | R56: 45.30386346 | S56: 0.05605854045 | T56: 17.83849512
A57: Statewide | B57: 2001 | C57: LHD1 | D57: 1976 | E57: 2001_1976 | F57: =(1/$T57)*Defaults!$F$24 -> 672.1463316 | G57: =(1/$T57)*Defaults!$F$25 -> 782.3153956 | H57: =(1/$T57)*Defaults!$F$26 -> 296.5135843 | I57: =(1/$T57)*Defaults!$F$27 -> 838.3642453 | J57: =(1/$T57)*Defaults!$F$28 -> 423.3247708 | K57: =(1/$T57)*Defaults!$F$29 -> 349.4783389 | L57: =(1/$T57)*Defaults!$F$30 -> 732.2893019 | M57: Aggregated | N57: DSL | O57: 52.28230235 | P57: 1153.759447 | Q57: 0.06532022116 | R57: 65.32022116 | S57: 0.05661511275 | T57: 17.6631283
A58: Statewide | B58: 2001 | C58: LHD1 | D58: 1977 | E58: 2001_1977 | F58: =(1/$T58)*Defaults!$F$24 -> 675.8877432 | G58: =(1/$T58)*Defaults!$F$25 -> 786.6700484 | H58: =(1/$T58)*Defaults!$F$26 -> 298.1640871 | I58: =(1/$T58)*Defaults!$F$27 -> 843.0308864 | J58: =(1/$T58)*Defaults!$F$28 -> 425.6811508 | K58: =(1/$T58)*Defaults!$F$29 -> 351.4236628 | L58: =(1/$T58)*Defaults!$F$30 -> 736.3654912 | M58: Aggregated | N58: DSL | O58: 61.8815231 | P58: 1401.553719 | Q58: 0.07979080799 | R58: 79.79080799 | S58: 0.05693025312 | T58: 17.56535313
A59: Statewide | B59: 2001 | C59: LHD1 | D59: 1978 | E59: 2001_1978 | F59: =(1/$T59)*Defaults!$F$24 -> 669.8628716 | G59: =(1/$T59)*Defaults!$F$25 -> 779.6576619 | H59: =(1/$T59)*Defaults!$F$26 -> 295.5062487 | I59: =(1/$T59)*Defaults!$F$27 -> 835.5160987 | J59: =(1/$T59)*Defaults!$F$28 -> 421.8866238 | K59: =(1/$T59)*Defaults!$F$29 -> 348.2910679 | L59: =(1/$T59)*Defaults!$F$30 -> 729.8015202 | M59: Aggregated | N59: DSL | O59: 63.78778408 | P59: 1483.309559 | Q59: 0.08369244318 | R59: 83.69244318 | S59: 0.05642277614 | T59: 17.7233392
A60: Statewide | B60: 2001 | C60: LHD1 | D60: 1979 | E60: 2001_1979 | F60: =(1/$T60)*Defaults!$F$24 -> 673.2539729 | G60: =(1/$T60)*Defaults!$F$25 -> 783.6045863 | H60: =(1/$T60)*Defaults!$F$26 -> 297.0022141 | I60: =(1/$T60)*Defaults!$F$27 -> 839.7457998 | J60: =(1/$T60)*Defaults!$F$28 -> 424.0223748 | K60: =(1/$T60)*Defaults!$F$29 -> 350.0542502 | L60: =(1/$T60)*Defaults!$F$30 -> 733.4960538 | M60: Aggregated | N60: DSL | O60: 101.6732979 | P60: 2428.405396 | Q60: 0.1377110083 | R60: 137.7110083 | S60: 0.05670840975 | T60: 17.63406882
A61: Statewide | B61: 2001 | C61: LHD1 | D61: 1980 | E61: 2001_1980 | F61: =(1/$T61)*Defaults!$F$24 -> 666.5794225 | G61: =(1/$T61)*Defaults!$F$25 -> 775.8360346 | H61: =(1/$T61)*Defaults!$F$26 -> 294.0577736 | I61: =(1/$T61)*Defaults!$F$27 -> 831.4206716 | J61: =(1/$T61)*Defaults!$F$28 -> 419.8186733 | K61: =(1/$T61)*Defaults!$F$29 -> 346.5838589 | L61: =(1/$T61)*Defaults!$F$30 -> 726.2242714 | M61: Aggregated | N61: DSL | O61: 164.2830569 | P61: 4032.000689 | Q61: 0.2263815579 | R61: 226.3815579 | S61: 0.05614621012 | T61: 17.81064114
A62: Statewide | B62: 2001 | C62: LHD1 | D62: 1981 | E62: 2001_1981 | F62: =(1/$T62)*Defaults!$F$24 -> 665.0872036 | G62: =(1/$T62)*Defaults!$F$25 -> 774.0992316 | H62: =(1/$T62)*Defaults!$F$26 -> 293.3994896 | I62: =(1/$T62)*Defaults!$F$27 -> 829.5594356 | J62: =(1/$T62)*Defaults!$F$28 -> 418.8788583 | K62: =(1/$T62)*Defaults!$F$29 -> 345.8079889 | L62: =(1/$T62)*Defaults!$F$30 -> 724.5985303 | M62: Aggregated | N62: DSL | O62: 125.7699907 | P62: 3173.461968 | Q62: 0.1777789897 | R62: 177.7789897 | S62: 0.05602052002 | T62: 17.85060188
A63: Statewide | B63: 2001 | C63: LHD1 | D63: 1982 | E63: 2001_1982 | F63: =(1/$T63)*Defaults!$F$24 -> 669.3285124 | G63: =(1/$T63)*Defaults!$F$25 -> 779.0357178 | H63: =(1/$T63)*Defaults!$F$26 -> 295.2705192 | I63: =(1/$T63)*Defaults!$F$27 -> 834.8495955 | J63: =(1/$T63)*Defaults!$F$28 -> 421.5500788 | K63: =(1/$T63)*Defaults!$F$29 -> 348.0132312 | L63: =(1/$T63)*Defaults!$F$30 -> 729.219347 | M63: Aggregated | N63: DSL | O63: 2533.404072 | P63: 65754.90592 | Q63: 3.707114757 | R63: 3707.114757 | S63: 0.05637776688 | T63: 17.73748865
A64: Statewide | B64: 2001 | C64: LHD1 | D64: 1983 | E64: 2001_1983 | F64: =(1/$T64)*Defaults!$F$24 -> 679.7781484 | G64: =(1/$T64)*Defaults!$F$25 -> 791.1981158 | H64: =(1/$T64)*Defaults!$F$26 -> 299.8803175 | I64: =(1/$T64)*Defaults!$F$27 -> 847.8833664 | J64: =(1/$T64)*Defaults!$F$28 -> 428.1313686 | K64: =(1/$T64)*Defaults!$F$29 -> 353.446455 | L64: =(1/$T64)*Defaults!$F$30 -> 740.6040059 | M64: Aggregated | N64: DSL | O64: 4140.025493 | P64: 110601.3554 | Q64: 6.332806131 | R64: 6332.806131 | S64: 0.05725794326 | T64: 17.46482572
A65: Statewide | B65: 2001 | C65: LHD1 | D65: 1984 | E65: 2001_1984 | F65: =(1/$T65)*Defaults!$F$24 -> 679.9050126 | G65: =(1/$T65)*Defaults!$F$25 -> 791.3457738 | H65: =(1/$T65)*Defaults!$F$26 -> 299.9362829 | I65: =(1/$T65)*Defaults!$F$27 -> 848.0416033 | J65: =(1/$T65)*Defaults!$F$28 -> 428.211269 | K65: =(1/$T65)*Defaults!$F$29 -> 353.5124172 | L65: =(1/$T65)*Defaults!$F$30 -> 740.7422218 | M65: Aggregated | N65: DSL | O65: 6774.938132 | P65: 186420.673 | Q65: 10.67605638 | R65: 10676.05638 | S65: 0.05726862908 | T65: 17.46156694
A66: Statewide | B66: 2001 | C66: LHD1 | D66: 1985 | E66: 2001_1985 | F66: =(1/$T66)*Defaults!$F$24 -> 681.5397122 | G66: =(1/$T66)*Defaults!$F$25 -> 793.248411 | H66: =(1/$T66)*Defaults!$F$26 -> 300.6574215 | I66: =(1/$T66)*Defaults!$F$27 -> 850.0805547 | J66: =(1/$T66)*Defaults!$F$28 -> 429.2408198 | K66: =(1/$T66)*Defaults!$F$29 -> 354.3623692 | L66: =(1/$T66)*Defaults!$F$30 -> 742.5231926 | M66: Aggregated | N66: DSL | O66: 7434.609655 | P66: 210868.5549 | Q66: 12.10518782 | R66: 12105.18782 | S66: 0.05740632037 | T66: 17.41968469
A67: Statewide | B67: 2001 | C67: LHD1 | D67: 1986 | E67: 2001_1986 | F67: =(1/$T67)*Defaults!$F$24 -> 681.9406248 | G67: =(1/$T67)*Defaults!$F$25 -> 793.7150358 | H67: =(1/$T67)*Defaults!$F$26 -> 300.8342818 | I67: =(1/$T67)*Defaults!$F$27 -> 850.5806107 | J67: =(1/$T67)*Defaults!$F$28 -> 429.4933188 | K67: =(1/$T67)*Defaults!$F$29 -> 354.5708212 | L67: =(1/$T67)*Defaults!$F$30 -> 742.9599785 | M67: Aggregated | N67: DSL | O67: 8755.789342 | P67: 256206.0661 | Q67: 14.71649933 | R67: 14716.49933 | S67: 0.05744008938 | T67: 17.40944366
A68: Statewide | B68: 2001 | C68: LHD1 | D68: 1987 | E68: 2001_1987 | F68: =(1/$T68)*Defaults!$F$24 -> 677.911938 | G68: =(1/$T68)*Defaults!$F$25 -> 789.0260216 | H68: =(1/$T68)*Defaults!$F$26 -> 299.0570493 | I68: =(1/$T68)*Defaults!$F$27 -> 845.5556529 | J68: =(1/$T68)*Defaults!$F$28 -> 426.9560098 | K68: =(1/$T68)*Defaults!$F$29 -> 352.4761304 | L68: =(1/$T68)*Defaults!$F$30 -> 738.5708089 | M68: Aggregated | N68: DSL | O68: 4721.690539 | P68: 142677.9594 | Q68: 8.147018734 | R68: 8147.018734 | S68: 0.05710075173 | T68: 17.51290429
A69: Statewide | B69: 2001 | C69: LHD1 | D69: 1988 | E69: 2001_1988 | F69: =(1/$T69)*Defaults!$F$24 -> 677.5718175 | G69: =(1/$T69)*Defaults!$F$25 -> 788.6301531 | H69: =(1/$T69)*Defaults!$F$26 -> 298.907007 | I69: =(1/$T69)*Defaults!$F$27 -> 845.1314225 | J69: =(1/$T69)*Defaults!$F$28 -> 426.7417983 | K69: =(1/$T69)*Defaults!$F$29 -> 352.2992868 | L69: =(1/$T69)*Defaults!$F$30 -> 738.2002547 | M69: Aggregated | N69: DSL | O69: 3796.34026 | P69: 118596.8387 | Q69: 6.768571024 | R69: 6768.571024 | S69: 0.05707210326 | T69: 17.52169524
A70: Statewide | B70: 2001 | C70: LHD1 | D70: 1989 | E70: 2001_1989 | F70: =(1/$T70)*Defaults!$F$24 -> 679.4529114 | G70: =(1/$T70)*Defaults!$F$25 -> 790.8195703 | H70: =(1/$T70)*Defaults!$F$26 -> 299.736841 | I70: =(1/$T70)*Defaults!$F$27 -> 847.4777001 | J70: =(1/$T70)*Defaults!$F$28 -> 427.9265309 | K70: =(1/$T70)*Defaults!$F$29 -> 353.27735 | L70: =(1/$T70)*Defaults!$F$30 -> 740.249667 | M70: Aggregated | N70: DSL | O70: 5683.537242 | P70: 183793.0394 | Q70: 10.51857644 | R70: 10518.57644 | S70: 0.05723054844 | T70: 17.47318569
A71: Statewide | B71: 2001 | C71: LHD1 | D71: 1990 | E71: 2001_1990 | F71: =(1/$T71)*Defaults!$F$24 -> 683.0271967 | G71: =(1/$T71)*Defaults!$F$25 -> 794.9797037 | H71: =(1/$T71)*Defaults!$F$26 -> 301.3136169 | I71: =(1/$T71)*Defaults!$F$27 -> 851.9358855 | J71: =(1/$T71)*Defaults!$F$28 -> 430.1776531 | K71: =(1/$T71)*Defaults!$F$29 -> 355.1357776 | L71: =(1/$T71)*Defaults!$F$30 -> 744.1437757 | M71: Aggregated | N71: DSL | O71: 6511.085532 | P71: 218275.8865 | Q71: 12.55776354 | R71: 12557.76354 | S71: 0.0575316117 | T71: 17.38174841
A72: Statewide | B72: 2001 | C72: LHD1 | D72: 1991 | E72: 2001_1991 | F72: =(1/$T72)*Defaults!$F$24 -> 683.8245286 | G72: =(1/$T72)*Defaults!$F$25 -> 795.9077234 | H72: =(1/$T72)*Defaults!$F$26 -> 301.6653554 | I72: =(1/$T72)*Defaults!$F$27 -> 852.930393 | J72: =(1/$T72)*Defaults!$F$28 -> 430.679821 | K72: =(1/$T72)*Defaults!$F$29 -> 355.5503454 | L72: =(1/$T72)*Defaults!$F$30 -> 745.012452 | M72: Aggregated | N72: DSL | O72: 5798.777689 | P72: 201872.403 | Q72: 11.62760236 | R72: 11627.60236 | S72: 0.05759877123 | T72: 17.36148148
A73: Statewide | B73: 2001 | C73: LHD1 | D73: 1992 | E73: 2001_1992 | F73: =(1/$T73)*Defaults!$F$24 -> 683.921677 | G73: =(1/$T73)*Defaults!$F$25 -> 796.0207951 | H73: =(1/$T73)*Defaults!$F$26 -> 301.7082119 | I73: =(1/$T73)*Defaults!$F$27 -> 853.0515657 | J73: =(1/$T73)*Defaults!$F$28 -> 430.7410061 | K73: =(1/$T73)*Defaults!$F$29 -> 355.6008571 | L73: =(1/$T73)*Defaults!$F$30 -> 745.1182932 | M73: Aggregated | N73: DSL | O73: 5543.924077 | P73: 200829.0521 | Q73: 11.56914998 | R73: 11569.14998 | S73: 0.05760695407 | T73: 17.35901535
A74: Statewide | B74: 2001 | C74: LHD1 | D74: 1993 | E74: 2001_1993 | F74: =(1/$T74)*Defaults!$F$24 -> 683.4656668 | G74: =(1/$T74)*Defaults!$F$25 -> 795.4900419 | H74: =(1/$T74)*Defaults!$F$26 -> 301.5070456 | I74: =(1/$T74)*Defaults!$F$27 -> 852.4827868 | J74: =(1/$T74)*Defaults!$F$28 -> 430.4538061 | K74: =(1/$T74)*Defaults!$F$29 -> 355.3637574 | L74: =(1/$T74)*Defaults!$F$30 -> 744.6214797 | M74: Aggregated | N74: DSL | O74: 7085.279058 | P74: 267725.2841 | Q74: 15.41255485 | R74: 15412.55485 | S74: 0.05756854418 | T74: 17.37059733
A75: Statewide | B75: 2001 | C75: LHD1 | D75: 1994 | E75: =CONCATENATE(B75,"_",D75) -> 2001_1994 | F75: =(1/$T75)*Defaults!$F$24 -> 678.6600788 | G75: =(1/$T75)*Defaults!$F$25 -> 789.8967874 | H75: =(1/$T75)*Defaults!$F$26 -> 299.3870874 | I75: =(1/$T75)*Defaults!$F$27 -> 846.4888045 | J75: =(1/$T75)*Defaults!$F$28 -> 427.4271967 | K75: =(1/$T75)*Defaults!$F$29 -> 352.8651216 | L75: =(1/$T75)*Defaults!$F$30 -> 739.3858925 | M75: Aggregated | N75: DSL | O75: 7062.734687 | P75: 279198.7042 | Q75: 15.96004992 | R75: =(Q75*1000) -> 15960.04992 | S75: =R75/P75 -> 0.05716376788 | T75: =P75/R75 -> 17.49359843
A76: Statewide | B76: 2001 | C76: LHD1 | D76: 1995 | E76: 2001_1995 | F76: =(1/$T76)*Defaults!$F$24 -> 674.7592828 | G76: =(1/$T76)*Defaults!$F$25 -> 785.3566261 | H76: =(1/$T76)*Defaults!$F$26 -> 297.6662731 | I76: =(1/$T76)*Defaults!$F$27 -> 841.6233641 | J76: =(1/$T76)*Defaults!$F$28 -> 424.9704347 | K76: =(1/$T76)*Defaults!$F$29 -> 350.8369267 | L76: =(1/$T76)*Defaults!$F$30 -> 735.1360572 | M76: Aggregated | N76: DSL | O76: 10372.05253 | P76: 430540.732 | Q76: 24.46986969 | R76: 24469.86969 | S76: 0.05683520251 | T76: 17.59472925
A77: Statewide | B77: 2001 | C77: LHD1 | D77: 1996 | E77: 2001_1996 | F77: =(1/$T77)*Defaults!$F$24 -> 676.2359841 | G77: =(1/$T77)*Defaults!$F$25 -> 787.0753682 | H77: =(1/$T77)*Defaults!$F$26 -> 298.3177116 | I77: =(1/$T77)*Defaults!$F$27 -> 843.4652452 | J77: =(1/$T77)*Defaults!$F$28 -> 425.9004766 | K77: =(1/$T77)*Defaults!$F$29 -> 351.6047285 | L77: =(1/$T77)*Defaults!$F$30 -> 736.7448923 | M77: Aggregated | N77: DSL | O77: 9691.302849 | P77: 424417.4809 | Q77: 24.17464382 | R77: 24174.64382 | S77: 0.05695958556 | T77: 17.55630751
A78: Statewide | B78: 2001 | C78: LHD1 | D78: 1997 | E78: 2001_1997 | F78: =(1/$T78)*Defaults!$F$24 -> 678.8623034 | G78: =(1/$T78)*Defaults!$F$25 -> 790.1321579 | H78: =(1/$T78)*Defaults!$F$26 -> 299.4762976 | I78: =(1/$T78)*Defaults!$F$27 -> 846.7410381 | J78: =(1/$T78)*Defaults!$F$28 -> 427.5545598 | K78: =(1/$T78)*Defaults!$F$29 -> 352.970267 | L78: =(1/$T78)*Defaults!$F$30 -> 739.606212 | M78: Aggregated | N78: DSL | O78: 13368.36383 | P78: 621561.8895 | Q78: 35.54140692 | R78: 35541.40692 | S78: 0.05718080132 | T78: 17.48838731
A79: Statewide | B79: 2001 | C79: LHD1 | D79: 1998 | E79: 2001_1998 | F79: =(1/$T79)*Defaults!$F$24 -> 675.0757721 | G79: =(1/$T79)*Defaults!$F$25 -> 785.7249901 | H79: =(1/$T79)*Defaults!$F$26 -> 297.8058906 | I79: =(1/$T79)*Defaults!$F$27 -> 842.0181195 | J79: =(1/$T79)*Defaults!$F$28 -> 425.169763 | K79: =(1/$T79)*Defaults!$F$29 -> 351.0014834 | L79: =(1/$T79)*Defaults!$F$30 -> 735.4808658 | M79: Aggregated | N79: DSL | O79: 4738.369219 | P79: 235976.2821 | Q79: 13.41805044 | R79: 13418.05044 | S79: 0.05686186052 | T79: 17.58648048
A80: Statewide | B80: 2001 | C80: LHD1 | D80: 1999 | E80: 2001_1999 | F80: =(1/$T80)*Defaults!$F$24 -> 677.1623582 | G80: =(1/$T80)*Defaults!$F$25 -> 788.1535809 | H80: =(1/$T80)*Defaults!$F$26 -> 298.7263763 | I80: =(1/$T80)*Defaults!$F$27 -> 844.6207063 | J80: =(1/$T80)*Defaults!$F$28 -> 426.4839166 | K80: =(1/$T80)*Defaults!$F$29 -> 352.086391 | L80: =(1/$T80)*Defaults!$F$30 -> 737.7541574 | M80: Aggregated | N80: DSL | O80: 17868.56589 | P80: 966038.2641 | Q80: 55.10051797 | R80: 55100.51797 | S80: 0.05703761437 | T80: 17.53229007
A81: Statewide | B81: 2001 | C81: LHD1 | D81: 2000 | E81: 2001_2000 | F81: =(1/$T81)*Defaults!$F$24 -> 674.5634111 | G81: =(1/$T81)*Defaults!$F$25 -> 785.1286498 | H81: =(1/$T81)*Defaults!$F$26 -> 297.5798654 | I81: =(1/$T81)*Defaults!$F$27 -> 841.3790546 | J81: =(1/$T81)*Defaults!$F$28 -> 424.8470727 | K81: =(1/$T81)*Defaults!$F$29 -> 350.7350845 | L81: =(1/$T81)*Defaults!$F$30 -> 734.9226592 | M81: Aggregated | N81: DSL | O81: 15470.38372 | P81: 929322.5515 | Q81: 52.80290313 | R81: 52802.90313 | S81: 0.05681870418 | T81: 17.5998382
A82: Statewide | B82: 2001 | C82: LHD1 | D82: 2001 | E82: 2001_2001 | F82: =(1/$T82)*Defaults!$F$24 -> 676.0122384 | G82: =(1/$T82)*Defaults!$F$25 -> 786.8149491 | H82: =(1/$T82)*Defaults!$F$26 -> 298.2190074 | I82: =(1/$T82)*Defaults!$F$27 -> 843.1861685 | J82: =(1/$T82)*Defaults!$F$28 -> 425.7595592 | K82: =(1/$T82)*Defaults!$F$29 -> 351.4883933 | L82: =(1/$T82)*Defaults!$F$30 -> 736.5011261 | M82: Aggregated | N82: DSL | O82: 20433.64117 | P82: 1437322.479 | Q82: 81.84220466 | R82: 81842.20466 | S82: 0.05694073938 | T82: 17.56211828
A83: Statewide | B83: 2002 | C83: LHD1 | D83: 1965 | E83: 2002_1965 | F83: =(1/$T83)*Defaults!$F$24 -> 688.0148069 | G83: =(1/$T83)*Defaults!$F$25 -> 800.784815 | H83: =(1/$T83)*Defaults!$F$26 -> 303.5138732 | I83: =(1/$T83)*Defaults!$F$27 -> 858.156903 | J83: =(1/$T83)*Defaults!$F$28 -> 433.318902 | K83: =(1/$T83)*Defaults!$F$29 -> 357.7290548 | L83: =(1/$T83)*Defaults!$F$30 -> 749.5776722 | M83: Aggregated | N83: DSL | O83: 49.94478698 | P83: 796.648426 | Q83: 0.04616714636 | R83: 46.16714636 | S83: 0.05795171979 | T83: 17.25574329
A84: Statewide | B84: 2002 | C84: LHD1 | D84: 1966 | E84: 2002_1966 | F84: =(1/$T84)*Defaults!$F$24 -> 685.0962366 | G84: =(1/$T84)*Defaults!$F$25 -> 797.3878725 | H84: =(1/$T84)*Defaults!$F$26 -> 302.2263623 | I84: =(1/$T84)*Defaults!$F$27 -> 854.5165871 | J84: =(1/$T84)*Defaults!$F$28 -> 431.480756 | K84: =(1/$T84)*Defaults!$F$29 -> 356.2115621 | L84: =(1/$T84)*Defaults!$F$30 -> 746.3979512 | M84: Aggregated | N84: DSL | O84: 8.258351658 | P84: 142.8273515 | Q84: 0.008241979093 | R84: 8.241979093 | S84: 0.05770588763 | T84: 17.32925428
A85: Statewide | B85: 2002 | C85: LHD1 | D85: 1967 | E85: 2002_1967 | F85: =(1/$T85)*Defaults!$F$24 -> 676.2108886 | G85: =(1/$T85)*Defaults!$F$25 -> 787.0461594 | H85: =(1/$T85)*Defaults!$F$26 -> 298.3066409 | I85: =(1/$T85)*Defaults!$F$27 -> 843.4339438 | J85: =(1/$T85)*Defaults!$F$28 -> 425.8846712 | K85: =(1/$T85)*Defaults!$F$29 -> 351.5916803 | L85: =(1/$T85)*Defaults!$F$30 -> 736.7175513 | M85: Aggregated | N85: DSL | O85: 14.60121578 | P85: 258.6139362 | Q85: 0.01472999597 | R85: 14.72999597 | S85: 0.05695747176 | T85: 17.55695906
A86: Statewide | B86: 2002 | C86: LHD1 | D86: 1968 | E86: 2002_1968 | F86: =(1/$T86)*Defaults!$F$24 -> 683.0357164 | G86: =(1/$T86)*Defaults!$F$25 -> 794.9896199 | H86: =(1/$T86)*Defaults!$F$26 -> 301.3173754 | I86: =(1/$T86)*Defaults!$F$27 -> 851.9465122 | J86: =(1/$T86)*Defaults!$F$28 -> 430.1830189 | K86: =(1/$T86)*Defaults!$F$29 -> 355.1402074 | L86: =(1/$T86)*Defaults!$F$30 -> 744.1530578 | M86: Aggregated | N86: DSL | O86: 30.1467755 | P86: 546.8764967 | Q86: 0.03146307871 | R86: 31.46307871 | S86: 0.05753232932 | T86: 17.3815316
A87: Statewide | B87: 2002 | C87: LHD1 | D87: 1969 | E87: 2002_1969 | F87: =(1/$T87)*Defaults!$F$24 -> 671.7578334 | G87: =(1/$T87)*Defaults!$F$25 -> 781.86322 | H87: =(1/$T87)*Defaults!$F$26 -> 296.3422005 | I87: =(1/$T87)*Defaults!$F$27 -> 837.8796736 | J87: =(1/$T87)*Defaults!$F$28 -> 423.0800905 | K87: =(1/$T87)*Defaults!$F$29 -> 349.2763416 | L87: =(1/$T87)*Defaults!$F$30 -> 731.8660412 | M87: Aggregated | N87: DSL | O87: 30.55348328 | P87: 567.7309613 | Q87: 0.03212357433 | R87: 32.12357433 | S87: 0.05658238941 | T87: 17.67334343
A88: Statewide | B88: 2002 | C88: LHD1 | D88: 1970 | E88: 2002_1970 | F88: =(1/$T88)*Defaults!$F$24 -> 678.4520573 | G88: =(1/$T88)*Defaults!$F$25 -> 789.6546699 | H88: =(1/$T88)*Defaults!$F$26 -> 299.2953198 | I88: =(1/$T88)*Defaults!$F$27 -> 846.2293405 | J88: =(1/$T88)*Defaults!$F$28 -> 427.2961826 | K88: =(1/$T88)*Defaults!$F$29 -> 352.7569621 | L88: =(1/$T88)*Defaults!$F$30 -> 739.1592575 | M88: Aggregated | N88: DSL | O88: 29.43744611 | P88: 560.3652461 | Q88: 0.03202277029 | R88: 32.02277029 | S88: 0.05714624616 | T88: 17.49896218
A89: Statewide | B89: 2002 | C89: LHD1 | D89: 1971 | E89: 2002_1971 | F89: =(1/$T89)*Defaults!$F$24 -> 688.8632485 | G89: =(1/$T89)*Defaults!$F$25 -> 801.7723216 | H89: =(1/$T89)*Defaults!$F$26 -> 303.8881585 | I89: =(1/$T89)*Defaults!$F$27 -> 859.2151593 | J89: =(1/$T89)*Defaults!$F$28 -> 433.8532594 | K89: =(1/$T89)*Defaults!$F$29 -> 358.1701967 | L89: =(1/$T89)*Defaults!$F$30 -> 750.5020315 | M89: Aggregated | N89: DSL | O89: 24.0088124 | P89: 468.2685197 | Q89: 0.02717043063 | R89: 27.17043063 | S89: 0.05802318431 | T89: 17.23449018
A90: Statewide | B90: 2002 | C90: LHD1 | D90: 1972 | E90: 2002_1972 | F90: =(1/$T90)*Defaults!$F$24 -> 684.8028426 | G90: =(1/$T90)*Defaults!$F$25 -> 797.0463893 | H90: =(1/$T90)*Defaults!$F$26 -> 302.0969332 | I90: =(1/$T90)*Defaults!$F$27 -> 854.1506385 | J90: =(1/$T90)*Defaults!$F$28 -> 431.2959734 | K90: =(1/$T90)*Defaults!$F$29 -> 356.0590137 | L90: =(1/$T90)*Defaults!$F$30 -> 746.0783046 | M90: Aggregated | N90: DSL | O90: 32.25545191 | P90: 644.6937008 | Q90: 0.03718669015 | R90: 37.18669015 | S90: 0.05768117495 | T90: 17.33667875
A91: Statewide | B91: 2002 | C91: LHD1 | D91: 1973 | E91: 2002_1973 | F91: =(1/$T91)*Defaults!$F$24 -> 689.1097901 | G91: =(1/$T91)*Defaults!$F$25 -> 802.0592729 | H91: =(1/$T91)*Defaults!$F$26 -> 303.9969189 | I91: =(1/$T91)*Defaults!$F$27 -> 859.5226692 | J91: =(1/$T91)*Defaults!$F$28 -> 434.0085339 | K91: =(1/$T91)*Defaults!$F$29 -> 358.2983845 | L91: =(1/$T91)*Defaults!$F$30 -> 750.7706334 | M91: Aggregated | N91: DSL | O91: 46.01642618 | P91: 942.6953722 | Q91: 0.05471776361 | R91: 54.71776361 | S91: 0.05804395059 | T91: 17.22832422
A92: Statewide | B92: 2002 | C92: LHD1 | D92: 1974 | E92: 2002_1974 | F92: =(1/$T92)*Defaults!$F$24 -> 664.5425983 | G92: =(1/$T92)*Defaults!$F$25 -> 773.465362 | H92: =(1/$T92)*Defaults!$F$26 -> 293.15924 | I92: =(1/$T92)*Defaults!$F$27 -> 828.8801525 | J92: =(1/$T92)*Defaults!$F$28 -> 418.5358602 | K92: =(1/$T92)*Defaults!$F$29 -> 345.5248247 | L92: =(1/$T92)*Defaults!$F$30 -> 724.0051942 | M92: Aggregated | N92: DSL | O92: 52.72252531 | P92: 1107.274122 | Q92: 0.06197927891 | R92: 61.97927891 | S92: 0.05597464772 | T92: 17.86523079
A93: Statewide | B93: 2002 | C93: LHD1 | D93: 1975 | E93: 2002_1975 | F93: =(1/$T93)*Defaults!$F$24 -> 660.7372154 | G93: =(1/$T93)*Defaults!$F$25 -> 769.0362525 | H93: =(1/$T93)*Defaults!$F$26 -> 291.4805167 | I93: =(1/$T93)*Defaults!$F$27 -> 824.1337203 | J93: =(1/$T93)*Defaults!$F$28 -> 416.1391903 | K93: =(1/$T93)*Defaults!$F$29 -> 343.5462393 | L93: =(1/$T93)*Defaults!$F$30 -> 719.8593095 | M93: Aggregated | N93: DSL | O93: 31.47248291 | P93: 677.787501 | Q93: 0.03772166626 | R93: 37.72166626 | S93: 0.05565411903 | T93: 17.96812199
A94: Statewide | B94: 2002 | C94: LHD1 | D94: 1976 | E94: 2002_1976 | F94: =(1/$T94)*Defaults!$F$24 -> 668.2936355 | G94: =(1/$T94)*Defaults!$F$25 -> 777.831218 | H94: =(1/$T94)*Defaults!$F$26 -> 294.813989 | I94: =(1/$T94)*Defaults!$F$27 -> 833.5587995 | J94: =(1/$T94)*Defaults!$F$28 -> 420.8983025 | K94: =(1/$T94)*Defaults!$F$29 -> 347.4751533 | L94: =(1/$T94)*Defaults!$F$30 -> 728.0918704 | M94: Aggregated | N94: DSL | O94: 49.18406062 | P94: 1086.439318 | Q94: 0.0611563198 | R94: 61.1563198 | S94: 0.05629059885 | T94: 17.76495579
A95: Statewide | B95: 2002 | C95: LHD1 | D95: 1977 | E95: 2002_1977 | F95: =(1/$T95)*Defaults!$F$24 -> 675.9230697 | G95: =(1/$T95)*Defaults!$F$25 -> 786.7111651 | H95: =(1/$T95)*Defaults!$F$26 -> 298.1796711 | I95: =(1/$T95)*Defaults!$F$27 -> 843.0749488 | J95: =(1/$T95)*Defaults!$F$28 -> 425.7033998 | K95: =(1/$T95)*Defaults!$F$29 -> 351.4420306 | L95: =(1/$T95)*Defaults!$F$30 -> 736.4039786 | M95: Aggregated | N95: DSL | O95: 59.44327143 | P95: 1347.193962 | Q95: 0.07670010193 | R95: 76.70010193 | S95: 0.05693322867 | T95: 17.5644351
A96: Statewide | B96: 2002 | C96: LHD1 | D96: 1978 | E96: 2002_1978 | F96: =(1/$T96)*Defaults!$F$24 -> 669.1971007 | G96: =(1/$T96)*Defaults!$F$25 -> 778.8827669 | H96: =(1/$T96)*Defaults!$F$26 -> 295.2125477 | I96: =(1/$T96)*Defaults!$F$27 -> 834.6856865 | J96: =(1/$T96)*Defaults!$F$28 -> 421.4673144 | K96: =(1/$T96)*Defaults!$F$29 -> 347.9449045 | L96: =(1/$T96)*Defaults!$F$30 -> 729.0761768 | M96: Aggregated | N96: DSL | O96: 57.70140019 | P96: 1342.152811 | Q96: 0.0756527222 | R96: 75.6527222 | S96: 0.05636669803 | T96: 17.7409718
A97: Statewide | B97: 2002 | C97: LHD1 | D97: 1979 | E97: 2002_1979 | F97: =(1/$T97)*Defaults!$F$24 -> 675.1272557 | G97: =(1/$T97)*Defaults!$F$25 -> 785.7849121 | H97: =(1/$T97)*Defaults!$F$26 -> 297.8286023 | I97: =(1/$T97)*Defaults!$F$27 -> 842.0823346 | J97: =(1/$T97)*Defaults!$F$28 -> 425.2021878 | K97: =(1/$T97)*Defaults!$F$29 -> 351.028252 | L97: =(1/$T97)*Defaults!$F$30 -> 735.536956 | M97: Aggregated | N97: DSL | O97: 91.34725018 | P97: 2181.507035 | Q97: 0.1240540088 | R97: 124.0540088 | S97: 0.05686619699 | T97: 17.58513938
A98: Statewide | B98: 2002 | C98: LHD1 | D98: 1980 | E98: 2002_1980 | F98: =(1/$T98)*Defaults!$F$24 -> 666.4649779 | G98: =(1/$T98)*Defaults!$F$25 -> 775.7028318 | H98: =(1/$T98)*Defaults!$F$26 -> 294.007287 | I98: =(1/$T98)*Defaults!$F$27 -> 831.2779254 | J98: =(1/$T98)*Defaults!$F$28 -> 419.7465949 | K98: =(1/$T98)*Defaults!$F$29 -> 346.5243541 | L98: =(1/$T98)*Defaults!$F$30 -> 726.0995864 | M98: Aggregated | N98: DSL | O98: 154.4952091 | P98: 3789.624285 | Q98: 0.2127365105 | R98: 212.7365105 | S98: 0.0561365704 | T98: 17.81369957
A99: Statewide | B99: 2002 | C99: LHD1 | D99: 1981 | E99: 2002_1981 | F99: =(1/$T99)*Defaults!$F$24 -> 664.7156943 | G99: =(1/$T99)*Defaults!$F$25 -> 773.6668295 | H99: =(1/$T99)*Defaults!$F$26 -> 293.2356004 | I99: =(1/$T99)*Defaults!$F$27 -> 829.0960541 | J99: =(1/$T99)*Defaults!$F$28 -> 418.6448779 | K99: =(1/$T99)*Defaults!$F$29 -> 345.6148249 | L99: =(1/$T99)*Defaults!$F$30 -> 724.1937787 | M99: Aggregated | N99: DSL | O99: 122.7370481 | P99: 3093.644142 | Q99: 0.1732107461 | R99: 173.2107461 | S99: 0.05598922766 | T99: 17.86057858
A100: Statewide | B100: 2002 | C100: LHD1 | D100: 1982 | E100: 2002_1982 | F100: =(1/$T100)*Defaults!$F$24 -> 670.1155075 | G100: =(1/$T100)*Defaults!$F$25 -> 779.9517065 | H100: =(1/$T100)*Defaults!$F$26 -> 295.6176977 | I100: =(1/$T100)*Defaults!$F$27 -> 835.83121 | J100: =(1/$T100)*Defaults!$F$28 -> 422.0457365 | K100: =(1/$T100)*Defaults!$F$29 -> 348.4224244 | L100: =(1/$T100)*Defaults!$F$30 -> 730.0767617 | M100: Aggregated | N100: DSL | O100: 2285.735043 | P100: 59230.99323 | Q100: 3.343237484 | R100: 3343.237484 | S100: 0.05644405575 | T100: 17.71665744
A101: Statewide | B101: 2002 | C101: LHD1 | D101: 1983 | E101: 2002_1983 | F101: =(1/$T101)*Defaults!$F$24 -> 679.5239824 | G101: =(1/$T101)*Defaults!$F$25 -> 790.9022903 | H101: =(1/$T101)*Defaults!$F$26 -> 299.7681936 | I101: =(1/$T101)*Defaults!$F$27 -> 847.5663465 | J101: =(1/$T101)*Defaults!$F$28 -> 427.9712922 | K101: =(1/$T101)*Defaults!$F$29 -> 353.3143029 | L101: =(1/$T101)*Defaults!$F$30 -> 740.3270973 | M101: Aggregated | N101: DSL | O101: 3793.00935 | P101: 101105.4273 | Q101: 5.786924308 | R101: 5786.924308 | S101: 0.05723653477 | T101: 17.47135818
A102: Statewide | B102: 2002 | C102: LHD1 | D102: 1984 | E102: 2002_1984 | F102: =(1/$T102)*Defaults!$F$24 -> 680.0732457 | G102: =(1/$T102)*Defaults!$F$25 -> 791.5415814 | H102: =(1/$T102)*Defaults!$F$26 -> 300.010498 | I102: =(1/$T102)*Defaults!$F$27 -> 848.2514395 | J102: =(1/$T102)*Defaults!$F$28 -> 428.317224 | K102: =(1/$T102)*Defaults!$F$29 -> 353.599889 | L102: =(1/$T102)*Defaults!$F$30 -> 740.9255082 | M102: Aggregated | N102: DSL | O102: 6215.987322 | P102: 170543.2022 | Q102: 9.769192043 | R102: 9769.192043 | S102: 0.05728279941 | T102: 17.45724738
A103: Statewide | B103: 2002 | C103: LHD1 | D103: 1985 | E103: 2002_1985 | F103: =(1/$T103)*Defaults!$F$24 -> 681.4777866 | G103: =(1/$T103)*Defaults!$F$25 -> 793.1763354 | H103: =(1/$T103)*Defaults!$F$26 -> 300.6301034 | I103: =(1/$T103)*Defaults!$F$27 -> 850.0033152 | J103: =(1/$T103)*Defaults!$F$28 -> 429.2018184 | K103: =(1/$T103)*Defaults!$F$29 -> 354.3301714 | L103: =(1/$T103)*Defaults!$F$30 -> 742.455726 | M103: Aggregated | N103: DSL | O103: 6890.4149 | P103: 194715.7003 | Q103: 11.17689623 | R103: 11176.89623 | S103: 0.05740110436 | T103: 17.42126761
A104: Statewide | B104: 2002 | C104: LHD1 | D104: 1986 | E104: 2002_1986 | F104: =(1/$T104)*Defaults!$F$24 -> 681.9884914 | G104: =(1/$T104)*Defaults!$F$25 -> 793.770748 | H104: =(1/$T104)*Defaults!$F$26 -> 300.8553979 | I104: =(1/$T104)*Defaults!$F$27 -> 850.6403144 | J104: =(1/$T104)*Defaults!$F$28 -> 429.5234657 | K104: =(1/$T104)*Defaults!$F$29 -> 354.5957092 | L104: =(1/$T104)*Defaults!$F$30 -> 743.0121281 | M104: Aggregated | N104: DSL | O104: 8209.081271 | P104: 239119.5393 | Q104: 13.7360118 | R104: 13736.0118 | S104: 0.0574441212 | T104: 17.40822175
A105: Statewide | B105: 2002 | C105: LHD1 | D105: 1987 | E105: 2002_1987 | F105: =(1/$T105)*Defaults!$F$24 -> 678.0445759 | G105: =(1/$T105)*Defaults!$F$25 -> 789.1803997 | H105: =(1/$T105)*Defaults!$F$26 -> 299.1155617 | I105: =(1/$T105)*Defaults!$F$27 -> 845.7210914 | J105: =(1/$T105)*Defaults!$F$28 -> 427.0395466 | K105: =(1/$T105)*Defaults!$F$29 -> 352.5450947 | L105: =(1/$T105)*Defaults!$F$30 -> 738.7153151 | M105: Aggregated | N105: DSL | O105: 4378.230596 | P105: 131570.8242 | Q105: 7.514262893 | R105: 7514.262893 | S105: 0.05711192386 | T105: 17.50947845
A106: Statewide | B106: 2002 | C106: LHD1 | D106: 1988 | E106: 2002_1988 | F106: =(1/$T106)*Defaults!$F$24 -> 677.9812547 | G106: =(1/$T106)*Defaults!$F$25 -> 789.1066998 | H106: =(1/$T106)*Defaults!$F$26 -> 299.0876279 | I106: =(1/$T106)*Defaults!$F$27 -> 845.6421112 | J106: =(1/$T106)*Defaults!$F$28 -> 426.9996662 | K106: =(1/$T106)*Defaults!$F$29 -> 352.5121712 | L106: =(1/$T106)*Defaults!$F$30 -> 738.646328 | M106: Aggregated | N106: DSL | O106: 3495.609183 | P106: 108479.8561 | Q106: 6.194914699 | R106: 6194.914699 | S106: 0.0571065903 | T106: 17.51111377
A107: Statewide | B107: 2002 | C107: LHD1 | D107: 1989 | E107: 2002_1989 | F107: =(1/$T107)*Defaults!$F$24 -> 679.8207441 | G107: =(1/$T107)*Defaults!$F$25 -> 791.2476932 | H107: =(1/$T107)*Defaults!$F$26 -> 299.8991084 | I107: =(1/$T107)*Defaults!$F$27 -> 847.9364957 | J107: =(1/$T107)*Defaults!$F$28 -> 428.1581958 | K107: =(1/$T107)*Defaults!$F$29 -> 353.4686024 | L107: =(1/$T107)*Defaults!$F$30 -> 740.650413 | M107: Aggregated | N107: DSL | O107: 5313.949588 | P107: 170487.3938 | Q107: 9.762369202 | R107: 9762.369202 | S107: 0.05726153111 | T107: 17.46373142
A108: Statewide | B108: 2002 | C108: LHD1 | D108: 1990 | E108: 2002_1990 | F108: =(1/$T108)*Defaults!$F$24 -> 682.9875596 | G108: =(1/$T108)*Defaults!$F$25 -> 794.9335699 | H108: =(1/$T108)*Defaults!$F$26 -> 301.2961313 | I108: =(1/$T108)*Defaults!$F$27 -> 851.8864465 | J108: =(1/$T108)*Defaults!$F$28 -> 430.1526893 | K108: =(1/$T108)*Defaults!$F$29 -> 355.1151686 | L108: =(1/$T108)*Defaults!$F$30 -> 744.100592 | M108: Aggregated | N108: DSL | O108: 6020.626107 | P108: 199948.8298 | Q108: 11.50271088 | R108: 11502.71088 | S108: 0.05752827305 | T108: 17.38275715
A109: Statewide | B109: 2002 | C109: LHD1 | D109: 1991 | E109: 2002_1991 | F109: =(1/$T109)*Defaults!$F$24 -> 683.7516132 | G109: =(1/$T109)*Defaults!$F$25 -> 795.8228567 | H109: =(1/$T109)*Defaults!$F$26 -> 301.6331892 | I109: =(1/$T109)*Defaults!$F$27 -> 852.8394461 | J109: =(1/$T109)*Defaults!$F$28 -> 430.6338982 | K109: =(1/$T109)*Defaults!$F$29 -> 355.5124335 | L109: =(1/$T109)*Defaults!$F$30 -> 744.9330123 | M109: Aggregated | N109: DSL | O109: 5469.886182 | P109: 188320.4613 | Q109: 10.84587057 | R109: 10845.87057 | S109: 0.05759262954 | T109: 17.36333291
A110: Statewide | B110: 2002 | C110: LHD1 | D110: 1992 | E110: 2002_1992 | F110: =(1/$T110)*Defaults!$F$24 -> 684.3566657 | G110: =(1/$T110)*Defaults!$F$25 -> 796.5270812 | H110: =(1/$T110)*Defaults!$F$26 -> 301.9001047 | I110: =(1/$T110)*Defaults!$F$27 -> 853.5941246 | J110: =(1/$T110)*Defaults!$F$28 -> 431.0149665 | K110: =(1/$T110)*Defaults!$F$29 -> 355.8270268 | L110: =(1/$T110)*Defaults!$F$30 -> 745.5922043 | M110: Aggregated | N110: DSL | O110: 5326.293538 | P110: 190428.7208 | Q110: 10.97699574 | R110: 10976.99574 | S110: 0.05764359332 | T110: 17.34798166
A111: Statewide | B111: 2002 | C111: LHD1 | D111: 1993 | E111: 2002_1993 | F111: =(1/$T111)*Defaults!$F$24 -> 683.5035831 | G111: =(1/$T111)*Defaults!$F$25 -> 795.5341729 | H111: =(1/$T111)*Defaults!$F$26 -> 301.5237721 | I111: =(1/$T111)*Defaults!$F$27 -> 852.5300796 | J111: =(1/$T111)*Defaults!$F$28 -> 430.4776862 | K111: =(1/$T111)*Defaults!$F$29 -> 355.3834718 | L111: =(1/$T111)*Defaults!$F$30 -> 744.6627887 | M111: Aggregated | N111: DSL | O111: 6917.648473 | P111: 257356.1868 | Q111: 14.81644293 | R111: 14816.44293 | S111: 0.05757173788 | T111: 17.36963373
A112: Statewide | B112: 2002 | C112: LHD1 | D112: 1994 | E112: 2002_1994 | F112: =(1/$T112)*Defaults!$F$24 -> 679.6235719 | G112: =(1/$T112)*Defaults!$F$25 -> 791.0182032 | H112: =(1/$T112)*Defaults!$F$26 -> 299.812127 | I112: =(1/$T112)*Defaults!$F$27 -> 847.690564 | J112: =(1/$T112)*Defaults!$F$28 -> 428.0340147 | K112: =(1/$T112)*Defaults!$F$29 -> 353.3660839 | L112: =(1/$T112)*Defaults!$F$30 -> 740.4355981 | M112: Aggregated | N112: DSL | O112: 6967.104965 | P112: 270365.7296 | Q112: 15.47706543 | R112: 15477.06543 | S112: 0.05724492323 | T112: 17.46879799
A113: Statewide | B113: 2002 | C113: LHD1 | D113: 1995 | E113: 2002_1995 | F113: =(1/$T113)*Defaults!$F$24 -> 675.7515265 | G113: =(1/$T113)*Defaults!$F$25 -> 786.5115049 | H113: =(1/$T113)*Defaults!$F$26 -> 298.1039958 | I113: =(1/$T113)*Defaults!$F$27 -> 842.8609841 | J113: =(1/$T113)*Defaults!$F$28 -> 425.5953601 | K113: =(1/$T113)*Defaults!$F$29 -> 351.3528378 | L113: =(1/$T113)*Defaults!$F$30 -> 736.217086 | M113: Aggregated | N113: DSL | O113: 10291.30245 | P113: 417808.9197 | Q113: 23.78117379 | R113: 23781.17379 | S113: 0.05691877954 | T113: 17.56889392
A114: Statewide | B114: 2002 | C114: LHD1 | D114: 1996 | E114: 2002_1996 | F114: =(1/$T114)*Defaults!$F$24 -> 676.3250068 | G114: =(1/$T114)*Defaults!$F$25 -> 787.1789822 | H114: =(1/$T114)*Defaults!$F$26 -> 298.3569834 | I114: =(1/$T114)*Defaults!$F$27 -> 843.5762827 | J114: =(1/$T114)*Defaults!$F$28 -> 425.956544 | K114: =(1/$T114)*Defaults!$F$29 -> 351.6510153 | L114: =(1/$T114)*Defaults!$F$30 -> 736.8418807 | M114: Aggregated | N114: DSL | O114: 9684.955246 | P114: 412870.654 | Q114: 23.52003721 | R114: 23520.03721 | S114: 0.05696708397 | T114: 17.55399663
A115: Statewide | B115: 2002 | C115: LHD1 | D115: 1997 | E115: 2002_1997 | F115: =(1/$T115)*Defaults!$F$24 -> 678.9915969 | G115: =(1/$T115)*Defaults!$F$25 -> 790.2826435 | H115: =(1/$T115)*Defaults!$F$26 -> 299.5333347 | I115: =(1/$T115)*Defaults!$F$27 -> 846.9023052 | J115: =(1/$T115)*Defaults!$F$28 -> 427.6359903 | K115: =(1/$T115)*Defaults!$F$29 -> 353.0374924 | L115: =(1/$T115)*Defaults!$F$30 -> 739.7470746 | M115: Aggregated | N115: DSL | O115: 13652.44138 | P115: 614028.1449 | Q115: 35.1173084 | R115: 35117.3084 | S115: 0.05719169176 | T115: 17.48505717
A116: Statewide | B116: 2002 | C116: LHD1 | D116: 1998 | E116: 2002_1998 | F116: =(1/$T116)*Defaults!$F$24 -> 674.8764658 | G116: =(1/$T116)*Defaults!$F$25 -> 785.4930162 | H116: =(1/$T116)*Defaults!$F$26 -> 297.7179677 | I116: =(1/$T116)*Defaults!$F$27 -> 841.7695259 | J116: =(1/$T116)*Defaults!$F$28 -> 425.0442378 | K116: =(1/$T116)*Defaults!$F$29 -> 350.8978553 | L116: =(1/$T116)*Defaults!$F$30 -> 735.2637257 | M116: Aggregated | N116: DSL | O116: 4907.143372 | P116: 234315.883 | Q116: 13.31970344 | R116: 13319.70344 | S116: 0.05684507288 | T116: 17.59167417
A117: Statewide | B117: 2002 | C117: LHD1 | D117: 1999 | E117: 2002_1999 | F117: =(1/$T117)*Defaults!$F$24 -> 677.8143597 | G117: =(1/$T117)*Defaults!$F$25 -> 788.9124496 | H117: =(1/$T117)*Defaults!$F$26 -> 299.0140031 | I117: =(1/$T117)*Defaults!$F$27 -> 845.433944 | J117: =(1/$T117)*Defaults!$F$28 -> 426.894554 | K117: =(1/$T117)*Defaults!$F$29 -> 352.4253952 | L117: =(1/$T117)*Defaults!$F$30 -> 738.4644994 | M117: Aggregated | N117: DSL | O117: 17802.05362 | P117: 910492.5999 | Q117: 51.98232851 | R117: 51982.32851 | S117: 0.05709253267 | T117: 17.51542545
A118: Statewide | B118: 2002 | C118: LHD1 | D118: 2000 | E118: 2002_2000 | F118: =(1/$T118)*Defaults!$F$24 -> 675.5876137 | G118: =(1/$T118)*Defaults!$F$25 -> 786.3207257 | H118: =(1/$T118)*Defaults!$F$26 -> 298.0316866 | I118: =(1/$T118)*Defaults!$F$27 -> 842.6565365 | J118: =(1/$T118)*Defaults!$F$28 -> 425.4921261 | K118: =(1/$T118)*Defaults!$F$29 -> 351.2676123 | L118: =(1/$T118)*Defaults!$F$30 -> 736.0385064 | M118: Aggregated | N118: DSL | O118: 14951.39157 | P118: 830143.3742 | Q118: 47.23928638 | R118: 47239.28638 | S118: 0.0569049731 | T118: 17.57315654
A119: Statewide | B119: 2002 | C119: LHD1 | D119: 2001 | E119: 2002_2001 | F119: =(1/$T119)*Defaults!$F$24 -> 676.4411704 | G119: =(1/$T119)*Defaults!$F$25 -> 787.3141858 | H119: =(1/$T119)*Defaults!$F$26 -> 298.4082284 | I119: =(1/$T119)*Defaults!$F$27 -> 843.7211729 | J119: =(1/$T119)*Defaults!$F$28 -> 426.029705 | K119: =(1/$T119)*Defaults!$F$29 -> 351.7114138 | L119: =(1/$T119)*Defaults!$F$30 -> 736.9684384 | M119: Aggregated | N119: DSL | O119: 22756.24503 | P119: 1403889.259 | Q119: 79.98921367 | R119: 79989.21367 | S119: 0.05697686847 | T119: 17.55098212
A120: Statewide | B120: 2002 | C120: LHD1 | D120: 2002 | E120: 2002_2002 | F120: =(1/$T120)*Defaults!$F$24 -> 673.9236441 | G120: =(1/$T120)*Defaults!$F$25 -> 784.384021 | H120: =(1/$T120)*Defaults!$F$26 -> 297.2976358 | I120: =(1/$T120)*Defaults!$F$27 -> 840.5810769 | J120: =(1/$T120)*Defaults!$F$28 -> 424.4441407 | K120: =(1/$T120)*Defaults!$F$29 -> 350.4024416 | L120: =(1/$T120)*Defaults!$F$30 -> 734.2256465 | M120: Aggregated | N120: DSL | O120: 23480.31703 | P120: 1696208.64 | Q120: 96.28497202 | R120: 96284.97202 | S120: 0.05676481639 | T120: 17.61654602
A121: Statewide | B121: 2003 | C121: LHD1 | D121: 1965 | E121: 2003_1965 | F121: =(1/$T121)*Defaults!$F$24 -> 689.3340265 | G121: =(1/$T121)*Defaults!$F$25 -> 802.3202631 | H121: =(1/$T121)*Defaults!$F$26 -> 304.0958395 | I121: =(1/$T121)*Defaults!$F$27 -> 859.802358 | J121: =(1/$T121)*Defaults!$F$28 -> 434.1497603 | K121: =(1/$T121)*Defaults!$F$29 -> 358.4149749 | L121: =(1/$T121)*Defaults!$F$30 -> 751.0149343 | M121: Aggregated | N121: DSL | O121: 48.14655106 | P121: 735.5895914 | Q121: 0.04271041936 | R121: 42.71041936 | S121: 0.0580628381 | T121: 17.22271995
A122: Statewide | B122: 2003 | C122: LHD1 | D122: 1966 | E122: 2003_1966 | F122: =(1/$T122)*Defaults!$F$24 -> 696.2568409 | G122: =(1/$T122)*Defaults!$F$25 -> 810.3777709 | H122: =(1/$T122)*Defaults!$F$26 -> 307.1498003 | I122: =(1/$T122)*Defaults!$F$27 -> 868.4371445 | J122: =(1/$T122)*Defaults!$F$28 -> 438.509821 | K122: =(1/$T122)*Defaults!$F$29 -> 362.0144495 | L122: =(1/$T122)*Defaults!$F$30 -> 758.557195 | M122: Aggregated | N122: DSL | O122: 8.258351658 | P122: 136.7037285 | Q122: 0.008017119904 | R122: 8.017119904 | S122: 0.0586459491 | T122: 17.05147611
A123: Statewide | B123: 2003 | C123: LHD1 | D123: 1967 | E123: 2003_1967 | F123: =(1/$T123)*Defaults!$F$24 -> 684.2818136 | G123: =(1/$T123)*Defaults!$F$25 -> 796.4399604 | H123: =(1/$T123)*Defaults!$F$26 -> 301.8670842 | I123: =(1/$T123)*Defaults!$F$27 -> 853.500762 | J123: =(1/$T123)*Defaults!$F$28 -> 430.9678239 | K123: =(1/$T123)*Defaults!$F$29 -> 355.7881079 | L123: =(1/$T123)*Defaults!$F$30 -> 745.5106545 | M123: Aggregated | N123: DSL | O123: 15.94292409 | P123: 270.2503652 | Q123: 0.01557649827 | R123: 15.57649827 | S123: 0.0576372885 | T123: 17.34987932
A124: Statewide | B124: 2003 | C124: LHD1 | D124: 1968 | E124: 2003_1968 | F124: =(1/$T124)*Defaults!$F$24 -> 678.6643048 | G124: =(1/$T124)*Defaults!$F$25 -> 789.9017061 | H124: =(1/$T124)*Defaults!$F$26 -> 299.3889516 | I124: =(1/$T124)*Defaults!$F$27 -> 846.4940756 | J124: =(1/$T124)*Defaults!$F$28 -> 427.4298583 | K124: =(1/$T124)*Defaults!$F$29 -> 352.8673189 | L124: =(1/$T124)*Defaults!$F$30 -> 739.3904967 | M124: Aggregated | N124: DSL | O124: 27.50620963 | P124: 477.500636 | Q124: 0.02729590549 | R124: 27.29590549 | S124: 0.05716412384 | T124: 17.4934895
A125: Statewide | B125: 2003 | C125: LHD1 | D125: 1969 | E125: 2003_1969 | F125: =(1/$T125)*Defaults!$F$24 -> 675.164892 | G125: =(1/$T125)*Defaults!$F$25 -> 785.8287172 | H125: =(1/$T125)*Defaults!$F$26 -> 297.8452053 | I125: =(1/$T125)*Defaults!$F$27 -> 842.1292782 | J125: =(1/$T125)*Defaults!$F$28 -> 425.2258916 | K125: =(1/$T125)*Defaults!$F$29 -> 351.0478208 | L125: =(1/$T125)*Defaults!$F$30 -> 735.57796 | M125: Aggregated | N125: DSL | O125: 27.59173297 | P125: 490.5775513 | Q125: 0.02789883486 | R125: 27.89883486 | S125: 0.05686936711 | T125: 17.58415911
A126: Statewide | B126: 2003 | C126: LHD1 | D126: 1970 | E126: 2003_1970 | F126: =(1/$T126)*Defaults!$F$24 -> 669.7380087 | G126: =(1/$T126)*Defaults!$F$25 -> 779.5123332 | H126: =(1/$T126)*Defaults!$F$26 -> 295.4511662 | I126: =(1/$T126)*Defaults!$F$27 -> 835.360358 | J126: =(1/$T126)*Defaults!$F$28 -> 421.8079839 | K126: =(1/$T126)*Defaults!$F$29 -> 348.2261463 | L126: =(1/$T126)*Defaults!$F$30 -> 729.6654847 | M126: Aggregated | N126: DSL | O126: 28.98883462 | P126: 527.9501368 | Q126: 0.0297828598 | R126: 29.7828598 | S126: 0.0564122589 | T126: 17.72664345
A127: Statewide | B127: 2003 | C127: LHD1 | D127: 1971 | E127: 2003_1971 | F127: =(1/$T127)*Defaults!$F$24 -> 685.1458726 | G127: =(1/$T127)*Defaults!$F$25 -> 797.4456441 | H127: =(1/$T127)*Defaults!$F$26 -> 302.2482589 | I127: =(1/$T127)*Defaults!$F$27 -> 854.5784978 | J127: =(1/$T127)*Defaults!$F$28 -> 431.5120173 | K127: =(1/$T127)*Defaults!$F$29 -> 356.2373701 | L127: =(1/$T127)*Defaults!$F$30 -> 746.4520286 | M127: Aggregated | N127: DSL | O127: 19.65437973 | P127: 366.6998279 | Q127: 0.02116227218 | R127: 21.16227218 | S127: 0.05771006849 | T127: 17.32799884
A128: Statewide | B128: 2003 | C128: LHD1 | D128: 1972 | E128: 2003_1972 | F128: =(1/$T128)*Defaults!$F$24 -> 681.0205368 | G128: =(1/$T128)*Defaults!$F$25 -> 792.6441396 | H128: =(1/$T128)*Defaults!$F$26 -> 300.4283902 | I128: =(1/$T128)*Defaults!$F$27 -> 849.4329903 | J128: =(1/$T128)*Defaults!$F$28 -> 428.9138378 | K128: =(1/$T128)*Defaults!$F$29 -> 354.0924272 | L128: =(1/$T128)*Defaults!$F$30 -> 741.957562 | M128: Aggregated | N128: DSL | O128: 25.7582825 | P128: 492.4039029 | Q128: 0.02824556323 | R128: 28.24556323 | S128: 0.05736259006 | T128: 17.43296457
A129: Statewide | B129: 2003 | C129: LHD1 | D129: 1973 | E129: 2003_1973 | F129: =(1/$T129)*Defaults!$F$24 -> 683.8933032 | G129: =(1/$T129)*Defaults!$F$25 -> 795.9877706 | H129: =(1/$T129)*Defaults!$F$26 -> 301.695695 | I129: =(1/$T129)*Defaults!$F$27 -> 853.0161752 | J129: =(1/$T129)*Defaults!$F$28 -> 430.723136 | K129: =(1/$T129)*Defaults!$F$29 -> 355.5861043 | L129: =(1/$T129)*Defaults!$F$30 -> 745.0873806 | M129: Aggregated | N129: DSL | O129: 42.64143933 | P129: 835.3384115 | Q129: 0.0481193051 | R129: 48.1193051 | S129: 0.05760456414 | T129: 17.35973555
A130: Statewide | B130: 2003 | C130: LHD1 | D130: 1974 | E130: 2003_1974 | F130: =(1/$T130)*Defaults!$F$24 -> 658.0229972 | G130: =(1/$T130)*Defaults!$F$25 -> 765.8771567 | H130: =(1/$T130)*Defaults!$F$26 -> 290.2831545 | I130: =(1/$T130)*Defaults!$F$27 -> 820.7482916 | J130: =(1/$T130)*Defaults!$F$28 -> 414.4297474 | K130: =(1/$T130)*Defaults!$F$29 -> 342.1349983 | L130: =(1/$T130)*Defaults!$F$30 -> 716.9022258 | M130: Aggregated | N130: DSL | O130: 51.19671877 | P130: 1027.971127 | Q130: 0.0569758132 | R130: 56.9758132 | S130: 0.05542549951 | T130: 18.04223703
A131: Statewide | B131: 2003 | C131: LHD1 | D131: 1975 | E131: 2003_1975 | F131: =(1/$T131)*Defaults!$F$24 -> 663.3713649 | G131: =(1/$T131)*Defaults!$F$25 -> 772.102156 | H131: =(1/$T131)*Defaults!$F$26 -> 292.642557 | I131: =(1/$T131)*Defaults!$F$27 -> 827.4192799 | J131: =(1/$T131)*Defaults!$F$28 -> 417.7982052 | K131: =(1/$T131)*Defaults!$F$29 -> 344.9158491 | L131: =(1/$T131)*Defaults!$F$30 -> 722.7291601 | M131: Aggregated | N131: DSL | O131: 35.44032045 | P131: 729.5194693 | Q131: 0.04076262574 | R131: 40.76262574 | S131: 0.05587599434 | T131: 17.89677324
A132: Statewide | B132: 2003 | C132: LHD1 | D132: 1976 | E132: 2003_1976 | F132: =(1/$T132)*Defaults!$F$24 -> 671.2214815 | G132: =(1/$T132)*Defaults!$F$25 -> 781.2389566 | H132: =(1/$T132)*Defaults!$F$26 -> 296.1055919 | I132: =(1/$T132)*Defaults!$F$27 -> 837.210685 | J132: =(1/$T132)*Defaults!$F$28 -> 422.7422905 | K132: =(1/$T132)*Defaults!$F$29 -> 348.9974688 | L132: =(1/$T132)*Defaults!$F$30 -> 731.2816971 | M132: Aggregated | N132: DSL | O132: 44.31147736 | P132: 935.3175421 | Q132: 0.05288024646 | R132: 52.88024646 | S132: 0.05653721231 | T132: 17.68746564
A133: Statewide | B133: 2003 | C133: LHD1 | D133: 1977 | E133: 2003_1977 | F133: =(1/$T133)*Defaults!$F$24 -> 670.1321767 | G133: =(1/$T133)*Defaults!$F$25 -> 779.9711079 | H133: =(1/$T133)*Defaults!$F$26 -> 295.6250512 | I133: =(1/$T133)*Defaults!$F$27 -> 835.8520014 | J133: =(1/$T133)*Defaults!$F$28 -> 422.056235 | K133: =(1/$T133)*Defaults!$F$29 -> 348.4310915 | L133: =(1/$T133)*Defaults!$F$30 -> 730.0949224 | M133: Aggregated | N133: DSL | O133: 51.22391082 | P133: 1109.006588 | Q133: 0.06259838681 | R133: 62.59838681 | S133: 0.0564454598 | T133: 17.71621674
A134: Statewide | B134: 2003 | C134: LHD1 | D134: 1978 | E134: 2003_1978 | F134: =(1/$T134)*Defaults!$F$24 -> 664.2638858 | G134: =(1/$T134)*Defaults!$F$25 -> 773.1409667 | H134: =(1/$T134)*Defaults!$F$26 -> 293.0362876 | I134: =(1/$T134)*Defaults!$F$27 -> 828.532516 | J134: =(1/$T134)*Defaults!$F$28 -> 418.3603242 | K134: =(1/$T134)*Defaults!$F$29 -> 345.3799098 | L134: =(1/$T134)*Defaults!$F$30 -> 723.7015428 | M134: Aggregated | N134: DSL | O134: 58.66559131 | P134: 1303.140308 | Q134: 0.07291222707 | R134: 72.91222707 | S134: 0.05595117167 | T134: 17.8727267
A135: Statewide | B135: 2003 | C135: LHD1 | D135: 1979 | E135: 2003_1979 | F135: =(1/$T135)*Defaults!$F$24 -> 673.4128003 | G135: =(1/$T135)*Defaults!$F$25 -> 783.7894465 | H135: =(1/$T135)*Defaults!$F$26 -> 297.0722799 | I135: =(1/$T135)*Defaults!$F$27 -> 839.9439043 | J135: =(1/$T135)*Defaults!$F$28 -> 424.1224059 | K135: =(1/$T135)*Defaults!$F$29 -> 350.1368315 | L135: =(1/$T135)*Defaults!$F$30 -> 733.6690929 | M135: Aggregated | N135: DSL | O135: 91.06269486 | P135: 2076.043323 | Q135: 0.1177568889 | R135: 117.7568889 | S135: 0.05672178783 | T135: 17.62990974
A136: Statewide | B136: 2003 | C136: LHD1 | D136: 1980 | E136: 2003_1980 | F136: =(1/$T136)*Defaults!$F$24 -> 667.5964182 | G136: =(1/$T136)*Defaults!$F$25 -> 777.0197224 | H136: =(1/$T136)*Defaults!$F$26 -> 294.5064156 | I136: =(1/$T136)*Defaults!$F$27 -> 832.6891645 | J136: =(1/$T136)*Defaults!$F$28 -> 420.4591878 | K136: =(1/$T136)*Defaults!$F$29 -> 347.1126395 | L136: =(1/$T136)*Defaults!$F$30 -> 727.3322669 | M136: Aggregated | N136: DSL | O136: 176.4588502 | P136: 4130.331269 | Q136: 0.2322562593 | R136: 232.2562593 | S136: 0.05623187201 | T136: 17.78350897
A137: Statewide | B137: 2003 | C137: LHD1 | D137: 1981 | E137: 2003_1981 | F137: =(1/$T137)*Defaults!$F$24 -> 666.7994379 | G137: =(1/$T137)*Defaults!$F$25 -> 776.0921119 | H137: =(1/$T137)*Defaults!$F$26 -> 294.1548322 | I137: =(1/$T137)*Defaults!$F$27 -> 831.6950955 | J137: =(1/$T137)*Defaults!$F$28 -> 419.9572413 | K137: =(1/$T137)*Defaults!$F$29 -> 346.6982545 | L137: =(1/$T137)*Defaults!$F$30 -> 726.4639736 | M137: Aggregated | N137: DSL | O137: 126.0273558 | P137: 3029.885823 | Q137: 0.1701727558 | R137: 170.1727558 | S137: 0.05616474209 | T137: 17.80476439
A138: Statewide | B138: 2003 | C138: LHD1 | D138: 1982 | E138: 2003_1982 | F138: =(1/$T138)*Defaults!$F$24 -> 668.945167 | G138: =(1/$T138)*Defaults!$F$25 -> 778.5895397 | H138: =(1/$T138)*Defaults!$F$26 -> 295.1014085 | I138: =(1/$T138)*Defaults!$F$27 -> 834.3714511 | J138: =(1/$T138)*Defaults!$F$28 -> 421.3086439 | K138: =(1/$T138)*Defaults!$F$29 -> 347.8139131 | L138: =(1/$T138)*Defaults!$F$30 -> 728.8017003 | M138: Aggregated | N138: DSL | O138: 2235.028317 | P138: 55215.11895 | Q138: 3.111122247 | R138: 3111.122247 | S138: 0.05634547758 | T138: 17.74765328
A139: Statewide | B139: 2003 | C139: LHD1 | D139: 1983 | E139: =CONCATENATE(B139,"_",D139) -> 2003_1983 | F139: =(1/$T139)*Defaults!$F$24 -> 679.8457959 | G139: =(1/$T139)*Defaults!$F$25 -> 791.2768511 | H139: =(1/$T139)*Defaults!$F$26 -> 299.9101598 | I139: =(1/$T139)*Defaults!$F$27 -> 847.9677427 | J139: =(1/$T139)*Defaults!$F$28 -> 428.1739737 | K139: =(1/$T139)*Defaults!$F$29 -> 353.4816279 | L139: =(1/$T139)*Defaults!$F$30 -> 740.6777064 | M139: Aggregated | N139: DSL | O139: 3556.623212 | P139: 90331.92967 | Q139: 5.172735213 | R139: =(Q139*1000) -> 5172.735213 | S139: =R139/P139 -> 0.05726364123 | T139: =P139/R139 -> 17.46308789
A140: Statewide | B140: 2003 | C140: LHD1 | D140: 1984 | E140: 2003_1984 | F140: =(1/$T140)*Defaults!$F$24 -> 679.2432866 | G140: =(1/$T140)*Defaults!$F$25 -> 790.5755867 | H140: =(1/$T140)*Defaults!$F$26 -> 299.6443662 | I140: =(1/$T140)*Defaults!$F$27 -> 847.2162363 | J140: =(1/$T140)*Defaults!$F$28 -> 427.7945071 | K140: =(1/$T140)*Defaults!$F$29 -> 353.1683569 | L140: =(1/$T140)*Defaults!$F$30 -> 740.0212852 | M140: Aggregated | N140: DSL | O140: 5974.204069 | P140: 156081.313 | Q140: 8.929863253 | R140: 8929.863253 | S140: 0.05721289167 | T140: 17.47857818
A141: Statewide | B141: 2003 | C141: LHD1 | D141: 1985 | E141: 2003_1985 | F141: =(1/$T141)*Defaults!$F$24 -> 681.6513761 | G141: =(1/$T141)*Defaults!$F$25 -> 793.3783774 | H141: =(1/$T141)*Defaults!$F$26 -> 300.7066814 | I141: =(1/$T141)*Defaults!$F$27 -> 850.2198324 | J141: =(1/$T141)*Defaults!$F$28 -> 429.3111469 | K141: =(1/$T141)*Defaults!$F$29 -> 354.4204282 | L141: =(1/$T141)*Defaults!$F$30 -> 742.6448481 | M141: Aggregated | N141: DSL | O141: 6617.281014 | P141: 177944.3372 | Q141: 10.21680329 | R141: 10216.80329 | S141: 0.05741572586 | T141: 17.4168311
A142: Statewide | B142: 2003 | C142: LHD1 | D142: 1986 | E142: 2003_1986 | F142: =(1/$T142)*Defaults!$F$24 -> 682.0889662 | G142: =(1/$T142)*Defaults!$F$25 -> 793.8876912 | H142: =(1/$T142)*Defaults!$F$26 -> 300.8997218 | I142: =(1/$T142)*Defaults!$F$27 -> 850.765636 | J142: =(1/$T142)*Defaults!$F$28 -> 429.5867457 | K142: =(1/$T142)*Defaults!$F$29 -> 354.6479504 | L142: =(1/$T142)*Defaults!$F$30 -> 743.1215933 | M142: Aggregated | N142: DSL | O142: 7948.148463 | P142: 220141.4733 | Q142: 12.64769654 | R142: 12647.69654 | S142: 0.05745258422 | T142: 17.40565744
A143: Statewide | B143: 2003 | C143: LHD1 | D143: 1987 | E143: 2003_1987 | F143: =(1/$T143)*Defaults!$F$24 -> 677.7463375 | G143: =(1/$T143)*Defaults!$F$25 -> 788.8332781 | H143: =(1/$T143)*Defaults!$F$26 -> 298.9839955 | I143: =(1/$T143)*Defaults!$F$27 -> 845.3491003 | J143: =(1/$T143)*Defaults!$F$28 -> 426.8517129 | K143: =(1/$T143)*Defaults!$F$29 -> 352.3900274 | L143: =(1/$T143)*Defaults!$F$30 -> 738.3903906 | M143: Aggregated | N143: DSL | O143: 4262.310136 | P143: 121687.4688 | Q143: 6.946748575 | R143: 6946.748575 | S143: 0.05708680314 | T143: 17.51718339
A144: Statewide | B144: 2003 | C144: LHD1 | D144: 1988 | E144: 2003_1988 | F144: =(1/$T144)*Defaults!$F$24 -> 677.1539472 | G144: =(1/$T144)*Defaults!$F$25 -> 788.1437913 | H144: =(1/$T144)*Defaults!$F$26 -> 298.7226659 | I144: =(1/$T144)*Defaults!$F$27 -> 844.6102153 | J144: =(1/$T144)*Defaults!$F$28 -> 426.4786193 | K144: =(1/$T144)*Defaults!$F$29 -> 352.0820178 | L144: =(1/$T144)*Defaults!$F$30 -> 737.7449939 | M144: Aggregated | N144: DSL | O144: 3517.533821 | P144: 103604.7211 | Q144: 5.909292729 | R144: 5909.292729 | S144: 0.05703690591 | T144: 17.53250784
A145: Statewide | B145: 2003 | C145: LHD1 | D145: 1989 | E145: 2003_1989 | F145: =(1/$T145)*Defaults!$F$24 -> 679.6635289 | G145: =(1/$T145)*Defaults!$F$25 -> 791.0647094 | H145: =(1/$T145)*Defaults!$F$26 -> 299.8297538 | I145: =(1/$T145)*Defaults!$F$27 -> 847.7404021 | J145: =(1/$T145)*Defaults!$F$28 -> 428.05918 | K145: =(1/$T145)*Defaults!$F$29 -> 353.3868593 | L145: =(1/$T145)*Defaults!$F$30 -> 740.4791303 | M145: Aggregated | N145: DSL | O145: 5313.191354 | P145: 161607.6767 | Q145: 9.251762949 | R145: 9251.762949 | S145: 0.05724828882 | T145: 17.46777101
A146: Statewide | B146: 2003 | C146: LHD1 | D146: 1990 | E146: 2003_1990 | F146: =(1/$T146)*Defaults!$F$24 -> 682.7861787 | G146: =(1/$T146)*Defaults!$F$25 -> 794.6991814 | H146: =(1/$T146)*Defaults!$F$26 -> 301.2072932 | I146: =(1/$T146)*Defaults!$F$27 -> 851.6352652 | J146: =(1/$T146)*Defaults!$F$28 -> 430.0258574 | K146: =(1/$T146)*Defaults!$F$29 -> 355.0104618 | L146: =(1/$T146)*Defaults!$F$30 -> 743.8811917 | M146: Aggregated | N146: DSL | O146: 6162.646749 | P146: 193786.008 | Q146: 11.14488731 | R146: 11144.88731 | S146: 0.05751131067 | T146: 17.38788402
A147: Statewide | B147: 2003 | C147: LHD1 | D147: 1991 | E147: 2003_1991 | F147: =(1/$T147)*Defaults!$F$24 -> 683.7757122 | G147: =(1/$T147)*Defaults!$F$25 -> 795.8509057 | H147: =(1/$T147)*Defaults!$F$26 -> 301.6438204 | I147: =(1/$T147)*Defaults!$F$27 -> 852.8695046 | J147: =(1/$T147)*Defaults!$F$28 -> 430.649076 | K147: =(1/$T147)*Defaults!$F$29 -> 355.5249636 | L147: =(1/$T147)*Defaults!$F$30 -> 744.9592676 | M147: Aggregated | N147: DSL | O147: 5567.114634 | P147: 181212.3005 | Q147: 10.43686073 | R147: 10436.86073 | S147: 0.05759465941 | T147: 17.36272096
A148: Statewide | B148: 2003 | C148: LHD1 | D148: 1992 | E148: 2003_1992 | F148: =(1/$T148)*Defaults!$F$24 -> 683.8956867 | G148: =(1/$T148)*Defaults!$F$25 -> 795.9905448 | H148: =(1/$T148)*Defaults!$F$26 -> 301.6967464 | I148: =(1/$T148)*Defaults!$F$27 -> 853.0191481 | J148: =(1/$T148)*Defaults!$F$28 -> 430.7246372 | K148: =(1/$T148)*Defaults!$F$29 -> 355.5873436 | L148: =(1/$T148)*Defaults!$F$30 -> 745.0899773 | M148: Aggregated | N148: DSL | O148: 5367.189994 | P148: 181111.6927 | Q148: 10.43289648 | R148: 10432.89648 | S148: 0.0576047649 | T148: 17.35967505
A149: Statewide | B149: 2003 | C149: LHD1 | D149: 1993 | E149: 2003_1993 | F149: =(1/$T149)*Defaults!$F$24 -> 683.753482 | G149: =(1/$T149)*Defaults!$F$25 -> 795.8250318 | H149: =(1/$T149)*Defaults!$F$26 -> 301.6340136 | I149: =(1/$T149)*Defaults!$F$27 -> 852.841777 | J149: =(1/$T149)*Defaults!$F$28 -> 430.6350751 | K149: =(1/$T149)*Defaults!$F$29 -> 355.5134051 | L149: =(1/$T149)*Defaults!$F$30 -> 744.9350483 | M149: Aggregated | N149: DSL | O149: 6915.865842 | P149: 242345.0834 | Q149: 13.95732876 | R149: 13957.32876 | S149: 0.05759278695 | T149: 17.36328546
A150: Statewide | B150: 2003 | C150: LHD1 | D150: 1994 | E150: 2003_1994 | F150: =(1/$T150)*Defaults!$F$24 -> 679.7623214 | G150: =(1/$T150)*Defaults!$F$25 -> 791.1796946 | H150: =(1/$T150)*Defaults!$F$26 -> 299.8733355 | I150: =(1/$T150)*Defaults!$F$27 -> 847.8636254 | J150: =(1/$T150)*Defaults!$F$28 -> 428.1214006 | K150: =(1/$T150)*Defaults!$F$29 -> 353.4382258 | L150: =(1/$T150)*Defaults!$F$30 -> 740.5867627 | M150: Aggregated | N150: DSL | O150: 7028.46486 | P150: 256281.2906 | Q150: 14.67379794 | R150: 14673.79794 | S150: 0.05725661014 | T150: 17.46523235
A151: Statewide | B151: 2003 | C151: LHD1 | D151: 1995 | E151: 2003_1995 | F151: =(1/$T151)*Defaults!$F$24 -> 675.8246863 | G151: =(1/$T151)*Defaults!$F$25 -> 786.596656 | H151: =(1/$T151)*Defaults!$F$26 -> 298.1362699 | I151: =(1/$T151)*Defaults!$F$27 -> 842.9522358 | J151: =(1/$T151)*Defaults!$F$28 -> 425.6414369 | K151: =(1/$T151)*Defaults!$F$29 -> 351.3908767 | L151: =(1/$T151)*Defaults!$F$30 -> 736.296792 | M151: Aggregated | N151: DSL | O151: 10368.07992 | P151: 394346.4402 | Q151: 22.44814816 | R151: 22448.14816 | S151: 0.05692494181 | T151: 17.56699205
A152: Statewide | B152: 2003 | C152: LHD1 | D152: 1996 | E152: 2003_1996 | F152: =(1/$T152)*Defaults!$F$24 -> 677.088463 | G152: =(1/$T152)*Defaults!$F$25 -> 788.0675737 | H152: =(1/$T152)*Defaults!$F$26 -> 298.6937779 | I152: =(1/$T152)*Defaults!$F$27 -> 844.5285372 | J152: =(1/$T152)*Defaults!$F$28 -> 426.4373766 | K152: =(1/$T152)*Defaults!$F$29 -> 352.0479696 | L152: =(1/$T152)*Defaults!$F$30 -> 737.6736501 | M152: Aggregated | N152: DSL | O152: 9879.155022 | P152: 393104.0032 | Q152: 22.41926777 | R152: 22419.26777 | S152: 0.05703139014 | T152: 17.53420349
A153: Statewide | B153: 2003 | C153: LHD1 | D153: 1997 | E153: 2003_1997 | F153: =(1/$T153)*Defaults!$F$24 -> 679.5765083 | G153: =(1/$T153)*Defaults!$F$25 -> 790.9634256 | H153: =(1/$T153)*Defaults!$F$26 -> 299.7913651 | I153: =(1/$T153)*Defaults!$F$27 -> 847.6318618 | J153: =(1/$T153)*Defaults!$F$28 -> 428.0043736 | K153: =(1/$T153)*Defaults!$F$29 -> 353.3416135 | L153: =(1/$T153)*Defaults!$F$30 -> 740.3843233 | M153: Aggregated | N153: DSL | O153: 14023.54872 | P153: 585941.9946 | Q153: 33.53988172 | R153: 33539.88172 | S153: 0.05724095905 | T153: 17.47000778
A154: Statewide | B154: 2003 | C154: LHD1 | D154: 1998 | E154: 2003_1998 | F154: =(1/$T154)*Defaults!$F$24 -> 675.3155351 | G154: =(1/$T154)*Defaults!$F$25 -> 786.0040517 | H154: =(1/$T154)*Defaults!$F$26 -> 297.9116607 | I154: =(1/$T154)*Defaults!$F$27 -> 842.3171745 | J154: =(1/$T154)*Defaults!$F$28 -> 425.3207682 | K154: =(1/$T154)*Defaults!$F$29 -> 351.1261467 | L154: =(1/$T154)*Defaults!$F$30 -> 735.7420825 | M154: Aggregated | N154: DSL | O154: 5044.371894 | P154: 222364.4493 | Q154: 12.64854702 | R154: 12648.54702 | S154: 0.05688205584 | T154: 17.5802366
A155: Statewide | B155: 2003 | C155: LHD1 | D155: 1999 | E155: 2003_1999 | F155: =(1/$T155)*Defaults!$F$24 -> 677.8699931 | G155: =(1/$T155)*Defaults!$F$25 -> 788.9772017 | H155: =(1/$T155)*Defaults!$F$26 -> 299.0385455 | I155: =(1/$T155)*Defaults!$F$27 -> 845.5033352 | J155: =(1/$T155)*Defaults!$F$28 -> 426.9295925 | K155: =(1/$T155)*Defaults!$F$29 -> 352.4543214 | L155: =(1/$T155)*Defaults!$F$30 -> 738.5251108 | M155: Aggregated | N155: DSL | O155: 19993.15619 | P155: 935695.7146 | Q155: 53.42562285 | R155: 53425.62285 | S155: 0.05709721869 | T155: 17.51398795
A156: Statewide | B156: 2003 | C156: LHD1 | D156: 2000 | E156: 2003_2000 | F156: =(1/$T156)*Defaults!$F$24 -> 675.8555367 | G156: =(1/$T156)*Defaults!$F$25 -> 786.632563 | H156: =(1/$T156)*Defaults!$F$26 -> 298.1498794 | I156: =(1/$T156)*Defaults!$F$27 -> 842.9907154 | J156: =(1/$T156)*Defaults!$F$28 -> 425.6608668 | K156: =(1/$T156)*Defaults!$F$29 -> 351.4069172 | L156: =(1/$T156)*Defaults!$F$30 -> 736.3304029 | M156: Aggregated | N156: DSL | O156: 16852.76472 | P156: 844807.5251 | Q156: 48.09281447 | R156: 48092.81447 | S156: 0.05692754035 | T156: 17.56619018
A157: Statewide | B157: 2003 | C157: LHD1 | D157: 2001 | E157: 2003_2001 | F157: =(1/$T157)*Defaults!$F$24 -> 677.2932357 | G157: =(1/$T157)*Defaults!$F$25 -> 788.30591 | H157: =(1/$T157)*Defaults!$F$26 -> 298.7841122 | I157: =(1/$T157)*Defaults!$F$27 -> 844.783949 | J157: =(1/$T157)*Defaults!$F$28 -> 426.5663447 | K157: =(1/$T157)*Defaults!$F$29 -> 352.1544399 | L157: =(1/$T157)*Defaults!$F$30 -> 737.8967457 | M157: Aggregated | N157: DSL | O157: 24781.35149 | P157: 1348580.199 | Q157: 76.93466386 | R157: 76934.66386 | S157: 0.05704863822 | T157: 17.5289022
A158: Statewide | B158: 2003 | C158: LHD1 | D158: 2002 | E158: 2003_2002 | F158: =(1/$T158)*Defaults!$F$24 -> 674.3895839 | G158: =(1/$T158)*Defaults!$F$25 -> 784.9263313 | H158: =(1/$T158)*Defaults!$F$26 -> 297.5031825 | I158: =(1/$T158)*Defaults!$F$27 -> 841.1622409 | J158: =(1/$T158)*Defaults!$F$28 -> 424.7375945 | K158: =(1/$T158)*Defaults!$F$29 -> 350.6447041 | L158: =(1/$T158)*Defaults!$F$30 -> 734.7332781 | M158: Aggregated | N158: DSL | O158: 26083.63403 | P158: 1577177.775 | Q158: 89.59010514 | R158: 89590.10514 | S158: 0.05680406265 | T158: 17.60437464
A159: Statewide | B159: 2003 | C159: LHD1 | D159: 2003 | E159: 2003_2003 | F159: =(1/$T159)*Defaults!$F$24 -> 670.1661668 | G159: =(1/$T159)*Defaults!$F$25 -> 780.0106692 | H159: =(1/$T159)*Defaults!$F$26 -> 295.6400457 | I159: =(1/$T159)*Defaults!$F$27 -> 835.8943971 | J159: =(1/$T159)*Defaults!$F$28 -> 422.0776423 | K159: =(1/$T159)*Defaults!$F$29 -> 348.4487644 | L159: =(1/$T159)*Defaults!$F$30 -> 730.131954 | M159: Aggregated | N159: DSL | O159: 28853.59168 | P159: 2042939.459 | Q159: 115.320506 | R159: 115320.506 | S159: 0.0564483228 | T159: 17.71531819
A160: Statewide | B160: 2004 | C160: LHD1 | D160: 1965 | E160: 2004_1965 | F160: =(1/$T160)*Defaults!$F$24 -> 691.7250058 | G160: =(1/$T160)*Defaults!$F$25 -> 805.1031391 | H160: =(1/$T160)*Defaults!$F$26 -> 305.1506066 | I160: =(1/$T160)*Defaults!$F$27 -> 862.7846127 | J160: =(1/$T160)*Defaults!$F$28 -> 435.655624 | K160: =(1/$T160)*Defaults!$F$29 -> 359.6581498 | L160: =(1/$T160)*Defaults!$F$30 -> 753.6198559 | M160: Aggregated | N160: DSL | O160: 32.69225457 | P160: 481.1873138 | Q160: 0.02803600885 | R160: 28.03600885 | S160: 0.0582642311 | T160: 17.16318882
A161: Statewide | B161: 2004 | C161: LHD1 | D161: 1966 | E161: 2004_1966 | F161: =(1/$T161)*Defaults!$F$24 -> 695.0260049 | G161: =(1/$T161)*Defaults!$F$25 -> 808.945193 | H161: =(1/$T161)*Defaults!$F$26 -> 306.6068239 | I161: =(1/$T161)*Defaults!$F$27 -> 866.9019298 | J161: =(1/$T161)*Defaults!$F$28 -> 437.7346277 | K161: =(1/$T161)*Defaults!$F$29 -> 361.3744839 | L161: =(1/$T161)*Defaults!$F$30 -> 757.2162251 | M161: Aggregated | N161: DSL | O161: 7.193714528 | P161: 113.8031459 | Q161: 0.006662295102 | R161: 6.662295102 | S161: 0.05854227537 | T161: 17.08167292
A162: Statewide | B162: 2004 | C162: LHD1 | D162: 1967 | E162: 2004_1967 | F162: =(1/$T162)*Defaults!$F$24 -> 676.9740907 | G162: =(1/$T162)*Defaults!$F$25 -> 787.9344551 | H162: =(1/$T162)*Defaults!$F$26 -> 298.6433232 | I162: =(1/$T162)*Defaults!$F$27 -> 844.3858813 | J162: =(1/$T162)*Defaults!$F$28 -> 426.3653438 | K162: =(1/$T162)*Defaults!$F$29 -> 351.9885025 | L162: =(1/$T162)*Defaults!$F$30 -> 737.549044 | M162: Aggregated | N162: DSL | O162: 15.01333492 | P162: 243.199514 | Q162: 0.01386766348 | R162: 13.86766348 | S162: 0.05702175653 | T162: 17.53716583
A163: Statewide | B163: 2004 | C163: LHD1 | D163: 1968 | E163: 2004_1968 | F163: =(1/$T163)*Defaults!$F$24 -> 672.8025965 | G163: =(1/$T163)*Defaults!$F$25 -> 783.0792264 | H163: =(1/$T163)*Defaults!$F$26 -> 296.8030919 | I163: =(1/$T163)*Defaults!$F$27 -> 839.1828006 | J163: =(1/$T163)*Defaults!$F$28 -> 423.7380932 | K163: =(1/$T163)*Defaults!$F$29 -> 349.8195598 | L163: =(1/$T163)*Defaults!$F$30 -> 733.0042886 | M163: Aggregated | N163: DSL | O163: 24.69925074 | P163: 409.713838 | Q163: 0.02321864305 | R163: 23.21864305 | S163: 0.05667039016 | T163: 17.64589933
A164: Statewide | B164: 2004 | C164: LHD1 | D164: 1969 | E164: 2004_1969 | F164: =(1/$T164)*Defaults!$F$24 -> 665.7987615 | G164: =(1/$T164)*Defaults!$F$25 -> 774.9274182 | H164: =(1/$T164)*Defaults!$F$26 -> 293.7133894 | I164: =(1/$T164)*Defaults!$F$27 -> 830.4469576 | J164: =(1/$T164)*Defaults!$F$28 -> 419.3270049 | K164: =(1/$T164)*Defaults!$F$29 -> 346.177959 | L164: =(1/$T164)*Defaults!$F$30 -> 725.3737576 | M164: Aggregated | N164: DSL | O164: 16.9774606 | P164: 288.4127658 | Q164: 0.01617431906 | R164: 16.17431906 | S164: 0.05608045477 | T164: 17.83152444
A165: Statewide | B165: 2004 | C165: LHD1 | D165: 1970 | E165: 2004_1970 | F165: =(1/$T165)*Defaults!$F$24 -> 667.7354906 | G165: =(1/$T165)*Defaults!$F$25 -> 777.1815896 | H165: =(1/$T165)*Defaults!$F$26 -> 294.5677665 | I165: =(1/$T165)*Defaults!$F$27 -> 832.8626286 | J165: =(1/$T165)*Defaults!$F$28 -> 420.5467771 | K165: =(1/$T165)*Defaults!$F$29 -> 347.1849493 | L165: =(1/$T165)*Defaults!$F$30 -> 727.4837833 | M165: Aggregated | N165: DSL | O165: 25.4410635 | P165: 442.6520674 | Q165: 0.02489633967 | R165: 24.89633967 | S165: 0.05624358612 | T165: 17.77980511
A166: Statewide | B166: 2004 | C166: LHD1 | D166: 1971 | E166: 2004_1971 | F166: =(1/$T166)*Defaults!$F$24 -> 677.5061234 | G166: =(1/$T166)*Defaults!$F$25 -> 788.5536913 | H166: =(1/$T166)*Defaults!$F$26 -> 298.8780264 | I166: =(1/$T166)*Defaults!$F$27 -> 845.0494826 | J166: =(1/$T166)*Defaults!$F$28 -> 426.7004235 | K166: =(1/$T166)*Defaults!$F$29 -> 352.2651296 | L166: =(1/$T166)*Defaults!$F$30 -> 738.1286824 | M166: Aggregated | N166: DSL | O166: 11.1577437 | P166: 198.8552555 | Q166: 0.01134798732 | R166: 11.34798732 | S166: 0.05706656982 | T166: 17.52339422
A167: Statewide | B167: 2004 | C167: LHD1 | D167: 1972 | E167: 2004_1972 | F167: =(1/$T167)*Defaults!$F$24 -> 684.3145791 | G167: =(1/$T167)*Defaults!$F$25 -> 796.4780963 | H167: =(1/$T167)*Defaults!$F$26 -> 301.8815385 | I167: =(1/$T167)*Defaults!$F$27 -> 853.5416302 | J167: =(1/$T167)*Defaults!$F$28 -> 430.9884599 | K167: =(1/$T167)*Defaults!$F$29 -> 355.8051441 | L167: =(1/$T167)*Defaults!$F$30 -> 745.5463518 | M167: Aggregated | N167: DSL | O167: 18.56111191 | P167: 338.8862085 | Q167: 0.01953341744 | R167: 19.53341744 | S167: 0.05764004835 | T167: 17.3490486
A168: Statewide | B168: 2004 | C168: LHD1 | D168: 1973 | E168: 2004_1973 | F168: =(1/$T168)*Defaults!$F$24 -> 680.6184532 | G168: =(1/$T168)*Defaults!$F$25 -> 792.1761519 | H168: =(1/$T168)*Defaults!$F$26 -> 300.2510133 | I168: =(1/$T168)*Defaults!$F$27 -> 848.9314737 | J168: =(1/$T168)*Defaults!$F$28 -> 428.6606013 | K168: =(1/$T168)*Defaults!$F$29 -> 353.8833663 | L168: =(1/$T168)*Defaults!$F$30 -> 741.5195003 | M168: Aggregated | N168: DSL | O168: 32.88663798 | P168: 615.2088927 | Q168: 0.03526913984 | R168: 35.26913984 | S168: 0.05732872242 | T168: 17.4432633
A169: Statewide | B169: 2004 | C169: LHD1 | D169: 1974 | E169: 2004_1974 | F169: =(1/$T169)*Defaults!$F$24 -> 660.3319887 | G169: =(1/$T169)*Defaults!$F$25 -> 768.5646066 | H169: =(1/$T169)*Defaults!$F$26 -> 291.3017532 | I169: =(1/$T169)*Defaults!$F$27 -> 823.6282834 | J169: =(1/$T169)*Defaults!$F$28 -> 415.8839744 | K169: =(1/$T169)*Defaults!$F$29 -> 343.3355442 | L169: =(1/$T169)*Defaults!$F$30 -> 719.4178236 | M169: Aggregated | N169: DSL | O169: 41.50769855 | P169: 795.7154539 | Q169: 0.04425768293 | R169: 44.25768293 | S169: 0.05561998665 | T169: 17.97914851
A170: Statewide | B170: 2004 | C170: LHD1 | D170: 1975 | E170: 2004_1975 | F170: =(1/$T170)*Defaults!$F$24 -> 669.4755681 | G170: =(1/$T170)*Defaults!$F$25 -> 779.2068769 | H170: =(1/$T170)*Defaults!$F$26 -> 295.335392 | I170: =(1/$T170)*Defaults!$F$27 -> 835.0330173 | J170: =(1/$T170)*Defaults!$F$28 -> 421.6426961 | K170: =(1/$T170)*Defaults!$F$29 -> 348.0896919 | L170: =(1/$T170)*Defaults!$F$30 -> 729.3795612 | M170: Aggregated | N170: DSL | O170: 29.42512151 | P170: 578.1700569 | Q170: 0.03260309822 | R170: 32.60309822 | S170: 0.05639015344 | T170: 17.73359246
A171: Statewide | B171: 2004 | C171: LHD1 | D171: 1976 | E171: 2004_1976 | F171: =(1/$T171)*Defaults!$F$24 -> 671.2679911 | G171: =(1/$T171)*Defaults!$F$25 -> 781.2930894 | H171: =(1/$T171)*Defaults!$F$26 -> 296.1261093 | I171: =(1/$T171)*Defaults!$F$27 -> 837.2686962 | J171: =(1/$T171)*Defaults!$F$28 -> 422.7715827 | K171: =(1/$T171)*Defaults!$F$29 -> 349.0216512 | L171: =(1/$T171)*Defaults!$F$30 -> 731.3323683 | M171: Aggregated | N171: DSL | O171: 38.80376635 | P171: 781.6488078 | Q171: 0.04419530672 | R171: 44.19530672 | S171: 0.05654112983 | T171: 17.68624014
A172: Statewide | B172: 2004 | C172: LHD1 | D172: 1977 | E172: 2004_1977 | F172: =(1/$T172)*Defaults!$F$24 -> 667.8048447 | G172: =(1/$T172)*Defaults!$F$25 -> 777.2623113 | H172: =(1/$T172)*Defaults!$F$26 -> 294.5983617 | I172: =(1/$T172)*Defaults!$F$27 -> 832.9491336 | J172: =(1/$T172)*Defaults!$F$28 -> 420.590457 | K172: =(1/$T172)*Defaults!$F$29 -> 347.2210096 | L172: =(1/$T172)*Defaults!$F$30 -> 727.5593431 | M172: Aggregated | N172: DSL | O172: 52.82601593 | P172: 1091.162043 | Q172: 0.06137724058 | R172: 61.37724058 | S172: 0.05624942784 | T172: 17.77795861
A173: Statewide | B173: 2004 | C173: LHD1 | D173: 1978 | E173: 2004_1978 | F173: =(1/$T173)*Defaults!$F$24 -> 659.4545815 | G173: =(1/$T173)*Defaults!$F$25 -> 767.5433868 | H173: =(1/$T173)*Defaults!$F$26 -> 290.91469 | I173: =(1/$T173)*Defaults!$F$27 -> 822.5338985 | J173: =(1/$T173)*Defaults!$F$28 -> 415.3313742 | K173: =(1/$T173)*Defaults!$F$29 -> 342.8793417 | L173: =(1/$T173)*Defaults!$F$30 -> 718.4619069 | M173: Aggregated | N173: DSL | O173: 53.41911105 | P173: 1131.765868 | Q173: 0.06286516012 | R173: 62.86516012 | S173: 0.05554608235 | T173: 18.00306984
A174: Statewide | B174: 2004 | C174: LHD1 | D174: 1979 | E174: 2004_1979 | F174: =(1/$T174)*Defaults!$F$24 -> 674.7262859 | G174: =(1/$T174)*Defaults!$F$25 -> 785.3182208 | H174: =(1/$T174)*Defaults!$F$26 -> 297.6517167 | I174: =(1/$T174)*Defaults!$F$27 -> 841.5822073 | J174: =(1/$T174)*Defaults!$F$28 -> 424.9496529 | K174: =(1/$T174)*Defaults!$F$29 -> 350.8197702 | L174: =(1/$T174)*Defaults!$F$30 -> 735.1001078 | M174: Aggregated | N174: DSL | O174: 73.96158192 | P174: 1607.72757 | Q174: 0.09137105362 | R174: 91.37105362 | S174: 0.05683242317 | T174: 17.5955897
A175: Statewide | B175: 2004 | C175: LHD1 | D175: 1980 | E175: 2004_1980 | F175: =(1/$T175)*Defaults!$F$24 -> 669.1765239 | G175: =(1/$T175)*Defaults!$F$25 -> 778.8588175 | H175: =(1/$T175)*Defaults!$F$26 -> 295.2034703 | I175: =(1/$T175)*Defaults!$F$27 -> 834.6600212 | J175: =(1/$T175)*Defaults!$F$28 -> 421.4543549 | K175: =(1/$T175)*Defaults!$F$29 -> 347.9342057 | L175: =(1/$T175)*Defaults!$F$30 -> 729.0537588 | M175: Aggregated | N175: DSL | O175: 175.215413 | P175: 3909.00983 | Q175: 0.2203312017 | R175: 220.3312017 | S175: 0.05636496485 | T175: 17.74151732
A176: Statewide | B176: 2004 | C176: LHD1 | D176: 1981 | E176: 2004_1981 | F176: =(1/$T176)*Defaults!$F$24 -> 662.5593223 | G176: =(1/$T176)*Defaults!$F$25 -> 771.1570144 | H176: =(1/$T176)*Defaults!$F$26 -> 292.2843289 | I176: =(1/$T176)*Defaults!$F$27 -> 826.4064237 | J176: =(1/$T176)*Defaults!$F$28 -> 417.2867723 | K176: =(1/$T176)*Defaults!$F$29 -> 344.4936325 | L176: =(1/$T176)*Defaults!$F$30 -> 721.8444567 | M176: Aggregated | N176: DSL | O176: 120.5104776 | P176: 2760.354053 | Q176: 0.154048723 | R176: 154.048723 | S176: 0.05580759571 | T176: 17.91870779
A177: Statewide | B177: 2004 | C177: LHD1 | D177: 1982 | E177: 2004_1982 | F177: =(1/$T177)*Defaults!$F$24 -> 669.3838689 | G177: =(1/$T177)*Defaults!$F$25 -> 779.1001477 | H177: =(1/$T177)*Defaults!$F$26 -> 295.2949394 | I177: =(1/$T177)*Defaults!$F$27 -> 834.9186414 | J177: =(1/$T177)*Defaults!$F$28 -> 421.5849429 | K177: =(1/$T177)*Defaults!$F$29 -> 348.0420135 | L177: =(1/$T177)*Defaults!$F$30 -> 729.2796568 | M177: Aggregated | N177: DSL | O177: 2115.33543 | P177: 49766.74363 | Q177: 2.805969918 | R177: 2805.969918 | S177: 0.05638242958 | T177: 17.7360218
A178: Statewide | B178: 2004 | C178: LHD1 | D178: 1983 | E178: 2004_1983 | F178: =(1/$T178)*Defaults!$F$24 -> 679.3991388 | G178: =(1/$T178)*Defaults!$F$25 -> 790.756984 | H178: =(1/$T178)*Defaults!$F$26 -> 299.7131195 | I178: =(1/$T178)*Defaults!$F$27 -> 847.4106298 | J178: =(1/$T178)*Defaults!$F$28 -> 427.8926644 | K178: =(1/$T178)*Defaults!$F$29 -> 353.2493913 | L178: =(1/$T178)*Defaults!$F$30 -> 740.1910829 | M178: Aggregated | N178: DSL | O178: 3401.372214 | P178: 82229.50654 | Q178: 4.705667316 | R178: 4705.667316 | S178: 0.05722601915 | T178: 17.47456865
A179: Statewide | B179: 2004 | C179: LHD1 | D179: 1984 | E179: 2004_1984 | F179: =(1/$T179)*Defaults!$F$24 -> 679.3452846 | G179: =(1/$T179)*Defaults!$F$25 -> 790.6943028 | H179: =(1/$T179)*Defaults!$F$26 -> 299.6893621 | I179: =(1/$T179)*Defaults!$F$27 -> 847.3434578 | J179: =(1/$T179)*Defaults!$F$28 -> 427.8587464 | K179: =(1/$T179)*Defaults!$F$29 -> 353.2213901 | L179: =(1/$T179)*Defaults!$F$30 -> 740.1324098 | M179: Aggregated | N179: DSL | O179: 5652.020133 | P179: 140477.1448 | Q179: 8.038310551 | R179: 8038.310551 | S179: 0.05722148299 | T179: 17.47595392
A180: Statewide | B180: 2004 | C180: LHD1 | D180: 1985 | E180: 2004_1985 | F180: =(1/$T180)*Defaults!$F$24 -> 682.0594261 | G180: =(1/$T180)*Defaults!$F$25 -> 793.8533093 | H180: =(1/$T180)*Defaults!$F$26 -> 300.8866904 | I180: =(1/$T180)*Defaults!$F$27 -> 850.7287908 | J180: =(1/$T180)*Defaults!$F$28 -> 429.5681411 | K180: =(1/$T180)*Defaults!$F$29 -> 354.6325912 | L180: =(1/$T180)*Defaults!$F$30 -> 743.08941 | M180: Aggregated | N180: DSL | O180: 6302.111523 | P180: 161122.237 | Q180: 9.256487991 | R180: 9256.487991 | S180: 0.05745009605 | T180: 17.40641128
A181: Statewide | B181: 2004 | C181: LHD1 | D181: 1986 | E181: 2004_1986 | F181: =(1/$T181)*Defaults!$F$24 -> 682.563738 | G181: =(1/$T181)*Defaults!$F$25 -> 794.4402812 | H181: =(1/$T181)*Defaults!$F$26 -> 301.1091647 | I181: =(1/$T181)*Defaults!$F$27 -> 851.3578162 | J181: =(1/$T181)*Defaults!$F$28 -> 429.885762 | K181: =(1/$T181)*Defaults!$F$29 -> 354.8948051 | L181: =(1/$T181)*Defaults!$F$30 -> 743.6388472 | M181: Aggregated | N181: DSL | O181: 7635.031146 | P181: 200915.7343 | Q181: 11.55116281 | R181: 11551.16281 | S181: 0.05749257441 | T181: 17.39355056
A182: Statewide | B182: 2004 | C182: LHD1 | D182: 1987 | E182: 2004_1987 | F182: =(1/$T182)*Defaults!$F$24 -> 678.2460017 | G182: =(1/$T182)*Defaults!$F$25 -> 789.4148404 | H182: =(1/$T182)*Defaults!$F$26 -> 299.2044196 | I182: =(1/$T182)*Defaults!$F$27 -> 845.9723286 | J182: =(1/$T182)*Defaults!$F$28 -> 427.1664066 | K182: =(1/$T182)*Defaults!$F$29 -> 352.6498247 | L182: =(1/$T182)*Defaults!$F$30 -> 738.9347642 | M182: Aggregated | N182: DSL | O182: 4015.401228 | P182: 108833.6984 | Q182: 6.217548388 | R182: 6217.548388 | S182: 0.05712889002 | T182: 17.50427848
A183: Statewide | B183: 2004 | C183: LHD1 | D183: 1988 | E183: 2004_1988 | F183: =(1/$T183)*Defaults!$F$24 -> 677.2237973 | G183: =(1/$T183)*Defaults!$F$25 -> 788.2250902 | H183: =(1/$T183)*Defaults!$F$26 -> 298.7534798 | I183: =(1/$T183)*Defaults!$F$27 -> 844.6973389 | J183: =(1/$T183)*Defaults!$F$28 -> 426.5226116 | K183: =(1/$T183)*Defaults!$F$29 -> 352.1183359 | L183: =(1/$T183)*Defaults!$F$30 -> 737.821094 | M183: Aggregated | N183: DSL | O183: 3376.888767 | P183: 94344.39597 | Q183: 5.38166751 | R183: 5381.66751 | S183: 0.0570427894 | T183: 17.53069951
A184: Statewide | B184: 2004 | C184: LHD1 | D184: 1989 | E184: 2004_1989 | F184: =(1/$T184)*Defaults!$F$24 -> 679.8294633 | G184: =(1/$T184)*Defaults!$F$25 -> 791.2578415 | H184: =(1/$T184)*Defaults!$F$26 -> 299.9029548 | I184: =(1/$T184)*Defaults!$F$27 -> 847.9473711 | J184: =(1/$T184)*Defaults!$F$28 -> 428.1636873 | K184: =(1/$T184)*Defaults!$F$29 -> 353.4731358 | L184: =(1/$T184)*Defaults!$F$30 -> 740.6599124 | M184: Aggregated | N184: DSL | O184: 5130.778565 | P184: 147884.6432 | Q184: 8.468209708 | R184: 8468.209708 | S184: 0.05726226553 | T184: 17.46350744
A185: Statewide | B185: 2004 | C185: LHD1 | D185: 1990 | E185: 2004_1990 | F185: =(1/$T185)*Defaults!$F$24 -> 682.6330001 | G185: =(1/$T185)*Defaults!$F$25 -> 794.5208958 | H185: =(1/$T185)*Defaults!$F$26 -> 301.1397193 | I185: =(1/$T185)*Defaults!$F$27 -> 851.4442064 | J185: =(1/$T185)*Defaults!$F$28 -> 429.929384 | K185: =(1/$T185)*Defaults!$F$29 -> 354.9308175 | L185: =(1/$T185)*Defaults!$F$30 -> 743.7143068 | M185: Aggregated | N185: DSL | O185: 5954.824004 | P185: 177245.0038 | Q185: 10.19130561 | R185: 10191.30561 | S185: 0.05749840838 | T185: 17.39178576
A186: Statewide | B186: 2004 | C186: LHD1 | D186: 1991 | E186: 2004_1991 | F186: =(1/$T186)*Defaults!$F$24 -> 684.0240592 | G186: =(1/$T186)*Defaults!$F$25 -> 796.1399584 | H186: =(1/$T186)*Defaults!$F$26 -> 301.7533772 | I186: =(1/$T186)*Defaults!$F$27 -> 853.1792664 | J186: =(1/$T186)*Defaults!$F$28 -> 430.8054875 | K186: =(1/$T186)*Defaults!$F$29 -> 355.6540901 | L186: =(1/$T186)*Defaults!$F$30 -> 745.2298365 | M186: Aggregated | N186: DSL | O186: 5428.550781 | P186: 167046.5802 | Q186: 9.624485231 | R186: 9624.485231 | S186: 0.05761557776 | T186: 17.35641712
A187: Statewide | B187: 2004 | C187: LHD1 | D187: 1992 | E187: 2004_1992 | F187: =(1/$T187)*Defaults!$F$24 -> 684.4957169 | G187: =(1/$T187)*Defaults!$F$25 -> 796.6889238 | H187: =(1/$T187)*Defaults!$F$26 -> 301.9614464 | I187: =(1/$T187)*Defaults!$F$27 -> 853.7675623 | J187: =(1/$T187)*Defaults!$F$28 -> 431.1025424 | K187: =(1/$T187)*Defaults!$F$29 -> 355.8993256 | L187: =(1/$T187)*Defaults!$F$30 -> 745.7436976 | M187: Aggregated | N187: DSL | O187: 5202.39651 | P187: 165714.1149 | Q187: 9.554297947 | R187: 9554.297947 | S187: 0.05765530565 | T187: 17.34445753
A188: Statewide | B188: 2004 | C188: LHD1 | D188: 1993 | E188: 2004_1993 | F188: =(1/$T188)*Defaults!$F$24 -> 684.0122987 | G188: =(1/$T188)*Defaults!$F$25 -> 796.1262703 | H188: =(1/$T188)*Defaults!$F$26 -> 301.7481892 | I188: =(1/$T188)*Defaults!$F$27 -> 853.1645976 | J188: =(1/$T188)*Defaults!$F$28 -> 430.7980806 | K188: =(1/$T188)*Defaults!$F$29 -> 355.6479753 | L188: =(1/$T188)*Defaults!$F$30 -> 745.2170237 | M188: Aggregated | N188: DSL | O188: 6757.467571 | P188: 223142.3656 | Q188: 12.85625527 | R188: 12856.25527 | S188: 0.05761458717 | T188: 17.35671553
A189: Statewide | B189: 2004 | C189: LHD1 | D189: 1994 | E189: 2004_1994 | F189: =(1/$T189)*Defaults!$F$24 -> 680.1232714 | G189: =(1/$T189)*Defaults!$F$25 -> 791.5998066 | H189: =(1/$T189)*Defaults!$F$26 -> 300.0325666 | I189: =(1/$T189)*Defaults!$F$27 -> 848.3138362 | J189: =(1/$T189)*Defaults!$F$28 -> 428.3487306 | K189: =(1/$T189)*Defaults!$F$29 -> 353.6258995 | L189: =(1/$T189)*Defaults!$F$30 -> 740.9800101 | M189: Aggregated | N189: DSL | O189: 6769.359339 | P189: 232131.3323 | Q189: 13.29811067 | R189: 13298.11067 | S189: 0.05728701308 | T189: 17.45596334
A190: Statewide | B190: 2004 | C190: LHD1 | D190: 1995 | E190: 2004_1995 | F190: =(1/$T190)*Defaults!$F$24 -> 676.1689931 | G190: =(1/$T190)*Defaults!$F$25 -> 786.9973969 | H190: =(1/$T190)*Defaults!$F$26 -> 298.2881589 | I190: =(1/$T190)*Defaults!$F$27 -> 843.3816877 | J190: =(1/$T190)*Defaults!$F$28 -> 425.8582849 | K190: =(1/$T190)*Defaults!$F$29 -> 351.5698969 | L190: =(1/$T190)*Defaults!$F$30 -> 736.671907 | M190: Aggregated | N190: DSL | O190: 10071.39979 | P190: 359372.4684 | Q190: 20.46767904 | R190: 20467.67904 | S190: 0.05695394289 | T190: 17.55804689
A191: Statewide | B191: 2004 | C191: LHD1 | D191: 1996 | E191: 2004_1996 | F191: =(1/$T191)*Defaults!$F$24 -> 677.2475156 | G191: =(1/$T191)*Defaults!$F$25 -> 788.2526961 | H191: =(1/$T191)*Defaults!$F$26 -> 298.763943 | I191: =(1/$T191)*Defaults!$F$27 -> 844.7269226 | J191: =(1/$T191)*Defaults!$F$28 -> 426.5375496 | K191: =(1/$T191)*Defaults!$F$29 -> 352.130668 | L191: =(1/$T191)*Defaults!$F$30 -> 737.8469346 | M191: Aggregated | N191: DSL | O191: 9705.993862 | P191: 361258.557 | Q191: 20.60791751 | R191: 20607.91751 | S191: 0.0570447872 | T191: 17.53008555
A192: Statewide | B192: 2004 | C192: LHD1 | D192: 1997 | E192: 2004_1997 | F192: =(1/$T192)*Defaults!$F$24 -> 679.7523791 | G192: =(1/$T192)*Defaults!$F$25 -> 791.1681227 | H192: =(1/$T192)*Defaults!$F$26 -> 299.8689495 | I192: =(1/$T192)*Defaults!$F$27 -> 847.8512245 | J192: =(1/$T192)*Defaults!$F$28 -> 428.1151388 | K192: =(1/$T192)*Defaults!$F$29 -> 353.4330564 | L192: =(1/$T192)*Defaults!$F$30 -> 740.5759308 | M192: Aggregated | N192: DSL | O192: 13817.90999 | P192: 538057.3491 | Q192: 30.80688929 | R192: 30806.88929 | S192: 0.05725577271 | T192: 17.46548781
A193: Statewide | B193: 2004 | C193: LHD1 | D193: 1998 | E193: 2004_1998 | F193: =(1/$T193)*Defaults!$F$24 -> 675.6752567 | G193: =(1/$T193)*Defaults!$F$25 -> 786.4227339 | H193: =(1/$T193)*Defaults!$F$26 -> 298.0703498 | I193: =(1/$T193)*Defaults!$F$27 -> 842.7658531 | J193: =(1/$T193)*Defaults!$F$28 -> 425.5473246 | K193: =(1/$T193)*Defaults!$F$29 -> 351.3131817 | L193: =(1/$T193)*Defaults!$F$30 -> 736.1339916 | M193: Aggregated | N193: DSL | O193: 4986.039849 | P193: 203868.9024 | Q193: 11.60265941 | R193: 11602.65941 | S193: 0.0569123553 | T193: 17.57087709
A194: Statewide | B194: 2004 | C194: LHD1 | D194: 1999 | E194: 2004_1999 | F194: =(1/$T194)*Defaults!$F$24 -> 678.3201827 | G194: =(1/$T194)*Defaults!$F$25 -> 789.5011802 | H194: =(1/$T194)*Defaults!$F$26 -> 299.2371441 | I194: =(1/$T194)*Defaults!$F$27 -> 846.0648542 | J194: =(1/$T194)*Defaults!$F$28 -> 427.2131266 | K194: =(1/$T194)*Defaults!$F$29 -> 352.6883947 | L194: =(1/$T194)*Defaults!$F$30 -> 739.0155829 | M194: Aggregated | N194: DSL | O194: 20112.53509 | P194: 867608.1343 | Q194: 49.57091076 | R194: 49570.91076 | S194: 0.05713513832 | T194: 17.50236421
A195: Statewide | B195: 2004 | C195: LHD1 | D195: 2000 | E195: 2004_2000 | F195: =(1/$T195)*Defaults!$F$24 -> 676.3497286 | G195: =(1/$T195)*Defaults!$F$25 -> 787.2077561 | H195: =(1/$T195)*Defaults!$F$26 -> 298.3678893 | I195: =(1/$T195)*Defaults!$F$27 -> 843.6071181 | J195: =(1/$T195)*Defaults!$F$28 -> 425.972114 | K195: =(1/$T195)*Defaults!$F$29 -> 351.6638693 | L195: =(1/$T195)*Defaults!$F$30 -> 736.8688146 | M195: Aggregated | N195: DSL | O195: 17072.38007 | P195: 781890.4241 | Q195: 44.5436456 | R195: 44543.6456 | S195: 0.0569691663 | T195: 17.553355
A196: Statewide | B196: 2004 | C196: LHD1 | D196: 2001 | E196: 2004_2001 | F196: =(1/$T196)*Defaults!$F$24 -> 677.4472475 | G196: =(1/$T196)*Defaults!$F$25 -> 788.4851653 | H196: =(1/$T196)*Defaults!$F$26 -> 298.8520536 | I196: =(1/$T196)*Defaults!$F$27 -> 844.976047 | J196: =(1/$T196)*Defaults!$F$28 -> 426.6633429 | K196: =(1/$T196)*Defaults!$F$29 -> 352.2345174 | L196: =(1/$T196)*Defaults!$F$30 -> 738.0645383 | M196: Aggregated | N196: DSL | O196: 25210.53117 | P196: 1236707.955 | Q196: 70.56854787 | R196: 70568.54787 | S196: 0.05706161068 | T196: 17.52491716
A197: Statewide | B197: 2004 | C197: LHD1 | D197: 2002 | E197: 2004_2002 | F197: =(1/$T197)*Defaults!$F$24 -> 674.9556408 | G197: =(1/$T197)*Defaults!$F$25 -> 785.5851684 | H197: =(1/$T197)*Defaults!$F$26 -> 297.7528953 | I197: =(1/$T197)*Defaults!$F$27 -> 841.8682804 | J197: =(1/$T197)*Defaults!$F$28 -> 425.094103 | K197: =(1/$T197)*Defaults!$F$29 -> 350.9390219 | L197: =(1/$T197)*Defaults!$F$30 -> 735.3499852 | M197: Aggregated | N197: DSL | O197: 26336.31354 | P197: 1402507.903 | Q197: 79.73501719 | R197: 79735.01719 | S197: 0.05685174181 | T197: 17.58961059
A198: Statewide | B198: 2004 | C198: LHD1 | D198: 2003 | E198: 2004_2003 | F198: =(1/$T198)*Defaults!$F$24 -> 670.5447477 | G198: =(1/$T198)*Defaults!$F$25 -> 780.4513018 | H198: =(1/$T198)*Defaults!$F$26 -> 295.8070546 | I198: =(1/$T198)*Defaults!$F$27 -> 836.3665988 | J198: =(1/$T198)*Defaults!$F$28 -> 422.3160765 | K198: =(1/$T198)*Defaults!$F$29 -> 348.6456052 | L198: =(1/$T198)*Defaults!$F$30 -> 730.5444098 | M198: Aggregated | N198: DSL | O198: 32792.57266 | P198: 1940379.073 | Q198: 109.5930191 | R198: 109593.0191 | S198: 0.05648021079 | T198: 17.70531636
A199: Statewide | B199: 2004 | C199: LHD1 | D199: 2004 | E199: 2004_2004 | F199: =(1/$T199)*Defaults!$F$24 -> 669.1057926 | G199: =(1/$T199)*Defaults!$F$25 -> 778.7764929 | H199: =(1/$T199)*Defaults!$F$26 -> 295.1722676 | I199: =(1/$T199)*Defaults!$F$27 -> 834.5717985 | J199: =(1/$T199)*Defaults!$F$28 -> 421.4098076 | K199: =(1/$T199)*Defaults!$F$29 -> 347.8974294 | L199: =(1/$T199)*Defaults!$F$30 -> 728.9766985 | M199: Aggregated | N199: DSL | O199: 33666.74877 | P199: 2332680.911 | Q199: 131.4675801 | R199: 131467.5801 | S199: 0.05635900712 | T199: 17.74339278
A200: Statewide | B200: 2005 | C200: LHD1 | D200: 1965 | E200: 2005_1965 | F200: =(1/$T200)*Defaults!$F$24 -> 686.8948662 | G200: =(1/$T200)*Defaults!$F$25 -> 799.4813089 | H200: =(1/$T200)*Defaults!$F$26 -> 303.0198176 | I200: =(1/$T200)*Defaults!$F$27 -> 856.7600074 | J200: =(1/$T200)*Defaults!$F$28 -> 432.6135517 | K200: =(1/$T200)*Defaults!$F$29 -> 357.1467485 | L200: =(1/$T200)*Defaults!$F$30 -> 748.3575203 | M200: Aggregated | N200: DSL | O200: 24.80875968 | P200: 361.1244834 | Q200: 0.02089371892 | R200: 20.89371892 | S200: 0.0578573868 | T200: 17.28387774
A201: Statewide | B201: 2005 | C201: LHD1 | D201: 1966 | E201: 2005_1966 | F201: =(1/$T201)*Defaults!$F$24 -> 697.3600053 | G201: =(1/$T201)*Defaults!$F$25 -> 811.661751 | H201: =(1/$T201)*Defaults!$F$26 -> 307.6364551 | I201: =(1/$T201)*Defaults!$F$27 -> 869.8131151 | J201: =(1/$T201)*Defaults!$F$28 -> 439.2046055 | K201: =(1/$T201)*Defaults!$F$29 -> 362.588033 | L201: =(1/$T201)*Defaults!$F$30 -> 759.7590695 | M201: Aggregated | N201: DSL | O201: 8.500375834 | P201: 130.0649026 | Q201: 0.007639865279 | R201: 7.639865279 | S201: 0.05873886901 | T201: 17.02450212
... 2058 more rows
